Workbook

Sheet Cover
B2: Error checking | C2: Status | E2: Cell legend
B3: Input sheets | E3: Input
B4: Dx_Inputs | C4: =Dx_Inputs!C1 -> OK | E4: Calculation
B5: Tx_Inputs | C5: =Tx_Inputs!C1 -> OK | E5: Calculation - Different calc
B6: WACC_Inputs | C6: n/a | E6: Negative value | F6: Red text
B7: Adjustment_Inputs | C7: n/a | E7: Historical input or N/A
B8: Calculations
B9: Dx_Asset | C9: =Dx_Asset!C1 -> OK
B10: Dx_Tax_Asset | C10: =Dx_Tax_Asset!C1 -> OK
B11: Tx_Asset | C11: =Tx_Asset!C1 -> OK
B12: Tx_Tax_Asset | C12: =Tx_Tax_Asset!C1 -> OK | E12: MODEL DISCLAIMER
B13: Tax_Analysis | C13: =Tax_Analysis!C1 -> OK | E13: This model is to show the calculation of Western Power's revenue cap as submitted to the ERA in February 2022 for its Access Arrangement Five (AA5) submission.
B14: Dx_CoS | C14: =Dx_CoS!C1 -> OK
B15: Dx_CoS smoothing | C15: =Dx_CoS!C107 -> OK | E15: This model is not to be used for any other purpose as correct use of the model relies on an understanding of the of the relationships amongst the data in the model
B16: Tx_CoS | C16: =Tx_CoS!C1 -> OK | E16: which may change if one or more elements of the model are changed.
B17: Tx_CoS smoothing | C17: =Tx_CoS!C94 -> OK
B18: Dx_Adjustments | C18: =Dx_Adjustments!C1 -> OK
B19: Tx_Adjustments | C19: =Tx_Adjustments!C1 -> OK
B20: GSM | C20: n/a
B22: Index of tabs contained in this model
B23: Tab | C23: Description
B24: Cover | C24: Cover page with error checking and solve model macro
B25: Output_Summary | C25: Output summary of key measures and graphs
B26: Public output summary | C26: High level output summary sized for A4 page printing
B27: INPUTS
B28: Dx_Inputs | C28: Distribution network inputs - primarily expenditure related
B29: Tx_Inputs | C29: Transmission network inputs - primarily expenditure related
B30: WACC_Inputs | C30: Weighted Average Cost of Capital inputs as well as values over AA1 - AA4
B31: Adjustment_Inputs | C31: Inputs required to calculate service standard and expenditure adjustment mechanisms
B32: Incentive_Rate_Inputs | C32: Metrics related to the calculation of service standard incentive rates
B33: Incentive_rates | C33: Incentive rates related to network performance
B34: CALCULATIONS
B35: Dx_Asset | C35: Roll forward calculation of distribution Regulated Asset Base (RAB)
B36: Dx_Tax_Asset | C36: Roll forward calculation of distribution Tax Asset Base (TAB)
B37: Tx_Asset | C37: Roll forward calculation of transnmission RAB
B38: Tx_Tax_Asset | C38: Roll forward calculation of transmission TAB
B39: Dx_CoS | C39: Calculation of Distribution cost of service (building blocks)
B40: Tx_CoS | C40: Calculation of Transmission cost of service (building blocks)
B41: GSM | C41: Gain Sharing Mechanism calculations
B42: Tax_Analysis | C42: Tax and equity raising cost calculations
B43: Dx_Adjustments | C43: Distribution expenditure adjustment calculations
B44: Tx_Adjustments | C44: Transmission expenditure adjustment calculations

Sheet Output_Summary
B2: WACC return | D2: 2023 | E2: 2024 | F2: 2025 | G2: 2026 | H2: 2027
B3: Nominal post tax | D3: =WACC_Inputs!N31 -> 0.05052540295 | E3: =WACC_Inputs!O31 -> 0.0483200358 | F3: =WACC_Inputs!P31 -> 0.04686731635 | G3: =WACC_Inputs!Q31 -> 0.0456891245 | H3: =WACC_Inputs!R31 -> 0.04487339855
B4: Real post tax | D4: =WACC_Inputs!N32 -> 0.02962403504 | E4: =WACC_Inputs!O32 -> 0.02746254612 | F4: =WACC_Inputs!P32 -> 0.02603873013 | G4: =WACC_Inputs!Q32 -> 0.02488397971 | H4: =WACC_Inputs!R32 -> 0.02408448354
B6: Price path | D6: 2023 | E6: 2024 | F6: 2025 | G6: 2026 | H6: 2027
B7: Distribution | D7: =U95 -> 0 | E7: =V95 -> 0.1094988123 | F7: 0 | G7: 0 | H7: 0
B8: Transmission | D8: =U96 -> 0 | E8: =V96 -> -0.1736080028 | F8: 0 | G8: 0 | H8: 0
B9: Bundled (average tariff $/MWh) | D9: =U97 -> 0 | E9: =V97 -> 0.03651539078 | F9: 0 | G9: 0 | H9: 0
B11: Revenue cap [$M nominal] | D11: 2023 | E11: 2024 | F11: 2025 | G11: 2026 | H11: 2027
B12: Distribution | D12: =Dx_CoS!W106 -> 1084.509498 | E12: =Dx_CoS!X106 -> 1197.65451 | F12: =Dx_CoS!Y106 -> 1191.606513 | G12: =Dx_CoS!Z106 -> 1185.533608 | H12: =Dx_CoS!AA106 -> 1179.491652
B13: Transmission | D13: =Tx_CoS!W93 -> 491.9085375 | E13: =Tx_CoS!X93 -> 404.2411452 | F13: =Tx_CoS!Y93 -> 401.858431 | G13: =Tx_CoS!Z93 -> 399.4965668 | H13: =Tx_CoS!AA93 -> 397.148584
B14: Total | D14: =SUM(D12:D13) -> 1576.418035 | E14: =SUM(E12:E13) -> 1601.895655 | F14: 1593.464944 | G14: 1585.030174 | H14: 1576.640236
B16: Energy (GWh) | D16: 2023 | E16: 2024 | F16: 2025 | G16: 2026 | H16: 2027
B17: Distribution | D17: =Dx_CoS!W108 -> 13213.5338 | E17: =Dx_CoS!X108 -> 13151.95557 | F17: =Dx_CoS!Y108 -> 13085.53993 | G17: =Dx_CoS!Z108 -> 13018.85077 | H17: =Dx_CoS!AA108 -> 12952.50147
B18: Transmission | D18: =Tx_CoS!W95 -> 17255.20675 | E18: =Tx_CoS!X95 -> 17158.93069 | F18: =Tx_CoS!Y95 -> 17057.79099 | G18: =Tx_CoS!Z95 -> 16957.53632 | H18: =Tx_CoS!AA95 -> 16857.87087
B67: Output Summary data for graphing
B68: Year ending 30 June | D68: 2006 | E68: 2007 | F68: 2008 | G68: 2009 | H68: 2010 | I68: 2011 | J68: 2012 | K68: 2013 | L68: 2014 | M68: 2015 | N68: 2016 | O68: 2017 | P68: 2018 | Q68: 2019 | R68: 2020 | S68: 2021 | T68: 2022 | U68: 2023 | V68: 2024 | W68: 2025 | X68: 2026 | Y68: 2027
B69: Revenue path [$M nominal]
B70: Distribution | E70: =Dx_CoS!G106 -> 327.5635847 | F70: =Dx_CoS!H106 -> 427.5369699 | G70: =Dx_CoS!I106 -> 461.9704548 | H70: =Dx_CoS!J106 -> 513.899676 | I70: =Dx_CoS!K106 -> 711.271 | J70: =Dx_CoS!L106 -> 804.783 | K70: =Dx_CoS!M106 -> 835.207 | L70: =Dx_CoS!N106 -> 968.278 | M70: =Dx_CoS!O106 -> 1043.275 | N70: =Dx_CoS!P106 -> 1173.615 | O70: =Dx_CoS!Q106 -> 1217.994 | P70: =Dx_CoS!R106 -> 1210.089 | Q70: =Dx_CoS!S106 -> 1194.793 | R70: =Dx_CoS!T106 -> 1180.308 | S70: =Dx_CoS!U106 -> 1156.776 | T70: =Dx_CoS!V106 -> 1089.93976 | U70: =Dx_CoS!W106 -> 1084.509498 | V70: =Dx_CoS!X106 -> 1197.65451 | W70: =Dx_CoS!Y106 -> 1191.606513 | X70: =Dx_CoS!Z106 -> 1185.533608 | Y70: =Dx_CoS!AA106 -> 1179.491652
B71: Transmission | E71: =Tx_CoS!G93 -> 200.4046813 | F71: =Tx_CoS!H93 -> 215.3356458 | G71: =Tx_CoS!I93 -> 227.2674179 | H71: =Tx_CoS!J93 -> 270.3259342 | I71: =Tx_CoS!K93 -> 345.421 | J71: =Tx_CoS!L93 -> 387.876 | K71: =Tx_CoS!M93 -> 387.303 | L71: =Tx_CoS!N93 -> 363.667 | M71: =Tx_CoS!O93 -> 350.264 | N71: =Tx_CoS!P93 -> 324.252 | O71: =Tx_CoS!Q93 -> 293.647 | P71: =Tx_CoS!R93 -> 286.112 | Q71: =Tx_CoS!S93 -> 282.479 | R71: =Tx_CoS!T93 -> 343.092 | S71: =Tx_CoS!U93 -> 424.272 | T71: =Tx_CoS!V93 -> 521.829206 | U71: =Tx_CoS!W93 -> 491.9085375 | V71: =Tx_CoS!X93 -> 404.2411452 | W71: =Tx_CoS!Y93 -> 401.858431 | X71: =Tx_CoS!Z93 -> 399.4965668 | Y71: =Tx_CoS!AA93 -> 397.148584
B72: Total | E72: =SUM(E70:E71) -> 527.9682659 | F72: =SUM(F70:F71) -> 642.8726156 | G72: 689.2378727 | H72: 784.2256102 | I72: 1056.692 | J72: 1192.659 | K72: =SUM(K70:K71)/Dx_Inputs!K54 -> 1438.779154 | L72: =SUM(L70:L71)/Dx_Inputs!L54 -> 1521.686414 | M72: =SUM(M70:M71)/Dx_Inputs!M54 -> 1568.359051 | N72: =SUM(N70:N71)/Dx_Inputs!N54 -> 1668.699973 | O72: =SUM(O70:O71)/Dx_Inputs!O54 -> 1652.098257 | P72: =SUM(P70:P71)/Dx_Inputs!P54 -> 1601.940305 | Q72: =SUM(Q70:Q71)/Dx_Inputs!Q54 -> 1556.873798 | R72: =SUM(R70:R71)/Dx_Inputs!R54 -> 1611.100966 | S72: =SUM(S70:S71)/Dx_Inputs!S54 -> 1610.139283 | T72: =SUM(T70:T71)/Dx_Inputs!T54 -> 1611.768966 | U72: 1576.418035 | V72: 1601.895655 | W72: 1593.464944 | X72: 1585.030174 | Y72: 1576.640236
B74: Opex [$M real as at 30 June 2022]
B75: Distribution | E75: =Dx_Inputs!E762 -> 326.867904 | F75: =Dx_Inputs!F762 -> 332.8433602 | G75: =Dx_Inputs!G762 -> 369.7503451 | H75: =Dx_Inputs!H762 -> 355.6234289 | I75: =Dx_Inputs!I762 -> 396.5051792 | J75: =Dx_Inputs!J762 -> 453.4658325 | K75: =Dx_Inputs!K762 -> 440.5205623 | L75: =Dx_Inputs!L762 -> 424.3132731 | M75: =Dx_Inputs!M762 -> 394.9959571 | N75: =Dx_Inputs!N762 -> 421.1446348 | O75: =Dx_Inputs!O762 -> 383.7537861 | P75: =Dx_Inputs!P762 -> 342.0839414 | Q75: =Dx_Inputs!Q762 -> 291.4611938 | R75: =Dx_Inputs!R762 -> 329.2086107 | S75: =Dx_Inputs!S762 -> 311.7179824 | T75: =Dx_Inputs!T762 -> 338.4739831 | U75: =Dx_Inputs!U762 -> 319.5208459 | V75: =Dx_Inputs!V762 -> 328.3457409 | W75: =Dx_Inputs!W762 -> 332.18979 | X75: =Dx_Inputs!X762 -> 337.1829973 | Y75: =Dx_Inputs!Y762 -> 345.6852898
B76: Transmission | E76: =Tx_Inputs!E687 -> 96.48488648 | F76: =Tx_Inputs!F687 -> 96.92555527 | G76: =Tx_Inputs!G687 -> 95.11899741 | H76: =Tx_Inputs!H687 -> 109.6574829 | I76: =Tx_Inputs!I687 -> 122.0963185 | J76: =Tx_Inputs!J687 -> 149.7176659 | K76: =Tx_Inputs!K687 -> 139.6516466 | L76: =Tx_Inputs!L687 -> 133.6900128 | M76: =Tx_Inputs!M687 -> 131.6912044 | N76: =Tx_Inputs!N687 -> 138.2815591 | O76: =Tx_Inputs!O687 -> 115.46341 | P76: =Tx_Inputs!P687 -> 110.3595018 | Q76: =Tx_Inputs!Q687 -> 102.6051236 | R76: =Tx_Inputs!R687 -> 128.4396679 | S76: =Tx_Inputs!S687 -> 124.0655616 | T76: =Tx_Inputs!T687 -> 114.7704832 | U76: =Tx_Inputs!U687 -> 104.4057264 | V76: =Tx_Inputs!V687 -> 106.5323382 | W76: =Tx_Inputs!W687 -> 102.0650692 | X76: =Tx_Inputs!X687 -> 102.9351477 | Y76: =Tx_Inputs!Y687 -> 103.863923
B77: Total | E77: =SUM(E75:E76) -> 423.3527905 | F77: =SUM(F75:F76) -> 429.7689154 | G77: 464.8693425 | H77: 465.2809118 | I77: 518.6014977 | J77: 603.1834984 | K77: 580.1722088 | L77: 558.0032859 | M77: 526.6871614 | N77: 559.4261939 | O77: 499.2171961 | P77: 452.4434433 | Q77: 394.0663174 | R77: 457.6482786 | S77: 435.783544 | T77: 453.2444662 | U77: 423.9265723 | V77: 434.8780791 | W77: 434.2548592 | X77: 440.1181451 | Y77: 449.5492128
B79: Capex [$M real as at 30 June 2022]
B80: Distribution | E80: =Dx_Inputs!E294 -> 483.5673653 | F80: =Dx_Inputs!F294 -> 528.6320283 | G80: =Dx_Inputs!G294 -> 661.347239 | H80: =Dx_Inputs!H294 -> 615.6093543 | I80: =Dx_Inputs!I294 -> 628.5998718 | J80: =Dx_Inputs!J294 -> 734.5398061 | K80: =Dx_Inputs!K294 -> 847.5844788 | L80: =Dx_Inputs!L294 -> 851.009376 | M80: =Dx_Inputs!M294 -> 762.5933244 | N80: =Dx_Inputs!N294 -> 645.4919484 | O80: =Dx_Inputs!O294 -> 492.7624279 | P80: =Dx_Inputs!P294 -> 509.7278558 | Q80: =Dx_Inputs!Q294 -> 515.0447143 | R80: =Dx_Inputs!R294 -> 531.9260159 | S80: =Dx_Inputs!S294 -> 504.4836918 | T80: =Dx_Inputs!T294 -> 594.4668673 | U80: =Dx_Inputs!U294 -> 752.2531913 | V80: =Dx_Inputs!V294 -> 772.0143865 | W80: =Dx_Inputs!W294 -> 799.5078662 | X80: =Dx_Inputs!X294 -> 783.1284845 | Y80: =Dx_Inputs!Y294 -> 771.3724791
B81: Transmission | E81: =Tx_Inputs!E242 -> 346.066753 | F81: =Tx_Inputs!F242 -> 357.8031813 | G81: =Tx_Inputs!G242 -> 365.322952 | H81: =Tx_Inputs!H242 -> 278.5718152 | I81: =Tx_Inputs!I242 -> 206.0837542 | J81: =Tx_Inputs!J242 -> 194.1978438 | K81: =Tx_Inputs!K242 -> 249.716639 | L81: =Tx_Inputs!L242 -> 375.3695397 | M81: =Tx_Inputs!M242 -> 179.4734739 | N81: =Tx_Inputs!N242 -> 137.016404 | O81: =Tx_Inputs!O242 -> 130.4810115 | P81: =Tx_Inputs!P242 -> 137.7729841 | Q81: =Tx_Inputs!Q242 -> 189.7113415 | R81: =Tx_Inputs!R242 -> 291.3823958 | S81: =Tx_Inputs!S242 -> 213.2824936 | T81: =Tx_Inputs!T242 -> 220.5818328 | U81: =Tx_Inputs!U242 -> 295.8839582 | V81: =Tx_Inputs!V242 -> 286.0548516 | W81: =Tx_Inputs!W242 -> 274.3284546 | X81: =Tx_Inputs!X242 -> 240.6526656 | Y81: =Tx_Inputs!Y242 -> 208.8926601
B82: Total | E82: =SUM(E80:E81) -> 829.6341183 | F82: =SUM(F80:F81) -> 886.4352096 | G82: 1026.670191 | H82: 894.1811695 | I82: 834.683626 | J82: 928.7376499 | K82: 1097.301118 | L82: 1226.378916 | M82: 942.0667983 | N82: 782.5083525 | O82: 623.2434393 | P82: 647.5008398 | Q82: 704.7560558 | R82: 823.3084117 | S82: 717.7661854 | T82: 815.0487001 | U82: 1048.137149 | V82: 1058.069238 | W82: 1073.836321 | X82: 1023.78115 | Y82: 980.2651392
B84: RAB closing value [$M real as at 30 June 2022]
B85: Distribution | E85: =Dx_Asset!G10 -> 2617.745564 | F85: =Dx_Asset!H10 -> 3024.510116 | G85: =Dx_Asset!I10 -> 3618.749279 | H85: =Dx_Asset!J10 -> 3948.269823 | I85: =Dx_Asset!K10 -> 4263.505634 | J85: =Dx_Asset!L10 -> 4643.478653 | K85: =Dx_Asset!M10 -> 5145.975953 | L85: =Dx_Asset!N10 -> 5620.792016 | M85: =Dx_Asset!O10 -> 6004.853615 | N85: =Dx_Asset!P10 -> 6254.860698 | O85: =Dx_Asset!Q10 -> 6337.177275 | P85: =Dx_Asset!R10 -> 6428.328681 | Q85: =Dx_Asset!S10 -> 6509.066223 | R85: =Dx_Asset!T10 -> 6653.466159 | S85: =Dx_Asset!U10 -> 6789.420633 | T85: =Dx_Asset!V10 -> 7004.335809 | U85: =Dx_Asset!W10 -> 7356.588181 | V85: =Dx_Asset!X10 -> 7716.498759 | W85: =Dx_Asset!Y10 -> 8057.44762 | X85: =Dx_Asset!Z10 -> 8347.319023 | Y85: =Dx_Asset!AA10 -> 8598.43813
B86: Transmission | E86: =Tx_Asset!G10 -> 2230.605199 | F86: =Tx_Asset!H10 -> 2511.261423 | G86: =Tx_Asset!I10 -> 2795.354071 | H86: =Tx_Asset!J10 -> 2934.370335 | I86: =Tx_Asset!K10 -> 3018.461806 | J86: =Tx_Asset!L10 -> 3077.792813 | K86: =Tx_Asset!M10 -> 3199.010126 | L86: =Tx_Asset!N10 -> 3454.722201 | M86: =Tx_Asset!O10 -> 3493.898649 | N86: =Tx_Asset!P10 -> 3426.12273 | O86: =Tx_Asset!Q10 -> 3396.803483 | P86: =Tx_Asset!R10 -> 3345.297003 | Q86: =Tx_Asset!S10 -> 3315.154949 | R86: =Tx_Asset!T10 -> 3412.740669 | S86: =Tx_Asset!U10 -> 3420.53914 | T86: =Tx_Asset!V10 -> 3465.201134 | U86: =Tx_Asset!W10 -> 3547.722023 | V86: =Tx_Asset!X10 -> 3632.284287 | W86: =Tx_Asset!Y10 -> 3694.616043 | X86: =Tx_Asset!Z10 -> 3713.770502 | Y86: =Tx_Asset!AA10 -> 3715.877849
B87: Total | E87: =SUM(E85:E86) -> 4848.350763 | F87: =SUM(F85:F86) -> 5535.771539 | G87: 6414.10335 | H87: 6882.640158 | I87: 7281.96744 | J87: 7721.271466 | K87: 8344.986079 | L87: 9075.514217 | M87: 9498.752264 | N87: 9680.983429 | O87: 9733.980759 | P87: 9773.625685 | Q87: 9824.221172 | R87: 10066.20683 | S87: 10209.95977 | T87: 10469.53694 | U87: 10904.3102 | V87: 11348.78305 | W87: 11752.06366 | X87: 12061.08952 | Y87: 12314.31598
B89: Average price [$/MWh nominal]
B90: Distribution | E90: =Dx_CoS!G109 -> 25.48855695 | F90: =Dx_CoS!H109 -> 31.86347719 | G90: =Dx_CoS!I109 -> 34.10708927 | H90: =Dx_CoS!J109 -> 37.44433803 | I90: =Dx_CoS!K109 -> 50.4257228 | J90: =Dx_CoS!L109 -> 57.77030299 | K90: =Dx_CoS!M109 -> 61.23667424 | L90: =Dx_CoS!N109 -> 70.85825101 | M90: =Dx_CoS!O109 -> 77.57412153 | N90: =Dx_CoS!P109 -> 84.5217078 | O90: =Dx_CoS!Q109 -> 89.36303393 | P90: =Dx_CoS!R109 -> 89.36303393 | Q90: =Dx_CoS!S109 -> 89.36303393 | R90: =Dx_CoS!T109 -> 86.41963576 | S90: =Dx_CoS!U109 -> 86.61271026 | T90: =Dx_CoS!V109 -> 82.07565921 | U90: =Dx_CoS!W109 -> 82.07565921 | V90: =Dx_CoS!X109 -> 91.06284641 | W90: =Dx_CoS!Y109 -> 91.06284641 | X90: =Dx_CoS!Z109 -> 91.06284641 | Y90: =Dx_CoS!AA109 -> 91.06284641
B91: Transmission | E91: =Tx_CoS!G96 -> 13.52276931 | F91: =Tx_CoS!H96 -> 13.76816323 | G91: =Tx_CoS!I96 -> 14.16830732 | H91: =Tx_CoS!J96 -> 16.12021587 | I91: =Tx_CoS!K96 -> 19.847857 | J91: =Tx_CoS!L96 -> 22.19975055 | K91: =Tx_CoS!M96 -> 22.86862305 | L91: =Tx_CoS!N96 -> 20.77028957 | M91: =Tx_CoS!O96 -> 19.8583954 | N91: =Tx_CoS!P96 -> 18.00667683 | O91: =Tx_CoS!Q96 -> 16.45592714 | P91: =Tx_CoS!R96 -> 16.45592714 | Q91: =Tx_CoS!S96 -> 16.45592714 | R91: =Tx_CoS!T96 -> 19.21253715 | S91: =Tx_CoS!U96 -> 23.40315756 | T91: =Tx_CoS!V96 -> 28.50783213 | U91: =Tx_CoS!W96 -> 28.50783213 | V91: =Tx_CoS!X96 -> 23.55864433 | W91: =Tx_CoS!Y96 -> 23.55864433 | X91: =Tx_CoS!Z96 -> 23.55864433 | Y91: =Tx_CoS!AA96 -> 23.55864433
B92: Total | E92: =SUM(E90:E91) -> 39.01132626 | F92: =SUM(F90:F91) -> 45.63164042 | G92: 48.27539659 | H92: 53.5645539 | I92: 70.2735798 | J92: 79.97005354 | K92: 84.10529729 | L92: 91.62854057 | M92: 97.43251693 | N92: 102.5283846 | O92: 105.8189611 | P92: 105.8189611 | Q92: 105.8189611 | R92: 105.6321729 | S92: 110.0158678 | T92: 110.5834913 | U92: 110.5834913 | V92: 114.6214907 | W92: 114.6214907 | X92: 114.6214907 | Y92: 114.6214907
B94: Price path
B95: Distribution | F95: =F90/E90-1 -> 0.250109108 | G95: =G90/F90-1 -> 0.07041328415 | H95: 0.09784619093 | I95: 0.3466848514 | J95: 0.1456514609 | K95: =K90/J90-1 -> 0.06000264963 | L95: 0.1571211514 | M95: 0.0947789485 | N95: 0.08956061807 | O95: 0.05727908557 | P95: 0 | Q95: 0 | R95: -0.03293753628 | S95: 0.002234150829 | T95: -0.05238320145 | U95: 0 | V95: 0.1094988123 | W95: 0 | X95: 0 | Y95: 0
B96: Transmission | F96: =F91/E91-1 -> 0.01814672116 | G96: 0.02906299748 | H96: 0.1377658248 | I96: 0.2312401498 | J96: 0.1184960951 | K96: 0.03012973058 | L96: -0.09175600478 | M96: -0.04390377709 | N96: -0.09324613265 | O96: -0.08612081554 | P96: 0 | Q96: 0 | R96: 0.1675147191 | S96: 0.2181190532 | T96: 0.2181190532 | U96: 0 | V96: -0.1736080028 | W96: 0 | X96: 0 | Y96: 0
B97: Total | F97: 0.1697023609 | G97: 0.05793690831 | H97: 0.1095621722 | I97: 0.3119418474 | J97: 0.1379817816 | K97: 0.05170990351 | L97: 0.08945029052 | M97: 0.0633424512 | N97: 0.05230150938 | O97: 0.03209429713 | P97: 0 | Q97: 0 | R97: -0.001765167208 | S97: 0.04149961884 | T97: 0.005159469537 | U97: 0 | V97: 0.03651539078 | W97: 0 | X97: 0 | Y97: 0
B99: TEC [$M nominal]
B100: Distribution | E100: =Dx_Inputs!E787 -> 69.7 | F100: =Dx_Inputs!F787 -> 71.6 | G100: =Dx_Inputs!G787 -> 72 | H100: =Dx_Inputs!H787 -> 122.1 | I100: =Dx_Inputs!I787 -> 175.7 | J100: =Dx_Inputs!J787 -> 181.2 | K100: =Dx_Inputs!K787 -> 154 | L100: =Dx_Inputs!L787 -> 209 | M100: =Dx_Inputs!M787 -> 136 | N100: =Dx_Inputs!N787 -> 141 | O100: =Dx_Inputs!O787 -> 150 | P100: =Dx_Inputs!P787 -> 167 | Q100: =Dx_Inputs!Q787 -> 198 | R100: =Dx_Inputs!R787 -> 171 | S100: =Dx_Inputs!S787 -> 185 | T100: =Dx_Inputs!T787 -> 187 | U100: =Dx_Inputs!U787 -> 189 | V100: =Dx_Inputs!V787 -> 188 | W100: =Dx_Inputs!W787 -> 192 | X100: =Dx_Inputs!X787 -> 192 | Y100: =Dx_Inputs!Y787 -> 192
B101: Total | E101: =SUM(E100:E100) -> 69.7 | F101: 71.6 | G101: 72 | H101: 122.1 | I101: 175.7 | J101: 181.2 | K101: 154 | L101: 209 | M101: 136 | N101: 141 | O101: 150 | P101: 167 | Q101: 198 | R101: 171 | S101: 185 | T101: 187 | U101: 189 | V101: 188 | W101: 192 | X101: 192 | Y101: 192
B103: Net Cost of Service [$M nominal]
B104: Distribution | J104: =Dx_CoS!L100 -> 804.783 | K104: =Dx_CoS!M100 -> 1007.006227 | L104: =Dx_CoS!N100 -> 1019.391963 | M104: =Dx_CoS!O100 -> 1102.964674 | N104: =Dx_CoS!P100 -> 1104.10138 | O104: =Dx_CoS!Q100 -> 1166.90879 | P104: =Dx_CoS!R100 -> 1377.736048 | Q104: =Dx_CoS!S100 -> 1125.518187 | R104: =Dx_CoS!T100 -> 1098.3892 | S104: =Dx_CoS!U100 -> 1102.447511 | T104: =Dx_CoS!V100 -> 1143.742469 | U104: =Dx_CoS!W100 -> 1065.362356 | V104: =Dx_CoS!X100 -> 1111.78001 | W104: =Dx_CoS!Y100 -> 1172.624073 | X104: =Dx_CoS!Z100 -> 1219.303563 | Y104: =Dx_CoS!AA100 -> 1286.130947
B105: Transmission | J105: =Tx_CoS!L87 -> 387.876 | K105: =Tx_CoS!M87 -> 315.1339252 | L105: =Tx_CoS!N87 -> 329.5052332 | M105: =Tx_CoS!O87 -> 349.4067617 | N105: =Tx_CoS!P87 -> 362.833709 | O105: =Tx_CoS!Q87 -> 386.6583495 | P105: =Tx_CoS!R87 -> 330.9353492 | Q105: =Tx_CoS!S87 -> 363.244749 | R105: =Tx_CoS!T87 -> 372.4056627 | S105: =Tx_CoS!U87 -> 398.4139515 | T105: =Tx_CoS!V87 -> 406.9940925 | U105: =Tx_CoS!W87 -> 429.1892998 | V105: =Tx_CoS!X87 -> 400.9821582 | W105: =Tx_CoS!Y87 -> 410.2250769 | X105: =Tx_CoS!Z87 -> 424.6671329 | Y105: =Tx_CoS!AA87 -> 440.640734
B106: Total | J106: =SUM(J104:J105) -> 1192.659 | K106: =SUM(K104:K105) -> 1322.140152 | L106: 1348.897196 | M106: 1452.371436 | N106: 1466.935089 | O106: 1553.567139 | P106: 1708.671397 | Q106: 1488.762936 | R106: 1470.794863 | S106: 1500.861462 | T106: 1550.736561 | U106: 1494.551655 | V106: 1512.762168 | W106: 1582.84915 | X106: 1643.970696 | Y106: 1726.771681
B108: Total Raw building block [$M nominal]
B109: Operating expenditure | P109: =Dx_CoS!R69+Tx_CoS!R60 -> 422.579 | Q109: =Dx_CoS!S69+Tx_CoS!S60 -> 373.918 | R109: =Dx_CoS!T69+Tx_CoS!T60 -> 432.736 | S109: =Dx_CoS!U69+Tx_CoS!U60 -> 427.91 | T109: =Dx_CoS!V69+Tx_CoS!V60 -> 453.2444662 | U109: =Dx_CoS!W69+Tx_CoS!W60 -> 435.1421035 | V109: =Dx_CoS!X69+Tx_CoS!X60 -> 452.7133381 | W109: =Dx_CoS!Y69+Tx_CoS!Y60 -> 461.2414691 | X109: =Dx_CoS!Z69+Tx_CoS!Z60 -> 476.95875 | Y109: =Dx_CoS!AA69+Tx_CoS!AA60 -> 497.0689952
B110: Depreciation | P110: =Dx_CoS!R70+Tx_CoS!R61 -> 375.31113 | Q110: =Dx_CoS!S70+Tx_CoS!S61 -> 406.1225868 | R110: =Dx_CoS!T70+Tx_CoS!T61 -> 415.2742715 | S110: =Dx_CoS!U70+Tx_CoS!U61 -> 428.4892243 | T110: =Dx_CoS!V70+Tx_CoS!V61 -> 431.3066595 | U110: =Dx_CoS!W70+Tx_CoS!W61 -> 443.7964819 | V110: =Dx_CoS!X70+Tx_CoS!X61 -> 474.4448869 | W110: =Dx_CoS!Y70+Tx_CoS!Y61 -> 531.5935649 | X110: =Dx_CoS!Z70+Tx_CoS!Z61 -> 577.1349274 | Y110: =Dx_CoS!AA70+Tx_CoS!AA61 -> 633.1059202
B111: Redundant Assets/Accelerated Depreciation | P111: =Dx_CoS!R72+Tx_CoS!R63 -> 13.58302663 | Q111: =Dx_CoS!S72+Tx_CoS!S63 -> 10.77323915 | R111: =Dx_CoS!T72+Tx_CoS!T63 -> 16.07893205 | S111: =Dx_CoS!U72+Tx_CoS!U63 -> 9.769 | T111: =Dx_CoS!V72+Tx_CoS!V63 -> 10.166948 | U111: =Dx_CoS!W72+Tx_CoS!W63 -> 0 | V111: =Dx_CoS!X72+Tx_CoS!X63 -> 0 | W111: =Dx_CoS!Y72+Tx_CoS!Y63 -> 0 | X111: =Dx_CoS!Z72+Tx_CoS!Z63 -> 0 | Y111: =Dx_CoS!AA72+Tx_CoS!AA63 -> 0
B112: Deferred Revenue Recovery | P112: =Dx_CoS!R73+Tx_CoS!R64 -> 40.82952194 | Q112: =Dx_CoS!S73+Tx_CoS!S64 -> 41.4799037 | R112: =Dx_CoS!T73+Tx_CoS!T64 -> 40.18071327 | S112: =Dx_CoS!U73+Tx_CoS!U64 -> 41.4601381 | T112: =Dx_CoS!V73+Tx_CoS!V64 -> 42.22300464 | U112: =Dx_CoS!W73+Tx_CoS!W64 -> 38.9523905 | V112: =Dx_CoS!X73+Tx_CoS!X64 -> 38.5849521 | W112: =Dx_CoS!Y73+Tx_CoS!Y64 -> 38.61937123 | X112: =Dx_CoS!Z73+Tx_CoS!Z64 -> 38.80579923 | Y112: =Dx_CoS!AA73+Tx_CoS!AA64 -> 39.18611183
B113: Tax costs due to capital contributions and gifted assets | P113: =Dx_CoS!R75+Tx_CoS!R65 -> 0 | Q113: =Dx_CoS!S75+Tx_CoS!S65 -> 0 | R113: =Dx_CoS!T75+Tx_CoS!T65 -> 0 | S113: =Dx_CoS!U75+Tx_CoS!U65 -> 0 | T113: =Dx_CoS!V75+Tx_CoS!V65 -> 0 | U113: =Dx_CoS!W75+Tx_CoS!W65 -> 0 | V113: =Dx_CoS!X75+Tx_CoS!X65 -> 0 | W113: =Dx_CoS!Y75+Tx_CoS!Y65 -> 0 | X113: =Dx_CoS!Z75+Tx_CoS!Z65 -> 0 | Y113: =Dx_CoS!AA75+Tx_CoS!AA65 -> 0
B114: Tax Payable | P114: =SUM(Dx_CoS!R76:R77)+SUM(Tx_CoS!R66:R67) -> 30.54837718 | Q114: =SUM(Dx_CoS!S76:S77)+SUM(Tx_CoS!S66:S67) -> 40.01633406 | R114: =SUM(Dx_CoS!T76:T77)+SUM(Tx_CoS!T66:T67) -> 74.77867157 | S114: =SUM(Dx_CoS!U76:U77)+SUM(Tx_CoS!U66:U67) -> 2.058522004 | T114: =SUM(Dx_CoS!V76:V77)+SUM(Tx_CoS!V66:V67) -> 34.10100011 | U114: =SUM(Dx_CoS!W76:W77)+SUM(Tx_CoS!W66:W67) -> 41.112392 | V114: =SUM(Dx_CoS!X76:X77)+SUM(Tx_CoS!X66:X67) -> 24.56626372 | W114: =SUM(Dx_CoS!Y76:Y77)+SUM(Tx_CoS!Y66:Y67) -> 22.74070267 | X114: =SUM(Dx_CoS!Z76:Z77)+SUM(Tx_CoS!Z66:Z67) -> 19.35327905 | Y114: =SUM(Dx_CoS!AA76:AA77)+SUM(Tx_CoS!AA66:AA67) -> 21.28383409
B115: Tariff Equalisation | P115: =Dx_CoS!R78 -> 153.7080739 | Q115: =Dx_CoS!S78 -> 181.6753128 | R115: =Dx_CoS!T78 -> 171 | S115: =Dx_CoS!U78 -> 185 | T115: =Dx_CoS!V78 -> 187 | U115: =Dx_CoS!W78 -> 189 | V115: =Dx_CoS!X78 -> 188 | W115: =Dx_CoS!Y78 -> 192 | X115: =Dx_CoS!Z78 -> 192 | Y115: =Dx_CoS!AA78 -> 192
B116: Return on Assets | P116: =Dx_CoS!R79+Dx_CoS!R71+Tx_CoS!R68+Tx_CoS!R62 -> 337.4324974 | Q116: =Dx_CoS!S79+Dx_CoS!S71+Tx_CoS!S68+Tx_CoS!S62 -> 390.0981047 | R116: =Dx_CoS!T79+Dx_CoS!T71+Tx_CoS!T68+Tx_CoS!T62 -> 560.0623067 | S116: =Dx_CoS!U79+Dx_CoS!U71+Tx_CoS!U68+Tx_CoS!U62 -> 168.1152235 | T116: =Dx_CoS!V79+Dx_CoS!V71+Tx_CoS!V68+Tx_CoS!V62 -> 378.2011115 | U116: =Dx_CoS!W79+Dx_CoS!W71+Tx_CoS!W68+Tx_CoS!W62 -> 316.4459728 | V116: =Dx_CoS!X79+Dx_CoS!X71+Tx_CoS!X68+Tx_CoS!X62 -> 311.7416073 | W116: =Dx_CoS!Y79+Dx_CoS!Y71+Tx_CoS!Y68+Tx_CoS!Y62 -> 313.8721297 | X116: =Dx_CoS!Z79+Dx_CoS!Z71+Tx_CoS!Z68+Tx_CoS!Z62 -> 316.9169887 | Y116: =Dx_CoS!AA79+Dx_CoS!AA71+Tx_CoS!AA68+Tx_CoS!AA62 -> 321.1909591
B117: Return on Working Capital | P117: =Dx_CoS!R82+Tx_CoS!R71 -> 8.793606778 | Q117: =Dx_CoS!S82+Tx_CoS!S71 -> 9.093210878 | R117: =Dx_CoS!T82+Tx_CoS!T71 -> 8.758928217 | S117: =Dx_CoS!U82+Tx_CoS!U71 -> 8.642442538 | T117: =Dx_CoS!V82+Tx_CoS!V71 -> 9.142841309 | U117: =Dx_CoS!W82+Tx_CoS!W71 -> 8.261116553 | V117: =Dx_CoS!X82+Tx_CoS!X71 -> 7.611561279 | W117: =Dx_CoS!Y82+Tx_CoS!Y71 -> 7.428076845 | X117: =Dx_CoS!Z82+Tx_CoS!Z71 -> 7.172246118 | Y117: =Dx_CoS!AA82+Tx_CoS!AA71 -> 6.990689163
B118: Total | P118: =SUM(P109:P117) -> 1382.785234 | Q118: =SUM(Q109:Q117) -> 1453.176692 | R118: 1718.869823 | S118: 1271.44455 | T118: 1545.386031 | U118: 1472.710457 | V118: 1497.662609 | W118: 1567.495314 | X118: 1628.341991 | Y118: 1710.82651
B120: Building block percentage breakdown | P120: AA4 | U120: AA5
B121: Operating expenditure | P121: =SUM(P109:T109)/SUM(P118:T118) -> 0.2862837948 | U121: =SUM(U109:Y109)/SUM(U118:Y118) -> 0.2949236738
B122: Depreciation | P122: =SUM(P110:T111)/SUM(P118:T118) -> 0.2871638611 | U122: =SUM(U110:Y111)/SUM(U118:Y118) -> 0.3377000542
B123: Deferred Revenue Recovery | P123: =SUM(P112:T112)/SUM(P118:T118) -> 0.02796835671 | U123: =SUM(U112:Y112)/SUM(U118:Y118) -> 0.02464741854
B124: Tax | P124: =SUM(P113:T114)/SUM(P118:T118) -> 0.02462170631 | U124: =SUM(U113:Y114)/SUM(U118:Y118) -> 0.01638388565
B125: Tariff Equalisation | P125: =SUM(P115:T115)/SUM(P118:T118) -> 0.1191567583 | U125: =SUM(U115:Y115)/SUM(U118:Y118) -> 0.1209845802
B126: Return on Assets | P126: =SUM(P116:T116)/SUM(P118:T118) -> 0.2487782486 | U126: =SUM(U116:Y116)/SUM(U118:Y118) -> 0.2006043239
B127: Return on Working Capital | P127: =SUM(P117:T117)/SUM(P118:T118) -> 0.006027274138 | U127: =SUM(U117:Y117)/SUM(U118:Y118) -> 0.0047560638
B128: Total | P128: =SUM(P121:P127) -> 1 | U128: =SUM(U121:U127) -> 1
B130: Summary for Exec summary [$M nominal] | K130: AA3 - real as at 30 June 2012 [from AA3 model] | P130: AA4 | U130: AA5
B131: Operating costs | K131: 452.3542711 | L131: 455.0458134 | M131: 451.3757453 | N131: 448.9798898 | O131: 460.4900327 | P131: =P109 -> 422.579 | Q131: 373.918 | R131: 432.736 | S131: 427.91 | T131: 453.2444662 | U131: =U109 -> 435.1421035 | V131: 452.7133381 | W131: 461.2414691 | X131: 476.95875 | Y131: 497.0689952
B132: Depreciation | K132: 279.3585701 | L132: 308.0042228 | M132: 341.0100794 | N132: 351.7305378 | O132: 372.7658477 | P132: 375.31113 | Q132: 406.1225868 | R132: 415.2742715 | S132: 428.4892243 | T132: 431.3066595 | U132: =U110 -> 443.7964819 | V132: 474.4448869 | W132: 531.5935649 | X132: 577.1349274 | Y132: 633.1059202
B133: Redundant assets | K133: 3.445294017 | L133: 0.46210429 | M133: 0 | N133: 0 | O133: 0
B134: Deferred revenue | K134: 34.47442462 | L134: 34.47442462 | M134: 34.47442462 | N134: 34.47442462 | O134: 34.47442462 | P134: =P112 -> 40.82952194 | Q134: =Q112 -> 41.4799037 | R134: =R112 -> 40.18071327 | S134: =S112 -> 41.4601381 | T134: =T112 -> 42.22300464 | U134: =U112 -> 38.9523905 | V134: 38.5849521 | W134: 38.61937123 | X134: 38.80579923 | Y134: 39.18611183
B135: Accelerated deferred revenue recovery | K135: 0 | L135: 0 | M135: 0 | N135: 0 | O135: 0 | P135: =Dx_CoS!R86 -> 0 | Q135: =Dx_CoS!S86 -> 0 | R135: =Dx_CoS!T86 -> 0 | S135: =Dx_CoS!U86 -> 0 | T135: =Dx_CoS!V86 -> 0 | U135: =Dx_CoS!W86 -> 0 | V135: =Dx_CoS!X86 -> 0 | W135: =Dx_CoS!Y86 -> 0 | X135: =Dx_CoS!Z86 -> 0 | Y135: =Dx_CoS!AA86 -> 0
B136: Tariff equalisation contribution (TEC) | K136: 150.8325171 | L136: 200.490963 | M136: 208.5814817 | N136: 168.4023398 | O136: 164.9386286 | P136: =P115 -> 153.7080739 | Q136: 181.6753128 | R136: 171 | S136: 185 | T136: 187 | U136: =U115 -> 189 | V136: 188 | W136: 192 | X136: 192 | Y136: 192
B137: Return on assets | K137: 230.9531596 | L137: 252.5782484 | M137: 279.0904171 | N137: 299.0943503 | O137: 318.3950808 | P137: 337.4324974 | Q137: 390.0981047 | R137: 560.0623067 | S137: 168.1152235 | T137: 378.2011115 | U137: =U116 -> 316.4459728 | V137: 311.7416073 | W137: 313.8721297 | X137: 316.9169887 | Y137: 321.1909591
B138: Return on working capital | K138: 2.557561852 | L138: 3.856115031 | M138: 3.25668832 | N138: 4.029076031 | O138: 4.274698425 | P138: 8.793606778 | Q138: 9.093210878 | R138: 8.758928217 | S138: 8.642442538 | T138: 9.142841309 | U138: =U117 -> 8.261116553 | V138: 7.611561279 | W138: 7.428076845 | X138: 7.172246118 | Y138: 6.990689163
B139: Tax | K139: 76.74196957 | L139: 23.92926531 | M139: 38.65853251 | N139: 49.46141635 | O139: 53.67791554 | P139: =P114 -> 30.54837718 | Q139: =Q114 -> 40.01633406 | R139: =R114 -> 74.77867157 | S139: =S114 -> 2.058522004 | T139: =T114 -> 34.10100011 | U139: =U114 -> 41.112392 | V139: 24.56626372 | W139: 22.74070267 | X139: 19.35327905 | Y139: 21.28383409
B140: Service standard adjustment mechanism | K140: =24.5194088238535+6.13168062563669 -> 30.65108945 | P140: =245.14515108057+13.5927363532094 -> 258.7378874 | U140: =Dx_CoS!W94+Tx_CoS!W81 -> -45.11936227
B141: Investment adjustment mechanism | K141: =1.92663175788133-47.6166345371062 -> -45.69000278 | P141: =(-7.27800442384947)+(-36.4672051318626) -> -43.74520956 | U141: =Dx_CoS!W93+Tx_CoS!W80 -> -40.03956263
B142: Gain share mechanism revenue adjustment | K142: =0+0 -> 0 | L142: =0+0 -> 0 | M142: 0 | N142: 0 | O142: 0 | P142: =27.854069326777+8.79602189266642 -> 36.65009122 | Q142: =30.3950320507333+9.59843117391577 -> 39.99346322 | R142: =30.9543006404668+9.77504230751582 -> 40.72934295 | S142: =24.2271500547714+7.65067896466466 -> 31.87782902 | T142: =57.7028768774344+18.2219611191898 -> 75.924838 | U142: =Dx_CoS!W98+Tx_CoS!W85 -> 49.04909441
B143: Uncollected revenue from 2016/17 (k-factor) | K143: =49.107799994588+26.4864121893986 -> 75.59421218 | P143: =37.076545822038+1.24806405681585 -> 38.32460988 | U143: 0
B144: Other adjustments | K144: =0+0 -> 0 | L144: 0 | M144: 0 | N144: 0 | O144: 0 | P144: 0 | U144: =SUM(Dx_CoS!W95:W97)+SUM(Tx_CoS!W82:W84) -> 43.0174257
B145: Total costs | K145: =SUM(K131:K144) -> 1291.273067 | L145: 1278.841157 | M145: 1356.447369 | N145: 1356.172035 | O145: 1409.016628 | P145: 1659.169586 | Q145: 1482.396916 | R145: 1743.520234 | S145: 1293.55338 | T145: 1611.143921 | U145: =SUM(U131:U144) -> 1479.618052 | V145: 1497.662609 | W145: 1567.495314 | X145: 1628.341991 | Y145: 1710.82651
B146: Less TEC | K146: =K136 -> 150.8325171 | L146: 200.490963 | M146: 208.5814817 | N146: 168.4023398 | O146: 164.9386286 | P146: 153.7080739 | Q146: 181.6753128 | R146: 171 | S146: 185 | T146: 187 | U146: =U136 -> 189 | V146: 188 | W146: 192 | X146: 192 | Y146: 192
B147: Annual revenue cap | K147: =K145-K146 -> 1140.44055 | L147: 1078.350194 | M147: 1147.865887 | N147: 1187.769695 | O147: 1244.078 | P147: 1505.461512 | Q147: 1300.721603 | R147: 1572.520234 | S147: 1108.55338 | T147: 1424.143921 | U147: =U145-U146 -> 1290.618052 | V147: 1309.662609 | W147: 1375.495314 | X147: 1436.341991 | Y147: 1518.82651
B149: Summary for Exec summary [$M real as at 30 June 2022] | P149: AA4 | U149: AA5
B150: Operating costs | K150: =K131/Dx_Inputs!$J$54 -> 545.1045583 | L150: =L131/Dx_Inputs!$J$54 -> 548.3479719 | M150: =M131/Dx_Inputs!$J$54 -> 543.9253966 | N150: =N131/Dx_Inputs!$J$54 -> 541.0382971 | O150: =O131/Dx_Inputs!$J$54 -> 554.9084687 | P150: =P131/Dx_Inputs!P$54 -> 452.4434433 | Q150: =Q131/Dx_Inputs!Q$54 -> 394.0663174 | R150: =R131/Dx_Inputs!R$54 -> 457.6482786 | S150: =S131/Dx_Inputs!S$54 -> 435.783544 | T150: =T131/Dx_Inputs!T$54 -> 453.2444662 | U150: =U131/Dx_Inputs!U$54 -> 426.4844688 | V150: =V131/Dx_Inputs!V$54 -> 434.8780791 | W150: =W131/Dx_Inputs!W$54 -> 434.2548592 | X150: =X131/Dx_Inputs!X$54 -> 440.1181451 | Y150: =Y131/Dx_Inputs!Y$54 -> 449.5492128
B151: Depreciation | K151: =K132/Dx_Inputs!$J$54 -> 336.6379841 | L151: =L132/Dx_Inputs!$J$54 -> 371.1571141 | M151: =M132/Dx_Inputs!$J$54 -> 410.93046 | N151: =N132/Dx_Inputs!$J$54 -> 423.8490309 | O151: =O132/Dx_Inputs!$J$54 -> 449.1974007 | P151: =P132/Dx_Inputs!P$54 -> 401.835065 | Q151: =Q132/Dx_Inputs!Q$54 -> 428.0062264 | R151: =R132/Dx_Inputs!R$54 -> 439.1812919 | S151: =S132/Dx_Inputs!S$54 -> 436.373426 | T151: =T132/Dx_Inputs!T$54 -> 431.3066595 | U151: =U132/Dx_Inputs!U$54 -> 434.9666587 | V151: =V132/Dx_Inputs!V$54 -> 455.753484 | W151: =W132/Dx_Inputs!W$54 -> 500.4907498 | X151: =X132/Dx_Inputs!X$54 -> 532.5566492 | Y151: =Y132/Dx_Inputs!Y$54 -> 572.5810115
B152: Redundant assets | K152: =K133/Dx_Inputs!$J$54 -> 4.151713808 | L152: =L133/Dx_Inputs!$J$54 -> 0.5568537117 | M152: =M133/Dx_Inputs!$J$54 -> 0 | N152: =N133/Dx_Inputs!$J$54 -> 0 | O152: =O133/Dx_Inputs!$J$54 -> 0
B153: Deferred revenue | K153: =K134/Dx_Inputs!$J$54 -> 41.54302767 | L153: =L134/Dx_Inputs!$J$54 -> 41.54302767 | M153: =M134/Dx_Inputs!$J$54 -> 41.54302767 | N153: =N134/Dx_Inputs!$J$54 -> 41.54302767 | O153: =O134/Dx_Inputs!$J$54 -> 41.54302767 | P153: =P134/Dx_Inputs!P$54 -> 43.71502013 | Q153: =Q134/Dx_Inputs!Q$54 -> 43.71502013 | R153: =R134/Dx_Inputs!R$54 -> 42.49388603 | S153: =S134/Dx_Inputs!S$54 -> 42.22300464 | T153: =T134/Dx_Inputs!T$54 -> 42.22300464 | U153: =U134/Dx_Inputs!U$54 -> 38.1773895 | V153: =V134/Dx_Inputs!V$54 -> 37.06484532 | W153: =W134/Dx_Inputs!W$54 -> 36.35980444 | X153: =X134/Dx_Inputs!X$54 -> 35.80841399 | Y153: =Y134/Dx_Inputs!Y$54 -> 35.4399206
B154: Accelerated deferred revenue recovery | K154: =K135/Dx_Inputs!$J$54 -> 0 | L154: =L135/Dx_Inputs!$J$54 -> 0 | M154: =M135/Dx_Inputs!$J$54 -> 0 | N154: =N135/Dx_Inputs!$J$54 -> 0 | O154: =O135/Dx_Inputs!$J$54 -> 0 | P154: =P135/Dx_Inputs!P$54 -> 0 | Q154: =Q135/Dx_Inputs!Q$54 -> 0 | R154: =R135/Dx_Inputs!R$54 -> 0 | S154: =S135/Dx_Inputs!S$54 -> 0 | T154: =T135/Dx_Inputs!T$54 -> 0 | U154: =U135/Dx_Inputs!U$54 -> 0 | V154: =V135/Dx_Inputs!V$54 -> 0 | W154: =W135/Dx_Inputs!W$54 -> 0 | X154: =X135/Dx_Inputs!X$54 -> 0 | Y154: =Y135/Dx_Inputs!Y$54 -> 0
B155: Total deferred revenue | K155: =K153+K154 -> 41.54302767 | L155: 41.54302767 | M155: 41.54302767 | N155: 41.54302767 | O155: 41.54302767 | P155: 43.71502013 | Q155: 43.71502013 | R155: 42.49388603 | S155: 42.22300464 | T155: 42.22300464 | U155: =U153+U154 -> 38.1773895 | V155: 37.06484532 | W155: 36.35980444 | X155: 35.80841399 | Y155: 35.4399206
B156: Tariff equalisation contribution (TEC) | K156: =K136/Dx_Inputs!$J$54 -> 181.7590722 | L156: =L136/Dx_Inputs!$J$54 -> 241.5994384 | M156: =M136/Dx_Inputs!$J$54 -> 251.3488292 | N156: =N136/Dx_Inputs!$J$54 -> 202.9313946 | O156: =O136/Dx_Inputs!$J$54 -> 198.7574873 | P156: =P136/Dx_Inputs!P$54 -> 164.5709091 | Q156: =Q136/Dx_Inputs!Q$54 -> 191.4647636 | R156: =R136/Dx_Inputs!R$54 -> 180.8443385 | S156: =S136/Dx_Inputs!S$54 -> 188.404 | T156: =T136/Dx_Inputs!T$54 -> 187 | U156: =U136/Dx_Inputs!U$54 -> 185.2396354 | V156: =V136/Dx_Inputs!V$54 -> 180.5934838 | W156: =W136/Dx_Inputs!W$54 -> 180.7663416 | X156: =X136/Dx_Inputs!X$54 -> 177.1697948 | Y156: =Y136/Dx_Inputs!Y$54 -> 173.6448052
B157: Return on assets | K157: =K137/Dx_Inputs!$J$54 -> 278.3075746 | L157: =L137/Dx_Inputs!$J$54 -> 304.3666509 | M157: =M137/Dx_Inputs!$J$54 -> 336.3148494 | N157: =N137/Dx_Inputs!$J$54 -> 360.4203699 | O157: =O137/Dx_Inputs!$J$54 -> 383.6785037 | P157: =P137/Dx_Inputs!P$54 -> 361.2794791 | Q157: =Q137/Dx_Inputs!Q$54 -> 411.1182761 | R157: =R137/Dx_Inputs!R$54 -> 592.3046629 | S157: =S137/Dx_Inputs!S$54 -> 171.2085436 | T157: =T137/Dx_Inputs!T$54 -> 378.2011115 | U157: =U137/Dx_Inputs!U$54 -> 310.1499292 | V157: =V137/Dx_Inputs!V$54 -> 299.4601219 | W157: =W137/Dx_Inputs!W$54 -> 295.507899 | X157: =X137/Dx_Inputs!X$54 -> 292.4381138 | Y157: =Y137/Dx_Inputs!Y$54 -> 290.4851121
B158: Return on working capital | K158: =K138/Dx_Inputs!$J$54 -> 3.081961889 | L158: =L138/Dx_Inputs!$J$54 -> 4.64676917 | M158: =M138/Dx_Inputs!$J$54 -> 3.924436579 | N158: =N138/Dx_Inputs!$J$54 -> 4.855193927 | O158: =O138/Dx_Inputs!$J$54 -> 5.151178503 | P158: =P138/Dx_Inputs!P$54 -> 9.415067311 | Q158: =Q138/Dx_Inputs!Q$54 -> 9.583192368 | R158: =R138/Dx_Inputs!R$54 -> 9.263172977 | S158: =S138/Dx_Inputs!S$54 -> 8.80146348 | T158: =T138/Dx_Inputs!T$54 -> 9.142841309 | U158: =U138/Dx_Inputs!U$54 -> 8.096752478 | V158: =V138/Dx_Inputs!V$54 -> 7.31169345 | W158: =W138/Dx_Inputs!W$54 -> 6.99347019 | X158: =X138/Dx_Inputs!X$54 -> 6.61825715 | Y158: =Y138/Dx_Inputs!Y$54 -> 6.322379469
B159: Tax | K159: =K139/Dx_Inputs!$J$54 -> 92.47706963 | L159: =L139/Dx_Inputs!$J$54 -> 28.83569898 | M159: =M139/Dx_Inputs!$J$54 -> 46.58504105 | N159: =N139/Dx_Inputs!$J$54 -> 59.60293786 | O159: =O139/Dx_Inputs!$J$54 -> 64.68398401 | P159: =P139/Dx_Inputs!P$54 -> 32.70728777 | Q159: =Q139/Dx_Inputs!Q$54 -> 42.17258703 | R159: =R139/Dx_Inputs!R$54 -> 79.08362217 | S159: =S139/Dx_Inputs!S$54 -> 2.096398809 | T159: =T139/Dx_Inputs!T$54 -> 34.10100011 | U159: =U139/Dx_Inputs!U$54 -> 40.29441537 | V159: =V139/Dx_Inputs!V$54 -> 23.59844228 | W159: =W139/Dx_Inputs!W$54 -> 21.41017514 | X159: =X139/Dx_Inputs!X$54 -> 17.85841916 | Y159: =Y139/Dx_Inputs!Y$54 -> 19.24910013
B160: Service standard adjustment mechanism | K160: =K140/Dx_Inputs!$J$54 -> 36.93575952 | L160: =L140/Dx_Inputs!$J$54 -> 0 | M160: =M140/Dx_Inputs!$J$54 -> 0 | N160: =N140/Dx_Inputs!$J$54 -> 0 | O160: =O140/Dx_Inputs!$J$54 -> 0 | P160: =P140/Dx_Inputs!P$54 -> 277.0233748 | Q160: =Q140/Dx_Inputs!Q$54 -> 0 | R160: =R140/Dx_Inputs!R$54 -> 0 | S160: =S140/Dx_Inputs!S$54 -> 0 | T160: =T140/Dx_Inputs!T$54 -> 0 | U160: =U140/Dx_Inputs!U$54 -> -44.22166252 | V160: =V140/Dx_Inputs!V$54 -> 0 | W160: =W140/Dx_Inputs!W$54 -> 0 | X160: =X140/Dx_Inputs!X$54 -> 0 | Y160: =Y140/Dx_Inputs!Y$54 -> 0
B161: Investment adjustment mechanism | K161: =K141/Dx_Inputs!$J$54 -> -55.05823726 | L161: =L141/Dx_Inputs!$J$54 -> 0 | M161: =M141/Dx_Inputs!$J$54 -> 0 | N161: =N141/Dx_Inputs!$J$54 -> 0 | O161: =O141/Dx_Inputs!$J$54 -> 0 | P161: =P141/Dx_Inputs!P$54 -> -46.83676481 | Q161: =Q141/Dx_Inputs!Q$54 -> 0 | R161: =R141/Dx_Inputs!R$54 -> 0 | S161: =S141/Dx_Inputs!S$54 -> 0 | T161: =T141/Dx_Inputs!T$54 -> 0 | U161: =U141/Dx_Inputs!U$54 -> -39.24293112 | V161: =V141/Dx_Inputs!V$54 -> 0 | W161: =W141/Dx_Inputs!W$54 -> 0 | X161: =X141/Dx_Inputs!X$54 -> 0 | Y161: =Y141/Dx_Inputs!Y$54 -> 0
B162: Gain share mechanism revenue adjustment | K162: =K142/Dx_Inputs!$J$54 -> 0 | L162: =L142/Dx_Inputs!$J$54 -> 0 | M162: =M142/Dx_Inputs!$J$54 -> 0 | N162: =N142/Dx_Inputs!$J$54 -> 0 | O162: =O142/Dx_Inputs!$J$54 -> 0 | P162: =P142/Dx_Inputs!P$54 -> 39.24022128 | Q162: =Q142/Dx_Inputs!Q$54 -> 42.14848382 | R162: =R142/Dx_Inputs!R$54 -> 43.07409989 | S162: =S142/Dx_Inputs!S$54 -> 32.46438107 | T162: =T142/Dx_Inputs!T$54 -> 75.924838 | U162: =U142/Dx_Inputs!U$54 -> 48.07320828 | V162: =V142/Dx_Inputs!V$54 -> 0 | W162: =W142/Dx_Inputs!W$54 -> 0 | X162: =X142/Dx_Inputs!X$54 -> 0 | Y162: =Y142/Dx_Inputs!Y$54 -> 0
B163: Uncollected revenue from 2016/17 (k-factor) | K163: =K143/Dx_Inputs!$J$54 -> 91.09397717 | L163: =L143/Dx_Inputs!$J$54 -> 0 | M163: =M143/Dx_Inputs!$J$54 -> 0 | N163: =N143/Dx_Inputs!$J$54 -> 0 | O163: =O143/Dx_Inputs!$J$54 -> 0 | P163: =P143/Dx_Inputs!P$54 -> 41.03308128 | Q163: =Q143/Dx_Inputs!Q$54 -> 0 | R163: =R143/Dx_Inputs!R$54 -> 0 | S163: =S143/Dx_Inputs!S$54 -> 0 | T163: =T143/Dx_Inputs!T$54 -> 0 | U163: =U143/Dx_Inputs!U$54 -> 0 | V163: =V143/Dx_Inputs!V$54 -> 0 | W163: =W143/Dx_Inputs!W$54 -> 0 | X163: =X143/Dx_Inputs!X$54 -> 0 | Y163: =Y143/Dx_Inputs!Y$54 -> 0
B164: Other adjustments | K164: =K144/Dx_Inputs!$J$54 -> 0 | L164: =L144/Dx_Inputs!$J$54 -> 0 | M164: =M144/Dx_Inputs!$J$54 -> 0 | N164: =N144/Dx_Inputs!$J$54 -> 0 | O164: =O144/Dx_Inputs!$J$54 -> 0 | P164: =P144/Dx_Inputs!P$54 -> 0 | Q164: =Q144/Dx_Inputs!Q$54 -> 0 | R164: =R144/Dx_Inputs!R$54 -> 0 | S164: =S144/Dx_Inputs!S$54 -> 0 | T164: =T144/Dx_Inputs!T$54 -> 0 | U164: =U144/Dx_Inputs!U$54 -> 42.16154631 | V164: =V144/Dx_Inputs!V$54 -> 0 | W164: =W144/Dx_Inputs!W$54 -> 0 | X164: =X144/Dx_Inputs!X$54 -> 0 | Y164: =Y144/Dx_Inputs!Y$54 -> 0
B165: Total costs | K165: =K145/Dx_Inputs!$J$54 -> 1556.034462 | L165: =L145/Dx_Inputs!$J$54 -> 1541.053525 | M165: =M145/Dx_Inputs!$J$54 -> 1634.572041 | N165: =N145/Dx_Inputs!$J$54 -> 1634.240252 | O165: =O145/Dx_Inputs!$J$54 -> 1697.920051 | P165: =P145/Dx_Inputs!P$54 -> 1776.426184 | Q165: =Q145/Dx_Inputs!Q$54 -> 1562.274867 | R165: =R145/Dx_Inputs!R$54 -> 1843.893353 | S165: =S145/Dx_Inputs!S$54 -> 1317.354762 | T165: =T145/Dx_Inputs!T$54 -> 1611.143921 | U165: =U145/Dx_Inputs!U$54 -> 1450.17941 | V165: =V145/Dx_Inputs!V$54 -> 1438.66015 | W165: =W145/Dx_Inputs!W$54 -> 1475.783299 | X165: =X145/Dx_Inputs!X$54 -> 1502.567793 | Y165: =Y145/Dx_Inputs!Y$54 -> 1547.271542
B166: Less TEC | K166: =K146/Dx_Inputs!$J$54 -> 181.7590722 | L166: =L146/Dx_Inputs!$J$54 -> 241.5994384 | M166: =M146/Dx_Inputs!$J$54 -> 251.3488292 | N166: =N146/Dx_Inputs!$J$54 -> 202.9313946 | O166: =O146/Dx_Inputs!$J$54 -> 198.7574873 | P166: =P146/Dx_Inputs!P$54 -> 164.5709091 | Q166: =Q146/Dx_Inputs!Q$54 -> 191.4647636 | R166: =R146/Dx_Inputs!R$54 -> 180.8443385 | S166: =S146/Dx_Inputs!S$54 -> 188.404 | T166: =T146/Dx_Inputs!T$54 -> 187 | U166: =U146/Dx_Inputs!U$54 -> 185.2396354 | V166: =V146/Dx_Inputs!V$54 -> 180.5934838 | W166: =W146/Dx_Inputs!W$54 -> 180.7663416 | X166: =X146/Dx_Inputs!X$54 -> 177.1697948 | Y166: =Y146/Dx_Inputs!Y$54 -> 173.6448052
B167: Annual revenue cap | K167: =K147/Dx_Inputs!$J$54 -> 1374.275389 | L167: =L147/Dx_Inputs!$J$54 -> 1299.454087 | M167: =M147/Dx_Inputs!$J$54 -> 1383.223211 | N167: =N147/Dx_Inputs!$J$54 -> 1431.308857 | O167: =O147/Dx_Inputs!$J$54 -> 1499.162563 | P167: =P147/Dx_Inputs!P$54 -> 1611.855275 | Q167: =Q147/Dx_Inputs!Q$54 -> 1370.810103 | R167: =R147/Dx_Inputs!R$54 -> 1663.049015 | S167: =S147/Dx_Inputs!S$54 -> 1128.950762 | T167: =T147/Dx_Inputs!T$54 -> 1424.143921 | U167: =U147/Dx_Inputs!U$54 -> 1264.939775 | V167: =V147/Dx_Inputs!V$54 -> 1258.066666 | W167: =W147/Dx_Inputs!W$54 -> 1295.016958 | X167: =X147/Dx_Inputs!X$54 -> 1325.397998 | Y167: =Y147/Dx_Inputs!Y$54 -> 1373.626737

Sheet Public output summary
A1: Key metrics
A2: WACC return | C2: 2023 | D2: 2024 | E2: 2025 | F2: 2026 | G2: 2027
A3: Nominal post tax | C3: =WACC_Inputs!N31 -> 0.05052540295 | D3: =WACC_Inputs!O31 -> 0.0483200358 | E3: =WACC_Inputs!P31 -> 0.04686731635 | F3: =WACC_Inputs!Q31 -> 0.0456891245 | G3: =WACC_Inputs!R31 -> 0.04487339855
A5: Price path | C5: 2023 | D5: 2024 | E5: 2025 | F5: 2026 | G5: 2027
A6: =Output_Summary!B7 -> Distribution | C6: =Output_Summary!D7 -> 0 | D6: =Output_Summary!E7 -> 0.1094988123 | E6: =Output_Summary!F7 -> 0 | F6: =Output_Summary!G7 -> 0 | G6: =Output_Summary!H7 -> 0
A7: =Output_Summary!B8 -> Transmission | C7: =Output_Summary!D8 -> 0 | D7: =Output_Summary!E8 -> -0.1736080028 | E7: =Output_Summary!F8 -> 0 | F7: =Output_Summary!G8 -> 0 | G7: =Output_Summary!H8 -> 0
A8: Bundled | C8: =Output_Summary!D9 -> 0 | D8: =Output_Summary!E9 -> 0.03651539078 | E8: =Output_Summary!F9 -> 0 | F8: =Output_Summary!G9 -> 0 | G8: =Output_Summary!H9 -> 0
A10: =Output_Summary!B11 -> Revenue cap [$M nominal] | C10: 2023 | D10: 2024 | E10: 2025 | F10: 2026 | G10: 2027
A11: =Output_Summary!B12 -> Distribution | C11: =Output_Summary!D12 -> 1084.509498 | D11: =Output_Summary!E12 -> 1197.65451 | E11: =Output_Summary!F12 -> 1191.606513 | F11: =Output_Summary!G12 -> 1185.533608 | G11: =Output_Summary!H12 -> 1179.491652
A12: =Output_Summary!B13 -> Transmission | C12: =Output_Summary!D13 -> 491.9085375 | D12: =Output_Summary!E13 -> 404.2411452 | E12: =Output_Summary!F13 -> 401.858431 | F12: =Output_Summary!G13 -> 399.4965668 | G12: =Output_Summary!H13 -> 397.148584
A13: Total | C13: =Output_Summary!D14 -> 1576.418035 | D13: =Output_Summary!E14 -> 1601.895655 | E13: =Output_Summary!F14 -> 1593.464944 | F13: =Output_Summary!G14 -> 1585.030174 | G13: =Output_Summary!H14 -> 1576.640236
A15: =Output_Summary!B16 -> Energy (GWh) | C15: 2023 | D15: 2024 | E15: 2025 | F15: 2026 | G15: 2027
A16: =Output_Summary!B17 -> Distribution | C16: =Output_Summary!D17 -> 13213.5338 | D16: =Output_Summary!E17 -> 13151.95557 | E16: =Output_Summary!F17 -> 13085.53993 | F16: =Output_Summary!G17 -> 13018.85077 | G16: =Output_Summary!H17 -> 12952.50147
A17: =Output_Summary!B18 -> Transmission | C17: =Output_Summary!D18 -> 17255.20675 | D17: =Output_Summary!E18 -> 17158.93069 | E17: =Output_Summary!F18 -> 17057.79099 | F17: =Output_Summary!G18 -> 16957.53632 | G17: =Output_Summary!H18 -> 16857.87087

Sheet INPUTS -->

Sheet Dx_Inputs
B1: Validation status | C1: =IF(COUNTIF(P6:P24,"CHECK")+COUNTIF(E183:AD183,"CHECK")+COUNTIF(E261:J261,"CHECK")+COUNTIF(E295:AD295,"CHECK")+COUNTIF(E352:O352,"CHECK")+COUNTIF(E386:AD386,"CHECK")+COUNTIF(E517:AD517,"CHECK")+COUNTIF(K741:O741,"CHECK")+COUNTIF(K763:AD763,"CHECK")>0,"CHECK","OK") -> OK
B2: Allocation of capex and contributions from regulatory category to asset class
B3: % matrix
B4: Distribution - AA4
B5: Growth | C5: Wooden Pole Lines | D5: Underground Cables | E5: Transformers | F5: Switchgear | G5: Street lighting | H5: Meters and Services | I5: IT | J5: SCADA & Communications | K5: Other Distribution Non-Network | L5: Distribution Land & Easements | M5: Equity Raising Costs | N5: SPS | O5: Storage
B6: Capacity Expansion | C6: 0.4528455475 | D6: 0.3937764732 | E6: 0.07362193862 | F6: 0.07840838279 | G6: 0.001347657887 | H6: 0 | I6: 0 | J6: 0 | K6: 0 | L6: 0 | M6: 0 | P6: =IF(SUM(C6:O6)=1,"OK","CHECK") -> OK
B7: Customer Driven | C7: 0.1296069327 | D7: 0.2456531962 | E7: 0.4807318146 | F7: 0.137064576 | G7: 0.006943480447 | H7: 0 | I7: 0 | J7: 0 | K7: 0 | L7: 0 | M7: 0 | P7: =IF(SUM(C7:O7)=1,"OK","CHECK") -> OK
B8: Gifted Assets | C8: 0.1296069327 | D8: 0.2456531962 | E8: 0.4807318146 | F8: 0.137064576 | G8: 0.006943480447 | H8: 0 | I8: 0 | J8: 0 | K8: 0 | L8: 0 | M8: 0 | P8: OK
B9: Asset replacement and renewal
B10: Asset Replacement | C10: 0 | D10: 0.1830563095 | E10: 0.5163548429 | F10: 0.2653017117 | G10: 0.03528713594 | H10: 0 | I10: 0 | J10: 0 | K10: 0 | L10: 0 | M10: 0 | P10: =IF(SUM(C10:O10)=1,"OK","CHECK") -> OK
B11: State Undergrounding Power Program (SUPP) | C11: 0.01428742804 | D11: 0.634002595 | E11: 0.2356579095 | F11: 0.09126369846 | G11: 0.024788369 | H11: 0 | I11: 0 | J11: 0 | K11: 0 | L11: 0 | M11: 0 | P11: OK
B12: Metering | C12: 0 | D12: 0 | E12: 0 | F12: 0 | G12: 0 | H12: 1 | I12: 0 | J12: 0 | K12: 0 | L12: 0 | M12: 0 | P12: OK
B13: Smartgrid | C13: 0 | D13: 0 | E13: 0 | F13: 0 | G13: 0 | H13: 0.65 | I13: 0 | J13: 0.35 | K13: 0 | L13: 0 | M13: 0 | P13: OK
B14: Wood Pole Management | C14: 1 | D14: 0 | E14: 0 | F14: 0 | G14: 0 | H14: 0 | I14: 0 | J14: 0 | K14: 0 | L14: 0 | M14: 0 | P14: OK
B15: Improvement in service
B16: Reliability Driven | C16: 0.2565746422 | D16: 0.4740034641 | E16: 0.05138636275 | F16: 0.216527421 | G16: 0.001508109905 | H16: 0 | I16: 0 | J16: 0 | K16: 0 | L16: 0 | M16: 0 | P16: =IF(SUM(C16:O16)=1,"OK","CHECK") -> OK
B17: Rural Power Improvement Program (RPIP)
B18: SCADA & Communications | C18: 0 | D18: 0 | E18: 0 | F18: 0 | G18: 0 | H18: 0 | I18: 0 | J18: 1 | K18: 0 | L18: 0 | M18: 0 | P18: =IF(SUM(C18:O18)=1,"OK","CHECK") -> OK
B19: Compliance
B20: Safety, Environmental & Statutory | C20: 0.416205545 | D20: 0.02604003539 | E20: 0.2774890424 | F20: 0.2651954455 | G20: 0.01506993179 | H20: 0 | I20: 0 | J20: 0 | K20: 0 | L20: 0 | M20: 0 | P20: =IF(SUM(C20:O20)=1,"OK","CHECK") -> OK
B21: Corporate
B22: IT | C22: 0 | D22: 0 | E22: 0 | F22: 0 | G22: 0 | H22: 0 | I22: 1 | J22: 0 | K22: 0 | L22: 0 | M22: 0 | P22: =IF(SUM(C22:O22)=1,"OK","CHECK") -> OK
B23: Business Support | C23: 0 | D23: 0 | E23: 0 | F23: 0 | G23: 0 | H23: 0 | I23: 0 | J23: 0 | K23: 0.6 | L23: 0.4 | M23: 0 | P23: OK
B24: Equity Raising Costs | C24: 0 | D24: 0 | E24: 0 | F24: 0 | G24: 0 | H24: 0 | I24: 0 | J24: 0 | K24: 0 | L24: 0 | M24: 1 | P24: OK
B26: Distribution - AA5
B27: Growth | C27: Wooden Pole Lines | D27: Underground Cables | E27: Transformers | F27: Switchgear | G27: Street lighting | H27: Meters and Services | I27: IT | J27: SCADA & Communications | K27: Other Distribution Non-Network | L27: Distribution Land & Easements | M27: Equity Raising Costs | N27: SPS | O27: Storage
B28: Capacity Expansion | C28: 0 | D28: 0.7398244374 | E28: 0.03001222021 | F28: 0 | G28: 0 | H28: 0 | I28: 0 | J28: 0 | K28: 0.2301632306 | L28: 0 | M28: 0 | N28: 0 | O28: 1.117148047e-07 | P28: =IF(SUM(C28:O28)=1,"OK","CHECK") -> OK
B29: Customer Driven | C29: 0.1073365091 | D29: 0.3493253142 | E29: 0.2124247482 | F29: 0.1395207031 | G29: 0.08240478909 | H29: 0.005789388935 | I29: 0 | J29: 0.0009134215002 | K29: 0.1022851259 | L29: 0 | M29: 0 | N29: 0 | O29: 0 | P29: OK
B30: Gifted Assets | C30: 0.1073365091 | D30: 0.3493253142 | E30: 0.2124247482 | F30: 0.1395207031 | G30: 0.08240478909 | H30: 0.005789388935 | I30: 0 | J30: 0.0009134215002 | K30: 0.1022851259 | L30: 0 | M30: 0 | N30: 0 | O30: 0 | P30: OK
B31: Asset replacement and renewal
B32: Asset Replacement | C32: 0.1327120275 | D32: 0.4118860794 | E32: 0.03260209852 | F32: 0.09844295007 | G32: 0.04679474348 | H32: 0 | I32: 0 | J32: 0 | K32: 7.859276233e-05 | L32: 0 | M32: 0 | N32: 0.2774835083 | O32: 0 | P32: =IF(SUM(C32:O32)=1,"OK","CHECK") -> OK
B33: State Undergrounding Power Program (SUPP) | C33: 0.01428742804 | D33: 0.634002595 | E33: 0.2356579095 | F33: 0.09126369846 | G33: 0.024788369 | H33: 0 | I33: 0 | J33: 0 | K33: 0 | L33: 0 | M33: 0 | N33: 0 | O33: 0 | P33: OK
B34: Metering | C34: 0 | D34: 0 | E34: 0 | F34: 0 | G34: 0 | H34: 1 | I34: 0 | J34: 0 | K34: 0 | L34: 0 | M34: 0 | N34: 0 | O34: 0 | P34: OK
B35: Smartgrid
B36: Wood Pole Management | C36: 1 | D36: 0 | E36: 0 | F36: 0 | G36: 0 | H36: 0 | I36: 0 | J36: 0 | K36: 0 | L36: 0 | M36: 0 | N36: 0 | O36: 0 | P36: =IF(SUM(C36:O36)=1,"OK","CHECK") -> OK
B37: Improvement in service
B38: Reliability Driven | C38: 0.674384624 | D38: 0 | E38: 0 | F38: 0 | G38: 0 | H38: 0 | I38: 0 | J38: 0 | K38: 0.325615376 | L38: 0 | M38: 0 | N38: 0 | O38: 0 | P38: =IF(SUM(C38:O38)=1,"OK","CHECK") -> OK
B39: Rural Power Improvement Program (RPIP)
B40: SCADA & Communications | C40: 0 | D40: 0 | E40: 0 | F40: 0 | G40: 0 | H40: 0 | I40: 0 | J40: 1 | K40: 0 | L40: 0 | M40: 0 | N40: 0 | O40: 0 | P40: =IF(SUM(C40:O40)=1,"OK","CHECK") -> OK
B41: Compliance
B42: Safety, Environmental & Statutory | C42: 0.6808917021 | D42: 0.06950630635 | E42: 0 | F42: 0 | G42: 0 | H42: 0 | I42: 0 | J42: 0 | K42: 0.2495546852 | L42: 0 | M42: 0 | N42: 0 | O42: 4.730642455e-05 | P42: =IF(SUM(C42:O42)=1,"OK","CHECK") -> OK
B43: Corporate
B44: IT | C44: 0 | D44: 0 | E44: 0 | F44: 0 | G44: 0 | H44: 0 | I44: 1 | J44: 0 | K44: 0 | L44: 0 | M44: 0 | N44: 0 | O44: 0 | P44: =IF(SUM(C44:O44)=1,"OK","CHECK") -> OK
B45: Business Support | C45: 0 | D45: 0 | E45: 0 | F45: 0 | G45: 0 | H45: 0 | I45: 0 | J45: 0 | K45: 1 | L45: 0 | M45: 0 | N45: 0 | O45: 0 | P45: OK
B46: Equity Raising Costs | C46: 0 | D46: 0 | E46: 0 | F46: 0 | G46: 0 | H46: 0 | I46: 0 | J46: 0 | K46: 0 | L46: 0 | M46: 1 | N46: 0 | O46: 0 | P46: OK
B48: Inflation
B49: Year ending 30 June | D49: 2006 | E49: 2007 | F49: 2008 | G49: 2009 | H49: 2010 | I49: 2011 | J49: 2012 | K49: 2013 | L49: 2014 | M49: 2015 | N49: 2016 | O49: 2017 | P49: 2018 | Q49: 2019 | R49: 2020 | S49: 2021 | T49: 2022 | U49: 2023 | V49: 2024 | W49: 2025 | X49: 2026 | Y49: 2027 | Z49: 2028 | AA49: 2029 | AB49: 2030 | AC49: 2031 | AD49: 2032
B50: Actual and Forecast Inflation
B51: June CPI | C51: 148.4 | D51: 154.3 | E51: 157.5 | F51: 164.6 | G51: 167 | H51: 172.1 | I51: 178.3 | J51: 180.4
B52: June CPI (rebased) | J52: 100.4 | K52: 102.8 | L52: 105.9 | M52: 107.5 | N52: 108.6 | O52: 110.7 | P52: 113 | Q52: 114.8 | R52: 114.4 | S52: 118.8
B53: Forecast Inflation | D53: =D51/C51-1 -> 0.0397574124 | E53: 0.02073882048 | F53: 0.04507936508 | G53: 0.01458080194 | H53: 0.03053892216 | I53: 0.03602556653 | J53: 0.01177790241 | K53: =K52/J52-1 -> 0.02390438247 | L53: =L52/K52-1 -> 0.03015564202 | M53: =M52/L52-1 -> 0.01510859301 | N53: =N52/M52-1 -> 0.01023255814 | O53: =O52/N52-1 -> 0.01933701657 | P53: =P52/O52-1 -> 0.02077687444 | Q53: 0.01592920354 | R53: -0.003484320557 | S53: 0.03846153846 | T53: =WACC_Inputs!$L$6 -> 0.0184 | U53: =WACC_Inputs!N6 -> 0.0203 | V53: =WACC_Inputs!O6 -> 0.0203 | W53: =WACC_Inputs!P6 -> 0.0203 | X53: =WACC_Inputs!Q6 -> 0.0203 | Y53: =WACC_Inputs!R6 -> 0.0203 | Z53: =WACC_Inputs!$T$6 -> 0.0203 | AA53: =WACC_Inputs!$T$6 -> 0.0203 | AB53: =WACC_Inputs!$T$6 -> 0.0203 | AC53: =WACC_Inputs!$T$6 -> 0.0203 | AD53: =WACC_Inputs!$T$6 -> 0.0203
B54: End of year Inflation factor (Forecast) | D54: =E54/(1+E53) -> 0.7097873817 | E54: 0.7245075348 | F54: 0.7571678744 | G54: 0.7682079893 | H54: 0.7916682332 | I54: 0.8201885299 | J54: 0.8298486303 | K54: 0.8496856494 | L54: 0.8753084656 | M54: 0.888533145 | N54: 0.8976251121 | O54: =P54/(1+P53) -> 0.9149825037 | P54: =Q54/(1+Q53) -> 0.9339929803 | Q54: =R54/(1+R53) -> 0.9488707446 | R54: =S54/(1+S53) -> 0.9455645748 | S54: =T54/(1+T53) -> 0.981932443 | T54: 1 | U54: =T54*(1+U53) -> 1.0203 | V54: 1.04101209 | W54: 1.062144635 | X54: 1.083706172 | Y54: 1.105705407 | Z54: 1.128151227 | AA54: 1.151052696 | AB54: 1.174419066 | AC54: 1.198259773 | AD54: 1.222584447
B56: Standard life
C59: Remaining life @ 30 June 2006 | D59: Standard life (AA1/AA2) | E59: Standard life (AA3) | F59: Standard life (AA4) | G59: Standard life (AA5+) | H59: ICB ($M @ 30 June 2006) | I59: ICB ($M @ 30 June 2022) | K59: Tax life | L59: Tax ICB @ 30 June 2012
B60: Wooden Pole Lines | C60: 14.5 | D60: 41 | E60: 41 | F60: 41 | G60: 41 | H60: 472.5939602 | I60: =H60/D$54 -> 665.8246855 | K60: 45 | L60: 2747.935154
B61: Underground Cables | C61: 36.9 | D61: 60 | E61: 60 | F61: 60 | G61: 50 | H61: 535.2080615 | I61: 754.0399778 | K61: 50 | L61: 110.2319941
B62: Transformers | C62: 16.9 | D62: 35 | E62: 35 | F62: 35 | G62: 35 | H62: 203.7623314 | I62: 287.0751673 | K62: 40 | L62: 32.22184132
B63: Switchgear | C63: 13.5 | D63: 35 | E63: 35 | F63: 35 | G63: 30 | H63: 108.607514 | I63: 153.0141515 | K63: 30 | L63: 25.6890398
B64: Street lighting | C64: 1.2 | D64: 20 | E64: 20 | F64: 20 | G64: 20 | H64: 5.256461486 | I64: 7.405684605 | K64: 15 | L64: 35.1250608
B65: Meters and Services | C65: 9.2 | D65: 25 | E65: 15 | F65: 15 | G65: 15 | H65: 168.2064526 | I65: 236.9814636 | K65: 25 | L65: 3.246493062
B66: IT | C66: 9.8 | D66: 10.16 | E66: 6 | F66: 6 | G66: 6 | H66: 15.41481432 | I66: 21.71750966 | K66: 4 | L66: 31.47250339
B67: SCADA & Communications | C67: 10.2 | D67: 10.16 | E67: 10.16 | F67: 10.16 | G67: 10.16 | H67: 12.82523809 | I67: 18.06912664 | K67: 10 | L67: 15.86631549
B68: Other Distribution Non-Network | C68: 11.3 | D68: 10.16 | E68: 10.16 | F68: 27 | G68: 27 | H68: 51.22111724 | I68: 72.16402906 | K68: 10 | L68: 107.6731485
B69: Distribution Land & Easements | D69: 0 | E69: 0 | F69: 0 | G69: 0 | H69: 21.41871547 | I69: 30.17624154 | K69: 0 | L69: 18.23082961
B70: Equity Raising Costs | E70: =ROUND(SUMPRODUCT(Dx_Asset!M15:M23,E60:E68)/SUM(Dx_Asset!M15:M23),0) -> 43 | F70: =ROUND(SUMPRODUCT(Dx_Asset!R15:R23,Dx_Inputs!F60:F68)/SUM(Dx_Asset!R15:R23),0) -> 43 | G70: =ROUND((SUMPRODUCT(G60:G68,Dx_Asset!V15:V23)+SUMPRODUCT(G71:G72,Dx_Asset!V26:V27))/SUM(Dx_Asset!V15:V23,Dx_Asset!V26:V27),0) -> 39 | H70: 0 | I70: 0 | K70: 5
B71: Standalone Power Systems | F71: 15 | G71: 15 | K71: 15
B72: Storage | F72: 10 | G72: 10 | K72: 10
B73: Total | H73: =SUM(H60:H70) -> 1594.514666 | I73: =SUM(I60:I70) -> 2246.468037 | L73: =SUM(L60:L71) -> 3127.69238
B75: Working capital assumptions
C78: Input
B79: 2017 Closing balance (real as at 30 June 2012) | C79: 107.8
B81: Accounts Receivable | C81: 45 | D81: days
B82: TEC | C82: 0 | D82: days
B83: Inventory % capex | C83: 0.04 | D83: Percent
B84: Prepayments | C84: 0
B85: Accounts Payable | C85: -20 | D85: Days
B87: Capital expenditure
B88: Year ending 30 June | D88: 2006 | E88: 2007 | F88: 2008 | G88: 2009 | H88: 2010 | I88: 2011 | J88: 2012 | K88: 2013 | L88: 2014 | M88: 2015 | N88: 2016 | O88: 2017 | P88: 2018 | Q88: 2019 | R88: 2020 | S88: 2021 | T88: 2022 | U88: 2023 | V88: 2024 | W88: 2025 | X88: 2026 | Y88: 2027 | Z88: 2028 | AA88: 2029 | AB88: 2030 | AC88: 2031 | AD88: 2032
B89: [APPROVED] Capital expenditure by regulatory category [$M real] | M89: [$M real as at 30 June 2012] | R89: [$M real as at 30 June 2017]
B90: Growth | F90: Approved AA1 | I90: Approved AA2 | M90: Approved AA3 | R90: Approved AA4
B91: Capacity Expansion | K91: 56.86398175 | L91: 61.31506795 | M91: 68.09468738 | N91: 68.46959239 | O91: 76.34670082 | P91: 44.23061498 | Q91: 41.83879648 | R91: 34.07471396 | S91: 25.75847133 | T91: 28.33885682
B92: Customer Driven | K92: 202.8875168 | L92: 203.6464388 | M92: 209.3581819 | N92: 210.8412448 | O92: 217.3904696 | P92: 122.1344698 | Q92: 131.6727311 | R92: 120.5186566 | S92: 125.4491026 | T92: 125.4961051
B93: Gifted Assets | K93: 63.48375 | L93: 63.48375 | M93: 63.48375 | N93: 63.48375 | O93: 63.48375 | P93: 80.2592 | Q93: 80.51923981 | R93: 80.78012214 | S93: 81.04184974 | T93: 81.30442533
B94: Asset replacement and renewal
B95: Asset Replacement | K95: 42.10312237 | L95: 37.29162329 | M95: 35.11290884 | N95: 36.59228216 | O95: 36.71714631 | P95: 73.36770593 | Q95: 76.47506084 | R95: 83.1187056 | S95: 90.24114044 | T95: 100.8989142
B96: State Undergrounding Power Program (SUPP) | K96: 38.47981035 | L96: 18.58997669 | M96: 0 | N96: 0 | O96: 0 | P96: 39.80650748 | Q96: 51.10275449 | R96: 33.55284822 | S96: 8.617475385 | T96: 18.65428615
B97: Metering | K97: 13.47299916 | L97: 44.52881164 | M97: 44.14484204 | N97: 40.1797608 | O97: 16.12225971 | P97: 20.84449588 | Q97: 27.05433676 | R97: 31.67142699 | S97: 32.20539633 | T97: 32.12731451
B98: Smartgrid | K98: 2.476654257 | L98: 24.02344465 | M98: 26.58838762 | N98: 20.19237979 | O98: 15.60218682 | P98: 0 | Q98: 0 | R98: 0 | S98: 0 | T98: 0
B99: Wood Pole Management | K99: 164.5489089 | L99: 188.3679301 | M99: 199.10846 | N99: 209.8162509 | O99: 222.2791548 | P99: 168.0138066 | Q99: 128.6983177 | R99: 120.5341915 | S99: 119.2330991 | T99: 108.8474982
B100: Improvement in service
B101: Reliability Driven | K101: 0.5943970217 | L101: 0.603099029 | M101: 0.608894373 | N101: 0.6149963388 | O101: 0.6240874727 | P101: 4.382566495 | Q101: 6.03702366 | R101: 0 | S101: 0 | T101: 0
B102: Rural Power Improvement Program (RPIP) | K102: 0 | L102: 0 | M102: 0 | N102: 0 | O102: 0
B103: SCADA & Communications | K103: 5.151440855 | L103: 6.332539804 | M103: 7.002285289 | N103: 3.894976812 | O103: 6.968976778 | P103: 3.338559363 | Q103: 3.749011442 | R103: 4.547153015 | S103: 4.219339639 | T103: 3.866157565
B104: Compliance
B105: Safety, Environmental & Statutory | K105: 112.9354341 | L105: 112.7795184 | M105: 113.152871 | N105: 84.76699537 | O105: 91.42881474 | P105: 28.0322134 | Q105: 43.5478113 | R105: 42.58895868 | S105: 35.22094412 | T105: 35.30243688
B106: Corporate
B107: IT | K107: 25.68695973 | L107: 24.74733711 | M107: 14.48505646 | N107: 15.14131609 | O107: 15.36514138 | P107: 35.30532739 | Q107: 37.77237134 | R107: 31.80599626 | S107: 23.01468333 | T107: 17.23027652
B108: Business Support | K108: 20.43842228 | L108: 19.98582415 | M108: 13.85252125 | N108: 13.99134272 | O108: 11.54006399 | P108: 18.87065093 | Q108: 33.98089161 | R108: 90.66880185 | S108: 8.539248816 | T108: 7.095745955
B109: Equity Raising Costs | K109: 5.016144636 | L109: 4.297127355 | M109: 3.445143794 | N109: 1.444439887 | O109: 0 | P109: 0 | Q109: 0 | R109: 0 | S109: 0 | T109: 0
B110: Total | K110: =SUM(K91:K109) -> 754.1395421 | L110: =SUM(L91:L109) -> 809.9924889 | M110: =SUM(M91:M109) -> 798.4379899 | N110: =SUM(N91:N109) -> 769.4293281 | O110: =SUM(O91:O109) -> 773.8687525 | P110: =SUM(P91:P109) -> 638.5861183 | Q110: 662.4483465 | R110: 673.8615748 | S110: 553.5407509 | T110: 559.1620173
B112: Year ending 30 June | D112: 2006 | E112: 2007 | F112: 2008 | G112: 2009 | H112: 2010 | I112: 2011 | J112: 2012 | K112: 2013 | L112: 2014 | M112: 2015 | N112: 2016 | O112: 2017 | P112: 2018 | Q112: 2019 | R112: 2020 | S112: 2021 | T112: 2022 | U112: 2023 | V112: 2024 | W112: 2025 | X112: 2026 | Y112: 2027 | Z112: 2028 | AA112: 2029 | AB112: 2030 | AC112: 2031 | AD112: 2032
B113: [ACTUAL] Capital expenditure by regulatory category [$M nominal]
B114: Growth | F114: Actual AA1 | I114: Actual AA2 | M114: Actual AA3 | R114: Actual AA4 | T114: Forecast | W114: Proposed AA5 | AB114: Forecast AA6
B115: Capacity Expansion | E115: 75.881777 | F115: 61.4 | G115: 61.11670557 | H115: 62.75 | I115: 34.419 | J115: 48.108 | K115: 48.471 | L115: 39.331 | M115: 26.154 | N115: 25.438 | O115: 35.492 | P115: 27.968 | Q115: 6.787 | R115: 14.172 | S115: 4.46047066 | T115: 17.71373269 | U115: =U163*U$54 -> 40.05876183 | V115: 29.28487471 | W115: 23.57431155 | X115: 27.58946114 | Y115: 24.14579072 | Z115: 0 | AA115: 0 | AB115: 0 | AC115: 0 | AD115: 0
B116: Customer Driven | E116: 181 | F116: 189.5 | G116: 244.7729952 | H116: 203.07 | I116: 233.503 | J116: 174.933 | K116: 188.491 | L116: 178.841 | M116: 149.256 | N116: 140.451 | O116: 131.167 | P116: 124.177 | Q116: 126.229 | R116: 102.764 | S116: 102.5841949 | T116: 109.4163325 | U116: =U164*U$54 -> 112.0137691 | V116: 114.5551991 | W116: 117.280973 | X116: 120.8304867 | Y116: 115.1031168 | Z116: 0 | AA116: 0 | AB116: 0 | AC116: 0 | AD116: 0
B117: Gifted Assets | E117: 21.99333 | F117: 20.3 | G117: 71.96126273 | H117: 84.262 | I117: 53.951 | J117: 66.651 | K117: 57.585 | L117: 59.138 | M117: 147.877 | N117: 123.773 | O117: 82.347 | P117: 56.483 | Q117: 62.657 | R117: 48.044 | S117: 50.414583 | T117: 47.56688328 | U117: =U165*U$54 -> 38.73124758 | V117: 39.69762844 | W117: 40.68812141 | X117: 41.7033281 | Y117: 42.74386515 | Z117: 0 | AA117: 0 | AB117: 0 | AC117: 0 | AD117: 0
B118: Asset replacement and renewal
B119: Asset Replacement | E119: 27.286123 | F119: 39.4 | G119: 64.04171498 | H119: 80.119 | I119: 98.032 | J119: 177.973 | K119: 48.784 | L119: 45.21 | M119: 94.493 | N119: 136.803 | O119: 114.918 | P119: 80.244 | Q119: 76.979 | R119: 59.002 | S119: 65.33816198 | T119: 130.1111848 | U119: =U167*U$54 -> 267.2410903 | V119: 283.3098244 | W119: 293.0942283 | X119: 286.4019317 | Y119: 293.3214612 | Z119: 0 | AA119: 0 | AB119: 0 | AC119: 0 | AD119: 0
B120: State Undergrounding Power Program (SUPP) | E120: 21.052371 | F120: 22 | G120: 22.92657578 | H120: 21.084 | I120: 18.744 | J120: 33.372 | K120: 29.69 | L120: 18.964 | M120: 15.286 | N120: 10.77 | O120: 10.389 | P120: 7.06 | Q120: 30.982 | R120: 28.431 | S120: 30.68209803 | T120: 20.86758282 | U120: =U168*U$54 -> 29.986331 | V120: 40.5596529 | W120: 53.89892156 | X120: 66.84525909 | Y120: 71.36009748 | Z120: 0 | AA120: 0 | AB120: 0 | AC120: 0 | AD120: 0
B121: Metering | E121: 10.720987 | F121: 12.4 | G121: 13.99441339 | H121: 11.148 | I121: 15.992 | J121: 14.079 | K121: 11.318 | L121: 11.518 | M121: 16.686 | N121: 26.495 | O121: 24.481 | P121: 17.788 | Q121: 28.471 | R121: 35.997 | S121: 36.90947972 | T121: 38.74484006 | U121: =U169*U$54 -> 71.79449975 | V121: 71.09362338 | W121: 80.9452363 | X121: 73.96633639 | Y121: 69.86818888 | Z121: 0 | AA121: 0 | AB121: 0 | AC121: 0 | AD121: 0
B122: Smartgrid | E122: 0 | F122: 0 | G122: 0 | H122: 0 | I122: 0 | J122: 4.015 | K122: 0.781 | L122: 0.549 | M122: -1.329 | N122: 0 | O122: 0 | P122: 0 | Q122: 0 | R122: 0 | S122: 0 | T122: 0 | U122: =U170*U$54 -> 0 | V122: 0 | W122: 0 | X122: 0 | Y122: 0 | Z122: 0 | AA122: 0 | AB122: 0 | AC122: 0 | AD122: 0
B123: Wood Pole Management | E123: 0 | F123: 0 | G123: 0 | H123: 0 | I123: 0 | J123: 0 | K123: 216.856 | L123: 282.461 | M123: 234.234 | N123: 186.445 | O123: 81.72 | P123: 149.913 | Q123: 122.451 | R123: 145.261 | S123: 160.1126836 | T123: 97.10971749 | U123: =U171*U$54 -> 91.62401134 | V123: 93.9222959 | W123: 82.88378434 | X123: 89.1351703 | Y123: 91.5007776 | Z123: 0 | AA123: 0 | AB123: 0 | AC123: 0 | AD123: 0
B124: Improvement in service
B125: Reliability Driven | E125: 5.485359 | F125: 18.9 | G125: 27.00531919 | H125: 9.344 | I125: 8.136 | J125: 9.108 | K125: 1.694 | L125: 0.095 | M125: 0.181 | N125: 0.776 | O125: 3.664 | P125: 2.004 | Q125: 1.234 | R125: 9.997 | S125: 2.33797786 | T125: 6.162639085 | U125: =U173*U$54 -> 0.2666878808 | V125: 0 | W125: 0 | X125: 0 | Y125: 0 | Z125: 0 | AA125: 0 | AB125: 0 | AC125: 0 | AD125: 0
B126: Rural Power Improvement Program (RPIP) | E126: 9.618685 | F126: 23.6 | G126: 23.86639491 | H126: 8.173 | I126: -0.18 | J126: 0 | K126: 0 | L126: 0 | M126: 0 | N126: 0 | O126: 0 | P126: 0 | Q126: 0 | R126: 0 | S126: 0 | T126: 0 | U126: =U174*U$54 -> 0 | V126: 0 | W126: 0 | X126: 0 | Y126: 0 | Z126: 0 | AA126: 0 | AB126: 0 | AC126: 0 | AD126: 0
B127: SCADA & Communications | E127: 2.241186 | F127: 2.1 | G127: 1.9741209 | H127: 3.262 | I127: 3.196 | J127: 3.458 | K127: 3.074 | L127: 2.513 | M127: 3.143 | N127: 3.702 | O127: 5.064 | P127: 8.15 | Q127: 8.154 | R127: 25.188 | S127: 22.09691501 | T127: 17.65222538 | U127: =U175*U$54 -> 37.82754138 | V127: 38.2980809 | W127: 44.89057789 | X127: 54.51820891 | Y127: 58.18654533 | Z127: 0 | AA127: 0 | AB127: 0 | AC127: 0 | AD127: 0
B128: Compliance
B129: Safety, Environmental & Statutory | E129: 33.953598 | F129: 34.7 | G129: 58.10199275 | H129: 63.674 | I129: 61.078 | J129: 94.93 | K129: 128.555 | L129: 145.383 | M129: 115.225 | N129: 35.978 | O129: 14.781 | P129: 16.469 | Q129: 30.464 | R129: 28.708 | S129: 43.49754189 | T129: 67.15989954 | U129: =U177*U$54 -> 50.83201277 | V129: 51.22953312 | W129: 53.73545616 | X129: 54.9950384 | Y129: 56.09389617 | Z129: 0 | AA129: 0 | AB129: 0 | AC129: 0 | AD129: 0
B130: Corporate
B131: IT | E131: 17.9775 | F131: 33.975 | G131: 20.7 | H131: 16.102 | I131: 25.105 | J131: 32.277 | K131: 18.72 | L131: 13.033 | M131: 20.512 | N131: 12.401 | O131: 30.948 | P131: 36.949 | Q131: 39.654 | R131: 49.063 | S131: 34.817 | T131: 43.21399657 | U131: =U179*U$54 -> 47.99249466 | V131: 53.51833241 | W131: 54.45662787 | X131: 65.61803574 | Y131: 64.0221879 | Z131: 0 | AA131: 0 | AB131: 0 | AC131: 0 | AD131: 0
B132: Business Support | E132: 9.075 | F132: 9.075 | G132: 24.6 | H132: 11.546 | I132: 20.902 | J132: 22.724 | K132: 19.903 | L132: 2.517 | M132: 10.415 | N132: 15.678 | O132: 5.245 | P132: 18.649 | Q132: 27.372 | R132: 39.059 | S132: 12.67023331 | T132: 68.57681056 | U132: =U180*U$54 -> 17.88673108 | V132: 27.90489319 | W132: 44.43287396 | X132: 8.781243362 | Y132: 9.308658764 | Z132: 0 | AA132: 0 | AB132: 0 | AC132: 0 | AD132: 0
B133: Equity Raising Costs | E133: 0 | F133: 0 | G133: 0 | H133: 0 | I133: 0 | J133: 0 | K133: 5.484702631 | L133: 4.480711191 | M133: 3.529921867 | N133: 1.329817786 | O133: 0 | P133: =(P109*P54/$J$54)*SUM(P163,P167:P180)/SUM(P139,P143:P156) -> 0 | Q133: 0 | R133: 0 | S133: 0 | T133: 0
B134: Total | E134: =SUM(E115:E133) -> 416.285916 | F134: 467.35 | G134: 635.0614954 | H134: 574.534 | I134: 572.878 | J134: 681.628 | K134: 779.4067026 | L134: 804.0337112 | M134: 835.6629219 | N134: 720.0398178 | O134: 540.216 | P134: 545.854 | Q134: 561.434 | R134: 585.686 | S134: 565.9213399 | T134: 664.2958448 | U134: 806.2551787 | V134: 843.3739384 | W134: 889.8811124 | X134: 890.3844998 | Y134: 895.654586 | Z134: 0 | AA134: 0 | AB134: 0 | AC134: 0 | AD134: 0
B136: Year ending 30 June | D136: 2006 | E136: 2007 | F136: 2008 | G136: 2009 | H136: 2010 | I136: 2011 | J136: 2012 | K136: 2013 | L136: 2014 | M136: 2015 | N136: 2016 | O136: 2017 | P136: 2018 | Q136: 2019 | R136: 2020 | S136: 2021 | T136: 2022 | U136: 2023 | V136: 2024 | W136: 2025 | X136: 2026 | Y136: 2027 | Z136: 2028 | AA136: 2029 | AB136: 2030 | AC136: 2031 | AD136: 2032
B137: [APPROVED] Capital expenditure by regulatory category [$M real as at 30 June 2022]
B138: Growth | F138: Approved AA1 | I138: Approved AA2 | M138: Approved AA3 | R138: Approved AA4
B139: Capacity Expansion | K139: =K91/$J$54 -> 68.52331819 | L139: =L91/$J$54 -> 73.88705085 | M139: 82.05675697 | N139: 82.50853214 | O139: 92.00075536 | P139: =P91/$O$54 -> 48.34039427 | Q139: =Q91/$O$54 -> 45.72633499 | R139: 37.24083665 | S139: 28.1518731 | T139: 30.97202045
B140: Customer Driven | K140: 244.4873792 | L140: 245.4019099 | M140: 252.2847833 | N140: 254.0719321 | O140: 261.9640037 | P140: =P92/$O$54 -> 133.4828473 | Q140: 143.9073759 | R140: 131.7168975 | S140: 137.1054661 | T140: 137.1568359
B141: Gifted Assets | K141: 76.5003974 | L141: 76.5003974 | M141: 76.5003974 | N141: 76.5003974 | O141: 76.5003974 | P141: =P93/$O$54 -> 87.71664996 | Q141: 88.0008519 | R141: 88.28597467 | S141: 88.57202122 | T141: 88.85899457
B142: Asset replacement and renewal
B143: Asset Replacement | K143: =K95/$J$54 -> 50.73590633 | L143: 44.93786207 | M143: 42.3124261 | N143: 44.0951287 | O143: 44.24559488 | P143: =P95/$O$54 -> 80.18481843 | Q143: 83.58089966 | R143: 90.84185245 | S143: 98.62608309 | T143: 110.274146
B144: State Undergrounding Power Program (SUPP) | K144: 46.36967387 | L144: 22.40164774 | M144: 0 | N144: 0 | O144: 0 | P144: =P96/$O$54 -> 43.50521165 | Q144: 55.85107287 | R144: 36.67048068 | S144: 9.418185976 | T144: 20.38758782
B145: Metering | K145: 16.23549002 | L145: 53.6589566 | M145: 53.19625824 | N145: 48.41818054 | O145: 19.42795243 | P145: =P97/$O$54 -> 22.78130543 | Q145: 29.56814655 | R145: 34.61424329 | S145: 35.1978275 | T145: 35.11249054
B146: Smartgrid | K146: 2.984465078 | L146: 28.94918878 | M146: 32.04004519 | N146: 24.33260604 | O146: 18.80124428 | P146: =P98/$O$54 -> 0 | Q146: 0 | R146: 0 | S146: 0 | T146: 0
B147: Wood Pole Management | K147: 198.2878598 | L147: 226.9907103 | M147: 239.9334682 | N147: 252.8367744 | O147: 267.8550602 | P147: =P99/$O$54 -> 183.6251577 | Q147: 140.6565887 | R147: 131.7338758 | S147: 130.3118897 | T147: 118.9612892
B148: Improvement in service
B149: Reliability Driven | K149: =K101/$J$54 -> 0.7162716187 | L149: 0.7267578772 | M149: 0.733741493 | N149: 0.7410946001 | O149: 0.7520497713 | P149: =P101/$O$54 -> 4.789781747 | Q149: 6.597966229 | R149: 0 | S149: 0 | T149: 0
B150: Rural Power Improvement Program (RPIP) | K150: 0 | L150: 0 | M150: 0 | N150: 0 | O150: 0 | P150: =P102/$O$54 -> 0 | Q150: 0 | R150: 0 | S150: 0 | T150: 0
B151: SCADA & Communications | K151: 6.207687362 | L151: 7.630957711 | M151: 8.438027169 | N151: 4.693599134 | O151: 8.397889113 | P151: =P103/$O$54 -> 3.648768527 | Q151: 4.097358612 | R151: 4.969661164 | S151: 4.611388329 | T151: 4.225389611
B152: Compliance
B153: Safety, Environmental & Statutory | K153: =K105/$J$54 -> 136.0916076 | L153: =L105/$J$54 -> 135.903723 | M153: =M105/$J$54 -> 136.3536274 | N153: =N105/$J$54 -> 102.147539 | O153: =O105/$J$54 -> 110.1752915 | P153: =P105/$O$54 -> 30.63688463 | Q153: 47.59414647 | R153: 46.54620007 | S153: 38.49357116 | T153: 38.58263599
B154: Corporate
B155: IT | K155: =K107/$J$54 -> 30.95378939 | L155: 29.82150745 | M155: 17.45505859 | N155: 18.24587706 | O155: 18.51559527 | P155: =P107/$O$54 -> 38.58579508 | Q155: 41.28206953 | R155: 34.76131634 | S155: 25.15314034 | T155: 18.83126338
B156: Business Support | K156: 24.62909685 | L156: 24.08369842 | M156: 16.69282896 | N156: 16.86011425 | O156: 13.90622767 | P156: =P108/$O$54 -> 20.62405658 | Q156: 37.13829661 | R156: 99.09348155 | S156: 9.332690823 | T156: 7.755061901
B157: Equity Raising Costs | K157: 6.044650136 | L157: 5.178206239 | M157: 4.151532783 | N157: 1.74060646 | O157: 0 | P157: =P109/$O$54 -> 0 | Q157: 0 | R157: 0 | S157: 0 | T157: 0
B158: Total | K158: =SUM(K139:K157) -> 908.7675928 | L158: =SUM(L139:L157) -> 976.0725744 | M158: =SUM(M139:M157) -> 962.1489519 | N158: =SUM(N139:N157) -> 927.1923818 | O158: =SUM(O139:O157) -> 932.5420616 | P158: =SUM(P139:P157) -> 697.9216714 | Q158: 724.0011079 | R158: 736.4748201 | S158: 604.9741373 | T158: 611.1177154
B160: Year ending 30 June | D160: 2006 | E160: 2007 | F160: 2008 | G160: 2009 | H160: 2010 | I160: 2011 | J160: 2012 | K160: 2013 | L160: 2014 | M160: 2015 | N160: 2016 | O160: 2017 | P160: 2018 | Q160: 2019 | R160: 2020 | S160: 2021 | T160: 2022 | U160: 2023 | V160: 2024 | W160: 2025 | X160: 2026 | Y160: 2027 | Z160: 2028 | AA160: 2029 | AB160: 2030 | AC160: 2031 | AD160: 2032
B161: [ACTUAL] Capital expenditure by regulatory category [$M real as at 30 June 2022]
B162: Growth | F162: Actual AA1 | I162: Actual AA2 | M162: Actual AA3 | R162: Actual AA4 | T162: Forecast | W162: Proposed AA5 | AB162: Forecast AA6
B163: Capacity Expansion | E163: =E115/E$54 -> 104.735663 | F163: 81.09166021 | G163: 79.557498 | H163: 79.26300105 | I163: 41.96474194 | J163: 57.97201832 | K163: =K115/K$54 -> 57.0458028 | L163: 44.93387365 | M163: 29.43503025 | N163: 28.33922498 | O163: 38.78981276 | P163: 29.94455054 | Q163: 7.152712884 | R163: 14.98787114 | S163: 4.54254332 | T163: 17.71373269 | U163: 39.26174834 | V163: 28.13115716 | W163: 22.19501071 | X163: 25.45843317 | Y163: 21.83745378
B164: Customer Driven | E164: =E116/E$54 -> 249.824869 | F164: 250.2747494 | G164: 318.6285467 | H164: 256.5089661 | I164: 284.6943008 | J164: 210.8010951 | K164: 221.836158 | L164: 204.3176857 | M164: 167.9802277 | N164: 156.4695529 | O164: 143.3546537 | P164: 132.9528194 | Q164: 133.0307639 | R164: 108.6800444 | S164: 104.471744 | T164: 109.4163325 | U164: 109.785131 | V164: 110.0421409 | W164: 110.4190231 | X164: 111.4974611 | Y164: 104.0992619
B165: Gifted Assets | E165: =E117/E$54 -> 30.35624744 | F165: 26.81043489 | G165: 93.67419206 | H165: 106.4359999 | I165: 65.77877895 | J165: 80.31705731 | K165: 67.7721226 | L165: 67.56246777 | M165: 166.4282316 | N165: 137.8894132 | O165: 89.99844222 | P165: 60.47475858 | Q165: 66.03322987 | R165: 50.80985612 | S165: 51.34221133 | T165: 47.56688328 | U165: 37.96064646 | V165: 38.13368627 | W165: 38.30751486 | X165: 38.48213584 | Y165: 38.65755281
B166: Asset replacement and renewal
B167: Asset Replacement | E167: =E119/E$54 -> 37.66161384 | F167: 52.03601649 | G167: 83.36507284 | H167: 101.2027471 | I167: 119.5237393 | J167: 214.4644137 | K167: 57.41417433 | L167: 51.65036301 | M167: 106.3471864 | N167: 152.4054955 | O167: 125.5958442 | P167: 85.91499261 | Q167: 81.12696111 | R167: 62.39869975 | S167: 66.54038416 | T167: 130.1111848 | U167: 261.9240324 | V167: 272.1484478 | W167: 275.9456844 | X167: 264.2800597 | Y167: 265.2799375
B168: State Undergrounding Power Program (SUPP) | E168: =E120/E$54 -> 29.05749076 | F168: 29.05564372 | G168: 29.84422982 | H168: 26.63236835 | I168: 22.85328229 | J168: 40.21456297 | K168: 34.94233429 | L168: 21.66550507 | M168: 17.2036351 | N168: 11.99832743 | O168: 11.35431547 | P168: 7.55894332 | Q168: 32.65144402 | R168: 30.0677508 | S168: 31.24664863 | T168: 20.86758282 | U168: 29.38971969 | V168: 38.9617501 | W168: 50.7453691 | X168: 61.68208768 | Y168: 64.5380741
B169: Metering | E169: =E121/E$54 -> 14.79761974 | F169: 16.37681737 | G169: 18.21695893 | H169: 14.08165635 | I169: 19.49795616 | J169: 16.9657447 | K169: 13.32022026 | L169: 13.15878967 | M169: 18.77926568 | N169: 29.51677671 | O169: 26.75570287 | P169: 19.04511102 | Q169: 30.00514049 | R169: 38.0693196 | S169: 37.58861415 | T169: 38.74484006 | U169: 70.36606856 | V169: 68.29279319 | W169: 76.20924082 | X169: 68.25312832 | Y169: 63.18879193
B170: Smartgrid | E170: =E122/E$54 -> 0 | F170: 0 | G170: 0 | H170: 0 | I170: 0 | J170: 4.838231761 | K170: 0.9191634584 | L170: 0.6272074606 | M170: -1.495723606 | N170: 0 | O170: 0 | P170: 0 | Q170: 0 | R170: 0 | S170: 0 | T170: 0 | U170: 0 | V170: 0 | W170: 0 | X170: 0 | Y170: 0
B171: Wood Pole Management | E171: =E123/E$54 -> 0 | F171: 0 | G171: 0 | H171: 0 | I171: 0 | J171: 0 | K171: 255.2190921 | L171: 322.6988097 | M171: 263.6187534 | N171: 207.7092068 | O171: 89.31318322 | P171: 160.5076303 | Q171: 129.0491889 | R171: 153.623564 | S171: 163.0587569 | T171: 97.10971749 | U171: 89.80105002 | V171: 90.22209905 | W171: 78.03436705 | X171: 82.25031161 | Y171: 82.75330576
B172: Improvement in service
B173: Reliability Driven | E173: =E125/E$54 -> 7.571155215 | F173: 24.96143938 | G173: 35.15365574 | H173: 11.80292401 | I173: 9.919670544 | J173: 10.97549561 | K173: 1.993678487 | L173: 0.1085331671 | M173: 0.2037065258 | N173: 0.8645034431 | O173: 4.004448156 | P173: 2.145626404 | Q173: 1.300493252 | R173: 10.5725196 | S173: 2.380996653 | T173: 6.162639085 | U173: 0.2613818297 | V173: 0 | W173: 0 | X173: 0 | Y173: 0
B174: Rural Power Improvement Program (RPIP) | E174: =E126/E$54 -> 13.27616973 | F174: 31.16878145 | G174: 31.06762133 | H174: 10.32376904 | I174: -0.2194617377 | J174: 0 | K174: 0 | L174: 0 | M174: 0 | N174: 0 | O174: 0 | P174: 0 | Q174: 0 | R174: 0 | S174: 0 | T174: 0 | U174: 0 | V174: 0 | W174: 0 | X174: 0 | Y174: 0
B175: SCADA & Communications | E175: =E127/E$54 -> 3.093392259 | F175: 2.773493265 | G175: 2.569773977 | H175: 4.120412899 | I175: 3.896665076 | J175: 4.167025014 | K175: 3.617808542 | L175: 2.870987884 | M175: 3.537290666 | N175: 4.124216168 | O175: 5.534532059 | P175: 8.725975646 | Q175: 8.59337275 | R175: 26.63805378 | S175: 22.50349825 | T175: 17.65222538 | U175: 37.07492049 | V175: 36.78927581 | W175: 42.26409135 | X175: 50.3071869 | Y175: 52.62391318
B176: Compliance
B177: Safety, Environmental & Statutory | E177: =E129/E$54 -> 46.86438218 | F177: 45.82867442 | G177: 75.63315347 | H177: 80.43015663 | I177: 74.46824453 | J177: 114.3943564 | K177: 151.2971298 | L177: 166.0934467 | M177: 129.6800245 | N177: 40.08132072 | O177: 16.15440726 | P177: 17.63289484 | Q177: 32.10553194 | R177: 30.36069748 | S177: 44.29789666 | T177: 67.15989954 | U177: 49.8206535 | V177: 49.21127584 | W177: 50.59146784 | X177: 50.74718576 | Y177: 50.73132122
B178: Corporate
B179: IT | E179: =E131/E$54 -> 24.81340654 | F179: 44.87115889 | G179: 26.94582755 | H179: 20.33932817 | I179: 30.60881625 | J179: 38.89504522 | K179: 22.03167726 | L179: 14.88960808 | M179: 23.08523899 | N179: 13.81534433 | O179: 33.82359758 | P179: 39.5602545 | Q179: 41.79072885 | R179: 51.88751917 | S179: 35.4576328 | T179: 43.21399657 | U179: 47.03763076 | V179: 51.40990477 | W179: 51.27044477 | X179: 60.54965586 | Y179: 57.90166848
B180: Business Support | E180: =E132/E$54 -> 12.52574965 | F180: 11.98545304 | G180: 32.02257767 | H180: 14.58439219 | I180: 25.48438467 | J180: 27.38330723 | K180: 23.42395687 | L180: 2.875557702 | M180: 11.72156611 | N180: 17.46608889 | O180: 5.732350049 | P180: 19.96695949 | Q180: 28.84692162 | R180: 41.30759658 | S180: 12.90336561 | T180: 68.57681056 | U180: 17.53085473 | V180: 26.80554189 | W180: 41.83316704 | X180: 8.102974397 | Y180: 8.41875124
B181: Equity Raising Costs | E181: =E133/E$54 -> 0 | F181: 0 | G181: 0 | H181: 0 | I181: 0 | J181: 0 | K181: 6.454978538 | L181: 5.119008175 | M181: 3.972752042 | N181: 1.481484606 | O181: 0 | P181: 0 | Q181: 0 | R181: 0 | S181: 0 | T181: 0 | U181: =U133/U$54 -> 0 | V181: 0 | W181: 0 | X181: 0 | Y181: 0 | Z181: 0 | AA181: 0 | AB181: 0 | AC181: 0 | AD181: 0
B182: Total | E182: =SUM(E163:E181) -> 574.5777594 | F182: 617.2343225 | G182: 826.6791081 | H182: 725.7257218 | I182: 698.4711187 | J182: 821.3883534 | K182: 917.2882974 | L182: 918.5718438 | M182: 940.4971852 | N182: 802.1609557 | O182: 590.4112896 | P182: 584.4305166 | Q182: 591.6864896 | R182: 619.4034925 | S182: 576.3342925 | T182: 664.2958448 | U182: 790.2138378 | V182: 810.1480727 | W182: 837.815381 | X182: 821.6106203 | Y182: 810.0300319 | Z182: 0 | AA182: 0 | AB182: 0 | AC182: 0 | AD182: 0
E183: =IF(ROUND(E182-E134/E54,8)=0,"OK","CHECK") -> OK | F183: OK | G183: OK | H183: OK | I183: OK | J183: OK | K183: OK | L183: OK | M183: OK | N183: OK | O183: OK | P183: OK | Q183: OK | R183: OK | S183: OK | T183: OK | U183: OK | V183: OK | W183: OK | X183: OK | Y183: OK | Z183: OK | AA183: OK | AB183: OK | AC183: OK | AD183: OK
B184: Year ending 30 June | D184: 2006 | E184: 2007 | F184: 2008 | G184: 2009 | H184: 2010 | I184: 2011 | J184: 2012 | K184: 2013 | L184: 2014 | M184: 2015 | N184: 2016 | O184: 2017 | P184: 2018 | Q184: 2019 | R184: 2020 | S184: 2021 | T184: 2022 | U184: 2018 | V184: 2019 | W184: 2020 | X184: 2021 | Y184: 2022 | Z184: 2028 | AA184: 2029 | AB184: 2030 | AC184: 2031 | AD184: 2032
B185: Capital expenditure adjustments | F185: [$M real as at 30 June 2009] | I185: [$M real as at 30 June 2012] | M185: [$M real as at 30 June 2017] | R185: [$M real as at 30 June 2022]
B187: AA1 Distribution write down | E187: -46.595 | F187: -47.469 | G187: -55.048
B189: Growth
B190: Capacity Expansion | I190: -0.341980931 | J190: -0.375 | Q190: -0.409375 | R190: =(-0.307112)+(-0.304407) -> -0.611519
B191: Customer Driven | J191: -0.582 | Q191: -0.061
B192: Gifted Assets
B193: Asset replacement and renewal
B194: Asset Replacement | J194: -0.638 | S194: -23.561896 | T194: -20.98964017
B195: State Undergrounding Power Program (SUPP) | J195: -0.111
B196: Metering | J196: -0.047 | P196: -0.578057413 | Q196: -1.749690333 | R196: -5.024101265 | S196: -14.80534942 | T196: -14.43209423
B197: Smartgrid | J197: -0.013
B198: Wood Pole Management | M198: -10.5 | N198: -12.9 | O198: -5.52
B199: Improvement in service
B200: Reliability Driven | J200: -0.27 | N200: -0.29 | O200: -1.48 | Q200: 3.807113 | R200: -3.807113
B201: Rural Power Improvement Program (RPIP)
B202: SCADA & Communications | J202: -0.012 | P202: -2.414972548 | Q202: -1.96369719 | R202: -9.645388608 | S202: -3.25888 | T202: -3.2
B203: Compliance
B204: Safety, Environmental & Statutory | J204: -0.318
B205: Corporate
B206: IT | H206: -3.05414801 | I206: -3.05414801 | J206: -3.05414801 | P206: -11.23487229 | Q206: -10.23189588 | R206: -17.57949859 | S206: -2.44416 | T206: -4.63
B207: Business Support | K207: =-2.651202*(2/3) -> -1.767468 | N207: -3.993
B208: Equity Raising Costs
B209: SPS adjust | S209: 23.561896 | T209: 20.98964017
B210: Total
B212: Year ending 30 June | D212: 2006 | E212: 2007 | F212: 2008 | G212: 2009 | H212: 2010 | I212: 2011 | J212: 2012 | K212: 2013 | L212: 2014 | M212: 2015 | N212: 2016 | O212: 2017 | P212: 2018 | Q212: 2019 | R212: 2020 | S212: 2021 | T212: 2022 | U212: 2023 | V212: 2024 | W212: 2025 | X212: 2026 | Y212: 2027 | Z212: 2028 | AA212: 2029 | AB212: 2030 | AC212: 2031 | AD212: 2032
B213: Capital expenditure adjustments [$M real as at 30 June 2022]
B214: Growth
B215: Capacity Expansion | E215: =(E$187*E163/(E$182-E$165))/$G$54 -> -11.67291648 | F215: -8.486791549 | G215: -7.777445108 | H215: =H190/$J$54 -> 0 | I215: -0.4121003741 | J215: -0.4518896414 | K215: =K190/$O$54 -> 0 | L215: =L190/$O$54 -> 0 | M215: 0 | N215: 0 | O215: 0 | P215: =P190 -> 0 | Q215: =Q190 -> -0.409375 | R215: -0.611519 | S215: 0 | T215: 0
B216: Customer Driven | E216: -27.84328421 | F216: -26.19294786 | G216: -31.14874266 | H216: 0 | I216: 0 | J216: -0.7013327235 | K216: =K191/$O$54 -> 0 | L216: 0 | M216: 0 | N216: 0 | O216: 0 | P216: =P191 -> 0 | Q216: -0.061 | R216: 0 | S216: 0 | T216: 0
... 548 more rows

Sheet Tx_Inputs
B1: Validation status | C1: =IF(COUNTIF(Q6:Q20,"CHECK")+COUNTIF(E160:AD160,"CHECK")+COUNTIF(E243:AD243,"CHECK")+COUNTIF(E320:AD320,"CHECK")+COUNTIF(K381:O381,"CHECK")+COUNTIF(K401:AD401,"CHECK")+COUNTIF(K419:O419,"CHECK")+COUNTIF(K456:AD456,"CHECK")+COUNTIF(K673:O673,"CHECK")+COUNTIF(E688:AD688,"CHECK")>0,"CHECK","OK") -> OK
B2: Allocation of capex and contributions from regulatory category to asset class
B3: % matrix
B4: Transmission - AA4
B5: Growth | C5: Transmission cables | D5: Transmission steel towers | E5: Transmission wood poles | F5: Transmission metering | G5: Transmission transformers | H5: Transmission reactors | I5: Transmission capacitors | J5: Transmission circuit breakers | K5: SCADA and communications | L5: IT | M5: Other non-network assets | N5: Land & Easements | O5: Equity raising costs | P5: Transmission secondary systems
B6: Capacity Expansion | C6: 0.1288197122 | D6: 0.08158130026 | E6: 0.04427315722 | F6: 0 | G6: 0.3101397437 | H6: 0.04234319172 | I6: 0.03106847006 | J6: 0.09628261272 | K6: 0 | L6: 0 | M6: 0 | N6: 0.2654918121 | O6: 0 | Q6: =IF(SUM(C6:P6)=1,"OK","CHECK") -> OK
B7: Customer Driven | C7: 0.08209495336 | D7: 0.09466179622 | E7: 0 | F7: 0 | G7: 0.3529123605 | H7: 0 | I7: 0.02874176457 | J7: 0.2004958335 | K7: 0 | L7: 0 | M7: 0 | N7: 0.2410932918 | O7: 0 | Q7: =IF(SUM(C7:P7)=1,"OK","CHECK") -> OK
B8: Generation Driven
B9: Gifted Assets | C9: 0.08209495336 | D9: 0.09466179622 | E9: 0 | F9: 0 | G9: 0.3529123605 | H9: 0 | I9: 0.02874176457 | J9: 0.2004958335 | K9: 0 | L9: 0 | M9: 0 | N9: 0.2410932918 | O9: 0 | Q9: OK
B10: Asset replacement and renewal
B11: Asset Replacement | C11: 0 | D11: 0 | E11: 0 | F11: 0 | G11: 0.5969092318 | H11: 0.0730424798 | I11: 0 | J11: 0.3300482884 | K11: 0 | L11: 0 | M11: 0 | N11: 0 | O11: 0 | Q11: OK
B12: Improvement in service
B13: Reliability Driven | C13: 0 | D13: 0 | E13: 0.8472688889 | F13: 0 | G13: 0 | H13: 0 | I13: 0 | J13: 0.1527311111 | K13: 0 | L13: 0 | M13: 0 | N13: 0 | O13: 0 | Q13: OK
B14: SCADA & Communications | C14: 0 | D14: 0 | E14: 0 | F14: 0 | G14: 0 | H14: 0 | I14: 0 | J14: 0 | K14: 1 | L14: 0 | M14: 0 | N14: 0 | O14: 0 | Q14: OK
B15: Compliance
B16: Safety, Environmental & Statutory | C16: 0 | D16: 0 | E16: 1 | F16: 0 | G16: 0 | H16: 0 | I16: 0 | J16: 0 | K16: 0 | L16: 0 | M16: 0 | N16: 0 | O16: 0 | Q16: OK
B17: Corporate
B18: IT | C18: 0 | D18: 0 | E18: 0 | F18: 0 | G18: 0 | H18: 0 | I18: 0 | J18: 0 | K18: 0 | L18: 1 | M18: 0 | N18: 0 | O18: 0 | Q18: OK
B19: Business Support | C19: 0 | D19: 0 | E19: 0 | F19: 0 | G19: 0 | H19: 0 | I19: 0 | J19: 0 | K19: 0 | L19: 0 | M19: 0.6 | N19: 0.4 | O19: 0 | Q19: OK
B20: Equity Raising Costs | C20: 0 | D20: 0 | E20: 0 | F20: 0 | G20: 0 | H20: 0 | I20: 0 | J20: 0 | K20: 0 | L20: 0 | M20: 0 | N20: 0 | O20: 1 | Q20: OK
B22: Transmission - AA5
B23: Growth | C23: Transmission cables | D23: Transmission steel towers | E23: Transmission wood poles | F23: Transmission metering | G23: Transmission transformers | H23: Transmission reactors | I23: Transmission capacitors | J23: Transmission circuit breakers | K23: SCADA and communications | L23: IT | M23: Other non-network assets | N23: Land & Easements | O23: Equity raising costs | P23: Transmission secondary systems
B24: Capacity Expansion | C24: 0 | D24: 0 | E24: 0 | F24: 0 | G24: 0.3403669268 | H24: 0 | I24: 0 | J24: 0 | K24: 0 | L24: 0 | M24: 0.6596330732 | N24: 0 | O24: 0 | P24: 0 | Q24: =IF(SUM(C24:P24)=1,"OK","CHECK") -> OK
B25: Customer Driven | C25: 0.2268291947 | D25: 0.001643418383 | E25: 0.01637890681 | F25: 0 | G25: 0.150385815 | H25: 0 | I25: 0 | J25: 0.1534149043 | K25: 0.01471938202 | L25: 0 | M25: 0.4366283789 | N25: 0 | O25: 0 | P25: 0 | Q25: =IF(SUM(C25:P25)=1,"OK","CHECK") -> OK
B26: Generation Driven
B27: Gifted Assets | C27: 0.2268291947 | D27: 0.001643418383 | E27: 0.01637890681 | F27: 0 | G27: 0.150385815 | H27: 0 | I27: 0 | J27: 0.1534149043 | K27: 0.01471938202 | L27: 0 | M27: 0.4366283789 | N27: 0 | O27: 0 | P27: 0 | Q27: =IF(SUM(C27:P27)=1,"OK","CHECK") -> OK
B28: Asset replacement and renewal
B29: Asset Replacement | C29: 0 | D29: 0 | E29: 0.03854009028 | F29: 0 | G29: 0.3126760745 | H29: 0.0265584608 | I29: 0.01566477301 | J29: 0.2690612695 | K29: 0 | L29: 0 | M29: 0.08215903305 | N29: 0 | O29: 0 | P29: 0.2553402988 | Q29: =IF(SUM(C29:P29)=1,"OK","CHECK") -> OK
B30: Improvement in service
B31: Reliability Driven | C31: 0 | D31: 0 | E31: 0.8472688889 | F31: 0 | G31: 0 | H31: 0 | I31: 0 | J31: 0.1527311111 | K31: 0 | L31: 0 | M31: 0 | N31: 0 | O31: 0 | P31: 0 | Q31: =IF(SUM(C31:P31)=1,"OK","CHECK") -> OK
B32: SCADA & Communications | C32: 0 | D32: 0 | E32: 0 | F32: 0 | G32: 0 | H32: 0 | I32: 0 | J32: 0 | K32: 1 | L32: 0 | M32: 0 | N32: 0 | O32: 0 | P32: 0 | Q32: OK
B33: Compliance
B34: Safety, Environmental & Statutory | C34: 0.08685525383 | D34: 0 | E34: 0.3460336536 | F34: 0 | G34: 0.04154447707 | H34: 0 | I34: 0 | J34: 0 | K34: 0 | L34: 0 | M34: 0.5129085944 | N34: 0 | O34: 0 | P34: 0.01265802116 | Q34: =IF(SUM(C34:P34)=1,"OK","CHECK") -> OK
B35: Corporate
B36: IT | C36: 0 | D36: 0 | E36: 0 | F36: 0 | G36: 0 | H36: 0 | I36: 0 | J36: 0 | K36: 0 | L36: 1 | M36: 0 | N36: 0 | O36: 0 | P36: 0 | Q36: =IF(SUM(C36:P36)=1,"OK","CHECK") -> OK
B37: Business Support | C37: 0 | D37: 0 | E37: 0 | F37: 0 | G37: 0 | H37: 0 | I37: 0 | J37: 0 | K37: 0 | L37: 0 | M37: 1 | N37: 0 | O37: 0 | P37: 0 | Q37: OK
B38: Equity Raising Costs | C38: 0 | D38: 0 | E38: 0 | F38: 0 | G38: 0 | H38: 0 | I38: 0 | J38: 0 | K38: 0 | L38: 0 | M38: 0 | N38: 0 | O38: 1 | P38: 0 | Q38: OK
B40: Inflation
B41: Year ending 30 June | D41: 2006 | E41: 2007 | F41: 2008 | G41: 2009 | H41: 2010 | I41: 2011 | J41: 2012 | K41: 2013 | L41: 2014 | M41: 2015 | N41: 2016 | O41: 2017 | P41: 2018 | Q41: 2019 | R41: 2020 | S41: 2021 | T41: 2022 | U41: 2023 | V41: 2024 | W41: 2025 | X41: 2026 | Y41: 2027 | Z41: 2028 | AA41: 2029 | AB41: 2030 | AC41: 2031 | AD41: 2032
B42: Actual and Forecast Inflation
B43: June CPI | C43: =Dx_Inputs!C51 -> 148.4 | D43: =Dx_Inputs!D51 -> 154.3 | E43: =Dx_Inputs!E51 -> 157.5 | F43: =Dx_Inputs!F51 -> 164.6 | G43: =Dx_Inputs!G51 -> 167 | H43: =Dx_Inputs!H51 -> 172.1 | I43: =Dx_Inputs!I51 -> 178.3 | J43: =Dx_Inputs!J51 -> 180.4
B44: June CPI (rebased) | J44: =Dx_Inputs!J52 -> 100.4 | K44: =Dx_Inputs!K52 -> 102.8 | L44: =Dx_Inputs!L52 -> 105.9 | M44: =Dx_Inputs!M52 -> 107.5 | N44: =Dx_Inputs!N52 -> 108.6 | O44: =Dx_Inputs!O52 -> 110.7 | P44: =Dx_Inputs!P52 -> 113 | Q44: =Dx_Inputs!Q52 -> 114.8 | R44: =Dx_Inputs!R52 -> 114.4 | S44: =Dx_Inputs!S52 -> 118.8 | T44: =Dx_Inputs!T52 -> 0 | U44: =Dx_Inputs!U52 -> 0 | V44: =Dx_Inputs!V52 -> 0 | W44: =Dx_Inputs!W52 -> 0 | X44: =Dx_Inputs!X52 -> 0 | Y44: =Dx_Inputs!Y52 -> 0 | Z44: =Dx_Inputs!Z52 -> 0 | AA44: =Dx_Inputs!AA52 -> 0 | AB44: =Dx_Inputs!AB52 -> 0 | AC44: =Dx_Inputs!AC52 -> 0 | AD44: =Dx_Inputs!AD52 -> 0
B45: Actual & Forecast Inflation | D45: =Dx_Inputs!D53 -> 0.0397574124 | E45: =Dx_Inputs!E53 -> 0.02073882048 | F45: =Dx_Inputs!F53 -> 0.04507936508 | G45: =Dx_Inputs!G53 -> 0.01458080194 | H45: =Dx_Inputs!H53 -> 0.03053892216 | I45: =Dx_Inputs!I53 -> 0.03602556653 | J45: =Dx_Inputs!J53 -> 0.01177790241 | K45: =Dx_Inputs!K53 -> 0.02390438247 | L45: =Dx_Inputs!L53 -> 0.03015564202 | M45: =Dx_Inputs!M53 -> 0.01510859301 | N45: =Dx_Inputs!N53 -> 0.01023255814 | O45: =Dx_Inputs!O53 -> 0.01933701657 | P45: =Dx_Inputs!P53 -> 0.02077687444 | Q45: =Dx_Inputs!Q53 -> 0.01592920354 | R45: =Dx_Inputs!R53 -> -0.003484320557 | S45: =Dx_Inputs!S53 -> 0.03846153846 | T45: =Dx_Inputs!T53 -> 0.0184 | U45: =Dx_Inputs!U53 -> 0.0203 | V45: =Dx_Inputs!V53 -> 0.0203 | W45: =Dx_Inputs!W53 -> 0.0203 | X45: =Dx_Inputs!X53 -> 0.0203 | Y45: =Dx_Inputs!Y53 -> 0.0203 | Z45: =Dx_Inputs!Z53 -> 0.0203 | AA45: =Dx_Inputs!AA53 -> 0.0203 | AB45: =Dx_Inputs!AB53 -> 0.0203 | AC45: =Dx_Inputs!AC53 -> 0.0203 | AD45: =Dx_Inputs!AD53 -> 0.0203
B46: End of year Inflation factor | D46: =Dx_Inputs!D54 -> 0.7097873817 | E46: =Dx_Inputs!E54 -> 0.7245075348 | F46: =Dx_Inputs!F54 -> 0.7571678744 | G46: =Dx_Inputs!G54 -> 0.7682079893 | H46: =Dx_Inputs!H54 -> 0.7916682332 | I46: =Dx_Inputs!I54 -> 0.8201885299 | J46: =Dx_Inputs!J54 -> 0.8298486303 | K46: =Dx_Inputs!K54 -> 0.8496856494 | L46: =Dx_Inputs!L54 -> 0.8753084656 | M46: =Dx_Inputs!M54 -> 0.888533145 | N46: =Dx_Inputs!N54 -> 0.8976251121 | O46: =Dx_Inputs!O54 -> 0.9149825037 | P46: =Dx_Inputs!P54 -> 0.9339929803 | Q46: =Dx_Inputs!Q54 -> 0.9488707446 | R46: =Dx_Inputs!R54 -> 0.9455645748 | S46: =Dx_Inputs!S54 -> 0.981932443 | T46: =Dx_Inputs!T54 -> 1 | U46: =Dx_Inputs!U54 -> 1.0203 | V46: =Dx_Inputs!V54 -> 1.04101209 | W46: =Dx_Inputs!W54 -> 1.062144635 | X46: =Dx_Inputs!X54 -> 1.083706172 | Y46: =Dx_Inputs!Y54 -> 1.105705407 | Z46: =Dx_Inputs!Z54 -> 1.128151227 | AA46: =Dx_Inputs!AA54 -> 1.151052696 | AB46: =Dx_Inputs!AB54 -> 1.174419066 | AC46: =Dx_Inputs!AC54 -> 1.198259773 | AD46: =Dx_Inputs!AD54 -> 1.222584447
B48: Standard life
C51: Remaining life @ 30 June 2006 | D51: Standard life (AA1/AA2) | E51: Standard life (AA3) | F51: Standard life (AA4) | G51: Standard life (AA5) | H51: ICB ($M @ 30 June 2006) | I51: ICB ($M @ 30 June 2022) | K51: Tax life | L51: Tax ICB @ 30 June 2012
B52: Transmission cables | C52: 38.1 | D52: 55 | E52: 55 | F52: 55 | G52: 55 | H52: 12.08660829 | I52: =H52/D$46 -> 17.02849135 | K52: 47.5 | L52: 1328.902758
B53: Transmission steel towers | C53: 41.3 | D53: 60 | E53: 60 | F53: 60 | G53: 60 | H53: 365.1878518 | I53: 514.5031614 | K53: 47.5 | L53: 58.78918677
B54: Transmission wood poles | C54: 20.9 | D54: 45 | E54: 45 | F54: 45 | G54: 45 | H54: 172.740829 | I54: 243.3698224 | K54: 47.5 | L54: 9.139871168
B55: Transmission metering | C55: 26.1 | D55: 40 | E55: 40 | F55: 40 | G55: 40 | H55: 2.126729009 | I55: 2.996290247 | K55: 25 | L55: 0
B56: Transmission transformers | C56: 25.5 | D56: 50 | E56: 50 | F56: 50 | G56: 50 | H56: 154.909869 | I56: 218.2482713 | K56: 40 | L56: 165.4964765
B57: Transmission reactors | C57: 27 | D57: 50 | E57: 50 | F57: 50 | G57: 40 | H57: 3.932879594 | I57: 5.540926332 | K57: 40 | L57: 1.929584197
B58: Transmission capacitors | C58: 23.1 | D58: 40 | E58: 40 | F58: 40 | G58: 40 | H58: 76.25847891 | I58: 107.4384821 | K58: 40 | L58: 12.78949966
B59: Transmission circuit breakers | C59: 28.2 | D59: 50 | E59: 50 | F59: 50 | G59: 40 | H59: 455.2650729 | I59: 641.4104908 | K59: 40 | L59: 23.55868953
B60: SCADA and communications | C60: 11.4 | D60: 34.15 | E60: 11 | F60: 11 | G60: 11 | H60: 33.89058198 | I60: 47.74751264 | K60: 12.5 | L60: 72.73476178
B61: IT | C61: 4.2 | D61: 16.85 | E61: 6 | F61: 6 | G61: 6 | H61: 2.679569855 | I61: 3.775172572 | K61: 4 | L61: 18.76923065
B62: Other non-network assets | C62: 12 | D62: 16.85 | E62: 16.85 | F62: 27 | G62: 27 | H62: 24.49947447 | I62: 34.5166385 | K62: 12.5 | L62: 151.0024198
B63: Land & Easements | C63: 0 | D63: 0 | E63: 0 | F63: 0 | G63: 0 | H63: 82.98579328 | I63: 116.9164111 | K63: 0 | L63: 200.1478209
B64: Equity raising costs | C64: 0 | D64: 0 | E64: =ROUND(SUMPRODUCT(Tx_Asset!M15:M25,E52:E62)/SUM(Tx_Asset!M15:M25),0) -> 49 | F64: =ROUND(SUMPRODUCT(Tx_Asset!R15:R25,F52:F62)/SUM(Tx_Asset!R15:R25),0) -> 49 | G64: =ROUND((SUMPRODUCT(Tx_Asset!S15:S25,G52:G62)+(G65*Tx_Asset!V28))/SUM(Tx_Asset!S15:S25,Tx_Asset!V28),0) -> 46 | H64: 0 | I64: 0 | K64: 5 | L64: 0
B65: Transmission secondary systems | C65: 0 | D65: 0 | E65: 0 | F65: 0 | G65: 30 | H65: 0 | I65: 0 | K65: 30 | L65: 0
B66: Total | H66: =SUM(H52:H65) -> 1386.563738 | I66: =SUM(I52:I65) -> 1953.491671 | L66: =SUM(L52:L65) -> 2043.260298
B68: Working capital assumptions
C71: Input
B72: 2017 Closing balance (real as at 30 June 2012) | C72: 16.594
B74: Receivables | C74: 45 | D74: days
B75: TEC | C75: 0 | D75: days
B76: Inventory % capex | C76: 0.04 | D76: Percent
B77: Prepayments | C77: 0
B78: Creditors | C78: -20 | D78: Days
B80: Capital expenditure
B81: Year ending 30 June | D81: 2006 | E81: 2007 | F81: 2008 | G81: 2009 | H81: 2010 | I81: 2011 | J81: 2012 | K81: 2013 | L81: 2014 | M81: 2015 | N81: 2016 | O81: 2017 | P81: 2018 | Q81: 2019 | R81: 2020 | S81: 2021 | T81: 2022 | U81: 2023 | V81: 2024 | W81: 2025 | X81: 2026 | Y81: 2027 | Z81: 2028 | AA81: 2029 | AB81: 2030 | AC81: 2031 | AD81: 2032
B82: [APPROVED] Capital expenditure by regulatory category [$M real] | M82: [$M real as at 30 June 2012] | R82: [$M real as at 30 June 2017]
B83: Growth | F83: Approved AA1 | I83: Approved AA2 | M83: Approved AA3 | R83: Approved AA4
B84: Capacity Expansion | K84: 192.6843523 | L84: 271.1514459 | M84: 130.3389167 | N84: 140.0374611 | O84: 221.3558819 | P84: 25.64412594 | Q84: 22.56592228 | R84: 2.668666569 | S84: 3.3868429 | T84: 0.3842981957
B85: Customer Driven | K85: 33.74697695 | L85: 58.10388126 | M85: 58.63732148 | N85: 59.18371532 | O85: 60.03047101 | P85: 23.0830573 | Q85: 22.76673307 | R85: 22.77767334 | S85: 23.7095132 | T85: 23.71839653
B86: Generation Driven | K86: 0 | L86: 0 | M86: 0 | N86: 0 | O86: 0 | P86: 0 | Q86: 0 | R86: 0 | S86: 0 | T86: 0
B87: Gifted Assets | K87: 0 | L87: 0 | M87: 0 | N87: 0 | O87: 0 | P87: 0 | Q87: 0 | R87: 0 | S87: 0 | T87: 0
B88: Asset replacement and renewal
B89: Asset Replacement | K89: 30.38217573 | L89: 33.21655388 | M89: 33.62278192 | N89: 33.93608547 | O89: 35.76945164 | P89: 30.16060121 | Q89: 59.25433409 | R89: 52.76606136 | S89: 45.84924343 | T89: 54.98843987
B90: Improvement in service
B91: Reliability Driven | K91: 0 | L91: 0 | M91: 0 | N91: 0 | O91: 0 | P91: 0 | Q91: 0 | R91: 0 | S91: 0 | T91: 0
B92: SCADA & Communications | K92: 14.05299334 | L92: 11.94190306 | M92: 13.0642737 | N92: 18.70573386 | O92: 18.66232259 | P92: 9.169883954 | Q92: 15.45632153 | R92: 17.85809183 | S92: 16.48445735 | T92: 12.72758768
B93: Compliance
B94: Safety, Environmental & Statutory | K94: 17.91261827 | L94: 19.56866467 | M94: 24.6094458 | N94: 30.15405185 | O94: 30.68915271 | P94: 26.87845185 | Q94: 39.64475336 | R94: 37.73671543 | S94: 31.67002272 | T94: 32.13464669
B95: Corporate
B96: IT | K96: 15.50867235 | L96: 14.93222309 | M96: 8.736386449 | N96: 9.125838976 | O96: 9.256404555 | P96: 14.06714463 | Q96: 15.05011991 | R96: 12.67286222 | S96: 9.170029084 | T96: 6.865275292
B97: Business Support | K97: 12.33983305 | L97: 12.05918776 | M97: 8.354884858 | N97: 8.432737281 | O97: 6.952067556 | P97: 8.14909902 | Q97: 14.67430305 | R97: 39.15440156 | S97: 3.687587906 | T97: 3.064225851
B98: Equity Raising Costs | K98: 0.7674487754 | L98: 2.300863536 | M98: 0.4311487214 | N98: 1.377294408 | O98: 3.454061022 | P98: =Q59/P$46 -> 0 | Q98: =R59/Q$46 -> 0 | R98: =S59/R$46 -> 0 | S98: =T59/S$46 -> 0 | T98: =U59/T$46 -> 0
B99: Total | K99: =SUM(K84:K98) -> 317.3950707 | L99: 423.2747231 | M99: 277.7951596 | N99: 300.9529183 | O99: 386.169813 | P99: 137.1523639 | Q99: 189.4124873 | R99: 185.6344723 | S99: 133.9576966 | T99: 133.8828701
B101: Year ending 30 June | D101: 2006 | E101: 2007 | F101: 2008 | G101: 2009 | H101: 2010 | I101: 2011 | J101: 2012 | K101: 2013 | L101: 2014 | M101: 2015 | N101: 2016 | O101: 2017 | P101: 2018 | Q101: 2019 | R101: 2020 | S101: 2021 | T101: 2022 | U101: 2023 | V101: 2024 | W101: 2025 | X101: 2026 | Y101: 2027 | Z101: 2028 | AA101: 2029 | AB101: 2030 | AC101: 2031 | AD101: 2032
B102: [ACTUAL] Capital expenditure by regulatory category [$M nominal]
B103: Growth | F103: Actual AA1 | I103: Actual AA2 | M103: Actual AA3 | R103: Actual AA4 | T103: Forecast | W103: Forecast AA5 | AB103: Forecast AA6
B104: Capacity Expansion | E104: 118.4 | F104: 105.97 | G104: 124.1430761 | H104: 103.074 | I104: 56 | J104: 42.519 | K104: 113.767 | L104: 206.206 | M104: 87.848 | N104: 27.304 | O104: 31.275 | P104: 15.094 | Q104: 8.509 | R104: 20.044 | S104: 33.966 | T104: 27.84317978 | U104: =U144*U$46 -> 32.37872956 | V104: 47.01435613 | W104: 22.50400008 | X104: 21.61562447 | Y104: 16.81433765 | Z104: 0 | AA104: 0 | AB104: 0 | AC104: 0 | AD104: 0
B105: Customer Driven | E105: 17.9 | F105: 73.4 | G105: 40.87462505 | H105: 49.887 | I105: 43.274 | J105: 58.145 | K105: 37.628 | L105: 40.311 | M105: -17.366 | N105: 5.057 | O105: 6.474 | P105: 22.403 | Q105: 58.86 | R105: 115.133 | S105: 39.848 | T105: 51.49040646 | U105: =U145*U$46 -> 72.01653272 | V105: 41.16025491 | W105: 42.17581542 | X105: 43.48957148 | Y105: 19.03046281 | Z105: 0 | AA105: 0 | AB105: 0 | AC105: 0 | AD105: 0
B106: Generation Driven | E106: 112.7 | F106: 88.1 | G106: 95.63175249 | H106: 26.614 | I106: 13.076 | J106: 0 | K106: 0 | L106: 0 | M106: 0 | N106: 0 | O106: 0 | P106: 0 | Q106: 0 | R106: 0 | S106: 0 | T106: 0 | U106: =U146*U$46 -> 0 | V106: 0 | W106: 0 | X106: 0 | Y106: 0 | Z106: 0 | AA106: 0 | AB106: 0 | AC106: 0 | AD106: 0
B107: Gifted Assets | H107: 1.486 | I107: 0 | J107: 0 | K107: 0 | L107: 0 | M107: 0 | N107: 0 | O107: 0 | P107: 0 | Q107: 0 | R107: 0 | S107: 0 | T107: 0 | U107: =U147*U$46 -> 0 | V107: 0 | W107: 0 | X107: 0 | Y107: 0 | Z107: 0 | AA107: 0 | AB107: 0 | AC107: 0 | AD107: 0
B108: Asset replacement and renewal
B109: Asset Replacement | E109: 12.9 | F109: 11.4 | G109: 24.70372921 | H109: 5.308 | I109: 31.569 | J109: 27.327 | K109: 26.027 | L109: 42.594 | M109: 37.761 | N109: 40.725 | O109: 33.356 | P109: 31.669 | Q109: 48.324 | R109: 59.677 | S109: 58.8 | T109: 35.30665923 | U109: =U149*U$46 -> 75.05624749 | V109: 75.41049295 | W109: 69.29313437 | X109: 70.36730246 | Y109: 73.98834106 | Z109: 0 | AA109: 0 | AB109: 0 | AC109: 0 | AD109: 0
B110: Improvement in service
B111: Reliability Driven | E111: 4.78 | F111: 5.1 | G111: 7.05048533 | H111: 1.667 | I111: 1.313 | J111: 0.234 | K111: 1.217 | L111: 0.269 | M111: 0.186 | N111: 0 | O111: 0 | P111: 0.863 | Q111: 4.103 | R111: -3.737 | S111: 0.173 | T111: 0.01943593044 | U111: =U151*U$46 -> 0 | V111: 0 | W111: 0 | X111: 0 | Y111: 0 | Z111: 0 | AA111: 0 | AB111: 0 | AC111: 0 | AD111: 0
B112: SCADA & Communications | E112: 5.523 | F112: 3.8 | G112: 4.60468232 | H112: 9.357 | I112: 5.655 | J112: 12.977 | K112: 5.674 | L112: 10.502 | M112: 12.725 | N112: 16.462 | O112: 11.455 | P112: 12.792 | Q112: 21.816 | R112: 21.873 | S112: 34.853 | T112: 32.1566683 | U112: =U152*U$46 -> 47.09142164 | V112: 49.16090793 | W112: 59.35316683 | X112: 60.34879062 | Y112: 65.6783568 | Z112: 0 | AA112: 0 | AB112: 0 | AC112: 0 | AD112: 0
B113: Compliance
B114: Safety, Environmental & Statutory | E114: 3.9 | F114: 5.7 | G114: 6.60065994 | H114: 10.985 | I114: 11.146 | J114: 18.355 | K114: 20.818 | L114: 18.788 | M114: 25.401 | N114: 22.262 | O114: 21.036 | P114: 21.686 | Q114: 16.521 | R114: 23.025 | S114: 23.155 | T114: 31.12776821 | U114: =U154*U$46 -> 42.61225975 | V114: 44.49411416 | W114: 49.2154362 | X114: 34.38324064 | Y114: 28.29127951 | Z114: 0 | AA114: 0 | AB114: 0 | AC114: 0 | AD114: 0
B115: Corporate
B116: IT | E116: 5.9925 | F116: 11.325 | G116: 6.9 | H116: 10.176 | I116: 14.878 | J116: 17.465 | K116: 9.44 | L116: 6.407 | M116: 9.263 | N116: 5.167 | O116: 12.331 | P116: 14.17 | Q116: 14.974 | R116: 18.788 | S116: 13.279 | T116: 16.48208931 | U116: =U156*U$46 -> 23.84734246 | V116: 26.65059574 | W116: 26.89250422 | X116: 26.98148865 | Y116: 23.72186828 | Z116: 0 | AA116: 0 | AB116: 0 | AC116: 0 | AD116: 0
B117: Business Support | E117: 3.025 | F117: 3.025 | G117: 8.2 | H117: 7.297 | I117: 12.388 | J117: 14.143 | K117: 10.923 | L117: 1.804 | M117: 5.134 | N117: 7.03 | O117: 2.265 | P117: 10.002 | Q117: 10.517 | R117: 17.118 | S117: 5.355 | T117: 26.15562563 | U117: =U157*U$46 -> 8.887868919 | V117: 13.89583707 | W117: 21.94243928 | X117: 3.6107606 | Y117: 3.449097638 | Z117: 0 | AA117: 0 | AB117: 0 | AC117: 0 | AD117: 0
B118: Equity Raising Costs | E118: 0 | F118: 0 | G118: 0 | H118: 0 | I118: 0 | J118: 0 | K118: =(K98*K46/$J$46)*SUM(K144,K149:K157)/SUM(K124,K128:K137) -> 0.509676198 | L118: =(L98*L46/$J$46)*SUM(L144,L149:L157)/SUM(L124,L128:L137) -> 1.817065348 | M118: =(M98*M46/$J$46)*SUM(M144,M149:M157)/SUM(M124,M128:M137) -> 0.3514960974 | N118: =(N98*N46/$J$46)*SUM(N144,N149:N157)/SUM(N124,N128:N137) -> 0.6815086701 | O118: =(O98*O46/$J$46)*SUM(O144,O149:O157)/SUM(O124,O128:O137) -> 1.19584255 | P118: =(P98*P46/$J$46)*SUM(P144,P149:P157)/SUM(P124,P128:P137) -> 0 | Q118: 0 | R118: 0 | S118: 0 | T118: 0
B119: Total | E119: =SUM(E104:E118) -> 285.1205 | F119: 307.82 | G119: 318.7090104 | H119: 225.851 | I119: 189.299 | J119: 191.165 | K119: =SUM(K104:K118) -> 226.0036762 | L119: 328.6980653 | M119: 161.3034961 | N119: 124.6885087 | O119: 119.3878426 | P119: 128.679 | Q119: =SUM(Q104:Q118) -> 183.624 | R119: 271.921 | S119: 209.429 | T119: 220.5818328 | U119: 301.8904025 | V119: 297.7865589 | W119: 291.3764964 | X119: 260.7967789 | Y119: 230.9737437 | Z119: 0 | AA119: 0 | AB119: 0 | AC119: 0 | AD119: 0
B121: Year ending 30 June | D121: 2006 | E121: 2007 | F121: 2008 | G121: 2009 | H121: 2010 | I121: 2011 | J121: 2012 | K121: 2013 | L121: 2014 | M121: 2015 | N121: 2016 | O121: 2017 | P121: 2018 | Q121: 2019 | R121: 2020 | S121: 2021 | T121: 2022 | U121: 2023 | V121: 2024 | W121: 2025 | X121: 2026 | Y121: 2027 | Z121: 2028 | AA121: 2029 | AB121: 2030 | AC121: 2031 | AD121: 2032
B122: [APPROVED] Capital expenditure by regulatory category [$M real as at 30 June 2022]
B123: Growth | F123: Approved AA1 | I123: Approved AA2 | M123: Approved AA3 | R123: Approved AA4
B124: Capacity Expansion | K124: =K84/$J$46 -> 232.1921676 | L124: 326.7480791 | M124: 157.0634835 | N124: 168.7506082 | O124: 266.7424802 | P124: =P84/$O$46 -> 28.02690307 | Q124: =Q84/$O$46 -> 24.66268173 | R124: 2.916631256 | S124: 3.701538429 | T124: 0.4200060592
B125: Customer Driven | K125: 40.66642484 | L125: 70.01744552 | M125: 70.66026181 | N125: 71.31868772 | O125: 72.33906139 | P125: =P85/$O$46 -> 25.22786743 | Q125: 24.88215127 | R125: 24.89410808 | S125: 25.91253177 | T125: 25.92224051
B126: Generation Driven | K126: 0 | L126: 0 | M126: 0 | N126: 0 | O126: 0 | P126: =P86/$O$46 -> 0 | Q126: 0 | R126: 0 | S126: 0 | T126: 0
B127: Gifted Assets | K127: 0 | L127: 0 | M127: 0 | N127: 0 | O127: 0 | P127: =P87/$O$46 -> 0 | Q127: 0 | R127: 0 | S127: 0 | T127: 0
B128: Asset replacement and renewal
B129: Asset Replacement | K129: =K89/$J$46 -> 36.61170799 | L129: =L89/$J$46 -> 40.02724433 | M129: =M89/$J$46 -> 40.51676498 | N129: =N89/$J$46 -> 40.89430798 | O129: =O89/$J$46 -> 43.1035858 | P129: =P89/$O$46 -> 32.963036 | Q129: 64.76007339 | R129: 57.66892934 | S129: 50.10942094 | T129: 60.09780476
B130: Improvement in service
B131: Reliability Driven | K131: =K91/$J$46 -> 0 | L131: 0 | M131: 0 | N131: 0 | O131: 0 | P131: =P91/$O$46 -> 0 | Q131: 0 | R131: 0 | S131: 0 | T131: 0
B132: SCADA & Communications | K132: 16.93440565 | L132: 14.39045944 | M132: 15.74295989 | N132: 22.54113964 | O132: 22.48882737 | P132: =P92/$O$46 -> 10.02192273 | Q132: 16.89247769 | R132: 19.51741346 | S132: 18.01614488 | T132: 13.91019788
B133: Compliance
B134: Safety, Environmental & Statutory | K134: =K94/$J$46 -> 21.58540439 | L134: =L94/$J$46 -> 23.58100497 | M134: =M94/$J$46 -> 29.65534304 | N134: =N94/$J$46 -> 36.3368098 | O134: =O94/$J$46 -> 36.98162724 | P134: =P94/$O$46 -> 29.37591893 | Q134: 43.32842781 | R134: 41.24310058 | S134: 34.61270854 | T134: 35.120504
B135: Corporate
B136: IT | K136: =K96/$J$46 -> 18.6885557 | L136: 17.99391183 | M136: 10.52768677 | N136: 10.99699227 | O136: 11.15432889 | P136: =P96/$O$46 -> 15.37422254 | Q136: 16.448533 | R136: 13.85038748 | S136: 10.02208135 | T136: 7.503176578
B137: Business Support | K137: 14.86998061 | L137: 14.53179209 | M137: 10.06796246 | N137: 10.16177767 | O137: 8.377512841 | P137: =P97/$O$46 -> 8.90628945 | Q137: 16.03779634 | R137: 42.79251396 | S137: 4.030227781 | T137: 3.348944749
B138: Equity Raising Costs | K138: 0.9248057385 | L138: 2.772630395 | M138: 0.519551043 | N138: 1.659693537 | O138: 4.162278391 | P138: =P98/$O$46 -> 0 | Q138: 0 | R138: 0 | S138: 0 | T138: 0
B139: Total | K139: =SUM(K124:K138) -> 382.4734525 | L139: 510.0625677 | M139: 334.7540135 | N139: 362.6600169 | O139: 465.3497022 | P139: 149.8961601 | Q139: 207.0121412 | R139: 202.8830841 | S139: 146.4046537 | T139: 146.3228745
B141: Year ending 30 June | D141: 2006 | E141: 2007 | F141: 2008 | G141: 2009 | H141: 2010 | I141: 2011 | J141: 2012 | K141: 2013 | L141: 2014 | M141: 2015 | N141: 2016 | O141: 2017 | P141: 2018 | Q141: 2019 | R141: 2020 | S141: 2021 | T141: 2022 | U141: 2023 | V141: 2024 | W141: 2025 | X141: 2026 | Y141: 2027 | Z141: 2028 | AA141: 2029 | AB141: 2030 | AC141: 2031 | AD141: 2032
B142: [ACTUAL] Capital expenditure by regulatory category [$M real as at 30 June 2022]
B143: Growth | F143: Actual AA1 | I143: Actual AA2 | M143: Actual AA3 | R143: Actual AA4 | T143: Forecast | W143: Proposed AA5 | AB143: Forecast AA6
B144: Capacity Expansion | E144: =E104/E$46 -> 163.4213508 | F144: 139.955753 | G144: 161.6008657 | H144: 130.1984792 | I144: 68.27698506 | J144: 51.2370551 | K144: 133.8930463 | L144: 235.5809501 | M144: 98.86856837 | N144: 30.41804383 | O144: 34.18098146 | P144: =P104/P$46 -> 16.16072103 | Q144: =Q104/Q$46 -> 8.967501684 | R144: 21.19791766 | S144: 34.5909744 | T144: 27.84317978 | U144: 31.73451883 | V144: 45.1621615 | W144: 21.1873217 | X144: 19.94601954 | Y144: 15.20688743
B145: Customer Driven | E145: =E105/E$46 -> 24.70643733 | F145: 96.94019316 | G145: 53.20775834 | H145: 63.0150332 | I145: 52.76104021 | J145: 70.0669952 | K145: 44.28461282 | L145: 46.05347895 | M145: -19.54457197 | N145: 5.633755041 | O145: 7.075545132 | P145: =P105/P$46 -> 23.98626164 | Q145: 62.03163111 | R145: 121.7611182 | S145: 40.5812032 | T145: 51.49040646 | U145: 70.58368394 | V145: 39.53869058 | W145: 39.70816592 | X145: 40.13040862 | Y145: 17.21115108
B146: Generation Driven | E146: =E106/E$46 -> 155.5539378 | F146: 116.354646 | G146: 124.4867976 | H146: 33.61761769 | I146: 15.94267601 | J146: 0 | K146: 0 | L146: 0 | M146: 0 | N146: 0 | O146: 0 | P146: =P106/P$46 -> 0 | Q146: 0 | R146: 0 | S146: 0 | T146: 0 | U146: 0 | V146: 0 | W146: 0 | X146: 0 | Y146: 0
B147: Gifted Assets | E147: =E107/E$46 -> 0 | F147: 0 | G147: 0 | H147: 1.877048917 | I147: 0 | J147: 0 | K147: 0 | L147: 0 | M147: 0 | N147: 0 | O147: 0 | P147: =P107/P$46 -> 0 | Q147: 0 | R147: 0 | S147: 0 | T147: 0 | U147: 0 | V147: 0 | W147: 0 | X147: 0 | Y147: 0
B148: Asset replacement and renewal
B149: Asset Replacement | E149: =E109/E$46 -> 17.80519785 | F149: 15.05610629 | G149: 32.15760517 | H149: 6.704828837 | I149: 38.4899311 | J149: 32.93010195 | K149: 30.63132821 | L149: 48.66170233 | M149: 42.49813326 | N149: 45.36972 | O149: 36.45534189 | P149: =P109/P$46 -> 33.90710708 | Q149: 50.92790591 | R149: 63.11255898 | S149: 59.88192 | T149: 35.30665923 | U149: 73.56292021 | V149: 72.43959381 | W149: 65.23888749 | X149: 64.93208612 | Y149: 66.91505767
B150: Improvement in service
B151: Reliability Driven | E151: =E111/E$46 -> 6.597584939 | F151: 6.7356265 | G151: 9.177833905 | H151: 2.105680044 | I151: 1.600851453 | J151: 0.2819791363 | K151: 1.432294403 | L151: 0.3073202312 | M151: 0.2093337779 | N151: 0 | O151: 0 | P151: =P111/P$46 -> 0.9239898138 | Q151: 4.324087367 | R151: -3.952136215 | S151: 0.1761832 | T151: 0.01943593044 | U151: 0 | V151: 0 | W151: 0 | X151: 0 | Y151: 0
B152: SCADA & Communications | E152: =E112/E$46 -> 7.623109126 | F152: 5.018702098 | G152: 5.994056798 | H152: 11.81934503 | I152: 6.894756259 | J152: 15.63779167 | K152: 6.677763717 | L152: 11.99805601 | M152: 14.32135658 | N152: 18.33950474 | O152: 12.51936507 | P152: =P112/P$46 -> 13.69603441 | Q152: 22.99154034 | R152: 23.13221178 | S152: 35.4942952 | T152: 32.1566683 | U152: 46.15448558 | V152: 47.22414697 | W152: 55.88049391 | X152: 55.68741067 | Y152: 59.39950768
B153: Compliance
B154: Safety, Environmental & Statutory | E154: =E114/E$46 -> 5.382966792 | F154: 7.528053147 | G154: 8.592282341 | H154: 13.87576202 | I154: 13.58955849 | J154: 22.11849165 | K154: 24.50082571 | L154: 21.4644331 | M154: 28.58756608 | N154: 24.80099955 | O154: 22.99060355 | P154: =P114/P$46 -> 23.21858992 | Q154: 17.41122286 | R154: 24.35053154 | S154: 23.581052 | T154: 31.12776821 | U154: 41.76444159 | V154: 42.74120789 | W154: 46.33590809 | X154: 31.7274567 | Y154: 25.58663396
B155: Corporate
B156: IT | E156: =E116/E$46 -> 8.271135512 | F156: 14.95705296 | G156: 8.981942516 | H156: 12.8538693 | I156: 18.13973185 | J156: 21.0460069 | K156: 11.1099911 | L156: 7.319705283 | M156: 10.42504723 | N156: 5.756300632 | O156: 13.47676043 | P156: =P116/P$46 -> 15.17142023 | Q156: 15.78086382 | R156: 19.86961071 | S156: 13.5233336 | T156: 16.48208931 | U156: 23.37287314 | V156: 25.6006592 | W156: 25.31906044 | X156: 24.89742087 | Y156: 21.45405832
B157: Business Support | E157: =E117/E$46 -> 4.175249883 | F157: 3.995151012 | G157: 10.67419256 | H157: 9.217244918 | I157: 15.10384448 | J157: 17.0428672 | K157: 12.85534245 | L157: 2.060987721 | M157: 5.778062449 | N157: 7.831777326 | O157: 2.475457171 | P157: =P117/P$46 -> 10.70885993 | Q157: 11.0837014 | R157: 18.10347009 | S157: 5.453532 | T157: 26.15562563 | U157: 8.71103491 | V157: 13.34839163 | W157: 20.65861706 | X157: 3.331863097 | Y157: 3.119363998
B158: Equity Raising Costs | E158: =E118/E$46 -> 0 | F158: 0 | G158: 0 | H158: 0 | I158: 0 | J158: 0 | K158: 0.5998408922 | L158: 2.075914285 | M158: 0.3955914299 | N158: 0.7592352987 | O158: 1.30695674 | P158: =P118/P$46 -> 0 | Q158: 0 | R158: 0 | S158: 0 | T158: 0 | U158: =U118/U$46 -> 0 | V158: 0 | W158: 0 | X158: 0 | Y158: 0 | Z158: 0 | AA158: 0 | AB158: 0 | AC158: 0 | AD158: 0
B159: Total | E159: =SUM(E144:E158) -> 393.53697 | F159: 406.5412842 | G159: 414.8733349 | H159: 285.2849092 | I159: 230.7993749 | J159: 230.3612888 | K159: 265.9850456 | L159: 375.522548 | M159: 181.5390872 | N159: 138.9093364 | O159: 130.4810115 | P159: =SUM(P144:P158) -> 137.7729841 | Q159: 193.5184545 | R159: 287.5752828 | S159: 213.2824936 | T159: 220.5818328 | U159: 295.8839582 | V159: 286.0548516 | W159: 274.3284546 | X159: 240.6526656 | Y159: 208.8926601 | Z159: 0 | AA159: 0 | AB159: 0 | AC159: 0 | AD159: 0
E160: =IF(ROUND(E159-E119/E46,8)=0,"OK","CHECK") -> OK | F160: OK | G160: OK | H160: OK | I160: OK | J160: OK | K160: OK | L160: OK | M160: OK | N160: OK | O160: OK | P160: OK | Q160: OK | R160: OK | S160: OK | T160: OK | U160: OK | V160: OK | W160: OK | X160: OK | Y160: OK | Z160: OK | AA160: OK | AB160: OK | AC160: OK | AD160: OK
B161: Year ending 30 June | D161: 2006 | E161: 2007 | F161: 2008 | G161: 2009 | H161: 2010 | I161: 2011 | J161: 2012 | K161: 2013 | L161: 2014 | M161: 2015 | N161: 2016 | O161: 2017 | P161: 2018 | Q161: 2019 | R161: 2020 | S161: 2021 | T161: 2022 | U161: 2018 | V161: 2019 | W161: 2020 | X161: 2021 | Y161: 2022 | Z161: 2028 | AA161: 2029 | AB161: 2030 | AC161: 2031 | AD161: 2032
B162: Capital expenditure adjustments | F162: [$M real as at 30 June 2009] | I162: [$M nominal]
B164: AA1 transmission writedown | E164: -36.467 | F164: -37.441 | G164: -38.065
B165: AA2 transmission customer driven writedown | H165: 0 | I165: -2.1 | J165: 0
B166: AA2 transmission customer driven writedown [$M real as at 30 June 2017] | H166: =H165/H46 -> 0 | I166: =I165/I46 -> -2.56038694 | J166: =J165/J46 -> 0
I168: [$M real as at 30 June 2012] | M168: [$M real as at 30 June 2017] | R168: [$M real as at 30 June 2017]
B169: Growth
B170: Capacity Expansion | H170: -1.534 | I170: -8.613409983 | J170: -23.453 | K170: -13.03835167 | L170: 0 | M170: 0 | N170: 0 | O170: 0
B171: Customer Driven | H171: -0.6333333333 | I171: -2.174271079 | J171: -2.494333333 | K171: =-2.651202*(1/3) -> -0.883734 | L171: -0.14 | M171: -1.89 | N171: -0.04 | O171: 0
B172: Generation Driven | H172: 0 | I172: -5.751957375 | J172: 0 | K172: 0 | L172: 0 | M172: 0 | N172: 0 | O172: 0
B173: Gifted Assets | H173: 0 | I173: 0 | J173: 0 | K173: 0 | L173: 0 | M173: 0 | N173: 0 | O173: 0
B174: Asset replacement and renewal
B175: Asset Replacement | H175: 0 | I175: 0 | J175: -0.888 | K175: 0 | L175: 0 | M175: 0 | N175: 0 | O175: 0
B176: Improvement in service
B177: Reliability Driven | H177: 0 | I177: 0 | J177: -0.012 | K177: 0 | L177: 0 | M177: 0 | N177: 0 | O177: 0 | Q177: -3.807113 | R177: 3.807113
B178: SCADA & Communications | H178: 0 | I178: 0 | J178: -0.63 | K178: 0 | L178: 0 | M178: 0 | N178: 0 | O178: 0
B179: Compliance
B180: Safety, Environmental & Statutory | H180: 0 | I180: 0 | J180: -0.687 | K180: 0 | L180: 0 | M180: 0 | N180: 0 | O180: 0
B181: Corporate
B182: IT | H182: -1.84585199 | I182: -1.84585199 | J182: -1.84585199 | K182: 0 | L182: 0 | M182: 0 | N182: 0 | O182: 0
B183: Business Support | H183: 0 | I183: 0 | J183: 0 | K183: -0.9632217524 | L183: 0 | M183: 0 | N183: -1.692 | O183: 0
B184: Equity Raising Costs | H184: 0 | I184: 0 | J184: 0
B185: Total | H185: =SUM(H170:H184) -> -4.013185324 | I185: =SUM(I170:I184) -> -18.38549043 | J185: =SUM(J170:J184) -> -30.01018532 | K185: =SUM(K170:K184) -> -14.88530742 | L185: =SUM(L170:L184) -> -0.14 | M185: -1.89 | N185: -1.732 | O185: 0 | P185: =SUM(P170:P184) -> 0 | Q185: =SUM(Q170:Q184) -> -3.807113 | R185: 3.807113 | S185: 0 | T185: 0
B187: Year ending 30 June | D187: 2006 | E187: 2007 | F187: 2008 | G187: 2009 | H187: 2010 | I187: 2011 | J187: 2012 | K187: 2013 | L187: 2014 | M187: 2015 | N187: 2016 | O187: 2017 | P187: 2018 | Q187: 2019 | R187: 2020 | S187: 2021 | T187: 2022 | U187: 2023 | V187: 2024 | W187: 2025 | X187: 2026 | Y187: 2027 | Z187: 2028 | AA187: 2029 | AB187: 2030 | AC187: 2031 | AD187: 2032
B188: Capital expenditure adjustments [$M real as at 30 June 2022]
B189: Growth
B190: Capacity Expansion | E190: =(E$164*(E144/E$159-E$147))/$G$46 -> -19.71262572 | F190: -16.77856137 | G190: -19.30079399 | H190: =H170/$J$46 -> -1.848529893 | I190: =I170/$J$46 -> -10.37949533 | J190: =J170/$J$46 -> -28.26178069 | K190: =K170/$O$46 -> -14.24983714 | L190: =L170/$O$46 -> 0 | M190: 0 | N190: 0 | O190: 0 | P190: =P170 -> 0 | Q190: =Q170 -> 0 | R190: 0 | S190: 0 | T190: 0
B191: Customer Driven | E191: -2.980202705 | F191: -11.62165145 | G191: -6.354866838 | H191: =(H171/$J$46)+(H$165/H$46) -> -0.7631913944 | I191: =(I171/$J$46)+(I$165/I$46) -> -5.180468481 | J191: =(J171/$J$46)+(J$165/J$46) -> -3.005769055 | K191: =K171/$O$46 -> -0.9658479767 | L191: -0.1530083902 | M191: -2.065613268 | N191: -0.04371668293 | O191: 0 | P191: =P171 -> 0 | Q191: 0 | R191: 0 | S191: 0 | T191: 0
B192: Generation Driven | E192: -18.76362262 | F192: -13.94914841 | G192: -14.86807651 | H192: =H172/$J$46 -> 0 | I192: -6.931333216 | J192: 0 | K192: =K172/$O$46 -> 0 | L192: 0 | M192: 0 | N192: 0 | O192: 0 | P192: =P172 -> 0 | Q192: 0 | R192: 0 | S192: 0 | T192: 0
B193: Gifted Assets | E193: 0 | F193: 0 | G193: 0 | H193: 0 | I193: 0 | J193: 0 | K193: =K173/$O$46 -> 0 | L193: 0 | M193: 0 | N193: 0 | O193: 0 | P193: =P173 -> 0 | Q193: 0 | R193: 0 | S193: 0 | T193: 0
B194: Asset replacement and renewal
B195: Asset Replacement | E195: =(E$164*(E149/E$159-E$147))/$G$46 -> -2.147743849 | F195: =(F$164*(F149/F$159-F$147))/$G$46 -> -1.804997637 | G195: =(G$164*(G149/G$159-G$147))/$G$46 -> -3.840742498 | H195: =H175/$J$46 -> 0 | I195: =I175/$J$46 -> 0 | J195: =J175/$J$46 -> -1.070074671 | K195: =K175/$O$46 -> 0 | L195: 0 | M195: 0 | N195: 0 | O195: 0 | P195: =P175 -> 0 | Q195: 0 | R195: 0 | S195: 0 | T195: 0
B196: Improvement in service
B197: Reliability Driven | E197: =(E$164*(E151/E$159-E$147))/$G$46 -> -0.7958306665 | F197: -0.8074989429 | G197: -1.096154285 | H197: =H177/$J$46 -> 0 | I197: 0 | J197: -0.01446046853 | K197: =K177/$O$46 -> 0 | L197: 0 | M197: 0 | N197: 0 | O197: 0 | P197: =P177 -> 0 | Q197: -3.807113 | R197: 3.807113 | S197: 0 | T197: 0
B198: SCADA & Communications | E198: -0.9195340526 | F198: -0.601665879 | G198: -0.7158999731 | H198: 0 | I198: 0 | J198: -0.7591745976 | K198: =K178/$O$46 -> 0 | L198: 0 | M198: 0 | N198: 0 | O198: 0 | P198: =P178 -> 0 | Q198: 0 | R198: 0 | S198: 0 | T198: 0
B199: Compliance
B200: Safety, Environmental & Statutory | E200: =(E$164*(E154/E$159-E$147))/$G$46 -> -0.6493179079 | F200: =(F$164*(F154/F$159-F$147))/$G$46 -> -0.9024988185 | G200: =(G$164*(G154/G$159-G$147))/$G$46 -> -1.026218954 | H200: =H180/$J$46 -> 0 | I200: =I180/$J$46 -> 0 | J200: =J180/$J$46 -> -0.8278618231 | K200: =K180/$O$46 -> 0 | L200: 0 | M200: 0 | N200: 0 | O200: 0 | P200: =P180 -> 0 | Q200: 0 | R200: 0 | S200: 0 | T200: 0
B201: Corporate
B202: IT | E202: =(E$164*(E156/E$159-E$147))/$G$46 -> -0.9977019392 | F202: -1.793122653 | G202: -1.072758004 | H202: =H182/$J$46 -> -2.224323718 | I202: -2.224323718 | J202: -2.224323718 | K202: =K182/$O$46 -> 0 | L202: 0 | M202: 0 | N202: 0 | O202: 0 | P202: =P182 -> 0 | Q202: 0 | R202: 0 | S202: 0 | T202: 0
B203: Business Support | E203: -0.503637608 | F203: -0.4789577063 | G203: -1.274871831 | H203: 0 | I203: 0 | J203: 0 | K203: =K183/$O$46 -> -1.052721498 | L203: 0 | M203: 0 | N203: -1.849215688 | O203: 0 | P203: =P183 -> 0 | Q203: 0 | R203: 0 | S203: 0 | T203: 0
B204: Equity Raising Costs | E204: 0 | F204: 0 | G204: 0 | H204: 0 | I204: 0 | J204: 0 | K204: =K184/$O$46 -> 0 | L204: 0 | M204: 0 | N204: 0 | O204: 0 | P204: 0 | Q204: 0 | R204: 0 | S204: 0 | T204: 0
B205: Total | E205: =SUM(E190:E204) -> -47.47021706 | F205: -48.73810286 | G205: -49.55038288 | H205: =SUM(H190:H204) -> -4.836045005 | I205: -24.71562074 | J205: -36.16344503 | K205: -16.26840662 | L205: -0.1530083902 | M205: -2.065613268 | N205: -1.892932371 | O205: 0 | P205: 0 | Q205: -3.807113 | R205: 3.807113 | S205: 0 | T205: 0
B207: Year ending 30 June | D207: 2006 | E207: 2007 | F207: 2008 | G207: 2009 | H207: 2010 | I207: 2011 | J207: 2012 | K207: 2013 | L207: 2014 | M207: 2015 | N207: 2016 | O207: 2017 | P207: 2018 | Q207: 2019 | R207: 2020 | S207: 2021 | T207: 2022 | U207: 2023 | V207: 2024 | W207: 2025 | X207: 2026 | Y207: 2027 | Z207: 2028 | AA207: 2029 | AB207: 2030 | AC207: 2031 | AD207: 2032
B208: [ACTUAL] Capital expenditure by asset category | F208: [$M real as at 30 June 2012] | I208: [$M real as at 30 June 2012] | M208: [$M real as at 30 June 2017]
F209: Actual AA1 | I209: Actual AA2 | M209: Actual AA3
B210: Transmission cables | E210: 5.209297371 | F210: 4.465049844 | G210: 5.158235096 | H210: 4.65255713 | I210: 2.098726023 | J210: 0.8328306894 | K210: 17.35598813 | L210: 31.21523858 | M210: 10.03016024 | N210: 4.005205607 | O210: 4.560319227
B211: Transmission steel towers | E211: 82.38224393 | F211: 116.6591267 | G211: 93.83875171 | H211: 82.69138419 | I211: 50.29364633 | J211: 55.07190963 | K211: 12.68282928 | L211: 21.56066713 | M211: 5.508347851 | N211: 2.754743898 | O211: 3.164295634
B212: Transmission wood poles | E212: 14.41481094 | F212: 13.70973416 | G212: 16.8600656 | H212: 13.18513111 | I212: 8.846881532 | J212: 7.720025175 | K212: 28.37483974 | L212: 29.42101391 | M212: 30.32448899 | N212: 23.9246902 | O212: 22.42064299
B213: Transmission Metering | E213: 0 | F213: 0 | G213: 0 | H213: 0 | I213: 0 | J213: 0 | K213: 0 | L213: 0 | M213: 0 | N213: 0 | O213: 0
B214: Transmission transformers | E214: 55.18237764 | F214: 48.97200542 | G214: 51.9849238 | H214: 35.58496568 | I214: 19.6922016 | J214: 16.02039667 | K214: 64.66910081 | L214: 108.2501877 | M214: 44.28890374 | N214: 35.21606864 | O214: 31.89487944
B215: Transmission reactors | E215: 4.156838303 | F215: 3.126994414 | G215: 3.486369201 | H215: 1.049707691 | I215: 0.6425732039 | J215: 0.3136231568 | K215: 6.682541334 | L215: 12.37936627 | M215: 6.670752946 | N215: 4.210670719 | O215: 3.760688277
B216: Transmission capacitors | E216: 26.90458631 | F216: 20.57589452 | G216: 22.35911103 | H216: 8.810885161 | I216: 3.282627928 | J216: 0.8957544041 | K216: 4.540316301 | L216: 7.903985057 | M216: 2.242238099 | N216: 1.011704984 | O216: 1.157740585
B217: Transmission circuit breakers | E217: 56.9927171 | F217: 47.41462738 | G217: 63.63989192 | H217: 35.2140444 | I217: 43.71634194 | J217: 32.91634354 | K217: 27.93749567 | L217: 43.91261935 | M217: 17.60881989 | N217: 17.40635866 | O217: 15.31833945
... 464 more rows

Sheet WACC_Inputs
D2: AA1 | E2: AA2 | F2: AA3 | H2: AA4 | N2: AA5 | T2: AA6+
B3: Determination of the Weighted Average Cost of Capital (WACC) | D3: Approved | E3: Approved | F3: Approved | H3: 17/18 | I3: 18/19 | J3: 19/20 | K3: 20/21 | L3: 21/22 | N3: 22/23 | O3: 23/24 | P3: 24/25 | Q3: 25/26 | R3: 26/27 | T3: Forecast
B4: Nominal Risk Free Rate (Rfn) | F4: 0.0252 | H4: 0.0237 | I4: =$H4 -> 0.0237 | J4: =$H4 -> 0.0237 | K4: 0.0237 | L4: 0.0237 | N4: 0.0153 | O4: =N4 -> 0.0153 | P4: =O4 -> 0.0153 | Q4: 0.0153 | R4: 0.0153 | T4: =R4 -> 0.0153
B5: Real Risk Free Rate (Rfr) | F5: =(1+F4)/(1+F6)-1 -> 0.004113614104 | H5: =(1+H4)/(1+H6)-1 -> 0.005204241948 | I5: =(1+I4)/(1+I6)-1 -> 0.005204241948 | J5: =(1+J4)/(1+J6)-1 -> 0.005204241948 | K5: =(1+K4)/(1+K6)-1 -> 0.005204241948 | L5: =(1+L4)/(1+L6)-1 -> 0.005204241948
B6: Inflation Rate (I) | D6: 0.031 | E6: 0.0247 | F6: 0.021 | H6: 0.0184 | I6: =$H6 -> 0.0184 | J6: 0.0184 | K6: 0.0184 | L6: 0.0184 | N6: 0.0203 | O6: =N6 -> 0.0203 | P6: =O6 -> 0.0203 | Q6: 0.0203 | R6: 0.0203 | T6: =R6 -> 0.0203
B7: Debt Proportion (D) | F7: 0.6 | H7: 0.55 | I7: =$H7 -> 0.55 | J7: 0.55 | K7: 0.55 | L7: 0.55 | N7: 0.55 | O7: =$H7 -> 0.55 | P7: =$H7 -> 0.55 | Q7: 0.55 | R7: 0.55 | T7: =R7 -> 0.55
B8: Equity Proportion (E) | F8: =1-F7 -> 0.4 | H8: =1-H7 -> 0.45 | I8: =1-I7 -> 0.45 | J8: =1-J7 -> 0.45 | K8: =1-K7 -> 0.45 | L8: =1-L7 -> 0.45 | N8: =1-N7 -> 0.45 | O8: =1-O7 -> 0.45 | P8: =1-P7 -> 0.45 | Q8: =1-Q7 -> 0.45 | R8: =1-R7 -> 0.45 | T8: =1-T7 -> 0.45
B9: 5 year IRS (effective yield) | H9: 0.0259 | I9: =$H9 -> 0.0259 | J9: 0.0259 | K9: 0.0259 | L9: 0.0259
B10: Cost of Debt; Debt Risk Premium (Drp) | F10: 0.02708 | H10: =AVERAGE(H39:H52) -> 0.024866 | I10: =IF(H36=10,AVERAGE(H39:H52),H10) -> 0.024866 | J10: =IF(I36=10,AVERAGE(I39:I52),I10) -> 0.021107 | K10: =IF(J36=10,AVERAGE(J39:J52),J10) -> 0.020249 | L10: =IF(K36=10,AVERAGE(K39:K52),K10) -> 0.020249
B11: Cost of Debt; Debt Issuing Cost (Disc) | F11: 0.00125 | H11: 0.001 | I11: =$H11 -> 0.001 | J11: 0.001 | K11: 0.001 | L11: 0.001 | N11: 0.001 | O11: =N11 -> 0.001 | P11: =O11 -> 0.001 | Q11: 0.001 | R11: 0.001 | T11: =R11 -> 0.001
B12: Cost of Debt; Hedging Cost | H12: 0.00114 | I12: 0.00114 | J12: 0.00114 | K12: 0.00114 | L12: 0.00114 | N12: 0 | O12: =N12 -> 0 | P12: =O12 -> 0 | Q12: 0 | R12: 0 | T12: =R12 -> 0
B13: Return on Debt; 10 year bond yield | L13: =IF(K36=10,AVERAGE(K39:K52),K10) -> 0.020249 | N13: =AVERAGE(L39:L57) -> 0.04398255082 | O13: =AVERAGE(N39:N57) -> 0.03997279237 | P13: =AVERAGE(O39:O57) -> 0.03733148427 | Q13: 0.03518931727 | R13: 0.03370617919 | T13: =R13 -> 0.03370617919
B14: Market Risk Premium (Rp) | F14: 0.06 | H14: 0.06 | I14: 0.06 | J14: =$H14 -> 0.06 | K14: 0.06 | L14: 0.06 | N14: 0.06 | O14: =N14 -> 0.06 | P14: =O14 -> 0.06 | Q14: 0.06 | R14: 0.06 | T14: =L14 -> 0.06
B15: Equity Beta (Be) | F15: 0.65 | H15: 0.7 | I15: 0.7 | J15: 0.7 | K15: 0.7 | L15: 0.7 | N15: 0.7 | O15: 0.7 | P15: 0.7 | Q15: 0.7 | R15: 0.7 | T15: 0.7
B16: Corporate Tax Rate (T) | F16: 0.3 | H16: 0.3 | I16: 0.3 | J16: =$H16 -> 0.3 | K16: 0.3 | L16: 0.3 | N16: 0.3 | O16: 0.3 | P16: 0.3 | Q16: 0.3 | R16: 0.3 | T16: 0.3
B17: Franking Credit (g) | F17: 0.25 | H17: 0.5 | I17: 0.5 | J17: 0.5 | K17: 0.5 | L17: 0.5 | N17: 0.5 | O17: 0.5 | P17: 0.5 | Q17: 0.5 | R17: 0.5 | T17: 0.5
B18: Imputation Adj (G) | F18: =(1-F16)/(1-F16*(1-F17)) -> 0.9032258065 | H18: =(1-H16)/(1-H16*(1-H17)) -> 0.8235294118 | I18: =(1-I16)/(1-I16*(1-I17)) -> 0.8235294118 | J18: =(1-J16)/(1-J16*(1-J17)) -> 0.8235294118 | K18: =(1-K16)/(1-K16*(1-K17)) -> 0.8235294118 | L18: =(1-L16)/(1-L16*(1-L17)) -> 0.8235294118 | N18: =(1-N16)/(1-N16*(1-N17)) -> 0.8235294118 | O18: =(1-O16)/(1-O16*(1-O17)) -> 0.8235294118 | P18: =(1-P16)/(1-P16*(1-P17)) -> 0.8235294118 | Q18: =(1-Q16)/(1-Q16*(1-Q17)) -> 0.8235294118 | R18: =(1-R16)/(1-R16*(1-R17)) -> 0.8235294118 | T18: =(1-T16)/(1-T16*(1-T17)) -> 0.8235294118
B19: Debt
B20: Nominal Cost of Debt (DPn) | F20: =F4+F10+F11 -> 0.05353 | H20: =SUM(H9:H12) -> 0.052906 | I20: =SUM(I9:I12) -> 0.052906 | J20: =SUM(J9:J12) -> 0.049147 | K20: =SUM(K9:K12) -> 0.048289 | L20: =SUM(L9:L12) -> 0.048289 | N20: =SUM(N11:N13) -> 0.04498255082 | O20: =SUM(O11:O13) -> 0.04097279237 | P20: 0.03833148427 | Q20: 0.03618931727 | R20: 0.03470617919 | T20: =SUM(T13:T13) -> 0.03370617919
B21: Real Cost of Debt (DPr) | F21: =(1+F20)/(1+F6)-1 -> 0.03186092067 | H21: =(1+H20)/(1+H6)-1 -> 0.03388256088 | I21: =(1+I20)/(1+I6)-1 -> 0.03388256088 | J21: =(1+J20)/(1+J6)-1 -> 0.03019147683 | K21: =(1+K20)/(1+K6)-1 -> 0.02934897879 | L21: =(1+L20)/(1+L6)-1 -> 0.02934897879 | N21: =(1+N20)/(1+N6)-1 -> 0.0241914641 | O21: =(1+O20)/(1+O6)-1 -> 0.02026148424 | P21: =(1+P20)/(1+P6)-1 -> 0.01767272789 | Q21: =(1+Q20)/(1+Q6)-1 -> 0.01557318168 | R21: =(1+R20)/(1+R6)-1 -> 0.01411955228 | T21: =(1+T20)/(1+T6)-1 -> 0.01313944839
B22: Equity
B23: Nominal Pre Tax Cost of Equity (EPn) | F23: =(F4+F14*F15)/(1-F16*(1-F17)) -> 0.08283870968 | H23: =(H4+H14*H15)/(1-H16*(1-H17)) -> 0.07729411765 | I23: =(I4+I14*I15)/(1-I16*(1-I17)) -> 0.07729411765 | J23: =(J4+J14*J15)/(1-J16*(1-J17)) -> 0.07729411765 | K23: =(K4+K14*K15)/(1-K16*(1-K17)) -> 0.07729411765 | L23: =(L4+L14*L15)/(1-L16*(1-L17)) -> 0.07729411765 | N23: =(N4+N14*N15)/(1-N16*(1-N17)) -> 0.06741176471 | O23: =(O4+O14*O15)/(1-O16*(1-O17)) -> 0.06741176471 | P23: =(P4+P14*P15)/(1-P16*(1-P17)) -> 0.06741176471 | Q23: =(Q4+Q14*Q15)/(1-Q16*(1-Q17)) -> 0.06741176471 | R23: =(R4+R14*R15)/(1-R16*(1-R17)) -> 0.06741176471 | T23: =(T4+T14*T15)/(1-T16*(1-T17)) -> 0.06741176471
B24: Real Pre Tax Cost of Equity (EPr) | F24: =(1+F23)/(1+F6)-1 -> 0.06056680674 | H24: =(1+H23)/(1+H6)-1 -> 0.05783004482 | I24: =(1+I23)/(1+I6)-1 -> 0.05783004482 | J24: =(1+J23)/(1+J6)-1 -> 0.05783004482 | K24: =(1+K23)/(1+K6)-1 -> 0.05783004482 | L24: =(1+L23)/(1+L6)-1 -> 0.05783004482 | N24: =(1+N23)/(1+N6)-1 -> 0.0461744239 | O24: =(1+O23)/(1+O6)-1 -> 0.0461744239 | P24: =(1+P23)/(1+P6)-1 -> 0.0461744239 | Q24: =(1+Q23)/(1+Q6)-1 -> 0.0461744239 | R24: =(1+R23)/(1+R6)-1 -> 0.0461744239 | T24: =(1+T23)/(1+T6)-1 -> 0.0461744239
B25: Nominal After Tax Cost of Equity (EAn) | F25: =F4+F14*F15 -> 0.0642 | H25: =H4+H14*H15 -> 0.0657 | I25: =I4+I14*I15 -> 0.0657 | J25: =J4+J14*J15 -> 0.0657 | K25: =K4+K14*K15 -> 0.0657 | L25: =L4+L14*L15 -> 0.0657 | N25: =N4+N14*N15 -> 0.0573 | O25: =O4+O14*O15 -> 0.0573 | P25: =P4+P14*P15 -> 0.0573 | Q25: =Q4+Q14*Q15 -> 0.0573 | R25: =R4+R14*R15 -> 0.0573 | T25: =T4+T14*T15 -> 0.0573
B26: Real After Tax Cost of Equity (EAr) | F26: =(1+F25)/(1+F6)-1 -> 0.04231145935 | H26: =(1+H25)/(1+H6)-1 -> 0.04644540456 | I26: =(1+I25)/(1+I6)-1 -> 0.04644540456 | J26: =(1+J25)/(1+J6)-1 -> 0.04644540456 | K26: =(1+K25)/(1+K6)-1 -> 0.04644540456 | L26: =(1+L25)/(1+L6)-1 -> 0.04644540456 | N26: =(1+N25)/(1+N6)-1 -> 0.03626384397 | O26: =(1+O25)/(1+O6)-1 -> 0.03626384397 | P26: =(1+P25)/(1+P6)-1 -> 0.03626384397 | Q26: =(1+Q25)/(1+Q6)-1 -> 0.03626384397 | R26: =(1+R25)/(1+R6)-1 -> 0.03626384397 | T26: =(1+T25)/(1+T6)-1 -> 0.03626384397
B27: WACC: Pre-tax
B28: Nominal Pre Tax WACC (WPn) | D28: 0.1007 | E28: 0.1065 | F28: =F23*F8+F20*F7 -> 0.06525348387 | H28: =H23*H8+H20*H7 -> 0.06388065294 | I28: =I23*I8+I20*I7 -> 0.06388065294 | J28: =J23*J8+J20*J7 -> 0.06181320294 | K28: =K23*K8+K20*K7 -> 0.06134130294 | L28: =L23*L8+L20*L7 -> 0.06134130294 | N28: =N23*N8+N20*N7 -> 0.05507569707 | O28: =O23*O8+O20*O7 -> 0.05287032992 | P28: =P23*P8+P20*P7 -> 0.05141761047 | Q28: =Q23*Q8+Q20*Q7 -> 0.05023941862 | R28: =R23*R8+R20*R7 -> 0.04942369267 | T28: =T23*T8+T20*T7 -> 0.04887369267
B29: Real Pre Tax WACC (WPr) | D29: 0.0676 | E29: 0.0798 | F29: =(1+F28)/(1+F6)-1 -> 0.04334327509 | H29: =(1+H28)/(1+H6)-1 -> 0.04465892865 | I29: =(1+I28)/(1+I6)-1 -> 0.04465892865 | J29: =(1+J28)/(1+J6)-1 -> 0.04262883242 | K29: =(1+K28)/(1+K6)-1 -> 0.0421654585 | L29: =(1+L28)/(1+L6)-1 -> 0.0421654585 | N29: =(1+N28)/(1+N6)-1 -> 0.03408379601 | O29: =(1+O28)/(1+O6)-1 -> 0.03192230709 | P29: =(1+P28)/(1+P6)-1 -> 0.0304984911 | Q29: =(1+Q28)/(1+Q6)-1 -> 0.02934374068 | R29: =(1+R28)/(1+R6)-1 -> 0.02854424451 | T29: =(1+T28)/(1+T6)-1 -> 0.02800518737
B30: WACC: Vanilla
B31: Nominal Post Tax WACC (WAn) | F31: =F7*F20+F25*F8 -> 0.057798 | H31: =H7*H20+H25*H8 -> 0.0586633 | I31: =I7*I20+I25*I8 -> 0.0586633 | J31: =J7*J20+J25*J8 -> 0.05659585 | K31: =K7*K20+K25*K8 -> 0.05612395 | L31: =L7*L20+L25*L8 -> 0.05612395 | N31: =N7*N20+N25*N8 -> 0.05052540295 | O31: =O7*O20+O25*O8 -> 0.0483200358 | P31: =P7*P20+P25*P8 -> 0.04686731635 | Q31: =Q7*Q20+Q25*Q8 -> 0.0456891245 | R31: =R7*R20+R25*R8 -> 0.04487339855 | T31: =T7*T20+T25*T8 -> 0.04432339855
B32: Real Post Tax WACC | F32: =(1+F31)/(1+F6)-1 -> 0.03604113614 | H32: =(1+H31)/(1+H6)-1 -> 0.03953584053 | I32: =(1+I31)/(1+I6)-1 -> 0.03953584053 | J32: =(1+J31)/(1+J6)-1 -> 0.0375057443 | K32: =(1+K31)/(1+K6)-1 -> 0.03704237038 | L32: =(1+L31)/(1+L6)-1 -> 0.03704237038 | N32: =(1+N31)/(1+N6)-1 -> 0.02962403504 | O32: =(1+O31)/(1+O6)-1 -> 0.02746254612 | P32: =(1+P31)/(1+P6)-1 -> 0.02603873013 | Q32: =(1+Q31)/(1+Q6)-1 -> 0.02488397971 | R32: =(1+R31)/(1+R6)-1 -> 0.02408448354 | T32: =(1+T31)/(1+T6)-1 -> 0.0235454264
H35: DRP | I35: DRP | J35: DRP | K35: DRP | L35: Bond yield | N35: Bond yield | O35: Bond yield | P35: Bond yield | Q35: Bond yield
F36: Count flag | H36: =COUNT(H39:H52) -> 10 | I36: =COUNT(I39:I52) -> 10 | J36: =COUNT(J39:J52) -> 10 | K36: =COUNT(K39:K52) -> 9 | L36: =COUNT(L39:L52) -> 10 | N36: =COUNT(N39:N52) -> 9 | O36: 8 | P36: 7 | Q36: 6
F37: 10 year trailing average chart
F38: Year | H38: 17/18 | I38: 18/19 | J38: 19/20 | K38: 20/21 | L38: 21/22 | N38: 22/23 | O38: 23/24 | P38: 24/25 | Q38: 25/26
F39: 2008/09 | H39: 0.05483
F40: 2009/10 | H40: 0.02355 | I40: =H40 -> 0.02355
F41: 2010/11 | H41: 0.01895 | I41: 0.01895 | J41: 0.01895
F42: 2011/12 | H42: 0.02842 | I42: 0.02842 | J42: 0.02842 | K42: 0.02842
F43: 2012/13 | H43: 0.02768 | I43: =H43 -> 0.02768 | J43: 0.02768 | K43: 0.02768 | L43: 0.07034373213
F44: 2013/14 | H44: 0.02634 | I44: 0.02634 | J44: 0.02634 | K44: 0.02634 | L44: 0.0566592286 | N44: =L44 -> 0.0566592286
F45: 2014/15 | H45: 0.0164 | I45: 0.0164 | J45: 0.0164 | K45: 0.0164 | L45: 0.05166781764 | N45: =L45 -> 0.05166781764 | O45: =IF(N45="","",N45) -> 0.05166781764
F46: 2015/16 | H46: 0.02352 | I46: 0.02352 | J46: 0.02352 | K46: 0.02352 | L46: 0.04507752848 | N46: 0.04507752848 | O46: =IF(N46="","",N46) -> 0.04507752848 | P46: =IF(O46="","",O46) -> 0.04507752848
F47: 2016/17 | H47: 0.01656 | I47: 0.01656 | J47: 0.01656 | K47: 0.01656 | L47: 0.04490773374 | N47: 0.04490773374 | O47: 0.04490773374 | P47: 0.04490773374 | Q47: =IF(P47="","",P47) -> 0.04490773374
F48: 2017/18 | H48: 0.01241 | I48: 0.01241 | J48: 0.01241 | K48: 0.01241 | L48: 0.04521792417 | N48: 0.04521792417 | O48: 0.04521792417 | P48: 0.04521792417 | Q48: 0.04521792417
F49: 2018/19 | I49: 0.01724 | J49: =IF(I49="","",I49) -> 0.01724 | K49: 0.01724 | L49: 0.03473808326 | N49: 0.03473808326 | O49: 0.03473808326 | P49: 0.03473808326 | Q49: 0.03473808326
F50: 2019/20 | J50: 0.01497 | K50: 0.01497 | L50: 0.03072116487 | N50: 0.03072116487 | O50: 0.03072116487 | P50: 0.03072116487 | Q50: 0.03072116487
F51: 2020/21 | L51: 0.03024614764 | N51: =IF(L51="","",L51) -> 0.03024614764 | O51: 0.03024614764 | P51: 0.03024614764 | Q51: 0.03024614764
F52: 2021/22 | L52: 0.03024614764 | N52: =IF(L52="","",L52) -> 0.03024614764 | O52: 0.03024614764 | P52: 0.03024614764 | Q52: 0.03024614764
F53: 2022/23 | N53: =N52 -> 0.03024614764 | O53: 0.03024614764 | P53: 0.03024614764 | Q53: 0.03024614764
F54: 2023/24 | O54: =O53 -> 0.03024614764 | P54: 0.03024614764 | Q54: 0.03024614764
F55: 2024/25 | P55: =P54 -> 0.03024614764 | Q55: 0.03024614764
F56: 2025/26 | Q56: =Q55 -> 0.03024614764
F57: 2026/27

Sheet Adjustments_Inputs
B2: Service standard benchmarks and service standard adjustment mechanism (SSAM)
B3: Year ending 30 June | E3: 2018 | F3: 2019 | G3: 2020 | H3: 2021 | I3: 2022 | K3: 2018 | L3: 2019 | M3: 2020 | N3: 2021 | O3: 2022 | Q3: 2018 | R3: 2019 | S3: 2020 | T3: 2021 | U3: 2022
B4: SSAM revenue at risk
B5: Distribution revenue at risk - penalties | E5: 0.025 | F5: 0.025 | G5: 0.025 | H5: 0.025 | I5: 0.025
B6: Distribution revenue at risk - rewards | E6: 0.01 | F6: 0.01 | G6: 0.01 | H6: 0.01 | I6: 0.01
B7: Transmission revenue at risk | E7: 0.01 | F7: 0.01 | G7: 0.01 | H7: 0.01 | I7: 0.01
B9: Year ending 30 June | E9: 2018 | F9: 2019 | G9: 2020 | H9: 2021 | I9: 2022 | K9: 2018 | L9: 2019 | M9: 2020 | N9: 2021 | O9: 2022 | Q9: 2018 | R9: 2019 | S9: 2020 | T9: 2021 | U9: 2022
B10: Distribution performance
G11: Actual AA4 | I11: Forecast | M11: Benchmark | S11: Target
B12: SAIDI - CBD (minutes per annum) | E12: 1.3 | F12: 14.7 | G12: 22.8 | H12: 14.1 | I12: =H12 -> 14.1 | K12: 39.9 | L12: 33.7 | M12: 33.7 | N12: 33.7 | O12: 33.7 | S12: 17.7 | T12: 17.7 | U12: 17.7
B13: SAIDI - Urban (minutes per annum) | E13: 104.5 | F13: 104.2 | G13: 134.3 | H13: 118 | I13: =H13 -> 118 | K13: 183 | L13: 130.6 | M13: 130.6 | N13: 130.6 | O13: 130.6 | S13: 106.8 | T13: 106.8 | U13: 106.8
B14: SAIDI - Rural Short (minutes per annum) | E14: 151.9 | F14: 178.3 | G14: 218.3 | H14: 210.2 | I14: 210.2 | K14: 227.8 | L14: 215.4 | M14: 215.4 | N14: 215.4 | O14: 215.4 | S14: 188.6 | T14: 188.6 | U14: 188.6
B15: SAIDI - Rural Long (minutes per annum) | E15: 718.1 | F15: 663.5 | G15: 737.7 | H15: 713.5 | I15: 713.5 | K15: 724.8 | L15: 848.3 | M15: 848.3 | N15: 848.3 | O15: 848.3 | S15: 677.7 | T15: 677.7 | U15: 677.7
B16: SAIFI - CBD (interruptions per annum) | E16: 0.04 | F16: 0.11 | G16: 0.2 | H16: 0.26 | I16: 0.26 | K16: 0.26 | L16: 0.21 | M16: 0.21 | N16: 0.21 | O16: 0.21 | S16: 0.12 | T16: 0.12 | U16: 0.12
B17: SAIFI - Urban (interruptions per annum) | E17: 1.03 | F17: 0.95 | G17: 1.14 | H17: 1.13 | I17: 1.13 | K17: 2.12 | L17: 1.27 | M17: 1.27 | N17: 1.27 | O17: 1.27 | S17: 1.09 | T17: 1.09 | U17: 1.09
B18: SAIFI - Rural Short (interruptions per annum) | E18: 1.59 | F18: 1.78 | G18: 2.11 | H18: 1.94 | I18: 1.94 | K18: 2.61 | L18: 2.34 | M18: 2.34 | N18: 2.34 | O18: 2.34 | S18: 1.96 | T18: 1.96 | U18: 1.96
B19: SAIFI - Rural Long (interruptions per annum) | E19: 3.96 | F19: 3.83 | G19: 3.77 | H19: 4.25 | I19: 4.25 | K19: 4.51 | L19: 5.7 | M19: 5.7 | N19: 5.7 | O19: 5.7 | S19: 4.29 | T19: 4.29 | U19: 4.29
B20: Call centre performance (% of calls per year) | E20: 91.7 | F20: 91.7 | G20: 92.6 | H20: 91.9 | I20: 91.9 | K20: 77.5 | L20: 86.8 | M20: 86.8 | N20: 86.8 | O20: 86.8 | S20: 92 | T20: 92 | U20: 92
B21: Street Lighting repair time - Metropolitan area | E21: 3.23 | F21: 4.82 | G21: 4.53 | H21: 4.83 | I21: 4.83 | K21: 5 | L21: 5 | M21: 5 | N21: 5 | O21: 5 | S21: n/a | T21: n/a | U21: n/a
B22: Street Lighting repair time - Regional area | E22: 8.09 | F22: 8.15 | G22: 6.77 | H22: 7.33 | I22: 7.33 | K22: 9 | L22: 9 | M22: 9 | N22: 9 | O22: 9 | S22: n/a | T22: n/a | U22: n/a
B23: Streetlight LED replacement | E23: a | F23: a | G23: a | H23: a | I23: a | K23: * | L23: * | M23: * | N23: * | O23: * | S23: n/a | T23: n/a | U23: n/a
B24: Supply abolishment response time (business days) | E24: n/a | F24: n/a | G24: 3.36 | H24: 2.54 | I24: 2.54 | K24: 15 | L24: 15 | M24: 15 | N24: 15 | O24: 15 | S24: n/a | T24: n/a | U24: n/a
B25: Remote de-energise response time (business days) | E25: n/a | F25: n/a | G25: n/a | H25: n/a | I25: n/a | K25: 1 | L25: 1 | M25: 1 | N25: 1 | O25: 1 | S25: n/a | T25: n/a | U25: n/a
B26: Remote re-energise response time (business days) | E26: n/a | F26: n/a | G26: n/a | H26: n/a | I26: n/a | K26: 1 | L26: 1 | M26: 1 | N26: 1 | O26: 1 | S26: n/a | T26: n/a | U26: n/a
B28: Year ending 30 June | E28: 2018 | F28: 2019 | G28: 2020 | H28: 2021 | I28: 2022 | K28: 2018 | L28: 2019 | M28: 2020 | N28: 2021 | O28: 2022 | Q28: 2018 | R28: 2019 | S28: 2020 | T28: 2021 | U28: 2022
B29: Transmission performance
G30: Actual AA4 | I30: Forecast | M30: Benchmark | S30: Target
B31: Circuit Availability (% of hours per annum) | E31: 99.1 | F31: 98.7 | G31: 98.8 | H31: 98.5 | I31: =H31 -> 98.5 | K31: 97.7 | L31: 97.8 | M31: 97.8 | N31: 97.8 | O31: 97.8 | S31: 98.5 | T31: 98.5 | U31: 98.5
B32: Loss of Supply Event Frequency > 0.1 (# of events) | E32: 11 | F32: 13 | G32: 15 | H32: 14 | I32: =H32 -> 14 | K32: 33 | L32: 26 | M32: 26 | N32: 26 | O32: 26 | S32: 17 | T32: 17 | U32: 17
B33: Loss of Supply Event Frequency > 1 (# of events) | E33: 6 | F33: 2 | G33: 3 | H33: 2 | I33: 2 | K33: 4 | L33: 7 | M33: 7 | N33: 7 | O33: 7 | S33: 3 | T33: 3 | U33: 3
B34: Average Outage Duration (minutes per annum) | E34: 560 | F34: 523 | G34: 751 | H34: 976 | I34: 976 | K34: 886 | L34: 1234 | M34: 1234 | N34: 1234 | O34: 1234 | S34: 784 | T34: 784 | U34: 784
B36: Year ending 30 June | E36: 2018 | F36: 2019 | G36: 2020 | H36: 2021 | I36: 2022 | K36: 2018 | L36: 2019 | M36: 2020 | N36: 2021 | O36: 2022
B37: Distribution incentive rates
G38: [$M real as at 30 June 2017] | M38: [$M real as at 30 June 2022]
B39: SAIDI - CBD - per SAIDI minute | E39: 0.03021 | F39: 0.03021 | G39: 0.03021 | H39: 0.03021 | I39: 0.03021 | K39: =E39/Dx_Inputs!$T$54 -> 0.03021 | L39: =F39/Dx_Inputs!$T$54 -> 0.03021 | M39: =G39/Dx_Inputs!$T$54 -> 0.03021 | N39: =H39/Dx_Inputs!$T$54 -> 0.03021 | O39: =I39/Dx_Inputs!$T$54 -> 0.03021
B40: SAIDI - Urban - per SAIDI minute | E40: 0.44666 | F40: 0.44666 | G40: 0.44666 | H40: 0.44666 | I40: 0.44666 | K40: =E40/Dx_Inputs!$T$54 -> 0.44666 | L40: =F40/Dx_Inputs!$T$54 -> 0.44666 | M40: =G40/Dx_Inputs!$T$54 -> 0.44666 | N40: =H40/Dx_Inputs!$T$54 -> 0.44666 | O40: =I40/Dx_Inputs!$T$54 -> 0.44666
B41: SAIDI - Rural Short - per SAIDI minute | E41: 0.14312 | F41: 0.14312 | G41: 0.14312 | H41: 0.14312 | I41: 0.14312 | K41: =E41/Dx_Inputs!$T$54 -> 0.14312 | L41: =F41/Dx_Inputs!$T$54 -> 0.14312 | M41: =G41/Dx_Inputs!$T$54 -> 0.14312 | N41: =H41/Dx_Inputs!$T$54 -> 0.14312 | O41: =I41/Dx_Inputs!$T$54 -> 0.14312
B42: SAIDI - Rural Long - per SAIDI minute | E42: 0.0525 | F42: 0.0525 | G42: 0.0525 | H42: 0.0525 | I42: 0.0525 | K42: =E42/Dx_Inputs!$T$54 -> 0.0525 | L42: =F42/Dx_Inputs!$T$54 -> 0.0525 | M42: =G42/Dx_Inputs!$T$54 -> 0.0525 | N42: =H42/Dx_Inputs!$T$54 -> 0.0525 | O42: =I42/Dx_Inputs!$T$54 -> 0.0525
B43: SAIFI - CBD - per 0.01 event | E43: 0.02922 | F43: 0.02922 | G43: 0.02922 | H43: 0.02922 | I43: 0.02922 | K43: =E43/Dx_Inputs!$T$54 -> 0.02922 | L43: =F43/Dx_Inputs!$T$54 -> 0.02922 | M43: =G43/Dx_Inputs!$T$54 -> 0.02922 | N43: =H43/Dx_Inputs!$T$54 -> 0.02922 | O43: =I43/Dx_Inputs!$T$54 -> 0.02922
B44: SAIFI - Urban - per 0.01 event | E44: 0.2907 | F44: 0.2907 | G44: 0.2907 | H44: 0.2907 | I44: 0.2907 | K44: =E44/Dx_Inputs!$T$54 -> 0.2907 | L44: =F44/Dx_Inputs!$T$54 -> 0.2907 | M44: =G44/Dx_Inputs!$T$54 -> 0.2907 | N44: =H44/Dx_Inputs!$T$54 -> 0.2907 | O44: =I44/Dx_Inputs!$T$54 -> 0.2907
B45: SAIFI - Rural Short - per 0.01 event | E45: 0.09182 | F45: 0.09182 | G45: 0.09182 | H45: 0.09182 | I45: 0.09182 | K45: =E45/Dx_Inputs!$T$54 -> 0.09182 | L45: =F45/Dx_Inputs!$T$54 -> 0.09182 | M45: =G45/Dx_Inputs!$T$54 -> 0.09182 | N45: =H45/Dx_Inputs!$T$54 -> 0.09182 | O45: =I45/Dx_Inputs!$T$54 -> 0.09182
B46: SAIFI - Rural Long - per 0.01 event | E46: 0.05534 | F46: 0.05534 | G46: 0.05534 | H46: 0.05534 | I46: 0.05534 | K46: =E46/Dx_Inputs!$T$54 -> 0.05534 | L46: =F46/Dx_Inputs!$T$54 -> 0.05534 | M46: =G46/Dx_Inputs!$T$54 -> 0.05534 | N46: =H46/Dx_Inputs!$T$54 -> 0.05534 | O46: =I46/Dx_Inputs!$T$54 -> 0.05534
B47: Call centre performance - per 0.1% | E47: -0.038059 | F47: -0.038059 | G47: -0.038059 | H47: -0.038059 | I47: -0.038059 | K47: =E47/Dx_Inputs!$T$54 -> -0.038059 | L47: =F47/Dx_Inputs!$T$54 -> -0.038059 | M47: =G47/Dx_Inputs!$T$54 -> -0.038059 | N47: =H47/Dx_Inputs!$T$54 -> -0.038059 | O47: =I47/Dx_Inputs!$T$54 -> -0.038059
B49: Year ending 30 June | E49: 2018 | F49: 2019 | G49: 2020 | H49: 2021 | I49: 2022 | K49: 2018 | L49: 2019 | M49: 2020 | N49: 2021 | O49: 2022
B50: Transmission incentive rates
G51: [$M real as at 30 June 2017] | M51: [$M real as at 30 June 2022]
B52: Circuit Availability - per 0.1% | E52: -0.449344 | F52: -0.449344 | G52: -0.449344 | H52: -0.449344 | I52: -0.449344 | K52: =E52/Dx_Inputs!$O$54 -> -0.4910957293 | L52: =F52/Dx_Inputs!$O$54 -> -0.4910957293 | M52: =G52/Dx_Inputs!$O$54 -> -0.4910957293 | N52: =H52/Dx_Inputs!$O$54 -> -0.4910957293 | O52: =I52/Dx_Inputs!$O$54 -> -0.4910957293
B53: Loss of Supply Event Frequency >0.1 - per event | E53: 0.089869 | F53: 0.089869 | G53: 0.089869 | H53: 0.089869 | I53: 0.089869 | K53: =E53/Dx_Inputs!$O$54 -> 0.09821936445 | L53: =F53/Dx_Inputs!$O$54 -> 0.09821936445 | M53: =G53/Dx_Inputs!$O$54 -> 0.09821936445 | N53: =H53/Dx_Inputs!$O$54 -> 0.09821936445 | O53: =I53/Dx_Inputs!$O$54 -> 0.09821936445
B54: Loss of Supply Event Frequency >1 - per event | E54: 0.179737 | F54: 0.179737 | G54: 0.179737 | H54: 0.179737 | I54: 0.179737 | K54: =E54/Dx_Inputs!$O$54 -> 0.196437636 | L54: =F54/Dx_Inputs!$O$54 -> 0.196437636 | M54: =G54/Dx_Inputs!$O$54 -> 0.196437636 | N54: =H54/Dx_Inputs!$O$54 -> 0.196437636 | O54: =I54/Dx_Inputs!$O$54 -> 0.196437636
B55: Average Outage Duration - per minute | E55: 0.005661 | F55: 0.005661 | G55: 0.005661 | H55: 0.005661 | I55: 0.005661 | K55: =E55/Dx_Inputs!$O$54 -> 0.006187003551 | L55: =F55/Dx_Inputs!$O$54 -> 0.006187003551 | M55: =G55/Dx_Inputs!$O$54 -> 0.006187003551 | N55: =H55/Dx_Inputs!$O$54 -> 0.006187003551 | O55: =I55/Dx_Inputs!$O$54 -> 0.006187003551
B57: Year ending 30 June | E57: 2018 | F57: 2019 | G57: 2020 | H57: 2021 | I57: 2022 | K57: 2018 | L57: 2019 | M57: 2020 | N57: 2021 | O57: 2022
B58: Distribution penalty rates
G59: [$M real as at 30 June 2017] | M59: [$M real as at 30 June 2022]
B60: SAIDI - CBD - per SAIDI minute | E60: 0.03021 | F60: 0.03021 | G60: 0.03021 | H60: 0.03021 | I60: 0.03021 | K60: =E60/Dx_Inputs!$O$54 -> 0.03301702478 | L60: =F60/Dx_Inputs!$O$54 -> 0.03301702478 | M60: =G60/Dx_Inputs!$O$54 -> 0.03301702478 | N60: =H60/Dx_Inputs!$O$54 -> 0.03301702478 | O60: =I60/Dx_Inputs!$O$54 -> 0.03301702478
B61: SAIDI - Urban - per SAIDI minute | E61: 0.44666 | F61: 0.44666 | G61: 0.44666 | H61: 0.44666 | I61: 0.44666 | K61: =E61/Dx_Inputs!$O$54 -> 0.4881623399 | L61: =F61/Dx_Inputs!$O$54 -> 0.4881623399 | M61: =G61/Dx_Inputs!$O$54 -> 0.4881623399 | N61: =H61/Dx_Inputs!$O$54 -> 0.4881623399 | O61: =I61/Dx_Inputs!$O$54 -> 0.4881623399
B62: SAIDI - Rural Short - per SAIDI minute | E62: 0.14312 | F62: 0.14312 | G62: 0.14312 | H62: 0.14312 | I62: 0.14312 | K62: =E62/Dx_Inputs!$O$54 -> 0.1564182915 | L62: =F62/Dx_Inputs!$O$54 -> 0.1564182915 | M62: =G62/Dx_Inputs!$O$54 -> 0.1564182915 | N62: =H62/Dx_Inputs!$O$54 -> 0.1564182915 | O62: =I62/Dx_Inputs!$O$54 -> 0.1564182915
B63: SAIDI - Rural Long - per SAIDI minute | E63: 0.0525 | F63: 0.0525 | G63: 0.0525 | H63: 0.0525 | I63: 0.0525 | K63: =E63/Dx_Inputs!$O$54 -> 0.05737814634 | L63: =F63/Dx_Inputs!$O$54 -> 0.05737814634 | M63: =G63/Dx_Inputs!$O$54 -> 0.05737814634 | N63: =H63/Dx_Inputs!$O$54 -> 0.05737814634 | O63: =I63/Dx_Inputs!$O$54 -> 0.05737814634
B64: SAIFI - CBD - per 0.01 event | E64: 0.02922 | F64: 0.02922 | G64: 0.02922 | H64: 0.02922 | I64: 0.02922 | K64: =E64/Dx_Inputs!$O$54 -> 0.03193503688 | L64: =F64/Dx_Inputs!$O$54 -> 0.03193503688 | M64: =G64/Dx_Inputs!$O$54 -> 0.03193503688 | N64: =H64/Dx_Inputs!$O$54 -> 0.03193503688 | O64: =I64/Dx_Inputs!$O$54 -> 0.03193503688
B65: SAIFI - Urban - per 0.01 event | E65: 0.2907 | F65: 0.2907 | G65: 0.2907 | H65: 0.2907 | I65: 0.2907 | K65: =E65/Dx_Inputs!$O$54 -> 0.3177109932 | L65: =F65/Dx_Inputs!$O$54 -> 0.3177109932 | M65: =G65/Dx_Inputs!$O$54 -> 0.3177109932 | N65: =H65/Dx_Inputs!$O$54 -> 0.3177109932 | O65: =I65/Dx_Inputs!$O$54 -> 0.3177109932
B66: SAIFI - Rural Short - per 0.01 event | E66: 0.09182 | F66: 0.09182 | G66: 0.09182 | H66: 0.09182 | I66: 0.09182 | K66: =E66/Dx_Inputs!$O$54 -> 0.1003516457 | L66: =F66/Dx_Inputs!$O$54 -> 0.1003516457 | M66: =G66/Dx_Inputs!$O$54 -> 0.1003516457 | N66: =H66/Dx_Inputs!$O$54 -> 0.1003516457 | O66: =I66/Dx_Inputs!$O$54 -> 0.1003516457
B67: SAIFI - Rural Long - per 0.01 event | E67: 0.05534 | F67: 0.05534 | G67: 0.05534 | H67: 0.05534 | I67: 0.05534 | K67: =E67/Dx_Inputs!$O$54 -> 0.06048203083 | L67: =F67/Dx_Inputs!$O$54 -> 0.06048203083 | M67: =G67/Dx_Inputs!$O$54 -> 0.06048203083 | N67: =H67/Dx_Inputs!$O$54 -> 0.06048203083 | O67: =I67/Dx_Inputs!$O$54 -> 0.06048203083
B68: Call centre performance - per 0.1% | E68: -0.012442 | F68: -0.012442 | G68: -0.012442 | H68: -0.012442 | I68: -0.012442 | K68: =E68/Dx_Inputs!$O$54 -> -0.01359807422 | L68: =F68/Dx_Inputs!$O$54 -> -0.01359807422 | M68: =G68/Dx_Inputs!$O$54 -> -0.01359807422 | N68: =H68/Dx_Inputs!$O$54 -> -0.01359807422 | O68: =I68/Dx_Inputs!$O$54 -> -0.01359807422
B70: Year ending 30 June | E70: 2018 | F70: 2019 | G70: 2020 | H70: 2021 | I70: 2022 | K70: 2018 | L70: 2019 | M70: 2020 | N70: 2021 | O70: 2022
B71: Transmission penalty rates
G72: [$M real as at 30 June 2017] | M72: [$M real as at 30 June 2022]
B73: Circuit Availability - per 0.1% | E73: -0.256768 | F73: -0.256768 | G73: -0.256768 | H73: -0.256768 | I73: -0.256768 | K73: =E73/Dx_Inputs!$O$54 -> -0.280626131 | L73: =F73/Dx_Inputs!$O$54 -> -0.280626131 | M73: =G73/Dx_Inputs!$O$54 -> -0.280626131 | N73: =H73/Dx_Inputs!$O$54 -> -0.280626131 | O73: =I73/Dx_Inputs!$O$54 -> -0.280626131
B74: Loss of Supply Event Frequency >0.1 - per event | E74: 0.059912 | F74: 0.059912 | G74: 0.059912 | H74: 0.059912 | I74: 0.059912 | K74: =E74/Dx_Inputs!$O$54 -> 0.06547884769 | L74: =F74/Dx_Inputs!$O$54 -> 0.06547884769 | M74: =G74/Dx_Inputs!$O$54 -> 0.06547884769 | N74: =H74/Dx_Inputs!$O$54 -> 0.06547884769 | O74: =I74/Dx_Inputs!$O$54 -> 0.06547884769
B75: Loss of Supply Event Frequency >1 - per event | E75: 0.134803 | F75: 0.134803 | G75: 0.134803 | H75: 0.134803 | I75: 0.134803 | K75: =E75/Dx_Inputs!$O$54 -> 0.1473285002 | L75: =F75/Dx_Inputs!$O$54 -> 0.1473285002 | M75: =G75/Dx_Inputs!$O$54 -> 0.1473285002 | N75: =H75/Dx_Inputs!$O$54 -> 0.1473285002 | O75: =I75/Dx_Inputs!$O$54 -> 0.1473285002
B76: Average Outage Duration - per minute | E76: 0.001598 | F76: 0.001598 | G76: 0.001598 | H76: 0.001598 | I76: 0.001598 | K76: =E76/Dx_Inputs!$O$54 -> 0.001746481483 | L76: =F76/Dx_Inputs!$O$54 -> 0.001746481483 | M76: =G76/Dx_Inputs!$O$54 -> 0.001746481483 | N76: =H76/Dx_Inputs!$O$54 -> 0.001746481483 | O76: =I76/Dx_Inputs!$O$54 -> 0.001746481483
B78: Gain share mechanism (GSM)
B79: Year ending 30 June | D79: Weight | E79: 2018 | F79: 2019 | G79: 2020 | H79: 2021 | I79: 2022
B80: [FORECAST] Distribution escalation factors
B81: Customer numbers (a) | D81: 0.458 | E81: 0.0165 | F81: 0.0173 | G81: 0.0169 | H81: 0.0166 | I81: 0.0163
B82: Circuit length (b) | D82: 0.238 | E82: 0.0091 | F82: 0.0091 | G82: 0.0091 | H82: 0.0091 | I82: 0.0091
B83: Ratcheted maximum demand (c) | D83: 0.176 | E83: 0 | F83: 0 | G83: 0 | H83: 0 | I83: 0
B84: Energy delivered (d) | D84: 0.128 | E84: -0.0037 | F84: -0.002 | G84: -0.002 | H84: -0.0071 | I84: -0.011
B85: Customer and network growth factor (weighted average) | D85: =SUM(D81:D84) -> 1 | E85: =SUMPRODUCT($D$81:$D$84,E81:E84) -> 0.0092492 | F85: =SUMPRODUCT($D$81:$D$84,F81:F84) -> 0.0098332 | G85: 0.00965 | H85: 0.0088598 | I85: 0.0082232
B87: [FORECAST] Transmission escalation factors
B88: Circuit length (a) | D88: 0.376 | E88: 0.0032 | F88: 0.0033 | G88: 0.0022 | H88: 0.0033 | I88: 0.0032
B89: Ratcheted maximum demand (b) | D89: 0.194 | E89: 0 | F89: 0 | G89: 0 | H89: 0 | I89: 0
B90: Energy delivered (c) | D90: 0.231 | E90: -0.0037 | F90: -0.002 | G90: -0.002 | H90: -0.0071 | I90: -0.011
B91: Customer numbers (d) | D91: 0.199 | E91: 0 | F91: 0 | G91: 0.0263 | H91: 0.0256 | I91: 0
B92: Network growth factor (weighted average) | D92: =SUM(D88:D91) -> 1 | E92: =SUMPRODUCT($D$88:$D$91,E88:E91) -> 0.0003485 | F92: =SUMPRODUCT($D$88:$D$91,F88:F91) -> 0.0007788 | G92: 0.0055989 | H92: 0.0046951 | I92: -0.0013378
B94: [FORECAST] Indirect cost growth esclation
B95: Indirect | E95: 0.007 | F95: 0.0076 | G95: 0.0087 | H95: 0.0078 | I95: 0.0059
B97: Year ending 30 June | E97: 2018 | F97: 2019 | G97: 2020 | H97: 2021 | I97: 2022
B98: [ACTUAL] Distribution escalation factors
B99: Customer numbers (a) | E99: 0.01326803198 | F99: 0.008282484711 | G99: 0.02064524666 | H99: 0.01586957733 | I99: 0.01392812252
B100: Circuit length (b) | E100: 0.005498734705 | F100: 0.01115120406 | G100: 0.0008544466829 | H100: 0.002908497416 | I100: 0.005095819094
B101: Ratcheted maximum demand (c) | E101: 0 | F101: 0 | G101: 0 | H101: 0 | I101: 0
B102: Energy delivered (d) | E102: -0.005942773294 | F102: -0.01387556277 | G102: 0.02222887508 | H102: -0.02211158296 | I102: -0.005690326445
B103: Customer and network growth factor (weighted average) | E103: =SUMPRODUCT($D$81:$D$84,E99:E102) -> 0.006624782525 | F103: =SUMPRODUCT($D$81:$D$84,F99:F102) -> 0.004671292529 | G103: 0.01250417729 | H103: 0.005130206184 | I103: 0.006863523272
B105: [ACTUAL] Transmission escalation factors
B106: Circuit length (a) | E106: -0.005127672556 | F106: 0.001761528224 | G106: -0.002409701327 | H106: 0.0009400950541 | I106: -0.001212724434
B107: Ratcheted maximum demand (b) | E107: 0 | F107: 0 | G107: 0 | H107: 0 | I107: 0
B108: Energy delivered (c) | E108: 0.003026227303 | F108: -0.02860654822 | G108: 0.02714828023 | H108: -0.02200694367 | I108: -0.006241053536
B109: Customer numbers (d) | E109: 0 | F109: 0 | G109: 0 | H109: 0 | I109: 0
B110: Network growth factor (weighted average) | E110: =SUMPRODUCT($D$88:$D$91,E106:E109) -> -0.001228946374 | F110: =SUMPRODUCT($D$88:$D$91,F106:F109) -> -0.005945778026 | G110: 0.005365205033 | H110: -0.004730128247 | I110: -0.001897667754
B112: [ACTUAL] Indirect cost growth esclation
B113: Indirect | E113: 0.004658838477 | F113: 0.00201362928 | G113: 0.010717151 | H113: 0.00266196899 | I113: 0.004670423463
B115: Year ending 30 June | E115: 2018 | F115: 2019 | G115: 2020 | H115: 2021 | I115: 2022 | K115: 2018 | L115: 2019 | M115: 2020 | N115: 2021 | O115: 2022
B116: Operating expenditure - Final decision efficiency and innovation benchmark (EIB)
B117: ERA Final Decision EIB categories | G117: [$M real as at 30 June 2017] | M117: [$M real as at 30 June 2022]
B118: Superannuation costs for defined benefit schemes | E118: 0.1976483124 | F118: 0.196305806 | G118: 0.1949724184 | H118: 0.1936480878 | I118: 0.1923327525 | K118: =E118/Dx_Inputs!$O$54 -> 0.2160132151 | L118: =F118/Dx_Inputs!$O$54 -> 0.2145459669 | M118: =G118/Dx_Inputs!$O$54 -> 0.2130886849 | N118: =H118/Dx_Inputs!$O$54 -> 0.2116413013 | O118: =I118/Dx_Inputs!$O$54 -> 0.210203749
B119: Non-revenue cap services cost | E119: 0 | F119: 0 | G119: 0 | H119: 0 | I119: 0 | K119: =E119/Dx_Inputs!$O$54 -> 0 | L119: =F119/Dx_Inputs!$O$54 -> 0 | M119: =G119/Dx_Inputs!$O$54 -> 0 | N119: =H119/Dx_Inputs!$O$54 -> 0 | O119: =I119/Dx_Inputs!$O$54 -> 0
B120: Licence fees | E120: 0 | F120: 0 | G120: 0 | H120: 0 | I120: 0 | K120: =E120/Dx_Inputs!$O$54 -> 0 | L120: =F120/Dx_Inputs!$O$54 -> 0 | M120: =G120/Dx_Inputs!$O$54 -> 0 | N120: =H120/Dx_Inputs!$O$54 -> 0 | O120: =I120/Dx_Inputs!$O$54 -> 0
B121: Energy safety levy | E121: 4.403882498 | F121: 4.373969567 | G121: 4.344259816 | H121: 4.314751866 | I121: 4.285444345 | K121: =E121/Dx_Inputs!$O$54 -> 4.813078371 | L121: =F121/Dx_Inputs!$O$54 -> 4.780386017 | M121: =G121/Dx_Inputs!$O$54 -> 4.747915723 | N121: =H121/Dx_Inputs!$O$54 -> 4.71566598 | O121: =I121/Dx_Inputs!$O$54 -> 4.683635291
B122: Network control service | E122: 0 | F122: 0 | G122: 0 | H122: 0 | I122: 0 | K122: =E122/Dx_Inputs!$O$54 -> 0 | L122: =F122/Dx_Inputs!$O$54 -> 0 | M122: =G122/Dx_Inputs!$O$54 -> 0 | N122: =H122/Dx_Inputs!$O$54 -> 0 | O122: =I122/Dx_Inputs!$O$54 -> 0
B123: ERA costs (Electricity Network Access Funding Regulations) | E123: 1.617985342 | F123: 1.108782542 | G123: 1.101251248 | H123: 1.093771109 | I123: 1.594494436 | K123: =E123/Dx_Inputs!$O$54 -> 1.768323805 | L123: =F123/Dx_Inputs!$O$54 -> 1.211807371 | M123: =G123/Dx_Inputs!$O$54 -> 1.203576291 | N123: =H123/Dx_Inputs!$O$54 -> 1.195401119 | O123: =I123/Dx_Inputs!$O$54 -> 1.742650193
B125: Year ending 30 June | E125: 2018 | F125: 2019 | G125: 2020 | H125: 2021 | I125: 2022 | K125: 2018 | L125: 2019 | M125: 2020 | N125: 2021 | O125: 2022
B126: Operating expenditure subject to scale esclation by regulatory category
B127: Insert operating expenditure that excludes any form of escalation
B128: Base distribution | G128: [$M real as at 30 June 2017] | M128: [$M real as at 30 June 2022]
B129: Reliability | E129: 1.11731053 | F129: 1.11731053 | G129: 1.11731053 | H129: 1.11731053 | I129: 1.11731053 | K129: =E129/Dx_Inputs!$O$54 -> 1.221127754 | L129: =F129/Dx_Inputs!$O$54 -> 1.221127754 | M129: =G129/Dx_Inputs!$O$54 -> 1.221127754 | N129: =H129/Dx_Inputs!$O$54 -> 1.221127754 | O129: =I129/Dx_Inputs!$O$54 -> 1.221127754
B130: SCADA & Communications | E130: 4.26387153 | F130: 4.26387153 | G130: 4.26387153 | H130: 4.26387153 | I130: 4.26387153 | K130: =E130/Dx_Inputs!$O$54 -> 4.660057993 | L130: =F130/Dx_Inputs!$O$54 -> 4.660057993 | M130: =G130/Dx_Inputs!$O$54 -> 4.660057993 | N130: =H130/Dx_Inputs!$O$54 -> 4.660057993 | O130: =I130/Dx_Inputs!$O$54 -> 4.660057993
B131: Non-revenue cap services | E131: 10.07751255 | F131: 10.07751255 | G131: 10.07751255 | H131: 10.07751255 | I131: 10.07751255 | K131: =E131/Dx_Inputs!$O$54 -> 11.01388552 | L131: =F131/Dx_Inputs!$O$54 -> 11.01388552 | M131: =G131/Dx_Inputs!$O$54 -> 11.01388552 | N131: =H131/Dx_Inputs!$O$54 -> 11.01388552 | O131: =I131/Dx_Inputs!$O$54 -> 11.01388552
B132: Network Operations | E132: 14.43457163 | F132: 14.43457163 | G132: 14.43457163 | H132: 14.43457163 | I132: 14.43457163 | K132: =E132/Dx_Inputs!$O$54 -> 15.77578978 | L132: =F132/Dx_Inputs!$O$54 -> 15.77578978 | M132: =G132/Dx_Inputs!$O$54 -> 15.77578978 | N132: =H132/Dx_Inputs!$O$54 -> 15.77578978 | O132: =I132/Dx_Inputs!$O$54 -> 15.77578978
B133: Smartgrid | E133: 0 | F133: 0 | G133: 0 | H133: 0 | I133: 0 | K133: =E133/Dx_Inputs!$O$54 -> 0 | L133: =F133/Dx_Inputs!$O$54 -> 0 | M133: =G133/Dx_Inputs!$O$54 -> 0 | N133: =H133/Dx_Inputs!$O$54 -> 0 | O133: =I133/Dx_Inputs!$O$54 -> 0
B134: Maintenance Strategy | E134: 0 | F134: 0 | G134: 0 | H134: 0 | I134: 0 | K134: =E134/Dx_Inputs!$O$54 -> 0 | L134: =F134/Dx_Inputs!$O$54 -> 0 | M134: =G134/Dx_Inputs!$O$54 -> 0 | N134: =H134/Dx_Inputs!$O$54 -> 0 | O134: =I134/Dx_Inputs!$O$54 -> 0
B135: Preventive Condition | E135: 19.80018238 | F135: 19.80018238 | G135: 19.80018238 | H135: 19.80018238 | I135: 19.80018238 | K135: =E135/Dx_Inputs!$O$54 -> 21.63995737 | L135: =F135/Dx_Inputs!$O$54 -> 21.63995737 | M135: =G135/Dx_Inputs!$O$54 -> 21.63995737 | N135: =H135/Dx_Inputs!$O$54 -> 21.63995737 | O135: =I135/Dx_Inputs!$O$54 -> 21.63995737
B136: Preventive Routine | E136: =42.89577875-1 -> 41.89577875 | F136: =42.89577875-1 -> 41.89577875 | G136: 41.89577875 | H136: 41.89577875 | I136: 41.89577875 | K136: =E136/Dx_Inputs!$O$54 -> 45.78861189 | L136: =F136/Dx_Inputs!$O$54 -> 45.78861189 | M136: =G136/Dx_Inputs!$O$54 -> 45.78861189 | N136: =H136/Dx_Inputs!$O$54 -> 45.78861189 | O136: =I136/Dx_Inputs!$O$54 -> 45.78861189
B137: Corrective Deferred | E137: 12.8295806 | F137: 12.8295806 | G137: 12.8295806 | H137: 12.8295806 | I137: 12.8295806 | K137: =E137/Dx_Inputs!$O$54 -> 14.02166768 | L137: =F137/Dx_Inputs!$O$54 -> 14.02166768 | M137: =G137/Dx_Inputs!$O$54 -> 14.02166768 | N137: =H137/Dx_Inputs!$O$54 -> 14.02166768 | O137: =I137/Dx_Inputs!$O$54 -> 14.02166768
B138: Corrective Emergency | E138: =53.07320368-4 -> 49.07320368 | F138: =53.07320368-4 -> 49.07320368 | G138: 49.07320368 | H138: 49.07320368 | I138: 49.07320368 | K138: =E138/Dx_Inputs!$O$54 -> 53.63294214 | L138: =F138/Dx_Inputs!$O$54 -> 53.63294214 | M138: =G138/Dx_Inputs!$O$54 -> 53.63294214 | N138: =H138/Dx_Inputs!$O$54 -> 53.63294214 | O138: =I138/Dx_Inputs!$O$54 -> 53.63294214
B139: Call Centre | E139: 3.86591716 | F139: 3.86591716 | G139: 3.86591716 | H139: 3.86591716 | I139: 3.86591716 | K139: =E139/Dx_Inputs!$O$54 -> 4.225126868 | L139: =F139/Dx_Inputs!$O$54 -> 4.225126868 | M139: =G139/Dx_Inputs!$O$54 -> 4.225126868 | N139: =H139/Dx_Inputs!$O$54 -> 4.225126868 | O139: =I139/Dx_Inputs!$O$54 -> 4.225126868
B140: Metering | E140: 13.73056955 | F140: 13.73056955 | G140: 13.73056955 | H140: 13.73056955 | I140: 13.73056955 | K140: =E140/Dx_Inputs!$O$54 -> 15.00637389 | L140: =F140/Dx_Inputs!$O$54 -> 15.00637389 | M140: =G140/Dx_Inputs!$O$54 -> 15.00637389 | N140: =H140/Dx_Inputs!$O$54 -> 15.00637389 | O140: =I140/Dx_Inputs!$O$54 -> 15.00637389
B141: Guaranteed service level payments | E141: 1.01032 | F141: 1.01032 | G141: 1.01032 | H141: 1.01032 | I141: 1.01032 | K141: =E141/Dx_Inputs!$O$54 -> 1.104195977 | L141: =F141/Dx_Inputs!$O$54 -> 1.104195977 | M141: =G141/Dx_Inputs!$O$54 -> 1.104195977 | N141: =H141/Dx_Inputs!$O$54 -> 1.104195977 | O141: =I141/Dx_Inputs!$O$54 -> 1.104195977
B142: Design & Estimating - Distribution Quotations | E142: 4.91835088 | F142: 4.91835088 | G142: 4.91835088 | H142: 4.91835088 | I142: 4.91835088 | K142: =E142/Dx_Inputs!$O$54 -> 5.375349649 | L142: =F142/Dx_Inputs!$O$54 -> 5.375349649 | M142: =G142/Dx_Inputs!$O$54 -> 5.375349649 | N142: =H142/Dx_Inputs!$O$54 -> 5.375349649 | O142: =I142/Dx_Inputs!$O$54 -> 5.375349649
B143: Business Support | E143: 112.3150319 | F143: 112.3150319 | G143: 112.3150319 | H143: 112.3150319 | I143: 112.3150319 | K143: =E143/Dx_Inputs!$O$54 -> 122.7510159 | L143: =F143/Dx_Inputs!$O$54 -> 122.7510159 | M143: =G143/Dx_Inputs!$O$54 -> 122.7510159 | N143: =H143/Dx_Inputs!$O$54 -> 122.7510159 | O143: =I143/Dx_Inputs!$O$54 -> 122.7510159
B144: IT | E144: 0 | F144: 0 | G144: 0 | H144: 0 | I144: 0 | K144: =E144/Dx_Inputs!$O$54 -> 0 | L144: =F144/Dx_Inputs!$O$54 -> 0 | M144: =G144/Dx_Inputs!$O$54 -> 0 | N144: =H144/Dx_Inputs!$O$54 -> 0 | O144: =I144/Dx_Inputs!$O$54 -> 0
B145: Non-recurring opex | E145: 9.84052159 | F145: 9.84052159 | G145: 9.84052159 | H145: 9.84052159 | I145: 9.84052159 | K145: =E145/Dx_Inputs!$O$54 -> 10.75487405 | L145: =F145/Dx_Inputs!$O$54 -> 10.75487405 | M145: =G145/Dx_Inputs!$O$54 -> 10.75487405 | N145: =H145/Dx_Inputs!$O$54 -> 10.75487405 | O145: =I145/Dx_Inputs!$O$54 -> 10.75487405
B146: Total | E146: =SUM(E129:E145) -> 299.1727227 | F146: =SUM(F129:F145) -> 299.1727227 | G146: =SUM(G129:G145) -> 299.1727227 | H146: =SUM(H129:H145) -> 299.1727227 | I146: =SUM(I129:I145) -> 299.1727227 | K146: =SUM(K129:K145) -> 326.9709765 | L146: =SUM(L129:L145) -> 326.9709765 | M146: =SUM(M129:M145) -> 326.9709765 | N146: =SUM(N129:N145) -> 326.9709765 | O146: =SUM(O129:O145) -> 326.9709765
B148: Year ending 30 June | E148: 2018 | F148: 2019 | G148: 2020 | H148: 2021 | I148: 2022 | K148: 2018 | L148: 2019 | M148: 2020 | N148: 2021 | O148: 2022
B149: Base transmission | G149: [$M real as at 30 June 2017] | M149: [$M real as at 30 June 2022]
B150: SCADA & Communications | E150: 8.30836852 | F150: 8.30836852 | G150: 8.30836852 | H150: 8.30836852 | I150: 8.30836852 | K150: =E150/Dx_Inputs!$O$54 -> 9.080357806 | L150: =F150/Dx_Inputs!$O$54 -> 9.080357806 | M150: =G150/Dx_Inputs!$O$54 -> 9.080357806 | N150: =H150/Dx_Inputs!$O$54 -> 9.080357806 | O150: =I150/Dx_Inputs!$O$54 -> 9.080357806
B151: Non-revenue cap services | E151: 3.04139059 | F151: 3.04139059 | G151: 3.04139059 | H151: 3.04139059 | I151: 3.04139059 | K151: =E151/Dx_Inputs!$O$54 -> 3.323987702 | L151: =F151/Dx_Inputs!$O$54 -> 3.323987702 | M151: =G151/Dx_Inputs!$O$54 -> 3.323987702 | N151: =H151/Dx_Inputs!$O$54 -> 3.323987702 | O151: =I151/Dx_Inputs!$O$54 -> 3.323987702
B152: Network Operations | E152: 4.525439549 | F152: 4.525439549 | G152: 4.525439549 | H152: 4.525439549 | I152: 4.525439549 | K152: =E152/Dx_Inputs!$O$54 -> 4.945930147 | L152: =F152/Dx_Inputs!$O$54 -> 4.945930147 | M152: =G152/Dx_Inputs!$O$54 -> 4.945930147 | N152: =H152/Dx_Inputs!$O$54 -> 4.945930147 | O152: =I152/Dx_Inputs!$O$54 -> 4.945930147
B153: Maintenance Strategy | E153: 0 | F153: 0 | G153: 0 | H153: 0 | I153: 0 | K153: =E153/Dx_Inputs!$O$54 -> 0 | L153: =F153/Dx_Inputs!$O$54 -> 0 | M153: =G153/Dx_Inputs!$O$54 -> 0 | N153: =H153/Dx_Inputs!$O$54 -> 0 | O153: =I153/Dx_Inputs!$O$54 -> 0
B154: Preventive Condition | E154: 10.57801646 | F154: 10.57801646 | G154: 10.57801646 | H154: 10.57801646 | I154: 10.57801646 | K154: =E154/Dx_Inputs!$O$54 -> 11.56089479 | L154: =F154/Dx_Inputs!$O$54 -> 11.56089479 | M154: =G154/Dx_Inputs!$O$54 -> 11.56089479 | N154: =H154/Dx_Inputs!$O$54 -> 11.56089479 | O154: =I154/Dx_Inputs!$O$54 -> 11.56089479
B155: Preventive Routine | E155: 15.9431707 | F155: 15.9431707 | G155: 15.9431707 | H155: 15.9431707 | I155: 15.9431707 | K155: =E155/Dx_Inputs!$O$54 -> 17.42456346 | L155: =F155/Dx_Inputs!$O$54 -> 17.42456346 | M155: =G155/Dx_Inputs!$O$54 -> 17.42456346 | N155: =H155/Dx_Inputs!$O$54 -> 17.42456346 | O155: =I155/Dx_Inputs!$O$54 -> 17.42456346
B156: Corrective Deferred | E156: 7.25527014 | F156: 7.25527014 | G156: 7.25527014 | H156: 7.25527014 | I156: 7.25527014 | K156: =E156/Dx_Inputs!$O$54 -> 7.929408606 | L156: =F156/Dx_Inputs!$O$54 -> 7.929408606 | M156: =G156/Dx_Inputs!$O$54 -> 7.929408606 | N156: =H156/Dx_Inputs!$O$54 -> 7.929408606 | O156: =I156/Dx_Inputs!$O$54 -> 7.929408606
B157: Corrective Emergency | E157: 1.68092356 | F157: 1.68092356 | G157: 1.68092356 | H157: 1.68092356 | I157: 1.68092356 | K157: =E157/Dx_Inputs!$O$54 -> 1.837110057 | L157: =F157/Dx_Inputs!$O$54 -> 1.837110057 | M157: =G157/Dx_Inputs!$O$54 -> 1.837110057 | N157: =H157/Dx_Inputs!$O$54 -> 1.837110057 | O157: =I157/Dx_Inputs!$O$54 -> 1.837110057
B158: Business Support | E158: 41.02595083 | F158: 41.02595083 | G158: 41.02595083 | H158: 41.02595083 | I158: 41.02595083 | K158: =E158/Dx_Inputs!$O$54 -> 44.8379621 | L158: =F158/Dx_Inputs!$O$54 -> 44.8379621 | M158: =G158/Dx_Inputs!$O$54 -> 44.8379621 | N158: =H158/Dx_Inputs!$O$54 -> 44.8379621 | O158: =I158/Dx_Inputs!$O$54 -> 44.8379621
B159: Non-recurring opex | E159: -1.30447629 | F159: -1.30447629 | G159: -1.30447629 | H159: -1.30447629 | I159: -1.30447629 | K159: =E159/Dx_Inputs!$O$54 -> -1.425684409 | L159: =F159/Dx_Inputs!$O$54 -> -1.425684409 | M159: =G159/Dx_Inputs!$O$54 -> -1.425684409 | N159: =H159/Dx_Inputs!$O$54 -> -1.425684409 | O159: =I159/Dx_Inputs!$O$54 -> -1.425684409
B160: Total | E160: =SUM(E150:E159) -> 91.05405406 | F160: =SUM(F150:F159) -> 91.05405406 | G160: =SUM(G150:G159) -> 91.05405406 | H160: =SUM(H150:H159) -> 91.05405406 | I160: =SUM(I150:I159) -> 91.05405406 | K160: =SUM(K150:K159) -> 99.51453026 | L160: =SUM(L150:L159) -> 99.51453026 | M160: =SUM(M150:M159) -> 99.51453026 | N160: =SUM(N150:N159) -> 99.51453026 | O160: =SUM(O150:O159) -> 99.51453026
B162: Year ending 30 June | E162: 2018 | F162: 2019 | G162: 2020 | H162: 2021 | I162: 2022 | K162: 2018 | L162: 2019 | M162: 2020 | N162: 2021 | O162: 2022
B163: Actual operating expenditure in EIB categories
B164: Distribution | G164: [$M nominal] | M164: [$M real as at 30 June 2022]
B165: D-Factor Scheme / Network Control Services | E165: 0.7813574 | F165: 1.06186761 | G165: 0.84896313 | H165: =0.81760161+1.5 -> 2.31760161 | I165: =0.84+1.5 -> 2.34 | K165: =E165/Dx_Inputs!P$54 -> 0.8365773795 | L165: =F165/Dx_Inputs!Q$54 -> 1.119085625 | M165: =G165/Dx_Inputs!R$54 -> 0.8978372843 | N165: =H165/Dx_Inputs!S$54 -> 2.36024548 | O165: =I165/Dx_Inputs!T$54 -> 2.34
B166: Technical rule changes | E166: 0 | F166: 0 | G166: 0 | H166: 0 | I166: 0 | K166: =E166/Dx_Inputs!P$54 -> 0 | L166: =F166/Dx_Inputs!Q$54 -> 0 | M166: =G166/Dx_Inputs!R$54 -> 0 | N166: =H166/Dx_Inputs!S$54 -> 0 | O166: =I166/Dx_Inputs!T$54 -> 0
B167: Unforeseen events | E167: 0 | F167: 0 | G167: 0 | H167: 0 | I167: 0 | K167: =E167/Dx_Inputs!P$54 -> 0 | L167: =F167/Dx_Inputs!Q$54 -> 0 | M167: =G167/Dx_Inputs!R$54 -> 0 | N167: =H167/Dx_Inputs!S$54 -> 0 | O167: =I167/Dx_Inputs!T$54 -> 0
B168: Superannuation for defined benefit schemes | E168: 0.033 | F168: 0.33 | G168: 0.039 | H168: 0.040061 | I168: 0.040061 | K168: =E168/Dx_Inputs!P$54 -> 0.03533217133 | L168: =F168/Dx_Inputs!Q$54 -> 0.3477818258 | M168: =G168/Dx_Inputs!R$54 -> 0.0412452 | N168: =H168/Dx_Inputs!S$54 -> 0.0407981224 | O168: =I168/Dx_Inputs!T$54 -> 0.040061
B169: Non-revenue cap services | E169: =Dx_Inputs!P703 -> 13.985 | F169: =Dx_Inputs!Q703 -> 15.95 | G169: =Dx_Inputs!R703 -> 14.395 | H169: =Dx_Inputs!S703 -> 13.17 | I169: =Dx_Inputs!T703 -> 19.95043385 | K169: =E169/Dx_Inputs!P$54 -> 14.97334594 | L169: =F169/Dx_Inputs!Q$54 -> 16.80945491 | M169: =G169/Dx_Inputs!R$54 -> 15.22370908 | N169: =H169/Dx_Inputs!S$54 -> 13.412328 | O169: =I169/Dx_Inputs!T$54 -> 19.95043385
B170: License fees | E170: 0 | F170: 0 | G170: 0 | H170: 0 | I170: 0 | K170: =E170/Dx_Inputs!P$54 -> 0 | L170: =F170/Dx_Inputs!Q$54 -> 0 | M170: =G170/Dx_Inputs!R$54 -> 0 | N170: =H170/Dx_Inputs!S$54 -> 0 | O170: =I170/Dx_Inputs!T$54 -> 0
B171: Energy safety levy | E171: 3.251 | F171: 3.296 | G171: 3.283 | H171: 3.286241053 | I171: 3.286241053 | K171: =E171/Dx_Inputs!P$54 -> 3.480754212 | L171: =F171/Dx_Inputs!Q$54 -> 3.473602721 | M171: =G171/Dx_Inputs!R$54 -> 3.471999785 | N171: =H171/Dx_Inputs!S$54 -> 3.346707888 | O171: =I171/Dx_Inputs!T$54 -> 3.286241053
B172: ERA costs (Electricity Network Access Funding Regulations) | E172: 1.552 | F172: 1.134 | G172: 0.83 | H172: 1.175184631 | I172: 1.175184631 | K172: =E172/Dx_Inputs!P$54 -> 1.661682724 | L172: =F172/Dx_Inputs!Q$54 -> 1.19510482 | M172: =G172/Dx_Inputs!R$54 -> 0.8777824615 | N172: =H172/Dx_Inputs!S$54 -> 1.196808029 | O172: =I172/Dx_Inputs!T$54 -> 1.175184631
B173: Regulatory reform costs (non-capital) | E173: 0 | F173: 0 | G173: 0 | H173: 0 | I173: 0 | K173: =E173/Dx_Inputs!P$54 -> 0 | L173: =F173/Dx_Inputs!Q$54 -> 0 | M173: =G173/Dx_Inputs!R$54 -> 0 | N173: =H173/Dx_Inputs!S$54 -> 0 | O173: =I173/Dx_Inputs!T$54 -> 0
B175: Year ending 30 June | E175: 2018 | F175: 2019 | G175: 2020 | H175: 2021 | I175: 2022 | K175: 2018 | L175: 2019 | M175: 2020 | N175: 2021 | O175: 2022
B176: Transmission | G176: [$M nominal] | M176: [$M real as at 30 June 2022]
B177: D-Factor Scheme / Network Control Services | E177: 0 | F177: 5.20302875 | G177: 7.68899215 | H177: 9.37850739 | I177: 8.42332 | K177: =E177/Dx_Inputs!P$54 -> 0 | L177: =F177/Dx_Inputs!Q$54 -> 5.483390419 | M177: =G177/Dx_Inputs!R$54 -> 8.131641513 | N177: =H177/Dx_Inputs!S$54 -> 9.551071926 | O177: =I177/Dx_Inputs!T$54 -> 8.42332
B178: Technical rule changes | E178: 0 | F178: 0 | G178: 0 | H178: 0 | I178: 0 | K178: =E178/Dx_Inputs!P$54 -> 0 | L178: =F178/Dx_Inputs!Q$54 -> 0 | M178: =G178/Dx_Inputs!R$54 -> 0 | N178: =H178/Dx_Inputs!S$54 -> 0 | O178: =I178/Dx_Inputs!T$54 -> 0
B179: Unforeseen events | E179: 0 | F179: 0 | G179: 0 | H179: 0 | I179: 0 | K179: =E179/Dx_Inputs!P$54 -> 0 | L179: =F179/Dx_Inputs!Q$54 -> 0 | M179: =G179/Dx_Inputs!R$54 -> 0 | N179: =H179/Dx_Inputs!S$54 -> 0 | O179: =I179/Dx_Inputs!T$54 -> 0
B180: Superannuation for defined benefit schemes | E180: 0.011 | F180: 0.011 | G180: 0.018 | H180: 0.01896289112 | I180: 0.01896289112 | K180: =E180/Dx_Inputs!P$54 -> 0.01177739044 | L180: =F180/Dx_Inputs!Q$54 -> 0.01159272753 | M180: =G180/Dx_Inputs!R$54 -> 0.01903624615 | N180: =H180/Dx_Inputs!S$54 -> 0.01931180832 | O180: =I180/Dx_Inputs!T$54 -> 0.01896289112
B181: Non-revenue cap services | E181: =Tx_Inputs!P648 -> 4.402 | F181: =Tx_Inputs!Q648 -> 5.499 | G181: =Tx_Inputs!R648 -> 4.84 | H181: =Tx_Inputs!S648 -> 6.469 | I181: =Tx_Inputs!T648 -> 6.642559908 | K181: =E181/Dx_Inputs!P$54 -> 4.713097521 | L181: =F181/Dx_Inputs!Q$54 -> 5.795309879 | M181: =G181/Dx_Inputs!R$54 -> 5.118635077 | N181: =H181/Dx_Inputs!S$54 -> 6.5880296 | O181: =I181/Dx_Inputs!T$54 -> 6.642559908
B182: License fees | E182: 0 | F182: 0 | G182: 0 | H182: 0 | I182: 0 | K182: =E182/Dx_Inputs!P$54 -> 0 | L182: =F182/Dx_Inputs!Q$54 -> 0 | M182: =G182/Dx_Inputs!R$54 -> 0 | N182: =H182/Dx_Inputs!S$54 -> 0 | O182: =I182/Dx_Inputs!T$54 -> 0
B183: Energy safety levy | E183: 1.247 | F183: 1.245 | G183: 1.257 | H183: 1.253392947 | I183: 1.253392947 | K183: =E183/Dx_Inputs!P$54 -> 1.335127807 | L183: =F183/Dx_Inputs!Q$54 -> 1.312085979 | M183: =G183/Dx_Inputs!R$54 -> 1.329364523 | N183: =H183/Dx_Inputs!S$54 -> 1.276455378 | O183: =I183/Dx_Inputs!T$54 -> 1.253392947
B184: ERA costs (Electricity Network Access Funding Regulations) | E184: 0.595 | F184: 0.428 | G184: 0.318 | H184: 0.4482227887 | I184: 0.4482227887 | K184: =E184/Dx_Inputs!P$54 -> 0.6370497558 | L184: =F184/Dx_Inputs!Q$54 -> 0.4510624892 | M184: =G184/Dx_Inputs!R$54 -> 0.3363070154 | N184: =H184/Dx_Inputs!S$54 -> 0.456470088 | O184: =I184/Dx_Inputs!T$54 -> 0.4482227887
B185: Regulatory reform costs (non-capital) | E185: 0 | F185: 0 | G185: 0.72 | H185: 1.22 | I185: 0.39 | K185: =E185/Dx_Inputs!P$54 -> 0 | L185: =F185/Dx_Inputs!Q$54 -> 0 | M185: =G185/Dx_Inputs!R$54 -> 0.7614498462 | N185: =H185/Dx_Inputs!S$54 -> 1.242448 | O185: =I185/Dx_Inputs!T$54 -> 0.39
B187: Investment adjustment mechanism (IAM) category inclusion flags [1=Include, 0=Exclude]
B188: Year ending 30 June | E188: 2018 | F188: 2019 | G188: 2020 | H188: 2021 | I188: 2022
B189: Distribtuion IAM category inclusion flags [1=Include, 0=Exclude]
B190: Growth | G190: Actual AA4
B191: Capacity Expansion | E191: 1 | F191: 1 | G191: 1 | H191: 1 | I191: 1
B192: Customer Driven | E192: 1 | F192: 1 | G192: 1 | H192: 1 | I192: 1
B193: Gifted Assets | E193: 0 | F193: 0 | G193: 0 | H193: 0 | I193: 0
B194: Asset replacement and renewal
B195: Asset Replacement | E195: 0 | F195: 0 | G195: 0 | H195: 0 | I195: 0
B196: State Undergrounding Power Program (SUPP) | E196: 1 | F196: 1 | G196: 1 | H196: 1 | I196: 1
B197: Metering | E197: 0 | F197: 0 | G197: 0 | H197: 0 | I197: 0
B198: Smartgrid | E198: 0 | F198: 0 | G198: 0 | H198: 0 | I198: 0
B199: Wood Pole Management | E199: 0 | F199: 0 | G199: 0 | H199: 0 | I199: 0
B200: Improvement in service
B201: Reliability Driven | E201: 0 | F201: 0 | G201: 0 | H201: 0 | I201: 0
B202: Rural Power Improvement Program (RPIP) | E202: 0 | F202: 0 | G202: 0 | H202: 0 | I202: 0
B203: SCADA & Communications | E203: 0 | F203: 0 | G203: 0 | H203: 0 | I203: 0
B204: Compliance
B205: Safety, Environmental & Statutory | E205: 0 | F205: 0 | G205: 0 | H205: 0 | I205: 0
B206: Corporate
B207: IT | E207: 0 | F207: 0 | G207: 0 | H207: 0 | I207: 0
B208: Business Support | E208: 0 | F208: 0 | G208: 0 | H208: 0 | I208: 0
B209: Equity Raising Costs | E209: 0 | F209: 0 | G209: 0 | H209: 0 | I209: 0
B211: Transmission IAM category inclusion flags [1=Include, 0=Exclude]
B212: Growth | G212: Actual AA4
B213: Capacity Expansion | E213: 1 | F213: 1 | G213: 1 | H213: 1 | I213: 1
B214: Customer Driven | E214: 1 | F214: 1 | G214: 1 | H214: 1 | I214: 1
B215: Generation Driven | E215: 1 | F215: 1 | G215: 1 | H215: 1 | I215: 1
B216: Gifted Assets | E216: 0 | F216: 0 | G216: 0 | H216: 0 | I216: 0
B217: Asset replacement and renewal
B218: Asset Replacement | E218: 0 | F218: 0 | G218: 0 | H218: 0 | I218: 0
B219: Improvement in service
B220: Reliability Driven | E220: 0 | F220: 0 | G220: 0 | H220: 0 | I220: 0
... 38 more rows

Sheet Incentive_Rate_Inputs
B2: AA5 VCRs weighted to WA
B3: VCRs by feeder type escalated by CPI ($/kWh) [$ Real as at 30 June 2022] | C3: $ per kWh | E3: [$ Real as at 30 June 2021]
B4: CBD | C4: =E4*(1+Dx_CoS!$V$6) -> 43.322736 | E4: 42.54
B5: Urban | C5: =E5*(1+Dx_CoS!$V$6) -> 42.283968 | E5: 41.52
B6: Rural short | C6: =E6*(1+Dx_CoS!$V$6) -> 40.878576 | E6: 40.14
B7: Rural long | C7: =E7*(1+Dx_CoS!$V$6) -> 40.440664 | E7: 39.71
B10: Value of customer reliability (VCR) - AER STPIS approach
B11: WA - energy consumption (for 12 months) [GWh] | C11: CBD | D11: Urban | E11: Rural short | F11: Rural long | G11: Western Power Network Total
B12: Energy Consumption | C12: 428.8603776 | D12: 8156.863587 | E12: 3411.005613 | F12: 1060.351469
B13: Total | C13: =SUM(C12:C12) -> 428.8603776 | D13: =SUM(D12:D12) -> 8156.863587 | E13: =SUM(E12:E12) -> 3411.005613 | F13: =SUM(F12:F12) -> 1060.351469 | G13: =SUM(C13:F13) -> 13057.08105
B15: SSAM Incentive Rate Inputs
B16: Ratio of unplanned SAIDI to unplanned SAIFI | C16: Ratio
B17: CBD | C17: 1.5
B18: Urban | C18: 1.5
B19: Rural short | C19: 1.5
B20: Rural long | C20: 1.5
B24: Revenue at risk [$ Real as at 30 June 2022] | C24: Average AA5 Revenue | D24: Portion at risk | E24: Revenue at risk
B25: Transmission reference service customer average revenue | C25: 84966317.39 | D25: 0.01 | E25: =ROUND(D25*C25,0) -> 849663
B26: Distribution reference service customer average revenue | C26: 1292876304 | D26: 0.01 | E26: =D26*C26 -> 12928763.04
B27: Total average revenue | C27: =SUM(C25:C26) -> 1377842622
B29: Average Revenue at Risk per annum | E29: =SUM(E25:E26) -> 13778426.04
B30: Total Revenue at Risk for AA5 | E30: =E29*4 -> 55113704.18 | F30: Calculated for 4 years form FY23 to FY27 due to gap year
B32: Transmission revenue at risk to determine incentive rate [$ real as at 30 June 2022] | C32: Portion at risk | D32: Revenue at risk
B33: Loss of supply event frequency >0.1 system minutes interrupted | C33: 0.3 | D33: =C33*C$25*D$25 -> 254898.9522
B34: Loss of supply event frequency >1 system minutes interrupted | C34: 0.3 | D34: =C34*C$25*D$25 -> 254898.9522
B35: Average outage duration | C35: 0.4 | D35: =C35*C$25*D$25 -> 339865.2696
C36: Total | D36: =ROUND(SUM(D33:D35),0) -> 849663 | E36: =IF(E25=D36,"OK","CHECK") -> OK
B40: AA5 SSB and SSAM Targets
B41: Distribution Reference Service Benchmark | C41: POE2.5 | D41: SSAM target adj | E41: POE97.5
B42: CBD SAIDI | C42: N/A | D42: 13.72904119 | E42: 35.23 | F42: =ROUND(E42,1) -> 35.2 | G42: =ROUND(D42,1) -> 13.7
B43: CBD SAIFI | C43: N/A | D43: 0.1935469946 | E43: 0.44 | F43: =ROUND(E43,2) -> 0.44 | G43: =ROUND(D43,2) -> 0.19
B44: URBAN SAIDI | C44: N/A | D44: 119.2332872 | E44: 138.9 | F44: =ROUND(E44,1) -> 138.9 | G44: =ROUND(D44,1) -> 119.2
B45: URBAN SAIFI | C45: N/A | D45: 1.227965287 | E45: 1.33 | F45: =ROUND(E45,2) -> 1.33 | G45: =ROUND(D45,2) -> 1.23
B46: Rural Short SAIDI | C46: N/A | D46: 198.5111683 | E46: 236.87 | F46: =ROUND(E46,1) -> 236.9 | G46: =ROUND(D46,1) -> 198.5
B47: Rural Short SAIFI | C47: N/A | D47: 2.022321802 | E47: 2.28 | F47: =ROUND(E47,2) -> 2.28 | G47: =ROUND(D47,2) -> 2.02
B48: Rural Long SAIDI | C48: N/A | D48: 704.3418441 | E48: 812.5 | F48: =ROUND(E48,1) -> 812.5 | G48: =ROUND(D48,1) -> 704.3
B49: Rural Long SAIFI | C49: N/A | D49: 4.329356521 | E49: 4.71 | F49: =ROUND(E49,2) -> 4.71 | G49: =ROUND(D49,2) -> 4.33
B50: Call Centre Performance | C50: 0.907 | D50: N/A | E50: N/A | F50: =ROUND(C50,3) -> 0.907 | G50: N/A
B51: Streetlighting repair time – metropolitan areas | F51: 5 | G51: N/A
B52: Streetlighting repair time –regional areas | F52: 9 | G52: N/A
B53: Supply abolishment (whole current meter) response time | F53: 15 | G53: N/A
B54: Remote de-energise response time | F54: 1 | G54: N/A
B55: Remote re-energise response time | F55: 1 | G55: N/A
B57: Adjustments to Distribution Reference Service Benchmark | C57: POE2.5 | D57: SSAM target adj | E57: POE97.5 | F57: SSB target adj | G57: SSAM target adj
B58: CBD SAIDI | C58: N/A | D58: 0 | E58: 0 | F58: =ROUND(E58,1) -> 0 | G58: =ROUND(D58,1) -> 0
B59: CBD SAIFI | C59: N/A | D59: -0.01996009775 | E59: 0 | F59: =ROUND(E59,2) -> 0 | G59: =ROUND(D59,2) -> -0.02
B60: URBAN SAIDI | C60: N/A | D60: -0.7315347019 | E60: 0 | F60: =ROUND(E60,1) -> 0 | G60: =ROUND(D60,1) -> -0.7
B61: URBAN SAIFI | C61: N/A | D61: 0 | E61: 0 | F61: =ROUND(E61,2) -> 0 | G61: =ROUND(D61,2) -> 0
B62: Rural Short SAIDI | C62: N/A | D62: -0.5844494746 | E62: 0 | F62: =ROUND(E62,1) -> 0 | G62: =ROUND(D62,1) -> -0.6
B63: Rural Short SAIFI | C63: N/A | D63: 0 | E63: 0 | F63: =ROUND(E63,2) -> 0 | G63: =ROUND(D63,2) -> 0
B64: Rural Long SAIDI | C64: N/A | D64: 0 | E64: 0 | F64: =ROUND(E64,1) -> 0 | G64: =ROUND(D64,1) -> 0
B65: Rural Long SAIFI | C65: N/A | D65: 0 | E65: 0 | F65: =ROUND(E65,2) -> 0 | G65: =ROUND(D65,2) -> 0
B66: Call Centre Performance | C66: =C82-C50 -> -0.039 | D66: N/A | E66: N/A | F66: =ROUND(C66,3) -> -0.039 | G66: N/A
B67: Streetlighting repair time – metropolitan areas | F67: 0 | G67: N/A
B68: Streetlighting repair time –regional areas | F68: 0 | G68: N/A
B69: Supply abolishment (whole current meter) response time | F69: 0 | G69: N/A
B70: Remote de-energise service response time | F70: 0 | G70: N/A
B71: Remote re-energise service response time | F71: 0 | G71: N/A
B73: Distribution Reference Service Benchmark | C73: POE2.5 | D73: SSAM target | E73: POE97.5 | F73: SSB target | G73: SSAM target | H73: Rounding
B74: CBD SAIDI | C74: N/A | D74: =D42+D58 -> 13.72904119 | E74: 35.23 | F74: =ROUND(E74,H74) -> 35.2 | G74: =ROUND(D74,H74) -> 13.7 | H74: 1
B75: CBD SAIFI | C75: N/A | D75: 0.1735868969 | E75: 0.44 | F75: =ROUND(E75,H75) -> 0.44 | G75: =ROUND(D75,H75) -> 0.17 | H75: 2
B76: URBAN SAIDI | C76: N/A | D76: 118.5017525 | E76: 138.9 | F76: 138.9 | G76: 118.5 | H76: 1
B77: URBAN SAIFI | C77: N/A | D77: 1.227965287 | E77: 1.33 | F77: 1.33 | G77: 1.23 | H77: 2
B78: Rural Short SAIDI | C78: N/A | D78: 197.9267188 | E78: 236.87 | F78: 236.9 | G78: 197.9 | H78: 1
B79: Rural Short SAIFI | C79: N/A | D79: 2.022321802 | E79: 2.28 | F79: 2.28 | G79: 2.02 | H79: 2
B80: Rural Long SAIDI | C80: N/A | D80: 704.3418441 | E80: 812.5 | F80: 812.5 | G80: 704.3 | H80: 1
B81: Rural Long SAIFI | C81: N/A | D81: 4.329356521 | E81: 4.71 | F81: 4.71 | G81: 4.33 | H81: 2
B82: Call Centre Performance | C82: 0.868 | D82: N/A | E82: N/A | F82: =ROUND(C82,H82) -> 0.868 | G82: N/A | H82: 3
B83: Streetlighting repair time – metropolitan areas | F83: =F51+F67 -> 5 | G83: N/A
B84: Streetlighting repair time –regional areas | F84: =F52+F68 -> 9 | G84: N/A
B85: Supply abolishment (whole current meter) response time | F85: 15 | G85: N/A
B86: Remote de-energise response time | F86: 1 | G86: N/A
B87: Remote re-energise response time | F87: 1 | G87: N/A
B90: Transmission Reference Service Benchmark | C90: POE2.5 | D90: SSAM target | E90: POE97.5 | F90: SSB target | G90: SSAM target
B91: Loss of supply event frequency >0.1 and ≤1.0 system minutes interrupted | C91: 0 | D91: 1.4 | E91: 4 | F91: =E91 -> 4 | G91: =D91 -> 1.4
B92: Loss of supply event frequency >1 system minutes interrupted | C92: 0 | D92: 0.6 | E92: 2 | F92: =E92 -> 2 | G92: 0.6
B93: Average outage duration | C93: 181.64 | D93: 851.7509259 | E93: 1745.8 | F93: =E93 -> 1745.8 | G93: 851.7509259
B95: Adjustments to Transmission Reference Service Benchmark | C95: POE2.5 | D95: SSAM target | E95: POE97.5 | F95: SSB target | G95: SSAM target
B96: Loss of supply event frequency >0.1 and ≤1.0 system minutes interrupted | C96: 0 | D96: 0 | E96: 0 | F96: =ROUND(E96,H96) -> 0 | G96: =ROUND(D96,H96) -> 0
B97: Loss of supply event frequency >1 system minutes interrupted | C97: 0 | D97: 0 | E97: 0 | F97: =ROUND(E97,H97) -> 0 | G97: =ROUND(D97,H97) -> 0
B98: Average outage duration | C98: 0 | D98: 0 | E98: 0 | F98: =ROUND(E98,H98) -> 0 | G98: =ROUND(D98,H98) -> 0
B101: Transmission Reference Service Benchmark | C101: POE2.5 | D101: SSAM target | E101: POE97.5 | F101: SSB target | G101: SSAM target | H101: Rounding
B102: Loss of supply event frequency >0.1 and ≤1.0 system minutes interrupted | C102: =C91+C96 -> 0 | D102: 1.4 | E102: 4 | F102: =ROUND(E102,H102) -> 4 | G102: =ROUND(D102,H102) -> 1 | H102: 0
B103: Loss of supply event frequency >1 system minutes interrupted | C103: 0 | D103: 0.6 | E103: 2 | F103: =ROUND(E103,H103) -> 2 | G103: =ROUND(D103,H103) -> 1 | H103: 0
B104: Average outage duration | C104: 181.64 | D104: 851.7509259 | E104: 1745.8 | F104: =ROUND(E104,H104) -> 1746 | G104: =ROUND(D104,H104) -> 852 | H104: 0
B111: AA4 approved VCRs weighted to WA
B112: VCRs by feeder type escalated by CPI ($/kWh) [$ Real as at 30 June 2022] | C112: $ per kWh | E112: [$ Real as at 30 June 2017]
B113: CBD | C113: =E113*(1/Dx_CoS!$Q$7) -> 55.73877073 | E113: 51
B114: Urban | C114: =E114*(1/Dx_CoS!$Q$7) -> 47.21401756 | E114: 43.2
B115: Rural short | C115: =E115*(1/Dx_CoS!$Q$7) -> 45.79322537 | E115: 41.9
B116: Rural long | C116: =E116*(1/Dx_CoS!$Q$7) -> 47.10472585 | E116: 43.1

Sheet Incentive_rates
B2: Incentive rate calculations
B3: SAIDI ($ per minute) Incentive Rate [$ Real as at 30 June 2022] | C3: $/kWh
B4: CBD | C4: =Incentive_Rate_Inputs!C4*(1-1/(1+Incentive_Rate_Inputs!$C17)) -> 25.9936416
B5: Urban | C5: =Incentive_Rate_Inputs!C5*(1-1/(1+Incentive_Rate_Inputs!$C18)) -> 25.3703808
B6: Rural short | C6: =Incentive_Rate_Inputs!C6*(1-1/(1+Incentive_Rate_Inputs!$C19)) -> 24.5271456
B7: Rural long | C7: =Incentive_Rate_Inputs!C7*(1-1/(1+Incentive_Rate_Inputs!$C20)) -> 24.2643984
B9: Convert a SAIDI minute to MWh (MWh/minute) | C9: MWh/minute
B10: CBD | C10: =Incentive_Rate_Inputs!C13/(365.25*24*60)*1000 -> 0.8153859183
B11: Urban | C11: =Incentive_Rate_Inputs!D13/(365.25*24*60)*1000 -> 15.50852458
B12: Rural short | C12: =Incentive_Rate_Inputs!E13/(365.25*24*60)*1000 -> 6.485294723
B13: Rural long | C13: =Incentive_Rate_Inputs!F13/(365.25*24*60)*1000 -> 2.016030627
B15: SAIDI incentive rate ($ per minute) | C15: $ per minute
B16: CBD | C16: =$C10*C4*1000 -> 21194.84933
B17: Urban | C17: =$C11*C5*1000 -> 393457.1742
B18: Rural short | C18: =$C12*C6*1000 -> 159065.7679
B19: Rural long | C19: =$C13*C7*1000 -> 48917.77032
B21: SAIFI ($0.01 per event) Incentive Rate [$ Real as at 30 June 2022] | C21: $/kWh
B22: CBD | C22: =Incentive_Rate_Inputs!C4/(1+Incentive_Rate_Inputs!$C17) -> 17.3290944
B23: Urban | C23: =Incentive_Rate_Inputs!C5/(1+Incentive_Rate_Inputs!$C18) -> 16.9135872
B24: Rural short | C24: =Incentive_Rate_Inputs!C6/(1+Incentive_Rate_Inputs!$C19) -> 16.3514304
B25: Rural long | C25: =Incentive_Rate_Inputs!C7/(1+Incentive_Rate_Inputs!$C20) -> 16.1762656
B27: Convert an event to MWh (assumes each event of average duration - CAIDI = SAIDI/SAIFI) (MWh/event) | C27: MWh/event
B29: CBD | C29: =Incentive_Rate_Inputs!C13*Incentive_Rate_Inputs!D74/Incentive_Rate_Inputs!D75/(365.25*24*60)*1000 -> 64.48912367
B30: Urban | C30: =Incentive_Rate_Inputs!D13*Incentive_Rate_Inputs!D76/Incentive_Rate_Inputs!D77/(365.25*24*60)*1000 -> 1496.611803
B31: Rural short | C31: =Incentive_Rate_Inputs!E13*Incentive_Rate_Inputs!D78/Incentive_Rate_Inputs!D79/(365.25*24*60)*1000 -> 634.7224778
B32: Rural long | C32: =Incentive_Rate_Inputs!F13*Incentive_Rate_Inputs!D80/Incentive_Rate_Inputs!D81/(365.25*24*60)*1000 -> 327.9874787
B34: SAIFI incentive rate ($ per 0.01 event) | C34: $ per 0.01 event
B35: CBD | C35: =$C29*C22*1000/100 -> 11175.38112
B36: Urban | C36: =$C30*C23*1000/100 -> 253130.7423
B37: Rural short | C37: =$C31*C24*1000/100 -> 103786.2042
B38: Rural long | C38: =$C32*C25*1000/100 -> 53056.12569
B40: Transmission revenue at risk [$ Real as at 30 June 2022]
B41: Revenue at risk | C41: =Incentive_Rate_Inputs!D25 -> 0.01
B42: Tranmission Revenue (AA5 average) | C42: =Incentive_Rate_Inputs!C25 -> 84966317.39
B43: Transmission Revenue at risk | C43: =C41*C42 -> 849663.1739
B45: Loss of Supply Event Frequency >0.1 and ≤ 1.0 system minutes interrupted Incentive Rates [$ Real as at 30 June 2022]
B46: Loss of Supply Event Frequency >0.1 and ≤ 1.0 system minutes interrupted Incentive Rates [$ Real as at 30 June 2022]
B47: Portion of revenue at risk | C47: =Incentive_Rate_Inputs!C33 -> 0.3
B48: Revenue at risk | C48: =C$43*C47 -> 254898.9522
B50: SSAM Target | C50: =ROUND(Incentive_Rate_Inputs!G102,0) -> 1
B51: POE2.5 | C51: =ROUND(Incentive_Rate_Inputs!C102,0) -> 0
B52: Difference | C52: =C50-C51 -> 1
B54: Reward side incentive rate dollars per event | C54: =(C48/C52) -> 254898.9522
B56: Loss of Supply Event Frequency >0.1 and ≤ 1.0 system minutes interrupted Incentive Rates [$ Real as at 30 June 2022]
B57: SSAM Target | C57: =ROUND(Incentive_Rate_Inputs!G102,0) -> 1
B58: POE97.5 | C58: =ROUND(Incentive_Rate_Inputs!E102,0) -> 4
B59: Difference | C59: =C58-C57 -> 3
B61: Penalty side incentive rate dollars per event | C61: =(C48/C59) -> 84966.31739
B63: Loss of Supply Event Frequency >1 system minutes interrupted Incentive Rates [$ Real as at 30 June 2022]
B64: Loss of supply event frequency >1 system minutes interrupted reward side incentive rate
B65: Portion of revenue at risk | C65: =Incentive_Rate_Inputs!C34 -> 0.3
B66: Revenue at risk | C66: =C$43*C65 -> 254898.9522
B68: SSAM Target | C68: =ROUND(Incentive_Rate_Inputs!G103,0) -> 1
B69: POE2.5 | C69: =ROUND(Incentive_Rate_Inputs!C103,0) -> 0
B70: Difference | C70: =C68-C69 -> 1
B72: Reward side incentive rate dollars per event | C72: =(C66/C70) -> 254898.9522
B74: Loss of supply event frequency >0.1 system minutes interrupted penalty side incentive rate
B76: SSAM Target | C76: =ROUND(Incentive_Rate_Inputs!G103,0) -> 1
B77: POE97.5 | C77: =ROUND(Incentive_Rate_Inputs!E103,0) -> 2
B78: Difference | C78: =C77-C76 -> 1
B80: Penalty side incentive rate dollars per event | C80: =(C66/C78) -> 254898.9522
B82: Average Outage Duration Incentive Rates [$ Real as at 30 June 2022]
B83: Average Outage Duration reward side incentive rate
B84: Portion of revenue at risk | C84: =Incentive_Rate_Inputs!C35 -> 0.4
B85: Revenue at risk | C85: =C$43*C84 -> 339865.2696
B87: SSAM Target | C87: =ROUND(Incentive_Rate_Inputs!G104,0) -> 852
B88: POE2.5 | C88: =ROUND(Incentive_Rate_Inputs!C104,0) -> 182
B89: Difference | C89: =C87-C88 -> 670
B91: Reward side incentive rate dollars per minute | C91: =(C85/C89) -> 507.2615963
B93: Average Outage Duration penalty side incentive rate
B95: SSAM Target | C95: =ROUND(Incentive_Rate_Inputs!G104,0) -> 852
B96: POE97.5 | C96: =ROUND(Incentive_Rate_Inputs!E104,0) -> 1746
B97: Difference | C97: =C96-C95 -> 894
B99: Penalty side incentive rate dollars per minute | C99: =(C85/C97) -> 380.1624939
B108: SSAM financial incentive rates for AA4 period distribution measures, $ real at 30 June 2022 | I108: $ real at 30 June 2017
B110: Performance measure | C110: Unit | D110: AA4 | I110: AA4
D111: Reward | E111: Penalty | I111: Reward | J111: Penalty
B112: System average interruption duration index (SAIDI)
B113: CBD | C113: Minutes | D113: =I113*(1/Dx_CoS!$Q$7) -> 33022.48937 | E113: =J113*(1/Dx_CoS!$Q$7) -> 33022.48937 | I113: 30215 | J113: 30215
B114: Urban | C114: Minutes | D114: =I114*(1/Dx_CoS!$Q$7) -> 488162.3399 | E114: =J114*(1/Dx_CoS!$Q$7) -> 488162.3399 | I114: 446660 | J114: 446660
B115: Rural short | C115: Minutes | D115: =I115*(1/Dx_CoS!$Q$7) -> 156416.1057 | E115: =J115*(1/Dx_CoS!$Q$7) -> 156416.1057 | I115: 143118 | J115: 143118
B116: Rural long | C116: Minutes | D116: =I116*(1/Dx_CoS!$Q$7) -> 57381.42509 | E116: =J116*(1/Dx_CoS!$Q$7) -> 57381.42509 | I116: 52503 | J116: 52503
B117: System average interruption frequency index (SAIFI)
B118: CBD | C118: Number of events | D118: =I118*(1/Dx_CoS!$Q$7) -> 31939.40855 | E118: =J118*(1/Dx_CoS!$Q$7) -> 31939.40855 | I118: 29224 | J118: 29224
B119: Urban | C119: Number of events | D119: =I119*(1/Dx_CoS!$Q$7) -> 317707.7144 | E119: =J119*(1/Dx_CoS!$Q$7) -> 317707.7144 | I119: 290697 | J119: 290697
B120: Rural short | C120: Number of events | D120: =I120*(1/Dx_CoS!$Q$7) -> 100350.5527 | E120: =J120*(1/Dx_CoS!$Q$7) -> 100350.5527 | I120: 91819 | J120: 91819
B121: Rural long | C121: Number of events | D121: =I121*(1/Dx_CoS!$Q$7) -> 60483.12375 | E121: =J121*(1/Dx_CoS!$Q$7) -> 60483.12375 | I121: 55341 | J121: 55341

Sheet CALCULATIONS -->

Sheet Dx_Asset
B1: Validation status | C1: =IF(COUNTIF(G11:AF11,"CHECK")+COUNTIF(D186:D196,"CHECK")+COUNTIF(E317:E627,"CHECK")>0,"CHECK","OK") -> OK
B2: Distribution calculations
B3: Year ending 30 June | F3: 2006 | G3: 2007 | H3: 2008 | I3: 2009 | J3: 2010 | K3: 2011 | L3: 2012 | M3: 2013 | N3: 2014 | O3: 2015 | P3: 2016 | Q3: 2017 | R3: 2018 | S3: 2019 | T3: 2020 | U3: 2021 | V3: 2022 | W3: 2023 | X3: 2024 | Y3: 2025 | Z3: 2026 | AA3: 2027 | AB3: 2028 | AC3: 2029 | AD3: 2030 | AE3: 2031 | AF3: 2032
B4: Total Dx RAB value [$M real as at 30 June 2022]
B5: Opening balance | G5: =F10 -> 2246.468037 | H5: =G10 -> 2617.745564 | I5: 3024.510116 | J5: 3618.749279 | K5: 3948.269823 | L5: 4263.505634 | M5: 4643.478653 | N5: 5145.975953 | O5: 5620.792016 | P5: 6004.853615 | Q5: 6254.860698 | R5: 6337.177275 | S5: 6428.328681 | T5: 6509.066223 | U5: 6653.466159 | V5: 6789.420633 | W5: 7004.335809 | X5: 7356.588181 | Y5: 7716.498759 | Z5: 8057.44762 | AA5: 8347.319023 | AB5: 8598.43813 | AC5: 8191.34879 | AD5: 7793.648645 | AE5: 7406.383187 | AF5: 7028.997921
B6: Capital expenditure | G6: =G45 -> 513.9236128 | H6: =H45 -> 555.4424632 | I6: 755.021431 | J6: 519.5602812 | K6: 520.1894311 | L6: 608.6686578 | M6: 741.5982237 | N6: 733.8289716 | O6: 675.6916703 | P6: 544.331677 | Q6: 390.6446282 | R6: 378.7075991 | S6: 389.6229952 | T6: 455.0914962 | U6: 432.0571206 | V6: 502.885092 | W6: 640.4718238 | X6: 650.4681075 | Y6: 665.8951253 | Z6: 637.7696779 | AA6: 630.8032706 | AB6: 0 | AC6: 0 | AD6: 0 | AE6: 0 | AF6: 0
B7: Disposals | G7: =G62 -> -0.2636949801 | H7: =H62 -> 0 | I7: 0 | J7: -1.034516968 | K7: -0.001219231876 | L7: -2.701738052 | M7: -1.014488159 | N7: -0.3255995014 | O7: -5.389782055 | P7: -3.072288169 | Q7: -0.675404229 | R7: -1.544979492 | S7: -0.6186300962 | T7: -0.6303112615 | U7: -1.6416608 | V7: -1.677666105 | W7: 0 | X7: 0 | Y7: 0 | Z7: 0 | AA7: 0 | AB7: 0 | AC7: 0 | AD7: 0 | AE7: 0 | AF7: 0
B8: Depreciation | G8: =G79 -> -136.9787207 | H8: =H79 -> -143.5073275 | I8: -155.6859916 | J8: -184.0052645 | K8: -200.0648582 | L8: -221.2348526 | M8: -233.9347216 | N8: -258.1304552 | O8: -286.2402892 | P8: -291.2523056 | Q8: -307.6526469 | R8: =R79 -> -281.6417732 | S8: -301.367845 | T8: -305.6935594 | U8: -294.4609863 | V8: -286.2922498 | W8: -288.2194515 | X8: -290.55753 | Y8: -324.946264 | Z8: -347.8982751 | AA8: -379.6841633 | AB8: -407.0893397 | AC8: -397.7001457 | AD8: -387.265458 | AE8: -377.385266 | AF8: -363.535995
B9: Accelerated depreciation | G9: =G165 -> -5.40367051 | H9: =H165 -> -5.170583872 | I9: -5.09627608 | J9: -4.999956015 | K9: -4.887542537 | L9: -4.759048235 | M9: -4.151713808 | N9: -0.5568537117 | O9: 0 | P9: 0 | Q9: 0 | R9: -4.369440368 | S9: -6.898978798 | T9: -4.367689064 | U9: 0 | V9: 0 | W9: 0 | X9: 0 | Y9: 0 | Z9: 0 | AA9: 0 | AB9: 0 | AC9: 0 | AD9: 0 | AE9: 0 | AF9: 0
B10: Closing balance | F10: =F199 -> 2246.468037 | G10: =SUM(G5:G9) -> 2617.745564 | H10: =SUM(H5:H9) -> 3024.510116 | I10: 3618.749279 | J10: 3948.269823 | K10: 4263.505634 | L10: 4643.478653 | M10: 5145.975953 | N10: 5620.792016 | O10: 6004.853615 | P10: 6254.860698 | Q10: 6337.177275 | R10: 6428.328681 | S10: 6509.066223 | T10: 6653.466159 | U10: 6789.420633 | V10: 7004.335809 | W10: 7356.588181 | X10: 7716.498759 | Y10: 8057.44762 | Z10: 8347.319023 | AA10: 8598.43813 | AB10: 8191.34879 | AC10: 7793.648645 | AD10: 7406.383187 | AE10: 7028.997921 | AF10: 6665.461926
G11: =IF(ROUND(G113-G10,8)=0,"OK","CHECK") -> OK | H11: =IF(ROUND(H113-H10,8)=0,"OK","CHECK") -> OK | I11: OK | J11: OK | K11: OK | L11: OK | M11: OK | N11: OK | O11: OK | P11: OK | Q11: OK | R11: OK | S11: OK | T11: OK | U11: OK | V11: OK | W11: OK | X11: OK | Y11: OK | Z11: OK | AA11: OK | AB11: OK | AC11: OK | AD11: OK | AE11: OK | AF11: OK
B12: Breakdown by asset categories [$M real as at 30 June 2022]
B13: Year ending 30 June | F13: 2006 | G13: 2007 | H13: 2008 | I13: 2009 | J13: 2010 | K13: 2011 | L13: 2012 | M13: 2013 | N13: 2014 | O13: 2015 | P13: 2016 | Q13: 2017 | R13: 2018 | S13: 2019 | T13: 2020 | U13: 2021 | V13: 2022 | W13: 2023 | X13: 2024 | Y13: 2025 | Z13: 2026 | AA13: 2027 | AB13: 2028 | AC13: 2029 | AD13: 2030 | AE13: 2031 | AF13: 2032
B14: Opening balance
B15: Wooden Pole Lines | G15: =F100 -> 665.8246855 | H15: =G100 -> 726.4718979 | I15: 810.5760034 | J15: 946.7184395 | K15: 1064.074699 | L15: 1169.299716 | M15: 1362.955876 | N15: 1652.724859 | O15: 2001.371231 | P15: 2247.680425 | Q15: 2386.373932 | R15: =Q100 -> 2399.523015 | S15: 2475.84078 | T15: 2514.875502 | U15: 2581.839069 | V15: 2679.347852 | W15: 2739.714035 | X15: 2819.438888 | Y15: 2896.410798 | Z15: 2958.673311 | AA15: 3020.026315 | AB15: 3078.249968 | AC15: 2976.922995 | AD15: 2875.596023 | AE15: 2774.269051 | AF15: 2672.942079
B16: Underground Cables | G16: 754.0399778 | H16: =G101 -> 944.8582461 | I16: 1124.998787 | J16: 1377.432665 | K16: 1505.07179 | L16: 1613.782042 | M16: 1691.993203 | N16: 1735.04386 | O16: 1757.695402 | P16: 1778.288015 | Q16: 1794.963919 | R16: 1806.136543 | S16: 1791.964631 | T16: 1778.981182 | U16: 1777.727811 | V16: 1772.739854 | W16: 1764.358834 | X16: 1867.558395 | Y16: 1963.702065 | Z16: 2054.215944 | AA16: 2139.571947 | AB16: 2219.919031 | AC16: 2157.951002 | AD16: 2095.982973 | AE16: 2034.014944 | AF16: 1972.046915
B17: Transformers | G17: 287.0751673 | H17: 337.9311161 | I17: 385.6536069 | J17: 461.6501977 | K17: 493.9791973 | L17: 523.8574067 | M17: 548.4445278 | N17: 663.9074084 | O17: 759.3050285 | P17: 864.1786629 | Q17: 948.8989428 | R17: 1002.851266 | S17: 1015.69724 | T17: 1037.579386 | U17: 1054.202527 | V17: 1059.045335 | W17: 1100.316091 | X17: 1062.538532 | Y17: 1038.443317 | Z17: 1013.857889 | AA17: 988.5952783 | AB17: 962.8631231 | AC17: 920.9451228 | AD17: 879.0271225 | AE17: 837.1091222 | AF17: 795.191122
B18: Switchgear | G18: 153.0141515 | H18: 194.5614482 | I18: 243.3003185 | J18: 317.565701 | K18: 359.9118528 | L18: 400.2206732 | M18: 452.6754592 | N18: 510.1331265 | O18: 561.6305586 | P18: 613.5043444 | Q18: 647.4288438 | R18: 665.0978429 | S18: 664.7693932 | T18: 668.2125651 | U18: 674.1299173 | V18: 680.2506222 | W18: 708.7717055 | X18: 711.9582104 | Y18: 715.1639666 | Z18: 717.726893 | AA18: 718.1381956 | AB18: 717.6783666 | AC18: 685.8676283 | AD18: 654.0568901 | AE18: 622.2461518 | AF18: 590.4354136
B19: Street lighting | G19: 7.405684605 | H19: 22.04343866 | I19: 40.7178275 | J19: 69.61672038 | K19: 83.01081275 | L19: 95.94298256 | M19: 105.3892632 | N19: 105.0441742 | O19: 104.0210986 | P19: 103.9733633 | Q19: 103.7291228 | R19: 101.8782163 | S19: 97.61284479 | T19: 93.50373764 | U19: 88.96195696 | V19: 83.96945616 | W19: 80.53532551 | X19: 86.67305841 | Y19: 92.56034668 | Z19: 97.87488363 | AA19: 101.8993478 | AB19: 105.250587 | AC19: 94.01550636 | AD19: 83.82155655 | AE19: 75.15814408 | AF19: 67.36002697
B20: Meters and Services | G20: 236.9814636 | H20: 224.371016 | I20: 213.0261266 | J20: 202.969011 | K20: 189.4809855 | L20: 180.6967735 | M20: 171.9017802 | N20: 155.6316909 | O20: 135.3045198 | P20: 115.1347788 | Q20: 125.1423641 | R20: 135.4068201 | S20: 141.4557957 | T20: 156.4337084 | U20: 174.3650531 | V20: 179.5563066 | W20: 185.5257432 | X20: 237.7685734 | Y20: 283.3748953 | Z20: 332.4707905 | AA20: 368.6436907 | AB20: 395.3186557 | AC20: 356.764303 | AD20: 319.1662089 | AE20: 281.6847589 | AF20: 244.75958
B21: IT | G21: 21.71750966 | H21: 41.54935958 | I21: 76.91252139 | J21: 94.17718498 | K21: 98.98504006 | L21: 112.8089875 | M21: 131.9450048 | N21: 135.8835973 | O21: 127.5211558 | P21: 122.3840939 | Q21: 105.4522334 | R21: 107.0247367 | S21: 108.1279713 | T21: 109.8222771 | U21: 110.7560596 | V21: 106.2284543 | W21: 109.8373396 | X21: 123.0515247 | Y21: 145.8304821 | Z21: 157.7822838 | AA21: 180.5896462 | AB21: 191.6648957 | AC21: 139.2292901 | AD21: 94.53440597 | AE21: 57.67912699 | AF21: 29.39216547
B22: SCADA & Communications | G22: 18.06912664 | H22: 19.13892341 | I22: 19.8643993 | J22: 20.31756846 | K22: 22.00286913 | L22: 22.70437053 | M22: 24.53342987 | N22: 24.5909468 | O22: 23.08565432 | P22: 19.75529487 | Q22: 15.60110799 | R22: 12.97422544 | S22: 19.38684208 | T22: 23.02817734 | U22: 36.90164271 | V22: 52.87106495 | W22: 63.94349829 | X22: 93.65925386 | Y22: 119.6798094 | Z22: 147.579782 | AA22: 179.3605916 | AB22: 208.7631493 | AC22: 180.8388016 | AD22: 152.475264 | AE22: 125.0596275 | AF22: 97.53429896
B23: Other Distribution Non-Network | G23: 72.16402906 | H23: 76.90757148 | I23: 79.54797816 | J23: 98.38924439 | K23: 101.84003 | L23: 114.2813544 | M23: 125.1986781 | N23: 129.079092 | O23: 111.9739559 | P23: 101.3443855 | Q23: 87.52791378 | R23: 67.2743789 | S23: 67.68955935 | T23: 70.35745269 | U23: 82.21837608 | V23: 74.87058144 | W23: 102.9201548 | X23: 136.0423433 | Y23: 176.1274816 | Z23: 228.7349954 | AA23: 246.9798539 | AB23: 264.8445711 | AC23: 253.0775689 | AD23: 241.40084 | AE23: 229.724111 | AF23: 218.047382
B24: Distribution Land & Easements | G24: 30.17624154 | H24: 29.91254656 | I24: 29.91254656 | J24: 29.91254656 | K24: 29.91254656 | L24: 29.91132732 | M24: 28.44143025 | N24: 27.48221915 | O24: 27.44680306 | P24: 23.45595588 | Q24: 23.45595588 | R24: 23.11284505 | S24: 30.31776728 | T24: 41.23790583 | U24: 57.76094447 | V24: 62.80793716 | W24: 90.1217998 | X24: 90.1217998 | Y24: 90.1217998 | Z24: 90.1217998 | AA24: 90.1217998 | AB24: 90.1217998 | AC24: 90.1217998 | AD24: 90.1217998 | AE24: 90.1217998 | AF24: 90.1217998
B25: Equity Raising Costs | G25: 0 | H25: 0 | I25: 0 | J25: 0 | K25: 0 | L25: 0 | M25: 0 | N25: 6.454978538 | O25: 11.4366083 | P25: 15.15429543 | Q25: 16.2863621 | R25: 15.89738492 | S25: 15.46585711 | T25: 15.0343293 | U25: 14.60280149 | V25: 14.17127368 | W25: 13.73974587 | X25: 13.5142074 | Y25: 13.11701114 | Z25: 12.71981489 | AA25: 12.32261863 | AB25: =AA110 -> 11.92542238 | AC25: =AB110 -> 11.52822612 | AD25: =AC110 -> 11.13102987 | AE25: =AD110 -> 10.73383361 | AF25: =AE110 -> 10.33663736
B26: Standalone Power Systems | G26: =F111 -> 0 | H26: =G111 -> 0 | I26: =H111 -> 0 | J26: =I111 -> 0 | K26: =J111 -> 0 | L26: =K111 -> 0 | M26: =L111 -> 0 | N26: =M111 -> 0 | O26: =N111 -> 0 | P26: =O111 -> 0 | Q26: =P111 -> 0 | R26: =Q111 -> 0 | S26: =R111 -> 0 | T26: =S111 -> 0 | U26: =T111 -> 0 | V26: =U111 -> 23.561896 | W26: =V111 -> 44.55153617 | X26: =W111 -> 114.2610332 | Y26: =X111 -> 181.9623302 | Z26: =Y111 -> 245.6828507 | AA26: =Z111 -> 301.061661 | AB26: =AA111 -> 351.8290303 | AC26: 324.0782047 | AD26: 296.3273791 | AE26: 268.5765534 | AF26: 240.8257278
B27: Storage | G27: 0 | H27: 0 | I27: 0 | J27: 0 | K27: 0 | L27: 0 | M27: =L112 -> 0 | N27: 0 | O27: 0 | P27: 0 | Q27: 0 | R27: 0 | S27: 0 | T27: 0 | U27: 0 | V27: 0 | W27: 0 | X27: 0.002361223105 | Y27: 0.004456252969 | Z27: 0.006382796408 | AA27: 0.008077492782 | AB27: =AA112 -> 0.009530682944 | AC27: 0.008341280421 | AD27: 0.007151877898 | AE27: 0.005962475375 | AF27: 0.004773072851
B28: Total | G28: =SUM(G15:G27) -> 2246.468037 | H28: =SUM(H15:H27) -> 2617.745564 | I28: 3024.510116 | J28: 3618.749279 | K28: 3948.269823 | L28: 4263.505634 | M28: 4643.478653 | N28: 5145.975953 | O28: 5620.792016 | P28: 6004.853615 | Q28: 6254.860698 | R28: 6337.177275 | S28: 6428.328681 | T28: 6509.066223 | U28: 6653.466159 | V28: 6789.420633 | W28: 7004.335809 | X28: 7356.588181 | Y28: 7716.498759 | Z28: 8057.44762 | AA28: 8347.319023 | AB28: 8598.43813 | AC28: 8191.34879 | AD28: 7793.648645 | AE28: 7406.383187 | AF28: 7028.997921
B30: Year ending 30 June | F30: 2006 | G30: 2007 | H30: 2008 | I30: 2009 | J30: 2010 | K30: 2011 | L30: 2012 | M30: 2013 | N30: 2014 | O30: 2015 | P30: 2016 | Q30: 2017 | R30: 2018 | S30: 2019 | T30: 2020 | U30: 2021 | V30: 2022 | W30: 2023 | X30: 2024 | Y30: 2025 | Z30: 2026 | AA30: 2027 | AB30: 2028 | AC30: 2029 | AD30: 2030 | AE30: 2031 | AF30: 2032
B31: Capital expenditure
B32: Wooden Pole Lines | G32: =G221 -> 110.618564 | H32: =H221 -> 135.4277944 | I32: 189.5846736 | J32: 176.772669 | K32: 168.8565917 | L32: 264.279233 | M32: 362.0543184 | N32: 425.5865518 | O32: 332.105958 | P32: 231.8842514 | Q32: 114.8070127 | R32: 184.1983226 | S32: 152.1029981 | T32: 180.5188831 | U32: 188.6407716 | V32: 140.4983011 | W32: 161.8322622 | X32: 163.0264477 | Y32: 152.2933052 | Z32: 155.0982672 | AA32: 155.7518008 | AB32: 0 | AC32: 0 | AD32: 0 | AE32: 0 | AF32: 0
B33: Underground Cables | G33: 211.252956 | H33: =H222 -> 202.9653965 | I33: 278.0380349 | J33: 159.6606371 | K33: 143.1614804 | L33: 115.4988018 | M33: 82.04452667 | N33: 63.06882429 | O33: 62.38883459 | P33: 59.84961459 | Q33: 55.71421846 | R33: 30.16721702 | S33: 32.45342907 | T33: 45.35237138 | U33: 42.60743106 | V33: 40.04318419 | W33: 150.7157515 | X33: 146.6741739 | Y33: 143.9778673 | Z33: 141.6995489 | AA33: 139.5246201 | AB33: 0 | AC33: 0 | AD33: 0 | AE33: 0 | AF33: 0
B34: Transformers | G34: 68.92337912 | H34: 66.79949563 | I34: 96.38832814 | J34: 56.80293098 | K34: 55.74637709 | L34: 52.0963035 | M34: 144.2275486 | N34: 127.5480297 | O34: 140.96735 | P34: 124.8564174 | Q34: 97.87614146 | R34: 59.24628236 | S34: 71.79684192 | T34: 68.22890612 | U34: 58.22880149 | V34: 97.44693997 | W34: 15.99516723 | X34: 16.00914681 | Y34: 15.97633805 | Z34: 15.75562232 | AA34: 15.73623826 | AB34: 0 | AC34: 0 | AD34: 0 | AE34: 0 | AF34: 0
B35: Switchgear | G35: 53.15220685 | H35: 61.18869509 | I35: 88.00446385 | J35: 59.69491454 | K35: 59.26881557 | L35: 73.54424069 | M35: 80.16737479 | N35: 76.2084702 | O35: 78.71472925 | P35: 62.92452991 | Q35: 48.58042571 | R35: 32.32840617 | S35: 37.50561725 | T35: 35.17275732 | U35: 31.54010783 | V35: 55.32256823 | W35: 29.90768089 | X35: 30.9238548 | Y35: 31.31182022 | Z35: 30.20392368 | AA35: 30.33958959 | AB35: 0 | AC35: 0 | AD35: 0 | AE35: 0 | AF35: 0
B36: Street lighting | G36: 20.80915789 | H36: 20.70100422 | I36: 30.61074678 | J36: 17.03378764 | K36: 17.30110064 | L36: 14.62479531 | M36: 5.759116005 | N36: 5.345570618 | O36: 6.568146152 | P36: 6.609305704 | Q36: 5.217433602 | R36: 3.339398183 | S36: 3.711815115 | T36: 3.520744713 | U36: 3.31165521 | V36: 5.104108028 | W36: 14.6918887 | X36: 15.17603851 | Y36: 15.36208911 | Z36: 14.84012078 | AA36: 14.90890182 | AB36: 0 | AC36: 0 | AD36: 0 | AE36: 0 | AF36: 0
B37: Meters and Services | G37: 13.1484071 | H37: 14.6628725 | I37: 16.43609098 | J37: 14.06902479 | K37: 19.40895224 | L37: 20.04016081 | M37: 13.42690677 | N37: 10.09684054 | O37: 13.15330786 | P37: 25.68444186 | Q37: 23.3589166 | R37: 14.82462794 | S37: 25.01686364 | T37: 29.68955117 | U37: 19.00500073 | V37: 21.86731784 | W37: 68.37870659 | X37: 66.30077875 | Y37: 74.21040394 | Z37: 66.23476925 | AA37: 61.15248537 | AB37: 0 | AC37: 0 | AD37: 0 | AE37: 0 | AF37: 0
B38: IT | G38: 22.04792233 | H38: 40.17508816 | I38: 24.31163593 | J38: 16.65896058 | K38: 26.92844865 | L38: 35.21467762 | M38: 22.03167726 | N38: 14.88960808 | O38: 23.08523899 | P38: 13.81534433 | Q38: 33.82359758 | R38: 28.32538221 | S38: 31.55883296 | T38: 34.30802058 | U38: 33.0134728 | V38: 38.58399657 | W38: 47.03763076 | X38: 51.40990477 | Y38: 51.27044477 | Z38: 60.54965586 | AA38: 57.90166848 | AB38: 0 | AC38: 0 | AD38: 0 | AE38: 0 | AF38: 0
B39: SCADA & Communications | G39: 2.841279779 | H39: 2.791022576 | I39: 2.755367773 | J39: 4.282964339 | K39: 4.033280099 | L39: 5.987137811 | M39: 3.939515752 | N39: 3.090510496 | O39: 3.013787403 | P39: 4.124216168 | Q39: 5.534532059 | R39: 6.311003098 | S39: 6.62967556 | T39: 16.99266518 | U39: 19.24461825 | V39: 14.45222538 | W39: 37.10191386 | X39: 36.81633238 | Y39: 42.29124058 | Z39: 50.33460129 | AA39: 52.65157134 | AB39: 0 | AC39: 0 | AD39: 0 | AE39: 0 | AF39: 0
B40: Other Distribution Non-Network | G40: 11.12973968 | H40: 10.73109419 | I40: 28.89208907 | J40: 14.58439219 | K40: 25.48438467 | L40: 27.38330723 | M40: 21.49226091 | N40: 2.875557702 | O40: 11.72156611 | P40: 13.10207102 | Q40: 5.732350049 | R40: 11.98017569 | S40: 17.30815297 | T40: 24.78455795 | U40: 7.742019363 | V40: 41.14608634 | W40: 42.12886151 | X40: 48.6123927 | Y40: 62.62884374 | Z40: 29.71740698 | AA40: 29.22318466 | AB40: 0 | AC40: 0 | AD40: 0 | AE40: 0 | AF40: 0
B41: Distribution Land & Easements | G41: 0 | H41: 0 | I41: 0 | J41: 0 | K41: 0 | L41: 0 | M41: 0 | N41: 0 | O41: 0 | P41: 0 | Q41: 0 | R41: 7.986783795 | S41: 11.53876865 | T41: 16.52303863 | U41: 5.161346242 | V41: 27.43072422 | W41: 0 | X41: 0 | Y41: 0 | Z41: 0 | AA41: 0 | AB41: 0 | AC41: 0 | AD41: 0 | AE41: 0 | AF41: 0
B42: Equity Raising Costs | G42: 0 | H42: 0 | I42: 0 | J42: 0 | K42: 0 | L42: 0 | M42: 6.454978538 | N42: 5.119008175 | O42: 3.972752042 | P42: 1.481484606 | Q42: 0 | R42: 0 | S42: 0 | T42: 0 | U42: 0 | V42: 0 | W42: 0 | X42: 0 | Y42: 0 | Z42: 0 | AA42: 0 | AB42: =AB231 -> 0 | AC42: =AC231 -> 0 | AD42: =AD231 -> 0 | AE42: =AE231 -> 0 | AF42: =AF231 -> 0
B43: Standalone Power Systems | G43: 0 | H43: 0 | I43: 0 | J43: 0 | K43: 0 | L43: 0 | M43: 0 | N43: 0 | O43: 0 | P43: 0 | Q43: 0 | R43: 0 | S43: 0 | T43: 0 | U43: 23.561896 | V43: 20.98964017 | W43: =W232 -> 72.67959943 | X43: 75.51670607 | Y43: 76.57037661 | Z43: 73.33335814 | AA43: 73.61080774 | AB43: 0 | AC43: 0 | AD43: 0 | AE43: 0 | AF43: 0
B44: Storage | G44: =G233 -> 0 | H44: 0 | I44: 0 | J44: 0 | K44: 0 | L44: 0 | M44: 0 | N44: 0 | O44: 0 | P44: 0 | Q44: 0 | R44: 0 | S44: 0 | T44: 0 | U44: 0 | V44: 0 | W44: 0.002361223105 | X44: 0.002331152175 | Y44: 0.002395780968 | Z44: 0.002403511998 | AA44: 0.002402356987 | AB44: 0 | AC44: 0 | AD44: 0 | AE44: 0 | AF44: 0
B45: Total | G45: =SUM(G32:G44) -> 513.9236128 | H45: =SUM(H32:H44) -> 555.4424632 | I45: 755.021431 | J45: 519.5602812 | K45: 520.1894311 | L45: 608.6686578 | M45: 741.5982237 | N45: 733.8289716 | O45: 675.6916703 | P45: 544.331677 | Q45: 390.6446282 | R45: 378.7075991 | S45: 389.6229952 | T45: 455.0914962 | U45: 432.0571206 | V45: 502.885092 | W45: 640.4718238 | X45: 650.4681075 | Y45: 665.8951253 | Z45: 637.7696779 | AA45: 630.8032706 | AB45: 0 | AC45: 0 | AD45: 0 | AE45: 0 | AF45: 0
B47: Year ending 30 June | F47: 2006 | G47: 2007 | H47: 2008 | I47: 2009 | J47: 2010 | K47: 2011 | L47: 2012 | M47: 2013 | N47: 2014 | O47: 2015 | P47: 2016 | Q47: 2017 | R47: 2018 | S47: 2019 | T47: 2020 | U47: 2021 | V47: 2022 | W47: 2023 | X47: 2024 | Y47: 2025 | Z47: 2026 | AA47: 2027 | AB47: 2028 | AC47: 2029 | AD47: 2030 | AE47: 2031 | AF47: 2032
B48: Disposals/Redundant assets
B49: Wooden Pole Lines | G49: =SUM(G169,G255) -> 0 | H49: 0 | I49: 0 | J49: 0 | K49: 0 | L49: -1.146460529 | M49: 0 | N49: -0.2901834153 | O49: -1.39893487 | P49: -0.1478768678 | Q49: 0 | R49: -0.1000105537 | S49: 0 | T49: -0.6303112615 | U49: 0 | V49: 0 | W49: 0 | X49: 0 | Y49: 0 | Z49: 0 | AA49: 0 | AB49: 0 | AC49: 0 | AD49: 0 | AE49: 0 | AF49: 0
B50: Underground Cables | G50: =SUM(G170,G256) -> 0 | H50: =SUM(H170,H256) -> 0 | I50: 0 | J50: 0 | K50: 0 | L50: 0 | M50: 0 | N50: 0 | O50: 0 | P50: 0 | Q50: 0 | R50: 0 | S50: 0 | T50: 0 | U50: 0 | V50: 0 | W50: =SUM(W170,W256) -> 0 | X50: 0 | Y50: 0 | Z50: 0 | AA50: 0 | AB50: 0 | AC50: 0 | AD50: 0 | AE50: 0 | AF50: 0
B51: Transformers | G51: 0 | H51: =SUM(H171,H257) -> 0 | I51: 0 | J51: 0 | K51: 0 | L51: 0 | M51: 0 | N51: 0 | O51: 0 | P51: 0 | Q51: 0 | R51: 0 | S51: 0 | T51: 0 | U51: 0 | V51: 0 | W51: =SUM(W171,W257) -> 0 | X51: 0 | Y51: 0 | Z51: 0 | AA51: 0 | AB51: 0 | AC51: 0 | AD51: 0 | AE51: 0 | AF51: 0
B52: Switchgear | G52: 0 | H52: =SUM(H172,H258) -> 0 | I52: 0 | J52: 0 | K52: 0 | L52: 0 | M52: 0 | N52: 0 | O52: 0 | P52: 0 | Q52: 0 | R52: 0 | S52: 0 | T52: 0 | U52: 0 | V52: 0 | W52: =SUM(W172,W258) -> 0 | X52: 0 | Y52: 0 | Z52: 0 | AA52: 0 | AB52: 0 | AC52: 0 | AD52: 0 | AE52: 0 | AF52: 0
B53: Street lighting | G53: 0 | H53: =SUM(H173,H259) -> 0 | I53: 0 | J53: 0 | K53: 0 | L53: 0 | M53: 0 | N53: 0 | O53: 0 | P53: 0 | Q53: 0 | R53: 0 | S53: 0 | T53: 0 | U53: 0 | V53: 0 | W53: =SUM(W173,W259) -> 0 | X53: 0 | Y53: 0 | Z53: 0 | AA53: 0 | AB53: 0 | AC53: 0 | AD53: 0 | AE53: 0 | AF53: 0
B54: Meters and Services | G54: 0 | H54: =SUM(H174,H260) -> 0 | I54: 0 | J54: 0 | K54: 0 | L54: 0 | M54: 0 | N54: 0 | O54: 0 | P54: 0 | Q54: 0 | R54: 0 | S54: 0 | T54: 0 | U54: 0 | V54: 0 | W54: =SUM(W174,W260) -> 0 | X54: 0 | Y54: 0 | Z54: 0 | AA54: 0 | AB54: 0 | AC54: 0 | AD54: 0 | AE54: 0 | AF54: 0
B55: IT | G55: 0 | H55: =SUM(H175,H261) -> 0 | I55: 0 | J55: -1.034516968 | K55: 0 | L55: -0.08538045294 | M55: 0 | N55: 0 | O55: 0 | P55: 0 | Q55: 0 | R55: 0 | S55: 0 | T55: 0 | U55: 0 | V55: 0 | W55: =SUM(W175,W261) -> 0 | X55: 0 | Y55: 0 | Z55: 0 | AA55: 0 | AB55: 0 | AC55: 0 | AD55: 0 | AE55: 0 | AF55: 0
B56: SCADA & Communications | G56: 0 | H56: =SUM(H176,H262) -> 0 | I56: 0 | J56: 0 | K56: 0 | L56: 0 | M56: 0 | N56: 0 | O56: 0 | P56: 0 | Q56: 0 | R56: 0 | S56: 0 | T56: 0 | U56: 0 | V56: 0 | W56: =SUM(W176,W262) -> 0 | X56: 0 | Y56: 0 | Z56: 0 | AA56: 0 | AB56: 0 | AC56: 0 | AD56: 0 | AE56: 0 | AF56: 0
B57: Other Distribution Non-Network | G57: 0 | H57: =SUM(H177,H263) -> 0 | I57: 0 | J57: 0 | K57: 0 | L57: 0 | M57: -0.05527705456 | N57: 0 | O57: 0 | P57: -2.924411301 | Q57: -0.332293395 | R57: -0.6631073784 | S57: 0 | T57: 0 | U57: -1.527307249 | V57: -1.560804523 | W57: =SUM(W177,W263) -> 0 | X57: 0 | Y57: 0 | Z57: 0 | AA57: 0 | AB57: 0 | AC57: 0 | AD57: 0 | AE57: 0 | AF57: 0
B58: Distribution Land & Easements | G58: -0.2636949801 | H58: =SUM(H178,H264) -> 0 | I58: 0 | J58: 0 | K58: -0.001219231876 | L58: -1.46989707 | M58: -0.9592111043 | N58: -0.03541608612 | O58: -3.990847184 | P58: 0 | Q58: -0.343110834 | R58: -0.7818615596 | S58: -0.6186300962 | T58: 0 | U58: -0.1143535512 | V58: -0.1168615812 | W58: =SUM(W178,W264) -> 0 | X58: 0 | Y58: 0 | Z58: 0 | AA58: 0 | AB58: 0 | AC58: 0 | AD58: 0 | AE58: 0 | AF58: 0
B59: Equity Raising Costs | G59: 0 | H59: =SUM(H179,H265) -> 0 | I59: 0 | J59: 0 | K59: 0 | L59: 0 | M59: 0 | N59: 0 | O59: 0 | P59: 0 | Q59: 0 | R59: 0 | S59: 0 | T59: 0 | U59: 0 | V59: 0 | W59: =SUM(W179,W265) -> 0 | X59: 0 | Y59: 0 | Z59: 0 | AA59: 0 | AB59: 0 | AC59: 0 | AD59: 0 | AE59: 0 | AF59: 0
B60: Standalone Power Systems | G60: 0 | H60: =SUM(H180,H266) -> 0 | I60: 0 | J60: 0 | K60: 0 | L60: 0 | M60: 0 | N60: 0 | O60: 0 | P60: 0 | Q60: 0 | R60: 0 | S60: 0 | T60: 0 | U60: 0 | V60: 0 | W60: 0 | X60: 0 | Y60: 0 | Z60: 0 | AA60: 0 | AB60: 0 | AC60: 0 | AD60: 0 | AE60: 0 | AF60: 0
B61: Storage | G61: =SUM(G181,G267) -> 0 | H61: 0 | I61: 0 | J61: 0 | K61: 0 | L61: 0 | M61: 0 | N61: 0 | O61: 0 | P61: 0 | Q61: 0 | R61: 0 | S61: 0 | T61: 0 | U61: 0 | V61: 0 | W61: 0 | X61: 0 | Y61: 0 | Z61: 0 | AA61: 0 | AB61: 0 | AC61: 0 | AD61: 0 | AE61: 0 | AF61: 0
B62: Total | G62: =SUM(G49:G61) -> -0.2636949801 | H62: =SUM(H49:H61) -> 0 | I62: 0 | J62: -1.034516968 | K62: -0.001219231876 | L62: -2.701738052 | M62: -1.014488159 | N62: -0.3255995014 | O62: -5.389782055 | P62: -3.072288169 | Q62: -0.675404229 | R62: -1.544979492 | S62: -0.6186300962 | T62: -0.6303112615 | U62: -1.6416608 | V62: -1.677666105 | W62: 0 | X62: 0 | Y62: 0 | Z62: 0 | AA62: 0 | AB62: 0 | AC62: 0 | AD62: 0 | AE62: 0 | AF62: 0
B64: Year ending 30 June | F64: 2006 | G64: 2007 | H64: 2008 | I64: 2009 | J64: 2010 | K64: 2011 | L64: 2012 | M64: 2013 | N64: 2014 | O64: 2015 | P64: 2016 | Q64: 2017 | R64: 2018 | S64: 2019 | T64: 2020 | U64: 2021 | V64: 2022 | W64: 2023 | X64: 2024 | Y64: 2025 | Z64: 2026 | AA64: 2027 | AB64: 2028 | AC64: 2029 | AD64: 2030 | AE64: 2031 | AF64: 2032
B65: Depreciation
B66: Wooden Pole Lines | G66: =SUM(G135,G238) -> -45.91894383 | H66: -47.44608112 | I66: -49.62035579 | J66: -55.66644258 | K66: -59.9659181 | L66: -65.90732551 | M66: -69.17155036 | N66: -76.23235609 | O66: -84.39782932 | P66: -93.04286701 | Q66: -101.6579298 | R66: -104.1483428 | S66: -108.2269723 | T66: -109.6766086 | U66: -91.13198909 | V66: -80.13211741 | W66: -82.1074093 | X66: -86.05453765 | Y66: -90.03079247 | Z66: -93.74526333 | AA66: -97.52814789 | AB66: -101.3269723 | AC66: -101.3269723 | AD66: -101.3269723 | AE66: -101.3269723 | AF66: -101.3269723
B67: Underground Cables | G67: =SUM(G136,G239) -> -20.43468774 | H67: -22.8248551 | I67: -25.60415735 | J67: -32.02151242 | K67: -34.45122767 | L67: -37.28764138 | M67: -38.99386973 | N67: =SUM(N136,N239) -> -40.41728212 | O67: -41.79622133 | P67: -43.17371047 | Q67: -44.54159443 | R67: -44.33912913 | S67: -45.43687848 | T67: -46.60574214 | U67: -47.59538823 | V67: -48.42420448 | W67: =SUM(W136,W239) -> -47.51618967 | X67: -50.5305047 | Y67: -53.46398818 | Z67: -56.34354552 | AA67: -59.1775365 | AB67: -61.96802891 | AC67: -61.96802891 | AD67: -61.96802891 | AE67: -61.96802891 | AF67: -61.96802891
B68: Transformers | G68: -16.98669629 | H68: -18.04288802 | I68: -19.37248208 | J68: -23.47394022 | K68: -24.89065918 | L68: -26.55737281 | M68: -27.9343252 | N68: =SUM(N137,N240) -> -32.0390389 | O68: -36.09371559 | P68: -40.1361375 | Q68: -43.92381794 | R68: -45.93860324 | S68: -48.43040806 | T68: -50.8432275 | U68: -53.38599403 | V68: -56.1761835 | W68: =SUM(W137,W240) -> -53.77272655 | X68: -40.10436184 | Y68: -40.56176604 | Z68: -41.01823284 | AA68: -41.46839348 | AB68: -41.91800028 | AC68: -41.91800028 | AD68: -41.91800028 | AE68: -41.91800028 | AF68: -41.91800028
B69: Switchgear | G69: -11.33438159 | H69: -12.19096542 | I69: -13.48394212 | J69: -17.09876496 | K69: -18.715618 | L69: -20.8515023 | M69: -22.50212174 | N69: =SUM(N138,N241) -> -24.68319541 | O69: -26.84094351 | P69: -29.00003053 | Q69: -30.91142658 | R69: -32.38132624 | S69: -33.48905791 | T69: -28.89864914 | U69: -25.41940294 | V69: -26.80148495 | W69: =SUM(W138,W241) -> -26.72117594 | X69: -27.71809864 | Y69: -28.7488938 | Z69: -29.79262114 | AA69: -30.79941859 | AB69: -31.81073825 | AC69: -31.81073825 | AD69: -31.81073825 | AE69: -31.81073825 | AF69: -31.81073825
B70: Street lighting | G70: -6.171403838 | H70: -2.026615371 | I70: -1.711853897 | J70: -3.639695273 | K70: -4.368930837 | L70: -5.178514703 | M70: -6.104204968 | N70: =SUM(N139,N242) -> -6.368646257 | O70: -6.61588141 | P70: -6.853546239 | Q70: -7.068340029 | R70: -7.604769738 | S70: -7.82092227 | T70: -8.062525393 | U70: -8.304156006 | V70: -8.538238677 | W70: =SUM(W139,W242) -> -8.5541558 | X70: -9.288750235 | Y70: -10.04755216 | Z70: -10.81565662 | AA70: -11.55766265 | AB70: -11.2350806 | AC70: -10.19394981 | AD70: -8.663412472 | AE70: -7.79811711 | AF70: -6.930142543
B71: Meters and Services | G71: -25.75885474 | H71: -26.00776188 | I71: -26.49320662 | J71: -27.55705031 | K71: -28.19316421 | L71: -28.83515414 | M71: -29.69699599 | N71: =SUM(N140,N243) -> -30.42401168 | O71: -33.32304885 | P71: -15.67685656 | Q71: -13.09446059 | R71: -8.77565233 | S71: -10.038951 | T71: -11.75820643 | U71: -13.81374724 | V71: -15.8978812 | W71: =SUM(W140,W243) -> -16.13587642 | X71: -20.69445686 | Y71: -25.11450877 | Z71: -30.06186904 | AA71: -34.47752032 | AB71: -38.55435268 | AC71: -37.59809413 | AD71: -37.48145005 | AE71: -36.92517891 | AF71: -35.2741027
B72: IT | G72: -2.216072415 | H72: -4.811926347 | I72: -7.046972336 | J72: -10.81658852 | K72: -13.10450121 | L72: -15.99327984 | M72: -18.09308475 | N72: =SUM(N141,N244) -> -23.25204965 | O72: -28.22230089 | P72: -30.74720481 | Q72: -32.25109427 | R72: -27.22214758 | S72: -29.86452723 | T72: -33.37423801 | U72: -37.54107817 | V72: -34.97511125 | W72: =SUM(W141,W244) -> -33.82344563 | X72: -28.6309474 | Y72: -39.31864307 | Z72: -37.74229342 | AA72: -46.826419 | AB72: -52.43560561 | AC72: -44.69488411 | AD72: -36.85527898 | AE72: -28.28696152 | AF72: -19.74188739
B73: SCADA & Communications | G73: -1.771483004 | H73: -2.06554669 | I73: -2.302198618 | J73: -2.597663662 | K73: -3.3317787 | L73: -4.158078471 | M73: -3.881998827 | N73: =SUM(N142,N245) -> -4.595802975 | O73: -6.344146851 | P73: -8.27840305 | Q73: -8.161414605 | R73: 0.1016135351 | S73: -2.988340299 | T73: -3.119199802 | U73: -3.275196005 | V73: -3.379792042 | W73: =SUM(W142,W245) -> -7.386158291 | X73: -10.79577686 | Y73: -14.391268 | Z73: -18.55379168 | AA73: -23.24901362 | AB73: -27.92434764 | AC73: -28.36353766 | AD73: -27.41563653 | AE73: -27.5253285 | AF73: -24.74018245
B74: Other Distribution Non-Network | G74: -6.386197262 | H74: -8.090687508 | I74: -10.05082284 | J74: -11.13360655 | K74: -13.04306034 | L74: -16.46598347 | M74: -17.55657003 | N74: =SUM(N143,N246) -> -19.98069374 | O74: -22.3511365 | P74: -23.99413147 | Q74: -25.65359154 | R74: -10.90188786 | S74: -14.64025963 | T74: -12.92363457 | U74: -13.56250675 | V74: -11.53570849 | W74: =SUM(W143,W246) -> -9.006672969 | X74: -8.52725443 | Y74: -10.02132988 | Z74: -11.47254856 | AA74: -11.3584674 | AB74: -11.76700219 | AC74: -11.67672896 | AD74: -11.67672896 | AE74: -11.67672896 | AF74: -11.67672896
B75: Distribution Land & Easements | G75: 0 | H75: 0 | I75: 0 | J75: 0 | K75: 0 | L75: 0 | M75: 0 | N75: =SUM(N144,N247) -> 0 | O75: 0 | P75: 0 | Q75: 0 | R75: 0 | S75: 0 | T75: 0 | U75: 0 | V75: 0 | W75: =SUM(W144,W247) -> 0 | X75: 0 | Y75: 0 | Z75: 0 | AA75: 0 | AB75: 0 | AC75: 0 | AD75: 0 | AE75: 0 | AF75: 0
B76: Equity Raising Costs | G76: 0 | H76: 0 | I76: 0 | J76: 0 | K76: 0 | L76: 0 | M76: 0 | N76: =SUM(N145,N248) -> -0.1373784122 | O76: -0.2550649176 | P76: -0.3494179354 | Q76: -0.3889771731 | R76: -0.431527811 | S76: -0.431527811 | T76: -0.431527811 | U76: -0.431527811 | V76: -0.431527811 | W76: =SUM(W145,W248) -> -0.2255384726 | X76: -0.3971962546 | Y76: -0.3971962546 | Z76: -0.3971962546 | AA76: -0.3971962546 | AB76: -0.3971962546 | AC76: -0.3971962546 | AD76: -0.3971962546 | AE76: -0.3971962546 | AF76: -0.3971962546
B77: Standalone Power Systems | G77: =SUM(G146,G249) -> 0 | H77: 0 | I77: 0 | J77: 0 | K77: 0 | L77: 0 | M77: 0 | N77: 0 | O77: 0 | P77: 0 | Q77: 0 | R77: 0 | S77: 0 | T77: 0 | U77: 0 | V77: 0 | W77: -2.970102411 | X77: -7.81540904 | Y77: -12.84985611 | Z77: -17.95454789 | AA77: -22.84343843 | AB77: -27.75082561 | AC77: -27.75082561 | AD77: -27.75082561 | AE77: -27.75082561 | AF77: -27.75082561
B78: Storage | G78: =SUM(G147,G250) -> 0 | H78: 0 | I78: 0 | J78: 0 | K78: 0 | L78: 0 | M78: 0 | N78: 0 | O78: 0 | P78: 0 | Q78: 0 | R78: 0 | S78: 0 | T78: 0 | U78: 0 | V78: 0 | W78: 0 | X78: -0.0002361223105 | Y78: -0.0004692375279 | Z78: -0.0007088156247 | AA78: -0.0009491668245 | AB78: -0.001189402523 | AC78: -0.001189402523 | AD78: -0.001189402523 | AE78: -0.001189402523 | AF78: -0.001189402523
B79: Total | G79: =SUM(G66:G78) -> -136.9787207 | H79: =SUM(H66:H78) -> -143.5073275 | I79: -155.6859916 | J79: -184.0052645 | K79: -200.0648582 | L79: -221.2348526 | M79: -233.9347216 | N79: -258.1304552 | O79: -286.2402892 | P79: -291.2523056 | Q79: -307.6526469 | R79: -281.6417732 | S79: -301.367845 | T79: -305.6935594 | U79: -294.4609863 | V79: -286.2922498 | W79: -288.2194515 | X79: -290.55753 | Y79: -324.946264 | Z79: -347.8982751 | AA79: -379.6841633 | AB79: -407.0893397 | AC79: -397.7001457 | AD79: -387.265458 | AE79: -377.385266 | AF79: -363.535995
B81: Year ending 30 June | F81: 2006 | G81: 2007 | H81: 2008 | I81: 2009 | J81: 2010 | K81: 2011 | L81: 2012 | M81: 2013 | N81: 2014 | O81: 2015 | P81: 2016 | Q81: 2017 | R81: 2018 | S81: 2019 | T81: 2020 | U81: 2021 | V81: 2022 | W81: 2023 | X81: 2024 | Y81: 2025 | Z81: 2026 | AA81: 2027 | AB81: 2028 | AC81: 2029 | AD81: 2030 | AE81: 2031 | AF81: 2032
B82: Accelerated depreciation
B83: Wooden Pole Lines | G83: =G152 -> -4.052407821 | H83: =H152 -> -3.877607726 | I83: -3.821881627 | J83: -3.749967011 | K83: -3.665656903 | L83: -3.569286176 | M83: -3.113785356 | N83: -0.4176402838 | O83: 0 | P83: 0 | Q83: 0 | R83: -3.632204862 | S83: -4.841303536 | T83: -3.248396102 | U83: 0 | V83: 0 | W83: 0 | X83: 0 | Y83: 0 | Z83: 0 | AA83: 0 | AB83: 0 | AC83: 0 | AD83: 0 | AE83: 0 | AF83: 0
B84: Underground Cables | G84: =G153 -> 0 | H84: 0 | I84: 0 | J84: 0 | K84: 0 | L84: 0 | M84: 0 | N84: 0 | O84: 0 | P84: 0 | Q84: 0 | R84: 0 | S84: 0 | T84: 0 | U84: 0 | V84: 0 | W84: 0 | X84: 0 | Y84: 0 | Z84: 0 | AA84: 0 | AB84: 0 | AC84: 0 | AD84: 0 | AE84: 0 | AF84: 0
B85: Transformers | G85: =G154 -> -1.080734102 | H85: -1.034116774 | I85: -1.019255216 | J85: -0.999991203 | K85: -0.9775085074 | L85: -0.9518096469 | M85: -0.8303427616 | N85: -0.1113707423 | O85: 0 | P85: 0 | Q85: 0 | R85: -0.4617058566 | S85: -1.484287794 | T85: -0.7625370509 | U85: 0 | V85: 0 | W85: 0 | X85: 0 | Y85: 0 | Z85: 0 | AA85: 0 | AB85: 0 | AC85: 0 | AD85: 0 | AE85: 0 | AF85: 0
B86: Switchgear | G86: =G155 -> -0.2705285875 | H86: -0.2588593714 | I86: -0.2551392367 | J86: -0.2499978008 | K86: -0.2443771268 | L86: -0.2379524117 | M86: -0.2075856904 | N86: -0.02784268559 | O86: 0 | P86: 0 | Q86: 0 | R86: -0.2755296495 | S86: -0.5733874686 | T86: -0.3567559106 | U86: 0 | V86: 0 | W86: 0 | X86: 0 | Y86: 0 | Z86: 0 | AA86: 0 | AB86: 0 | AC86: 0 | AD86: 0 | AE86: 0 | AF86: 0
B87: Street lighting | G87: =G156 -> 0 | H87: 0 | I87: 0 | J87: 0 | K87: 0 | L87: 0 | M87: 0 | N87: 0 | O87: 0 | P87: 0 | Q87: 0 | R87: 0 | S87: 0 | T87: 0 | U87: 0 | V87: 0 | W87: 0 | X87: 0 | Y87: 0 | Z87: 0 | AA87: 0 | AB87: 0 | AC87: 0 | AD87: 0 | AE87: 0 | AF87: 0
B88: Meters and Services | G88: =G157 -> 0 | H88: 0 | I88: 0 | J88: 0 | K88: 0 | L88: 0 | M88: 0 | N88: 0 | O88: 0 | P88: 0 | Q88: 0 | R88: 0 | S88: 0 | T88: 0 | U88: 0 | V88: 0 | W88: 0 | X88: 0 | Y88: 0 | Z88: 0 | AA88: 0 | AB88: 0 | AC88: 0 | AD88: 0 | AE88: 0 | AF88: 0
B89: IT | G89: =G158 -> 0 | H89: 0 | I89: 0 | J89: 0 | K89: 0 | L89: 0 | M89: 0 | N89: 0 | O89: 0 | P89: 0 | Q89: 0 | R89: 0 | S89: 0 | T89: 0 | U89: 0 | V89: 0 | W89: 0 | X89: 0 | Y89: 0 | Z89: 0 | AA89: 0 | AB89: 0 | AC89: 0 | AD89: 0 | AE89: 0 | AF89: 0
B90: SCADA & Communications | G90: =G159 -> 0 | H90: 0 | I90: 0 | J90: 0 | K90: 0 | L90: 0 | M90: 0 | N90: 0 | O90: 0 | P90: 0 | Q90: 0 | R90: 0 | S90: 0 | T90: 0 | U90: 0 | V90: 0 | W90: 0 | X90: 0 | Y90: 0 | Z90: 0 | AA90: 0 | AB90: 0 | AC90: 0 | AD90: 0 | AE90: 0 | AF90: 0
B91: Other Distribution Non-Network | G91: =G160 -> 0 | H91: 0 | I91: 0 | J91: 0 | K91: 0 | L91: 0 | M91: 0 | N91: 0 | O91: 0 | P91: 0 | Q91: 0 | R91: 0 | S91: 0 | T91: 0 | U91: 0 | V91: 0 | W91: 0 | X91: 0 | Y91: 0 | Z91: 0 | AA91: 0 | AB91: 0 | AC91: 0 | AD91: 0 | AE91: 0 | AF91: 0
B92: Distribution Land & Easements | G92: =G161 -> 0 | H92: 0 | I92: 0 | J92: 0 | K92: 0 | L92: 0 | M92: 0 | N92: 0 | O92: 0 | P92: 0 | Q92: 0 | R92: 0 | S92: 0 | T92: 0 | U92: 0 | V92: 0 | W92: 0 | X92: 0 | Y92: 0 | Z92: 0 | AA92: 0 | AB92: 0 | AC92: 0 | AD92: 0 | AE92: 0 | AF92: 0
B93: Equity Raising Costs | G93: =G162 -> 0 | H93: 0 | I93: 0 | J93: 0 | K93: 0 | L93: 0 | M93: 0 | N93: 0 | O93: 0 | P93: 0 | Q93: 0 | R93: 0 | S93: 0 | T93: 0 | U93: 0 | V93: 0 | W93: 0 | X93: 0 | Y93: 0 | Z93: 0 | AA93: 0 | AB93: 0 | AC93: 0 | AD93: 0 | AE93: 0 | AF93: 0
B94: Standalone Power Systems | G94: 0 | H94: =H163 -> 0 | I94: 0 | J94: 0 | K94: 0 | L94: 0 | M94: 0 | N94: 0 | O94: 0 | P94: 0 | Q94: 0 | R94: 0 | S94: 0 | T94: 0 | U94: 0 | V94: 0 | W94: 0 | X94: 0 | Y94: 0 | Z94: 0 | AA94: 0 | AB94: 0 | AC94: 0 | AD94: 0 | AE94: 0 | AF94: 0
B95: Storage | G95: =G164 -> 0 | H95: 0 | I95: 0 | J95: 0 | K95: 0 | L95: 0 | M95: 0 | N95: 0 | O95: 0 | P95: 0 | Q95: 0 | R95: 0 | S95: 0 | T95: 0 | U95: 0 | V95: 0 | W95: 0 | X95: 0 | Y95: 0 | Z95: 0 | AA95: 0 | AB95: 0 | AC95: 0 | AD95: 0 | AE95: 0 | AF95: 0
B96: Total | G96: =SUM(G83:G95) -> -5.40367051 | H96: =SUM(H83:H95) -> -5.170583872 | I96: -5.09627608 | J96: -4.999956015 | K96: -4.887542537 | L96: -4.759048235 | M96: -4.151713808 | N96: -0.5568537117 | O96: 0 | P96: 0 | Q96: 0 | R96: -4.369440368 | S96: -6.898978798 | T96: -4.367689064 | U96: 0 | V96: 0 | W96: 0 | X96: 0 | Y96: 0 | Z96: 0 | AA96: 0 | AB96: 0 | AC96: 0 | AD96: 0 | AE96: 0 | AF96: 0
B98: Year ending 30 June | F98: 2006 | G98: 2007 | H98: 2008 | I98: 2009 | J98: 2010 | K98: 2011 | L98: 2012 | M98: 2013 | N98: 2014 | O98: 2015 | P98: 2016 | Q98: 2017 | R98: 2018 | S98: 2019 | T98: 2020 | U98: 2021 | V98: 2022 | W98: 2023 | X98: 2024 | Y98: 2025 | Z98: 2026 | AA98: 2027 | AB98: 2028 | AC98: 2029 | AD98: 2030 | AE98: 2031 | AF98: 2032
B99: Closing balance
B100: Wooden Pole Lines | F100: =Dx_Inputs!I60 -> 665.8246855 | G100: =SUM(G15,G32,G49,G66,G83) -> 726.4718979 | H100: =SUM(H15,H32,H49,H66,H83) -> 810.5760034 | I100: 946.7184395 | J100: 1064.074699 | K100: 1169.299716 | L100: 1362.955876 | M100: 1652.724859 | N100: 2001.371231 | O100: 2247.680425 | P100: =SUM(P15,P32,P49,P66,P83) -> 2386.373932 | Q100: 2399.523015 | R100: 2475.84078 | S100: 2514.875502 | T100: 2581.839069 | U100: 2679.347852 | V100: 2739.714035 | W100: 2819.438888 | X100: 2896.410798 | Y100: 2958.673311 | Z100: 3020.026315 | AA100: 3078.249968 | AB100: 2976.922995 | AC100: 2875.596023 | AD100: 2774.269051 | AE100: 2672.942079 | AF100: 2571.615106
B101: Underground Cables | F101: =Dx_Inputs!I61 -> 754.0399778 | G101: =SUM(G16,G33,G50,G67,G84) -> 944.8582461 | H101: 1124.998787 | I101: 1377.432665 | J101: 1505.07179 | K101: 1613.782042 | L101: 1691.993203 | M101: 1735.04386 | N101: 1757.695402 | O101: 1778.288015 | P101: 1794.963919 | Q101: 1806.136543 | R101: 1791.964631 | S101: 1778.981182 | T101: 1777.727811 | U101: 1772.739854 | V101: 1764.358834 | W101: 1867.558395 | X101: 1963.702065 | Y101: 2054.215944 | Z101: 2139.571947 | AA101: 2219.919031 | AB101: 2157.951002 | AC101: 2095.982973 | AD101: 2034.014944 | AE101: 1972.046915 | AF101: 1910.078886
B102: Transformers | F102: =Dx_Inputs!I62 -> 287.0751673 | G102: =SUM(G17,G34,G51,G68,G85) -> 337.9311161 | H102: 385.6536069 | I102: 461.6501977 | J102: 493.9791973 | K102: 523.8574067 | L102: 548.4445278 | M102: 663.9074084 | N102: 759.3050285 | O102: 864.1786629 | P102: 948.8989428 | Q102: 1002.851266 | R102: 1015.69724 | S102: 1037.579386 | T102: 1054.202527 | U102: 1059.045335 | V102: 1100.316091 | W102: 1062.538532 | X102: 1038.443317 | Y102: 1013.857889 | Z102: 988.5952783 | AA102: 962.8631231 | AB102: 920.9451228 | AC102: 879.0271225 | AD102: 837.1091222 | AE102: 795.191122 | AF102: 753.2731217
B103: Switchgear | F103: =Dx_Inputs!I63 -> 153.0141515 | G103: =SUM(G18,G35,G52,G69,G86) -> 194.5614482 | H103: 243.3003185 | I103: 317.565701 | J103: 359.9118528 | K103: 400.2206732 | L103: 452.6754592 | M103: 510.1331265 | N103: 561.6305586 | O103: 613.5043444 | P103: 647.4288438 | Q103: 665.0978429 | R103: 664.7693932 | S103: 668.2125651 | T103: 674.1299173 | U103: 680.2506222 | V103: 708.7717055 | W103: 711.9582104 | X103: 715.1639666 | Y103: 717.726893 | Z103: 718.1381956 | AA103: 717.6783666 | AB103: 685.8676283 | AC103: 654.0568901 | AD103: 622.2461518 | AE103: 590.4354136 | AF103: 558.6246753
B104: Street lighting | F104: =Dx_Inputs!I64 -> 7.405684605 | G104: =SUM(G19,G36,G53,G70,G87) -> 22.04343866 | H104: 40.7178275 | I104: 69.61672038 | J104: 83.01081275 | K104: 95.94298256 | L104: 105.3892632 | M104: 105.0441742 | N104: 104.0210986 | O104: 103.9733633 | P104: 103.7291228 | Q104: 101.8782163 | R104: 97.61284479 | S104: 93.50373764 | T104: 88.96195696 | U104: 83.96945616 | V104: 80.53532551 | W104: 86.67305841 | X104: 92.56034668 | Y104: 97.87488363 | Z104: 101.8993478 | AA104: 105.250587 | AB104: 94.01550636 | AC104: 83.82155655 | AD104: 75.15814408 | AE104: 67.36002697 | AF104: 60.42988442
B105: Meters and Services | F105: =Dx_Inputs!I65 -> 236.9814636 | G105: =SUM(G20,G37,G54,G71,G88) -> 224.371016 | H105: 213.0261266 | I105: 202.969011 | J105: 189.4809855 | K105: 180.6967735 | L105: 171.9017802 | M105: 155.6316909 | N105: 135.3045198 | O105: 115.1347788 | P105: 125.1423641 | Q105: 135.4068201 | R105: 141.4557957 | S105: 156.4337084 | T105: 174.3650531 | U105: 179.5563066 | V105: 185.5257432 | W105: 237.7685734 | X105: 283.3748953 | Y105: 332.4707905 | Z105: 368.6436907 | AA105: 395.3186557 | AB105: 356.764303 | AC105: 319.1662089 | AD105: 281.6847589 | AE105: 244.75958 | AF105: 209.4854773
B106: IT | F106: =Dx_Inputs!I66 -> 21.71750966 | G106: =SUM(G21,G38,G55,G72,G89) -> 41.54935958 | H106: 76.91252139 | I106: 94.17718498 | J106: 98.98504006 | K106: 112.8089875 | L106: 131.9450048 | M106: 135.8835973 | N106: 127.5211558 | O106: 122.3840939 | P106: 105.4522334 | Q106: 107.0247367 | R106: 108.1279713 | S106: 109.8222771 | T106: 110.7560596 | U106: 106.2284543 | V106: 109.8373396 | W106: 123.0515247 | X106: 145.8304821 | Y106: 157.7822838 | Z106: 180.5896462 | AA106: 191.6648957 | AB106: 139.2292901 | AC106: 94.53440597 | AD106: 57.67912699 | AE106: 29.39216547 | AF106: 9.65027808
B107: SCADA & Communications | F107: =Dx_Inputs!I67 -> 18.06912664 | G107: =SUM(G22,G39,G56,G73,G90) -> 19.13892341 | H107: 19.8643993 | I107: 20.31756846 | J107: 22.00286913 | K107: 22.70437053 | L107: 24.53342987 | M107: 24.5909468 | N107: 23.08565432 | O107: 19.75529487 | P107: 15.60110799 | Q107: 12.97422544 | R107: 19.38684208 | S107: 23.02817734 | T107: 36.90164271 | U107: 52.87106495 | V107: 63.94349829 | W107: 93.65925386 | X107: 119.6798094 | Y107: 147.579782 | Z107: 179.3605916 | AA107: 208.7631493 | AB107: 180.8388016 | AC107: 152.475264 | AD107: 125.0596275 | AE107: 97.53429896 | AF107: 72.79411651
B108: Other Distribution Non-Network | F108: =Dx_Inputs!I68 -> 72.16402906 | G108: =SUM(G23,G40,G57,G74,G91) -> 76.90757148 | H108: 79.54797816 | I108: 98.38924439 | J108: 101.84003 | K108: 114.2813544 | L108: 125.1986781 | M108: 129.079092 | N108: 111.9739559 | O108: 101.3443855 | P108: 87.52791378 | Q108: 67.2743789 | R108: 67.68955935 | S108: 70.35745269 | T108: 82.21837608 | U108: 74.87058144 | V108: 102.9201548 | W108: 136.0423433 | X108: 176.1274816 | Y108: 228.7349954 | Z108: 246.9798539 | AA108: 264.8445711 | AB108: 253.0775689 | AC108: 241.40084 | AD108: 229.724111 | AE108: 218.047382 | AF108: 206.3706531
B109: Distribution Land & Easements | F109: =Dx_Inputs!I69 -> 30.17624154 | G109: =SUM(G24,G41,G58,G75,G92) -> 29.91254656 | H109: 29.91254656 | I109: 29.91254656 | J109: 29.91254656 | K109: 29.91132732 | L109: 28.44143025 | M109: 27.48221915 | N109: 27.44680306 | O109: 23.45595588 | P109: 23.45595588 | Q109: 23.11284505 | R109: 30.31776728 | S109: 41.23790583 | T109: 57.76094447 | U109: 62.80793716 | V109: 90.1217998 | W109: 90.1217998 | X109: 90.1217998 | Y109: 90.1217998 | Z109: 90.1217998 | AA109: 90.1217998 | AB109: 90.1217998 | AC109: 90.1217998 | AD109: 90.1217998 | AE109: 90.1217998 | AF109: 90.1217998
B110: Equity Raising Costs | F110: =Dx_Inputs!I70 -> 0 | G110: =SUM(G25,G42,G59,G76,G93) -> 0 | H110: 0 | I110: 0 | J110: 0 | K110: 0 | L110: 0 | M110: 6.454978538 | N110: 11.4366083 | O110: 15.15429543 | P110: 16.2863621 | Q110: 15.89738492 | R110: 15.46585711 | S110: 15.0343293 | T110: 14.60280149 | U110: 14.17127368 | V110: 13.73974587 | W110: 13.5142074 | X110: 13.11701114 | Y110: 12.71981489 | Z110: 12.32261863 | AA110: 11.92542238 | AB110: 11.52822612 | AC110: 11.13102987 | AD110: 10.73383361 | AE110: 10.33663736 | AF110: 9.939441105
B111: Standalone Power Systems | F111: =Dx_Inputs!I71 -> 0 | G111: 0 | H111: =SUM(H26,H43,H60,H77,H94) -> 0 | I111: 0 | J111: 0 | K111: 0 | L111: 0 | M111: 0 | N111: 0 | O111: 0 | P111: 0 | Q111: 0 | R111: 0 | S111: 0 | T111: 0 | U111: 23.561896 | V111: 44.55153617 | W111: 114.2610332 | X111: 181.9623302 | Y111: 245.6828507 | Z111: 301.061661 | AA111: 351.8290303 | AB111: 324.0782047 | AC111: 296.3273791 | AD111: 268.5765534 | AE111: 240.8257278 | AF111: 213.0749022
B112: Storage | F112: =Dx_Inputs!I72 -> 0 | G112: =SUM(G27,G44,G61,G78,G95) -> 0 | H112: 0 | I112: 0 | J112: 0 | K112: 0 | L112: 0 | M112: 0 | N112: 0 | O112: 0 | P112: 0 | Q112: 0 | R112: 0 | S112: 0 | T112: 0 | U112: 0 | V112: 0 | W112: 0.002361223105 | X112: 0.004456252969 | Y112: 0.006382796408 | Z112: 0.008077492782 | AA112: 0.009530682944 | AB112: 0.008341280421 | AC112: 0.007151877898 | AD112: 0.005962475375 | AE112: 0.004773072851 | AF112: 0.003583670328
B113: Total | F113: =SUM(F100:F112) -> 2246.468037 | G113: =SUM(G100:G112) -> 2617.745564 | H113: 3024.510116 | I113: 3618.749279 | J113: 3948.269823 | K113: 4263.505634 | L113: 4643.478653 | M113: 5145.975953 | N113: 5620.792016 | O113: 6004.853615 | P113: 6254.860698 | Q113: 6337.177275 | R113: 6428.328681 | S113: 6509.066223 | T113: 6653.466159 | U113: 6789.420633 | V113: 7004.335809 | W113: 7356.588181 | X113: 7716.498759 | Y113: 8057.44762 | Z113: 8347.319023 | AA113: 8598.43813 | AB113: 8191.34879 | AC113: 7793.648645 | AD113: 7406.383187 | AE113: 7028.997921 | AF113: 6665.461926
B115: Initial capital base [$M real as at 30 June 2022]
B116: Year ending 30 June | F116: 2006 | G116: 2007 | H116: 2008 | I116: 2009 | J116: 2010 | K116: 2011 | L116: 2012 | M116: 2013 | N116: 2014 | O116: 2015 | P116: 2016 | Q116: 2017 | R116: 2018 | S116: 2019 | T116: 2020 | U116: 2021 | V116: 2022 | W116: 2023 | X116: 2024 | Y116: 2025 | Z116: 2026 | AA116: 2027 | AB116: 2028 | AC116: 2029 | AD116: 2030 | AE116: 2031 | AF116: 2032
B117: Opening balance
B118: Wooden Pole Lines | G118: =F186 -> 665.8246855 | H118: =G186 -> 615.8533338 | I118: 566.3548404 | J118: 517.2258183 | K118: 468.4996932 | L118: 420.2150179 | M118: 371.2661114 | N118: 324.47396 | O118: 280.5029416 | P118: 235.9050645 | Q118: =P186 -> 192.5582453 | R118: 149.359303 | S118: 102.953001 | T118: 56.93049705 | U118: 15.09812499 | V118: 0 | W118: 0 | X118: 0 | Y118: 0 | Z118: 0 | AA118: 0 | AB118: 0 | AC118: 0 | AD118: 0 | AE118: 0 | AF118: 0
B119: Underground Cables | G119: 754.0399778 | H119: =G187 -> 733.60529 | I119: 713.1706023 | J119: 692.7359145 | K119: 672.3012268 | L119: 651.8665391 | M119: 631.4318513 | N119: 610.9971636 | O119: 590.5624758 | P119: 570.1277881 | Q119: 549.6931003 | R119: 529.2584126 | S119: 508.8237248 | T119: 488.3890371 | U119: 467.9543494 | V119: 447.5196616 | W119: 427.0849739 | X119: 406.6502861 | Y119: 386.2155984 | Z119: 365.7809106 | AA119: 345.3462229 | AB119: 324.9115351 | AC119: 304.4768474 | AD119: 284.0421597 | AE119: 263.6074719 | AF119: 243.1727842
B120: Transformers | G120: 287.0751673 | H120: 269.0077369 | I120: 251.0544145 | J120: 233.1861486 | K120: 215.4101755 | L120: 197.7342038 | M120: 180.1660745 | N120: 162.8067341 | O120: 146.2502387 | P120: 129.8176276 | Q120: 113.3850165 | R120: 96.95240542 | S120: 80.05808848 | T120: 62.23541528 | U120: 45.51507944 | V120: 29.82022446 | W120: 14.12536948 | X120: 0 | Y120: 0 | Z120: 0 | AA120: 0 | AB120: 0 | AC120: 0 | AD120: 0 | AE120: 0 | AF120: 0
B121: Switchgear | G121: 153.0141515 | H121: 141.4092413 | I121: 129.8374898 | J121: 118.2922245 | K121: 106.7763006 | L121: 95.29231287 | M121: 83.84350012 | N121: 72.45678108 | O121: 61.28174131 | P121: 50.13960652 | Q121: 38.99747174 | R121: 27.85533696 | S121: 16.43767252 | T121: 4.905836706 | U121: 0 | V121: 0 | W121: 0 | X121: 0 | Y121: 0 | Z121: 0 | AA121: 0 | AB121: 0 | AC121: 0 | AD121: 0 | AE121: 0 | AF121: 0
B122: Street lighting | G122: 7.405684605 | H122: 1.234280768 | I122: -1.33226763e-15 | J122: -1.33226763e-15 | K122: -1.33226763e-15 | L122: -1.33226763e-15 | M122: -1.33226763e-15 | N122: 0 | O122: 0 | P122: 0 | Q122: 0 | R122: 0 | S122: 0 | T122: 0 | U122: 0 | V122: 0 | W122: 0 | X122: 0 | Y122: 0 | Z122: 0 | AA122: 0 | AB122: 0 | AC122: 0 | AD122: 0 | AE122: 0 | AF122: 0
B123: Meters and Services | G123: 236.9814636 | H123: 211.2226089 | I123: 185.4637542 | J123: 159.7048994 | K123: 133.9460447 | L123: 108.1871899 | M123: 82.42833518 | N123: 56.66948043 | O123: 30.91062569 | P123: 5.151770949 | Q123: 6.30606678e-14 | R123: 6.30606678e-14 | S123: 0 | T123: 0 | U123: 0 | V123: 0 | W123: 0 | X123: 0 | Y123: 0 | Z123: 0 | AA123: 0 | AB123: 0 | AC123: 0 | AD123: 0 | AE123: 0 | AF123: 0
B124: IT | G124: 21.71750966 | H124: 19.50143725 | I124: 17.28536484 | J124: 15.06929242 | K124: 11.81870304 | L124: 9.602630623 | M124: 7.301177755 | N124: 5.379815188 | O124: 3.458452621 | P124: 1.537090054 | Q124: 0 | R124: 0 | S124: 0 | T124: 0 | U124: 0 | V124: 0 | W124: 0 | X124: 0 | Y124: 0 | Z124: 0 | AA124: 0 | AB124: 0 | AC124: 0 | AD124: 0 | AE124: 0 | AF124: 0
B125: SCADA & Communications | G125: 18.06912664 | H125: 16.29764364 | I125: 14.52616063 | J125: 12.75467763 | K125: 10.98319462 | L125: 9.21171162 | M125: 7.440228616 | N125: 5.668745612 | O125: 3.897262609 | P125: 2.125779605 | Q125: 0.3542966008 | R125: 0 | S125: 0 | T125: 0 | U125: 0 | V125: 0 | W125: 0 | X125: 0 | Y125: 0 | Z125: 0 | AA125: 0 | AB125: 0 | AC125: 0 | AD125: 0 | AE125: 0 | AF125: 0
B126: Other Distribution Non-Network | G126: 72.16402906 | H126: 65.7778318 | I126: 59.39163454 | J126: 53.00543727 | K126: 46.61924001 | L126: 40.23304275 | M126: 33.84684549 | N126: 27.40537117 | O126: 21.01917391 | P126: =O194 -> 14.63297665 | Q126: =P194 -> 5.322368085 | R126: 0 | S126: 0 | T126: 0 | U126: 0 | V126: 0 | W126: 0 | X126: 0 | Y126: 0 | Z126: 0 | AA126: 0 | AB126: 0 | AC126: 0 | AD126: 0 | AE126: 0 | AF126: 0
B127: Distribution Land & Easements | G127: 30.17624154 | H127: 29.91254656 | I127: 29.91254656 | J127: 29.91254656 | K127: 29.91254656 | L127: 29.91132732 | M127: 28.44143025 | N127: 27.48221915 | O127: 27.44680306 | P127: 23.45595588 | Q127: 23.45595588 | R127: 23.11284505 | S127: 22.33098349 | T127: 21.71235339 | U127: 21.71235339 | V127: 21.59799984 | W127: 21.48113826 | X127: 21.48113826 | Y127: 21.48113826 | Z127: 21.48113826 | AA127: 21.48113826 | AB127: 21.48113826 | AC127: 21.48113826 | AD127: 21.48113826 | AE127: 21.48113826 | AF127: 21.48113826
B128: Equity Raising Costs | G128: 0 | H128: 0 | I128: 0 | J128: 0 | K128: 0 | L128: 0 | M128: 0 | N128: 0 | O128: 0 | P128: 0 | Q128: 0 | R128: 0 | S128: 0 | T128: 0 | U128: 0 | V128: 0 | W128: 0 | X128: 0 | Y128: 0 | Z128: 0 | AA128: 0 | AB128: =AA196 -> 0 | AC128: =AB196 -> 0 | AD128: =AC196 -> 0 | AE128: =AD196 -> 0 | AF128: =AE196 -> 0
B129: Standalone Power Systems | G129: =F197 -> 0 | H129: =G197 -> 0 | I129: =H197 -> 0 | J129: =I197 -> 0 | K129: =J197 -> 0 | L129: =K197 -> 0 | M129: =L197 -> 0 | N129: =M197 -> 0 | O129: =N197 -> 0 | P129: =O197 -> 0 | Q129: =P197 -> 0 | R129: =Q197 -> 0 | S129: =R197 -> 0 | T129: =S197 -> 0 | U129: =T197 -> 0 | V129: =U197 -> 0 | W129: =V197 -> 0 | X129: =W197 -> 0 | Y129: =X197 -> 0 | Z129: =Y197 -> 0 | AA129: =Z197 -> 0 | AB129: =AA197 -> 0 | AC129: 0 | AD129: 0 | AE129: 0 | AF129: 0
B130: Storage | G130: 0 | H130: 0 | I130: 0 | J130: 0 | K130: 0 | L130: 0 | M130: 0 | N130: 0 | O130: 0 | P130: 0 | Q130: 0 | R130: 0 | S130: 0 | T130: 0 | U130: 0 | V130: 0 | W130: 0 | X130: 0 | Y130: 0 | Z130: 0 | AA130: 0 | AB130: =AA198 -> 0 | AC130: 0 | AD130: 0 | AE130: 0 | AF130: 0
B131: Total | G131: =SUM(G118:G130) -> 2246.468037 | H131: =SUM(H118:H130) -> 2103.821951 | I131: 1966.996808 | J131: 1831.886959 | K131: 1696.267125 | L131: 1562.253976 | M131: 1426.165555 | N131: 1293.34027 | O131: 1165.329715 | P131: 1032.89366 | Q131: 923.7664544 | R131: 826.538303 | S131: 730.6034703 | T131: 634.1731395 | U131: 550.2799072 | V131: 498.9378859 | W131: 462.6914816 | X131: 428.1314244 | Y131: 407.6967366 | Z131: 387.2620489 | AA131: 366.8273611 | AB131: 346.3926734 | AC131: 325.9579857 | AD131: 305.5232979 | AE131: 285.0886102 | AF131: 264.6539224
B133: Year ending 30 June | F133: 2006 | G133: 2007 | H133: 2008 | I133: 2009 | J133: 2010 | K133: 2011 | L133: 2012 | M133: 2013 | N133: 2014 | O133: 2015 | P133: 2016 | Q133: 2017 | R133: 2018 | S133: 2019 | T133: 2020 | U133: 2021 | V133: 2022 | W133: 2023 | X133: 2024 | Y133: 2025 | Z133: 2026 | AA133: 2027 | AB133: 2028 | AC133: 2029 | AD133: 2030 | AE133: 2031 | AF133: 2032
B134: Depreciation
B135: Wooden Pole Lines | G135: =G290 -> -45.91894383 | H135: =H290 -> -45.62088575 | I135: -45.30714041 | J135: -44.97615812 | K135: -44.6190184 | L135: -44.23315978 | M135: -43.67836605 | N135: -43.26319467 | O135: -43.19894232 | P135: -43.19894232 | Q135: -43.19894232 | R135: -42.67408656 | S135: -41.18120039 | T135: -37.9536647 | U135: -15.09812499 | V135: 0 | W135: 0 | X135: 0 | Y135: 0 | Z135: 0 | AA135: 0 | AB135: 0 | AC135: 0 | AD135: 0 | AE135: 0 | AF135: 0
B136: Underground Cables | G136: =G321 -> -20.43468774 | H136: =H321 -> -20.43468774 | I136: -20.43468774 | J136: -20.43468774 | K136: -20.43468774 | L136: -20.43468774 | M136: -20.43468774 | N136: -20.43468774 | O136: -20.43468774 | P136: -20.43468774 | Q136: -20.43468774 | R136: -20.43468774 | S136: -20.43468774 | T136: -20.43468774 | U136: -20.43468774 | V136: -20.43468774 | W136: -20.43468774 | X136: -20.43468774 | Y136: -20.43468774 | Z136: -20.43468774 | AA136: -20.43468774 | AB136: -20.43468774 | AC136: -20.43468774 | AD136: -20.43468774 | AE136: -20.43468774 | AF136: -20.43468774
B137: Transformers | G137: =G352 -> -16.98669629 | H137: =H352 -> -16.9192057 | I137: -16.84901061 | J137: -16.77598192 | K137: -16.69846322 | L137: -16.61631965 | M137: -16.52899766 | N137: -16.44512465 | O137: -16.43261109 | P137: -16.43261109 | Q137: -16.43261109 | R137: -16.43261109 | S137: -16.3383854 | T137: -15.95779879 | U137: -15.69485498 | V137: -15.69485498 | W137: -14.12536948 | X137: 0 | Y137: 0 | Z137: 0 | AA137: 0 | AB137: 0 | AC137: 0 | AD137: 0 | AE137: 0 | AF137: 0
B138: Switchgear | G138: =G383 -> -11.33438159 | H138: =H383 -> -11.31289218 | I138: -11.29012603 | J138: -11.26592615 | K138: -11.23961059 | L138: -11.21086034 | M138: -11.17913335 | N138: -11.14719709 | O138: -11.14213478 | P138: -11.14213478 | Q138: -11.14213478 | R138: -11.14213478 | S138: -10.95844835 | T138: -4.905836706 | U138: 0 | V138: 0 | W138: 0 | X138: 0 | Y138: 0 | Z138: 0 | AA138: 0 | AB138: 0 | AC138: 0 | AD138: 0 | AE138: 0 | AF138: 0
B139: Street lighting | G139: =G414 -> -6.171403838 | H139: =H414 -> -1.234280768 | I139: 0 | J139: 0 | K139: 0 | L139: 0 | M139: 2.675724184e-16 | N139: 0 | O139: 0 | P139: 0 | Q139: 0 | R139: 0 | S139: 0 | T139: 0 | U139: 0 | V139: 0 | W139: 0 | X139: 0 | Y139: 0 | Z139: 0 | AA139: 0 | AB139: 0 | AC139: 0 | AD139: 0 | AE139: 0 | AF139: 0
B140: Meters and Services | G140: =G445 -> -25.75885474 | H140: =H445 -> -25.75885474 | I140: -25.75885474 | J140: -25.75885474 | K140: -25.75885474 | L140: -25.75885474 | M140: -25.75885474 | N140: -25.75885474 | O140: -25.75885474 | P140: -5.151770949 | Q140: 0 | R140: -6.30606678e-14 | S140: 0 | T140: 0 | U140: 0 | V140: 0 | W140: 0 | X140: 0 | Y140: 0 | Z140: 0 | AA140: 0 | AB140: 0 | AC140: 0 | AD140: 0 | AE140: 0 | AF140: 0
B141: IT | G141: =G476 -> -2.216072415 | H141: =H476 -> -2.216072415 | I141: -2.216072415 | J141: -2.216072415 | K141: -2.216072415 | L141: -2.216072415 | M141: -1.921362567 | N141: -1.921362567 | O141: -1.921362567 | P141: -1.537090054 | Q141: 0 | R141: 0 | S141: 0 | T141: 0 | U141: 0 | V141: 0 | W141: 0 | X141: 0 | Y141: 0 | Z141: 0 | AA141: 0 | AB141: 0 | AC141: 0 | AD141: 0 | AE141: 0 | AF141: 0
B142: SCADA & Communications | G142: =G507 -> -1.771483004 | H142: =H507 -> -1.771483004 | I142: -1.771483004 | J142: -1.771483004 | K142: -1.771483004 | L142: -1.771483004 | M142: -1.771483004 | N142: -1.771483004 | O142: -1.771483004 | P142: -1.771483004 | Q142: -0.3542966008 | R142: 0 | S142: 0 | T142: 0 | U142: 0 | V142: 0 | W142: 0 | X142: 0 | Y142: 0 | Z142: 0 | AA142: 0 | AB142: 0 | AC142: 0 | AD142: 0 | AE142: 0 | AF142: 0
B143: Other Distribution Non-Network | G143: =G538 -> -6.386197262 | H143: =H538 -> -6.386197262 | I143: -6.386197262 | J143: -6.386197262 | K143: -6.386197262 | L143: -6.386197262 | M143: -6.386197262 | N143: -6.386197262 | O143: -6.386197262 | P143: -6.386197262 | Q143: -6.386197262 | R143: 0 | S143: 0 | T143: 0 | U143: 0 | V143: 0 | W143: 0 | X143: 0 | Y143: 0 | Z143: 0 | AA143: 0 | AB143: 0 | AC143: 0 | AD143: 0 | AE143: 0 | AF143: 0
B144: Distribution Land & Easements | G144: =G569 -> 0 | H144: =H569 -> 0 | I144: 0 | J144: 0 | K144: 0 | L144: 0 | M144: 0 | N144: 0 | O144: 0 | P144: 0 | Q144: 0 | R144: 0 | S144: 0 | T144: 0 | U144: 0 | V144: 0 | W144: 0 | X144: 0 | Y144: 0 | Z144: 0 | AA144: 0 | AB144: 0 | AC144: 0 | AD144: 0 | AE144: 0 | AF144: 0
B145: Equity Raising Costs | G145: =G600 -> 0 | H145: =H600 -> 0 | I145: 0 | J145: 0 | K145: 0 | L145: 0 | M145: 0 | N145: 0 | O145: 0 | P145: 0 | Q145: 0 | R145: 0 | S145: 0 | T145: 0 | U145: 0 | V145: 0 | W145: 0 | X145: 0 | Y145: 0 | Z145: 0 | AA145: 0 | AB145: 0 | AC145: 0 | AD145: 0 | AE145: 0 | AF145: 0
B146: Standalone Power Systems | G146: =G631 -> 0 | H146: =H631 -> 0 | I146: 0 | J146: 0 | K146: 0 | L146: 0 | M146: 0 | N146: 0 | O146: 0 | P146: 0 | Q146: 0 | R146: 0 | S146: 0 | T146: 0 | U146: 0 | V146: 0 | W146: 0 | X146: 0 | Y146: 0 | Z146: 0 | AA146: 0 | AB146: 0 | AC146: 0 | AD146: 0 | AE146: 0 | AF146: 0
B147: Storage | G147: =G662 -> 0 | H147: =H662 -> 0 | I147: 0 | J147: 0 | K147: 0 | L147: 0 | M147: 0 | N147: 0 | O147: 0 | P147: 0 | Q147: 0 | R147: 0 | S147: 0 | T147: 0 | U147: 0 | V147: 0 | W147: 0 | X147: 0 | Y147: 0 | Z147: 0 | AA147: 0 | AB147: 0 | AC147: 0 | AD147: 0 | AE147: 0 | AF147: 0
B148: Total | G148: =SUM(G135:G147) -> -136.9787207 | H148: =SUM(H135:H147) -> -131.6545596 | I148: -130.0135722 | J148: -129.5853613 | K148: -129.1243874 | L148: -128.6276349 | M148: -127.6590824 | N148: -127.1281017 | O148: -127.0462735 | P148: -106.0549172 | Q148: -97.9488698 | R148: -90.68352017 | S148: -88.91272189 | T148: -79.25198794 | U148: -51.22766771 | V148: -36.12954272 | W148: -34.56005723 | X148: -20.43468774 | Y148: -20.43468774 | Z148: -20.43468774 | AA148: -20.43468774 | AB148: -20.43468774 | AC148: -20.43468774 | AD148: -20.43468774 | AE148: -20.43468774 | AF148: -20.43468774
B150: Year ending 30 June | F150: 2006 | G150: 2007 | H150: 2008 | I150: 2009 | J150: 2010 | K150: 2011 | L150: 2012 | M150: 2013 | N150: 2014 | O150: 2015 | P150: 2016 | Q150: 2017 | R150: 2018 | S150: 2019 | T150: 2020 | U150: 2021 | V150: 2022 | W150: 2023 | X150: 2024 | Y150: 2025 | Z150: 2026 | AA150: 2027 | AB150: 2028 | AC150: 2029 | AD150: 2030 | AE150: 2031 | AF150: 2032
B151: Accelerated depreciation
B152: Wooden Pole Lines | G152: =-Dx_Inputs!E624 -> -4.052407821 | H152: =-Dx_Inputs!F624 -> -3.877607726 | I152: =-Dx_Inputs!G624 -> -3.821881627 | J152: =-Dx_Inputs!H624 -> -3.749967011 | K152: =-Dx_Inputs!I624 -> -3.665656903 | L152: =-Dx_Inputs!J624 -> -3.569286176 | M152: =-Dx_Inputs!K624 -> -3.113785356 | N152: =-Dx_Inputs!L624 -> -0.4176402838 | O152: =-Dx_Inputs!M624 -> 0 | P152: =-Dx_Inputs!N624 -> 0 | Q152: =-Dx_Inputs!O624 -> 0 | R152: =-Dx_Inputs!P624 -> -3.632204862 | S152: =-Dx_Inputs!Q624 -> -4.841303536 | T152: =-Dx_Inputs!R624 -> -3.248396102 | U152: =-Dx_Inputs!S624 -> 0 | V152: =-Dx_Inputs!T624 -> 0 | W152: =-Dx_Inputs!U624 -> 0 | X152: =-Dx_Inputs!V624 -> 0 | Y152: =-Dx_Inputs!W624 -> 0 | Z152: =-Dx_Inputs!X624 -> 0 | AA152: =-Dx_Inputs!Y624 -> 0
B153: Underground Cables | G153: =-Dx_Inputs!E625 -> 0 | H153: =-Dx_Inputs!F625 -> 0 | I153: =-Dx_Inputs!G625 -> 0 | J153: =-Dx_Inputs!H625 -> 0 | K153: =-Dx_Inputs!I625 -> 0 | L153: =-Dx_Inputs!J625 -> 0 | M153: =-Dx_Inputs!K625 -> 0 | N153: =-Dx_Inputs!L625 -> 0 | O153: =-Dx_Inputs!M625 -> 0 | P153: =-Dx_Inputs!N625 -> 0 | Q153: =-Dx_Inputs!O625 -> 0 | R153: =-Dx_Inputs!P625 -> 0 | S153: =-Dx_Inputs!Q625 -> 0 | T153: =-Dx_Inputs!R625 -> 0 | U153: =-Dx_Inputs!S625 -> 0 | V153: =-Dx_Inputs!T625 -> 0 | W153: =-Dx_Inputs!U625 -> 0 | X153: =-Dx_Inputs!V625 -> 0 | Y153: =-Dx_Inputs!W625 -> 0 | Z153: =-Dx_Inputs!X625 -> 0 | AA153: =-Dx_Inputs!Y625 -> 0
B154: Transformers | G154: =-Dx_Inputs!E626 -> -1.080734102 | H154: =-Dx_Inputs!F626 -> -1.034116774 | I154: =-Dx_Inputs!G626 -> -1.019255216 | J154: =-Dx_Inputs!H626 -> -0.999991203 | K154: =-Dx_Inputs!I626 -> -0.9775085074 | L154: =-Dx_Inputs!J626 -> -0.9518096469 | M154: =-Dx_Inputs!K626 -> -0.8303427616 | N154: =-Dx_Inputs!L626 -> -0.1113707423 | O154: =-Dx_Inputs!M626 -> 0 | P154: =-Dx_Inputs!N626 -> 0 | Q154: =-Dx_Inputs!O626 -> 0 | R154: =-Dx_Inputs!P626 -> -0.4617058566 | S154: =-Dx_Inputs!Q626 -> -1.484287794 | T154: =-Dx_Inputs!R626 -> -0.7625370509 | U154: =-Dx_Inputs!S626 -> 0 | V154: =-Dx_Inputs!T626 -> 0 | W154: =-Dx_Inputs!U626 -> 0 | X154: =-Dx_Inputs!V626 -> 0 | Y154: =-Dx_Inputs!W626 -> 0 | Z154: =-Dx_Inputs!X626 -> 0 | AA154: =-Dx_Inputs!Y626 -> 0
B155: Switchgear | G155: =-Dx_Inputs!E627 -> -0.2705285875 | H155: =-Dx_Inputs!F627 -> -0.2588593714 | I155: =-Dx_Inputs!G627 -> -0.2551392367 | J155: =-Dx_Inputs!H627 -> -0.2499978008 | K155: =-Dx_Inputs!I627 -> -0.2443771268 | L155: =-Dx_Inputs!J627 -> -0.2379524117 | M155: =-Dx_Inputs!K627 -> -0.2075856904 | N155: =-Dx_Inputs!L627 -> -0.02784268559 | O155: =-Dx_Inputs!M627 -> 0 | P155: =-Dx_Inputs!N627 -> 0 | Q155: =-Dx_Inputs!O627 -> 0 | R155: =-Dx_Inputs!P627 -> -0.2755296495 | S155: =-Dx_Inputs!Q627 -> -0.5733874686 | T155: =-Dx_Inputs!R627 -> -0.3567559106 | U155: =-Dx_Inputs!S627 -> 0 | V155: =-Dx_Inputs!T627 -> 0 | W155: =-Dx_Inputs!U627 -> 0 | X155: =-Dx_Inputs!V627 -> 0 | Y155: =-Dx_Inputs!W627 -> 0 | Z155: =-Dx_Inputs!X627 -> 0 | AA155: =-Dx_Inputs!Y627 -> 0
B156: Street lighting | G156: =-Dx_Inputs!E628 -> 0 | H156: =-Dx_Inputs!F628 -> 0 | I156: =-Dx_Inputs!G628 -> 0 | J156: =-Dx_Inputs!H628 -> 0 | K156: =-Dx_Inputs!I628 -> 0 | L156: =-Dx_Inputs!J628 -> 0 | M156: =-Dx_Inputs!K628 -> 0 | N156: =-Dx_Inputs!L628 -> 0 | O156: =-Dx_Inputs!M628 -> 0 | P156: =-Dx_Inputs!N628 -> 0 | Q156: =-Dx_Inputs!O628 -> 0 | R156: =-Dx_Inputs!P628 -> 0 | S156: =-Dx_Inputs!Q628 -> 0 | T156: =-Dx_Inputs!R628 -> 0 | U156: =-Dx_Inputs!S628 -> 0 | V156: =-Dx_Inputs!T628 -> 0 | W156: =-Dx_Inputs!U628 -> 0 | X156: =-Dx_Inputs!V628 -> 0 | Y156: =-Dx_Inputs!W628 -> 0 | Z156: =-Dx_Inputs!X628 -> 0 | AA156: =-Dx_Inputs!Y628 -> 0
B157: Meters and Services | G157: =-Dx_Inputs!E629 -> 0 | H157: =-Dx_Inputs!F629 -> 0 | I157: =-Dx_Inputs!G629 -> 0 | J157: =-Dx_Inputs!H629 -> 0 | K157: =-Dx_Inputs!I629 -> 0 | L157: =-Dx_Inputs!J629 -> 0 | M157: =-Dx_Inputs!K629 -> 0 | N157: =-Dx_Inputs!L629 -> 0 | O157: =-Dx_Inputs!M629 -> 0 | P157: =-Dx_Inputs!N629 -> 0 | Q157: =-Dx_Inputs!O629 -> 0 | R157: =-Dx_Inputs!P629 -> 0 | S157: =-Dx_Inputs!Q629 -> 0 | T157: =-Dx_Inputs!R629 -> 0 | U157: =-Dx_Inputs!S629 -> 0 | V157: =-Dx_Inputs!T629 -> 0 | W157: =-Dx_Inputs!U629 -> 0 | X157: =-Dx_Inputs!V629 -> 0 | Y157: =-Dx_Inputs!W629 -> 0 | Z157: =-Dx_Inputs!X629 -> 0 | AA157: =-Dx_Inputs!Y629 -> 0
B158: IT | G158: =-Dx_Inputs!E630 -> 0 | H158: =-Dx_Inputs!F630 -> 0 | I158: =-Dx_Inputs!G630 -> 0 | J158: =-Dx_Inputs!H630 -> 0 | K158: =-Dx_Inputs!I630 -> 0 | L158: =-Dx_Inputs!J630 -> 0 | M158: =-Dx_Inputs!K630 -> 0 | N158: =-Dx_Inputs!L630 -> 0 | O158: =-Dx_Inputs!M630 -> 0 | P158: =-Dx_Inputs!N630 -> 0 | Q158: =-Dx_Inputs!O630 -> 0 | R158: =-Dx_Inputs!P630 -> 0 | S158: =-Dx_Inputs!Q630 -> 0 | T158: =-Dx_Inputs!R630 -> 0 | U158: =-Dx_Inputs!S630 -> 0 | V158: =-Dx_Inputs!T630 -> 0 | W158: =-Dx_Inputs!U630 -> 0 | X158: =-Dx_Inputs!V630 -> 0 | Y158: =-Dx_Inputs!W630 -> 0 | Z158: =-Dx_Inputs!X630 -> 0 | AA158: =-Dx_Inputs!Y630 -> 0
B159: SCADA & Communications | G159: =-Dx_Inputs!E631 -> 0 | H159: =-Dx_Inputs!F631 -> 0 | I159: =-Dx_Inputs!G631 -> 0 | J159: =-Dx_Inputs!H631 -> 0 | K159: =-Dx_Inputs!I631 -> 0 | L159: =-Dx_Inputs!J631 -> 0 | M159: =-Dx_Inputs!K631 -> 0 | N159: =-Dx_Inputs!L631 -> 0 | O159: =-Dx_Inputs!M631 -> 0 | P159: =-Dx_Inputs!N631 -> 0 | Q159: =-Dx_Inputs!O631 -> 0 | R159: =-Dx_Inputs!P631 -> 0 | S159: =-Dx_Inputs!Q631 -> 0 | T159: =-Dx_Inputs!R631 -> 0 | U159: =-Dx_Inputs!S631 -> 0 | V159: =-Dx_Inputs!T631 -> 0 | W159: =-Dx_Inputs!U631 -> 0 | X159: =-Dx_Inputs!V631 -> 0 | Y159: =-Dx_Inputs!W631 -> 0 | Z159: =-Dx_Inputs!X631 -> 0 | AA159: =-Dx_Inputs!Y631 -> 0
B160: Other Distribution Non-Network | G160: =-Dx_Inputs!E632 -> 0 | H160: =-Dx_Inputs!F632 -> 0 | I160: =-Dx_Inputs!G632 -> 0 | J160: =-Dx_Inputs!H632 -> 0 | K160: =-Dx_Inputs!I632 -> 0 | L160: =-Dx_Inputs!J632 -> 0 | M160: =-Dx_Inputs!K632 -> 0 | N160: =-Dx_Inputs!L632 -> 0 | O160: =-Dx_Inputs!M632 -> 0 | P160: =-Dx_Inputs!N632 -> 0 | Q160: =-Dx_Inputs!O632 -> 0 | R160: =-Dx_Inputs!P632 -> 0 | S160: =-Dx_Inputs!Q632 -> 0 | T160: =-Dx_Inputs!R632 -> 0 | U160: =-Dx_Inputs!S632 -> 0 | V160: =-Dx_Inputs!T632 -> 0 | W160: =-Dx_Inputs!U632 -> 0 | X160: =-Dx_Inputs!V632 -> 0 | Y160: =-Dx_Inputs!W632 -> 0 | Z160: =-Dx_Inputs!X632 -> 0 | AA160: =-Dx_Inputs!Y632 -> 0
B161: Distribution Land & Easements | G161: =-Dx_Inputs!E633 -> 0 | H161: =-Dx_Inputs!F633 -> 0 | I161: =-Dx_Inputs!G633 -> 0 | J161: =-Dx_Inputs!H633 -> 0 | K161: =-Dx_Inputs!I633 -> 0 | L161: =-Dx_Inputs!J633 -> 0 | M161: =-Dx_Inputs!K633 -> 0 | N161: =-Dx_Inputs!L633 -> 0 | O161: =-Dx_Inputs!M633 -> 0 | P161: =-Dx_Inputs!N633 -> 0 | Q161: =-Dx_Inputs!O633 -> 0 | R161: =-Dx_Inputs!P633 -> 0 | S161: =-Dx_Inputs!Q633 -> 0 | T161: =-Dx_Inputs!R633 -> 0 | U161: =-Dx_Inputs!S633 -> 0 | V161: =-Dx_Inputs!T633 -> 0 | W161: =-Dx_Inputs!U633 -> 0 | X161: =-Dx_Inputs!V633 -> 0 | Y161: =-Dx_Inputs!W633 -> 0 | Z161: =-Dx_Inputs!X633 -> 0 | AA161: =-Dx_Inputs!Y633 -> 0
B162: Equity Raising Costs
B163: Standalone Power Systems | G163: =-Dx_Inputs!E634 -> 0 | H163: =-Dx_Inputs!F634 -> 0 | I163: =-Dx_Inputs!G634 -> 0 | J163: =-Dx_Inputs!H634 -> 0 | K163: =-Dx_Inputs!I634 -> 0 | L163: =-Dx_Inputs!J634 -> 0 | M163: =-Dx_Inputs!K634 -> 0 | N163: =-Dx_Inputs!L634 -> 0 | O163: =-Dx_Inputs!M634 -> 0 | P163: =-Dx_Inputs!N634 -> 0 | Q163: =-Dx_Inputs!O634 -> 0 | R163: =-Dx_Inputs!P634 -> 0 | S163: =-Dx_Inputs!Q634 -> 0 | T163: =-Dx_Inputs!R634 -> 0 | U163: =-Dx_Inputs!S634 -> 0 | V163: =-Dx_Inputs!T634 -> 0 | W163: =-Dx_Inputs!U634 -> 0 | X163: =-Dx_Inputs!V634 -> 0 | Y163: =-Dx_Inputs!W634 -> 0 | Z163: =-Dx_Inputs!X634 -> 0 | AA163: =-Dx_Inputs!Y634 -> 0
B164: Storage | G164: =-Dx_Inputs!E635 -> 0 | H164: =-Dx_Inputs!F635 -> 0 | I164: =-Dx_Inputs!G635 -> 0 | J164: =-Dx_Inputs!H635 -> 0 | K164: =-Dx_Inputs!I635 -> 0 | L164: =-Dx_Inputs!J635 -> 0 | M164: =-Dx_Inputs!K635 -> 0 | N164: =-Dx_Inputs!L635 -> 0 | O164: =-Dx_Inputs!M635 -> 0 | P164: =-Dx_Inputs!N635 -> 0 | Q164: =-Dx_Inputs!O635 -> 0 | R164: =-Dx_Inputs!P635 -> 0 | S164: =-Dx_Inputs!Q635 -> 0 | T164: =-Dx_Inputs!R635 -> 0 | U164: =-Dx_Inputs!S635 -> 0 | V164: =-Dx_Inputs!T635 -> 0 | W164: =-Dx_Inputs!U635 -> 0 | X164: =-Dx_Inputs!V635 -> 0 | Y164: =-Dx_Inputs!W635 -> 0 | Z164: =-Dx_Inputs!X635 -> 0 | AA164: =-Dx_Inputs!Y635 -> 0
B165: Total | G165: =SUM(G152:G164) -> -5.40367051 | H165: =SUM(H152:H164) -> -5.170583872 | I165: -5.09627608 | J165: -4.999956015 | K165: -4.887542537 | L165: -4.759048235 | M165: -4.151713808 | N165: -0.5568537117 | O165: 0 | P165: 0 | Q165: 0 | R165: -4.369440368 | S165: -6.898978798 | T165: -4.367689064 | U165: 0 | V165: 0 | W165: 0 | X165: 0 | Y165: 0 | Z165: 0 | AA165: 0
B167: Year ending 30 June | F167: 2006 | G167: 2007 | H167: 2008 | I167: 2009 | J167: 2010 | K167: 2011 | L167: 2012 | M167: 2013 | N167: 2014 | O167: 2015 | P167: 2016 | Q167: 2017 | R167: 2018 | S167: 2019 | T167: 2020 | U167: 2021 | V167: 2022 | W167: 2023 | X167: 2024 | Y167: 2025 | Z167: 2026 | AA167: 2027 | AB167: 2028 | AC167: 2029 | AD167: 2030 | AE167: 2031 | AF167: 2032
B168: Disposals/Redundant assets
B169: Wooden Pole Lines | G169: =IF(G118+G135+G152>Dx_Inputs!E660,-Dx_Inputs!E660,0) -> 0 | H169: =IF(H118+H135+H152>Dx_Inputs!F660,-Dx_Inputs!F660,0) -> 0 | I169: =IF(I118+I135+I152>Dx_Inputs!G660,-Dx_Inputs!G660,0) -> 0 | J169: =IF(J118+J135+J152>Dx_Inputs!H660,-Dx_Inputs!H660,0) -> 0 | K169: =IF(K118+K135+K152>Dx_Inputs!I660,-Dx_Inputs!I660,0) -> 0 | L169: =IF(L118+L135+L152>Dx_Inputs!J660,-Dx_Inputs!J660,0) -> -1.146460529 | M169: =IF(M118+M135+M152>Dx_Inputs!K660,-Dx_Inputs!K660,-(M118+M135+M152)) -> 0 | N169: =IF(N118+N135+N152>Dx_Inputs!L660,-Dx_Inputs!L660,-(N118+N135+N152)) -> -0.2901834153 | O169: =IF(O118+O135+O152>Dx_Inputs!M660,-Dx_Inputs!M660,-(O118+O135+O152)) -> -1.39893487 | P169: =IF(P118+P135+P152>Dx_Inputs!N660,-Dx_Inputs!N660,-(P118+P135+P152)) -> -0.1478768678 | Q169: =IF(Q118+Q135+Q152>Dx_Inputs!O660,-Dx_Inputs!O660,-(Q118+Q135+Q152)) -> 0 | R169: =IF(R118+R135+R152>Dx_Inputs!P660,-Dx_Inputs!P660,-(R118+R135+R152)) -> -0.1000105537 | S169: =IF(S118+S135+S152>Dx_Inputs!Q660,-Dx_Inputs!Q660,-(S118+S135+S152)) -> 0 | T169: =IF(T118+T135+T152>Dx_Inputs!R660,-Dx_Inputs!R660,-(T118+T135+T152)) -> -0.6303112615 | U169: =IF(U118+U135+U152>Dx_Inputs!S660,-Dx_Inputs!S660,-(U118+U135+U152)) -> 0 | V169: =IF(V118+V135+V152>Dx_Inputs!T660,-Dx_Inputs!T660,-(V118+V135+V152)) -> 0
B170: Underground Cables | G170: =IF(G119+G136+G153>Dx_Inputs!E661,-Dx_Inputs!E661,0) -> 0 | H170: =IF(H119+H136+H153>Dx_Inputs!F661,-Dx_Inputs!F661,0) -> 0 | I170: =IF(I119+I136+I153>Dx_Inputs!G661,-Dx_Inputs!G661,0) -> 0 | J170: =IF(J119+J136+J153>Dx_Inputs!H661,-Dx_Inputs!H661,0) -> 0 | K170: =IF(K119+K136+K153>Dx_Inputs!I661,-Dx_Inputs!I661,0) -> 0 | L170: =IF(L119+L136+L153>Dx_Inputs!J661,-Dx_Inputs!J661,0) -> 0 | M170: =IF(M119+M136+M153>Dx_Inputs!K661,-Dx_Inputs!K661,-(M119+M136+M153)) -> 0 | N170: =IF(N119+N136+N153>Dx_Inputs!L661,-Dx_Inputs!L661,-(N119+N136+N153)) -> 0 | O170: =IF(O119+O136+O153>Dx_Inputs!M661,-Dx_Inputs!M661,-(O119+O136+O153)) -> 0 | P170: =IF(P119+P136+P153>Dx_Inputs!N661,-Dx_Inputs!N661,-(P119+P136+P153)) -> 0 | Q170: =IF(Q119+Q136+Q153>Dx_Inputs!O661,-Dx_Inputs!O661,-(Q119+Q136+Q153)) -> 0 | R170: =IF(R119+R136+R153>Dx_Inputs!P661,-Dx_Inputs!P661,-(R119+R136+R153)) -> 0 | S170: =IF(S119+S136+S153>Dx_Inputs!Q661,-Dx_Inputs!Q661,-(S119+S136+S153)) -> 0 | T170: =IF(T119+T136+T153>Dx_Inputs!R661,-Dx_Inputs!R661,-(T119+T136+T153)) -> 0 | U170: =IF(U119+U136+U153>Dx_Inputs!S661,-Dx_Inputs!S661,-(U119+U136+U153)) -> 0 | V170: =IF(V119+V136+V153>Dx_Inputs!T661,-Dx_Inputs!T661,-(V119+V136+V153)) -> 0
B171: Transformers | G171: =IF(G120+G137+G154>Dx_Inputs!E662,-Dx_Inputs!E662,0) -> 0 | H171: =IF(H120+H137+H154>Dx_Inputs!F662,-Dx_Inputs!F662,0) -> 0 | I171: =IF(I120+I137+I154>Dx_Inputs!G662,-Dx_Inputs!G662,0) -> 0 | J171: =IF(J120+J137+J154>Dx_Inputs!H662,-Dx_Inputs!H662,0) -> 0 | K171: =IF(K120+K137+K154>Dx_Inputs!I662,-Dx_Inputs!I662,0) -> 0 | L171: =IF(L120+L137+L154>Dx_Inputs!J662,-Dx_Inputs!J662,0) -> 0 | M171: =IF(M120+M137+M154>Dx_Inputs!K662,-Dx_Inputs!K662,-(M120+M137+M154)) -> 0 | N171: =IF(N120+N137+N154>Dx_Inputs!L662,-Dx_Inputs!L662,-(N120+N137+N154)) -> 0 | O171: =IF(O120+O137+O154>Dx_Inputs!M662,-Dx_Inputs!M662,-(O120+O137+O154)) -> 0 | P171: =IF(P120+P137+P154>Dx_Inputs!N662,-Dx_Inputs!N662,-(P120+P137+P154)) -> 0 | Q171: =IF(Q120+Q137+Q154>Dx_Inputs!O662,-Dx_Inputs!O662,-(Q120+Q137+Q154)) -> 0 | R171: =IF(R120+R137+R154>Dx_Inputs!P662,-Dx_Inputs!P662,-(R120+R137+R154)) -> 0 | S171: =IF(S120+S137+S154>Dx_Inputs!Q662,-Dx_Inputs!Q662,-(S120+S137+S154)) -> 0 | T171: =IF(T120+T137+T154>Dx_Inputs!R662,-Dx_Inputs!R662,-(T120+T137+T154)) -> 0 | U171: =IF(U120+U137+U154>Dx_Inputs!S662,-Dx_Inputs!S662,-(U120+U137+U154)) -> 0 | V171: =IF(V120+V137+V154>Dx_Inputs!T662,-Dx_Inputs!T662,-(V120+V137+V154)) -> 0
B172: Switchgear | G172: =IF(G121+G138+G155>Dx_Inputs!E663,-Dx_Inputs!E663,0) -> 0 | H172: =IF(H121+H138+H155>Dx_Inputs!F663,-Dx_Inputs!F663,0) -> 0 | I172: =IF(I121+I138+I155>Dx_Inputs!G663,-Dx_Inputs!G663,0) -> 0 | J172: =IF(J121+J138+J155>Dx_Inputs!H663,-Dx_Inputs!H663,0) -> 0 | K172: =IF(K121+K138+K155>Dx_Inputs!I663,-Dx_Inputs!I663,0) -> 0 | L172: =IF(L121+L138+L155>Dx_Inputs!J663,-Dx_Inputs!J663,0) -> 0 | M172: =IF(M121+M138+M155>Dx_Inputs!K663,-Dx_Inputs!K663,-(M121+M138+M155)) -> 0 | N172: =IF(N121+N138+N155>Dx_Inputs!L663,-Dx_Inputs!L663,-(N121+N138+N155)) -> 0 | O172: =IF(O121+O138+O155>Dx_Inputs!M663,-Dx_Inputs!M663,-(O121+O138+O155)) -> 0 | P172: =IF(P121+P138+P155>Dx_Inputs!N663,-Dx_Inputs!N663,-(P121+P138+P155)) -> 0 | Q172: =IF(Q121+Q138+Q155>Dx_Inputs!O663,-Dx_Inputs!O663,-(Q121+Q138+Q155)) -> 0 | R172: =IF(R121+R138+R155>Dx_Inputs!P663,-Dx_Inputs!P663,-(R121+R138+R155)) -> 0 | S172: =IF(S121+S138+S155>Dx_Inputs!Q663,-Dx_Inputs!Q663,-(S121+S138+S155)) -> 0 | T172: =IF(T121+T138+T155>Dx_Inputs!R663,-Dx_Inputs!R663,-(T121+T138+T155)) -> 0.3567559106 | U172: =IF(U121+U138+U155>Dx_Inputs!S663,-Dx_Inputs!S663,-(U121+U138+U155)) -> 0 | V172: =IF(V121+V138+V155>Dx_Inputs!T663,-Dx_Inputs!T663,-(V121+V138+V155)) -> 0
B173: Street lighting | G173: =IF(G122+G139+G156>Dx_Inputs!E664,-Dx_Inputs!E664,0) -> 0 | H173: =IF(H122+H139+H156>Dx_Inputs!F664,-Dx_Inputs!F664,0) -> 0 | I173: =IF(I122+I139+I156>Dx_Inputs!G664,-Dx_Inputs!G664,0) -> 0 | J173: =IF(J122+J139+J156>Dx_Inputs!H664,-Dx_Inputs!H664,0) -> 0 | K173: =IF(K122+K139+K156>Dx_Inputs!I664,-Dx_Inputs!I664,0) -> 0 | L173: =IF(L122+L139+L156>Dx_Inputs!J664,-Dx_Inputs!J664,0) -> 0 | M173: =IF(M122+M139+M156>Dx_Inputs!K664,-Dx_Inputs!K664,-(M122+M139+M156)) -> 1.064695211e-15 | N173: =IF(N122+N139+N156>Dx_Inputs!L664,-Dx_Inputs!L664,-(N122+N139+N156)) -> 0 | O173: =IF(O122+O139+O156>Dx_Inputs!M664,-Dx_Inputs!M664,-(O122+O139+O156)) -> 0 | P173: =IF(P122+P139+P156>Dx_Inputs!N664,-Dx_Inputs!N664,-(P122+P139+P156)) -> 0 | Q173: =IF(Q122+Q139+Q156>Dx_Inputs!O664,-Dx_Inputs!O664,-(Q122+Q139+Q156)) -> 0 | R173: =IF(R122+R139+R156>Dx_Inputs!P664,-Dx_Inputs!P664,-(R122+R139+R156)) -> 0 | S173: =IF(S122+S139+S156>Dx_Inputs!Q664,-Dx_Inputs!Q664,-(S122+S139+S156)) -> 0 | T173: =IF(T122+T139+T156>Dx_Inputs!R664,-Dx_Inputs!R664,-(T122+T139+T156)) -> 0 | U173: =IF(U122+U139+U156>Dx_Inputs!S664,-Dx_Inputs!S664,-(U122+U139+U156)) -> 0 | V173: =IF(V122+V139+V156>Dx_Inputs!T664,-Dx_Inputs!T664,-(V122+V139+V156)) -> 0
B174: Meters and Services | G174: =IF(G123+G140+G157>Dx_Inputs!E665,-Dx_Inputs!E665,0) -> 0 | H174: =IF(H123+H140+H157>Dx_Inputs!F665,-Dx_Inputs!F665,0) -> 0 | I174: =IF(I123+I140+I157>Dx_Inputs!G665,-Dx_Inputs!G665,0) -> 0 | J174: =IF(J123+J140+J157>Dx_Inputs!H665,-Dx_Inputs!H665,0) -> 0 | K174: =IF(K123+K140+K157>Dx_Inputs!I665,-Dx_Inputs!I665,0) -> 0 | L174: =IF(L123+L140+L157>Dx_Inputs!J665,-Dx_Inputs!J665,0) -> 0 | M174: =IF(M123+M140+M157>Dx_Inputs!K665,-Dx_Inputs!K665,-(M123+M140+M157)) -> 0 | N174: =IF(N123+N140+N157>Dx_Inputs!L665,-Dx_Inputs!L665,-(N123+N140+N157)) -> 0 | O174: =IF(O123+O140+O157>Dx_Inputs!M665,-Dx_Inputs!M665,-(O123+O140+O157)) -> 0 | P174: =IF(P123+P140+P157>Dx_Inputs!N665,-Dx_Inputs!N665,-(P123+P140+P157)) -> 0 | Q174: =IF(Q123+Q140+Q157>Dx_Inputs!O665,-Dx_Inputs!O665,-(Q123+Q140+Q157)) -> 0 | R174: =IF(R123+R140+R157>Dx_Inputs!P665,-Dx_Inputs!P665,-(R123+R140+R157)) -> 0 | S174: =IF(S123+S140+S157>Dx_Inputs!Q665,-Dx_Inputs!Q665,-(S123+S140+S157)) -> 0 | T174: =IF(T123+T140+T157>Dx_Inputs!R665,-Dx_Inputs!R665,-(T123+T140+T157)) -> 0 | U174: =IF(U123+U140+U157>Dx_Inputs!S665,-Dx_Inputs!S665,-(U123+U140+U157)) -> 0 | V174: =IF(V123+V140+V157>Dx_Inputs!T665,-Dx_Inputs!T665,-(V123+V140+V157)) -> 0
B175: IT | G175: =IF(G124+G141+G158>Dx_Inputs!E666,-Dx_Inputs!E666,0) -> 0 | H175: =IF(H124+H141+H158>Dx_Inputs!F666,-Dx_Inputs!F666,0) -> 0 | I175: =IF(I124+I141+I158>Dx_Inputs!G666,-Dx_Inputs!G666,0) -> 0 | J175: =IF(J124+J141+J158>Dx_Inputs!H666,-Dx_Inputs!H666,0) -> -1.034516968 | K175: =IF(K124+K141+K158>Dx_Inputs!I666,-Dx_Inputs!I666,0) -> 0 | L175: =IF(L124+L141+L158>Dx_Inputs!J666,-Dx_Inputs!J666,0) -> -0.08538045294 | M175: =IF(M124+M141+M158>Dx_Inputs!K666,-Dx_Inputs!K666,-(M124+M141+M158)) -> 0 | N175: =IF(N124+N141+N158>Dx_Inputs!L666,-Dx_Inputs!L666,-(N124+N141+N158)) -> 0 | O175: =IF(O124+O141+O158>Dx_Inputs!M666,-Dx_Inputs!M666,-(O124+O141+O158)) -> 0 | P175: =IF(P124+P141+P158>Dx_Inputs!N666,-Dx_Inputs!N666,-(P124+P141+P158)) -> 6.661338148e-16 | Q175: =IF(Q124+Q141+Q158>Dx_Inputs!O666,-Dx_Inputs!O666,-(Q124+Q141+Q158)) -> 0 | R175: =IF(R124+R141+R158>Dx_Inputs!P666,-Dx_Inputs!P666,-(R124+R141+R158)) -> 0 | S175: =IF(S124+S141+S158>Dx_Inputs!Q666,-Dx_Inputs!Q666,-(S124+S141+S158)) -> 0 | T175: =IF(T124+T141+T158>Dx_Inputs!R666,-Dx_Inputs!R666,-(T124+T141+T158)) -> 0 | U175: =IF(U124+U141+U158>Dx_Inputs!S666,-Dx_Inputs!S666,-(U124+U141+U158)) -> 0 | V175: =IF(V124+V141+V158>Dx_Inputs!T666,-Dx_Inputs!T666,-(V124+V141+V158)) -> 0
B176: SCADA & Communications | G176: =IF(G125+G142+G159>Dx_Inputs!E667,-Dx_Inputs!E667,0) -> 0 | H176: =IF(H125+H142+H159>Dx_Inputs!F667,-Dx_Inputs!F667,0) -> 0 | I176: =IF(I125+I142+I159>Dx_Inputs!G667,-Dx_Inputs!G667,0) -> 0 | J176: =IF(J125+J142+J159>Dx_Inputs!H667,-Dx_Inputs!H667,0) -> 0 | K176: =IF(K125+K142+K159>Dx_Inputs!I667,-Dx_Inputs!I667,0) -> 0 | L176: =IF(L125+L142+L159>Dx_Inputs!J667,-Dx_Inputs!J667,0) -> 0 | M176: =IF(M125+M142+M159>Dx_Inputs!K667,-Dx_Inputs!K667,-(M125+M142+M159)) -> 0 | N176: =IF(N125+N142+N159>Dx_Inputs!L667,-Dx_Inputs!L667,-(N125+N142+N159)) -> 0 | O176: =IF(O125+O142+O159>Dx_Inputs!M667,-Dx_Inputs!M667,-(O125+O142+O159)) -> 0 | P176: =IF(P125+P142+P159>Dx_Inputs!N667,-Dx_Inputs!N667,-(P125+P142+P159)) -> 0 | Q176: =IF(Q125+Q142+Q159>Dx_Inputs!O667,-Dx_Inputs!O667,-(Q125+Q142+Q159)) -> 1.554312234e-15 | R176: =IF(R125+R142+R159>Dx_Inputs!P667,-Dx_Inputs!P667,-(R125+R142+R159)) -> 0 | S176: =IF(S125+S142+S159>Dx_Inputs!Q667,-Dx_Inputs!Q667,-(S125+S142+S159)) -> 0 | T176: =IF(T125+T142+T159>Dx_Inputs!R667,-Dx_Inputs!R667,-(T125+T142+T159)) -> 0 | U176: =IF(U125+U142+U159>Dx_Inputs!S667,-Dx_Inputs!S667,-(U125+U142+U159)) -> 0 | V176: =IF(V125+V142+V159>Dx_Inputs!T667,-Dx_Inputs!T667,-(V125+V142+V159)) -> 0
B177: Other Distribution Non-Network | G177: =IF(G126+G143+G160>Dx_Inputs!E668,-Dx_Inputs!E668,0) -> 0 | H177: =IF(H126+H143+H160>Dx_Inputs!F668,-Dx_Inputs!F668,0) -> 0 | I177: =IF(I126+I143+I160>Dx_Inputs!G668,-Dx_Inputs!G668,0) -> 0 | J177: =IF(J126+J143+J160>Dx_Inputs!H668,-Dx_Inputs!H668,0) -> 0 | K177: =IF(K126+K143+K160>Dx_Inputs!I668,-Dx_Inputs!I668,0) -> 0 | L177: =IF(L126+L143+L160>Dx_Inputs!J668,-Dx_Inputs!J668,0) -> 0 | M177: =IF(M126+M143+M160>Dx_Inputs!K668,-Dx_Inputs!K668,-(M126+M143+M160)) -> -0.05527705456 | N177: =IF(N126+N143+N160>Dx_Inputs!L668,-Dx_Inputs!L668,-(N126+N143+N160)) -> 0 | O177: =IF(O126+O143+O160>Dx_Inputs!M668,-Dx_Inputs!M668,-(O126+O143+O160)) -> 0 | P177: =IF(P126+P143+P160>Dx_Inputs!N668,-Dx_Inputs!N668,-(P126+P143+P160)) -> -2.924411301 | Q177: =IF(Q126+Q143+Q160>Dx_Inputs!O668,-Dx_Inputs!O668,-(Q126+Q143+Q160)) -> 1.063829177 | R177: =IF(R126+R143+R160>Dx_Inputs!P668,-Dx_Inputs!P668,-(R126+R143+R160)) -> 0 | S177: =IF(S126+S143+S160>Dx_Inputs!Q668,-Dx_Inputs!Q668,-(S126+S143+S160)) -> 0 | T177: =IF(T126+T143+T160>Dx_Inputs!R668,-Dx_Inputs!R668,-(T126+T143+T160)) -> 0 | U177: =IF(U126+U143+U160>Dx_Inputs!S668,-Dx_Inputs!S668,-(U126+U143+U160)) -> 0 | V177: =IF(V126+V143+V160>Dx_Inputs!T668,-Dx_Inputs!T668,-(V126+V143+V160)) -> 0
B178: Distribution Land & Easements | G178: =IF(G127+G144+G161>Dx_Inputs!E669,-Dx_Inputs!E669,0) -> -0.2636949801 | H178: =IF(H127+H144+H161>Dx_Inputs!F669,-Dx_Inputs!F669,0) -> 0 | I178: =IF(I127+I144+I161>Dx_Inputs!G669,-Dx_Inputs!G669,0) -> 0 | J178: =IF(J127+J144+J161>Dx_Inputs!H669,-Dx_Inputs!H669,0) -> 0 | K178: =IF(K127+K144+K161>Dx_Inputs!I669,-Dx_Inputs!I669,0) -> -0.001219231876 | L178: =IF(L127+L144+L161>Dx_Inputs!J669,-Dx_Inputs!J669,0) -> -1.46989707 | M178: =IF(M127+M144+M161>Dx_Inputs!K669,-Dx_Inputs!K669,-(M127+M144+M161)) -> -0.9592111043 | N178: =IF(N127+N144+N161>Dx_Inputs!L669,-Dx_Inputs!L669,-(N127+N144+N161)) -> -0.03541608612 | O178: =IF(O127+O144+O161>Dx_Inputs!M669,-Dx_Inputs!M669,-(O127+O144+O161)) -> -3.990847184 | P178: =IF(P127+P144+P161>Dx_Inputs!N669,-Dx_Inputs!N669,-(P127+P144+P161)) -> 0 | Q178: =IF(Q127+Q144+Q161>Dx_Inputs!O669,-Dx_Inputs!O669,-(Q127+Q144+Q161)) -> -0.343110834 | R178: =IF(R127+R144+R161>Dx_Inputs!P669,-Dx_Inputs!P669,-(R127+R144+R161)) -> -0.7818615596 | S178: =IF(S127+S144+S161>Dx_Inputs!Q669,-Dx_Inputs!Q669,-(S127+S144+S161)) -> -0.6186300962 | T178: =IF(T127+T144+T161>Dx_Inputs!R669,-Dx_Inputs!R669,-(T127+T144+T161)) -> 0 | U178: =IF(U127+U144+U161>Dx_Inputs!S669,-Dx_Inputs!S669,-(U127+U144+U161)) -> -0.1143535512 | V178: =IF(V127+V144+V161>Dx_Inputs!T669,-Dx_Inputs!T669,-(V127+V144+V161)) -> -0.1168615812
B179: Equity Raising Costs | G179: =IF(G128+G145+G162>Dx_Inputs!E670,-Dx_Inputs!E670,0) -> 0 | H179: =IF(H128+H145+H162>Dx_Inputs!F670,-Dx_Inputs!F670,0) -> 0 | I179: =IF(I128+I145+I162>Dx_Inputs!G670,-Dx_Inputs!G670,0) -> 0 | J179: =IF(J128+J145+J162>Dx_Inputs!H670,-Dx_Inputs!H670,0) -> 0 | K179: =IF(K128+K145+K162>Dx_Inputs!I670,-Dx_Inputs!I670,0) -> 0 | L179: =IF(L128+L145+L162>Dx_Inputs!J670,-Dx_Inputs!J670,0) -> 0 | M179: =IF(M128+M145+M162>Dx_Inputs!K670,-Dx_Inputs!K670,-(M128+M145+M162)) -> 0 | N179: =IF(N128+N145+N162>Dx_Inputs!L670,-Dx_Inputs!L670,-(N128+N145+N162)) -> 0 | O179: =IF(O128+O145+O162>Dx_Inputs!M670,-Dx_Inputs!M670,-(O128+O145+O162)) -> 0 | P179: =IF(P128+P145+P162>Dx_Inputs!N670,-Dx_Inputs!N670,-(P128+P145+P162)) -> 0 | Q179: =IF(Q128+Q145+Q162>Dx_Inputs!O670,-Dx_Inputs!O670,-(Q128+Q145+Q162)) -> 0 | R179: =IF(R128+R145+R162>Dx_Inputs!P670,-Dx_Inputs!P670,-(R128+R145+R162)) -> 0 | S179: =IF(S128+S145+S162>Dx_Inputs!Q670,-Dx_Inputs!Q670,-(S128+S145+S162)) -> 0 | T179: =IF(T128+T145+T162>Dx_Inputs!R670,-Dx_Inputs!R670,-(T128+T145+T162)) -> 0 | U179: =IF(U128+U145+U162>Dx_Inputs!S670,-Dx_Inputs!S670,-(U128+U145+U162)) -> 0 | V179: =IF(V128+V145+V162>Dx_Inputs!T670,-Dx_Inputs!T670,-(V128+V145+V162)) -> 0
B180: Standalone Power Systems | G180: =IF(G129+G146+G163>Dx_Inputs!E671,-Dx_Inputs!E671,0) -> 0 | H180: =IF(H129+H146+H163>Dx_Inputs!F671,-Dx_Inputs!F671,0) -> 0 | I180: =IF(I129+I146+I163>Dx_Inputs!G671,-Dx_Inputs!G671,0) -> 0 | J180: =IF(J129+J146+J163>Dx_Inputs!H671,-Dx_Inputs!H671,0) -> 0 | K180: =IF(K129+K146+K163>Dx_Inputs!I671,-Dx_Inputs!I671,0) -> 0 | L180: =IF(L129+L146+L163>Dx_Inputs!J671,-Dx_Inputs!J671,0) -> 0 | M180: =IF(M129+M146+M163>Dx_Inputs!K671,-Dx_Inputs!K671,-(M129+M146+M163)) -> 0 | N180: =IF(N129+N146+N163>Dx_Inputs!L671,-Dx_Inputs!L671,-(N129+N146+N163)) -> 0 | O180: =IF(O129+O146+O163>Dx_Inputs!M671,-Dx_Inputs!M671,-(O129+O146+O163)) -> 0 | P180: =IF(P129+P146+P163>Dx_Inputs!N671,-Dx_Inputs!N671,-(P129+P146+P163)) -> 0 | Q180: =IF(Q129+Q146+Q163>Dx_Inputs!O671,-Dx_Inputs!O671,-(Q129+Q146+Q163)) -> 0 | R180: =IF(R129+R146+R163>Dx_Inputs!P671,-Dx_Inputs!P671,-(R129+R146+R163)) -> 0 | S180: =IF(S129+S146+S163>Dx_Inputs!Q671,-Dx_Inputs!Q671,-(S129+S146+S163)) -> 0 | T180: =IF(T129+T146+T163>Dx_Inputs!R671,-Dx_Inputs!R671,-(T129+T146+T163)) -> 0 | U180: =IF(U129+U146+U163>Dx_Inputs!S671,-Dx_Inputs!S671,-(U129+U146+U163)) -> 0 | V180: =IF(V129+V146+V163>Dx_Inputs!T671,-Dx_Inputs!T671,-(V129+V146+V163)) -> 0
B181: Storage | G181: =IF(G130+G147+G164>Dx_Inputs!E672,-Dx_Inputs!E672,0) -> 0 | H181: =IF(H130+H147+H164>Dx_Inputs!F672,-Dx_Inputs!F672,0) -> 0 | I181: =IF(I130+I147+I164>Dx_Inputs!G672,-Dx_Inputs!G672,0) -> 0 | J181: =IF(J130+J147+J164>Dx_Inputs!H672,-Dx_Inputs!H672,0) -> 0 | K181: =IF(K130+K147+K164>Dx_Inputs!I672,-Dx_Inputs!I672,0) -> 0 | L181: =IF(L130+L147+L164>Dx_Inputs!J672,-Dx_Inputs!J672,0) -> 0 | M181: =IF(M130+M147+M164>Dx_Inputs!K672,-Dx_Inputs!K672,-(M130+M147+M164)) -> 0 | N181: =IF(N130+N147+N164>Dx_Inputs!L672,-Dx_Inputs!L672,-(N130+N147+N164)) -> 0 | O181: =IF(O130+O147+O164>Dx_Inputs!M672,-Dx_Inputs!M672,-(O130+O147+O164)) -> 0 | P181: =IF(P130+P147+P164>Dx_Inputs!N672,-Dx_Inputs!N672,-(P130+P147+P164)) -> 0 | Q181: =IF(Q130+Q147+Q164>Dx_Inputs!O672,-Dx_Inputs!O672,-(Q130+Q147+Q164)) -> 0 | R181: =IF(R130+R147+R164>Dx_Inputs!P672,-Dx_Inputs!P672,-(R130+R147+R164)) -> 0 | S181: =IF(S130+S147+S164>Dx_Inputs!Q672,-Dx_Inputs!Q672,-(S130+S147+S164)) -> 0 | T181: =IF(T130+T147+T164>Dx_Inputs!R672,-Dx_Inputs!R672,-(T130+T147+T164)) -> 0 | U181: =IF(U130+U147+U164>Dx_Inputs!S672,-Dx_Inputs!S672,-(U130+U147+U164)) -> 0 | V181: =IF(V130+V147+V164>Dx_Inputs!T672,-Dx_Inputs!T672,-(V130+V147+V164)) -> 0
B182: Total | G182: =SUM(G169:G181) -> -0.2636949801 | H182: =SUM(H169:H181) -> 0 | I182: 0 | J182: -1.034516968 | K182: -0.001219231876 | L182: -2.701738052 | M182: -1.014488159 | N182: -0.3255995014 | O182: -5.389782055 | P182: -3.072288169 | Q182: 0.7207183427 | R182: -0.8818721133 | S182: -0.6186300962 | T182: -0.273555351 | U182: -0.1143535512 | V182: -0.1168615812
B184: Year ending 30 June | F184: 2006 | G184: 2007 | H184: 2008 | I184: 2009 | J184: 2010 | K184: 2011 | L184: 2012 | M184: 2013 | N184: 2014 | O184: 2015 | P184: 2016 | Q184: 2017 | R184: 2018 | S184: 2019 | T184: 2020 | U184: 2021 | V184: 2022 | W184: 2023 | X184: 2024 | Y184: 2025 | Z184: 2026 | AA184: 2027 | AB184: 2028 | AC184: 2029 | AD184: 2030 | AE184: 2031 | AF184: 2032
B185: Closing balance | D185: Checks
B186: Wooden Pole Lines | D186: =IF(ROUND(SUM(F186,G135:AF135,G152:Q152,G169:Q169),8)>=0,"OK","CHECK") -> OK | F186: =Dx_Inputs!I60 -> 665.8246855 | G186: =SUM(G118,G135,G152,G169) -> 615.8533338 | H186: 566.3548404 | I186: 517.2258183 | J186: 468.4996932 | K186: 420.2150179 | L186: 371.2661114 | M186: 324.47396 | N186: 280.5029416 | O186: 235.9050645 | P186: 192.5582453 | Q186: 149.359303 | R186: 102.953001 | S186: 56.93049705 | T186: 15.09812499 | U186: 0 | V186: 0 | W186: 0 | X186: 0 | Y186: 0 | Z186: 0 | AA186: 0 | AB186: 0 | AC186: 0 | AD186: 0 | AE186: 0 | AF186: 0
B187: Underground Cables | D187: OK | F187: =Dx_Inputs!I61 -> 754.0399778 | G187: =SUM(G119,G136,G153,G170) -> 733.60529 | H187: =SUM(H119,H136,H153,H170) -> 713.1706023 | I187: 692.7359145 | J187: 672.3012268 | K187: 651.8665391 | L187: 631.4318513 | M187: 610.9971636 | N187: 590.5624758 | O187: 570.1277881 | P187: 549.6931003 | Q187: 529.2584126 | R187: 508.8237248 | S187: 488.3890371 | T187: 467.9543494 | U187: 447.5196616 | V187: 427.0849739 | W187: =SUM(W119,W136,W153,W170) -> 406.6502861 | X187: 386.2155984 | Y187: 365.7809106 | Z187: 345.3462229 | AA187: 324.9115351 | AB187: 304.4768474 | AC187: 284.0421597 | AD187: 263.6074719 | AE187: 243.1727842 | AF187: 222.7380964
B188: Transformers | D188: OK | F188: =Dx_Inputs!I62 -> 287.0751673 | G188: 269.0077369 | H188: =SUM(H120,H137,H154,H171) -> 251.0544145 | I188: 233.1861486 | J188: 215.4101755 | K188: 197.7342038 | L188: 180.1660745 | M188: 162.8067341 | N188: 146.2502387 | O188: 129.8176276 | P188: 113.3850165 | Q188: 96.95240542 | R188: 80.05808848 | S188: 62.23541528 | T188: 45.51507944 | U188: 29.82022446 | V188: 14.12536948 | W188: =SUM(W120,W137,W154,W171) -> 0 | X188: 0 | Y188: 0 | Z188: 0 | AA188: 0 | AB188: 0 | AC188: 0 | AD188: 0 | AE188: 0 | AF188: 0
B189: Switchgear | D189: OK | F189: =Dx_Inputs!I63 -> 153.0141515 | G189: 141.4092413 | H189: =SUM(H121,H138,H155,H172) -> 129.8374898 | I189: 118.2922245 | J189: 106.7763006 | K189: 95.29231287 | L189: 83.84350012 | M189: 72.45678108 | N189: 61.28174131 | O189: 50.13960652 | P189: 38.99747174 | Q189: 27.85533696 | R189: 16.43767252 | S189: 4.905836706 | T189: 0 | U189: 0 | V189: 0 | W189: =SUM(W121,W138,W155,W172) -> 0 | X189: 0 | Y189: 0 | Z189: 0 | AA189: 0 | AB189: 0 | AC189: 0 | AD189: 0 | AE189: 0 | AF189: 0
B190: Street lighting | D190: OK | F190: =Dx_Inputs!I64 -> 7.405684605 | G190: 1.234280768 | H190: =SUM(H122,H139,H156,H173) -> -1.33226763e-15 | I190: -1.33226763e-15 | J190: -1.33226763e-15 | K190: -1.33226763e-15 | L190: -1.33226763e-15 | M190: 0 | N190: 0 | O190: 0 | P190: 0 | Q190: 0 | R190: 0 | S190: 0 | T190: 0 | U190: 0 | V190: 0 | W190: =SUM(W122,W139,W156,W173) -> 0 | X190: 0 | Y190: 0 | Z190: 0 | AA190: 0 | AB190: 0 | AC190: 0 | AD190: 0 | AE190: 0 | AF190: 0
B191: Meters and Services | D191: OK | F191: =Dx_Inputs!I65 -> 236.9814636 | G191: 211.2226089 | H191: =SUM(H123,H140,H157,H174) -> 185.4637542 | I191: 159.7048994 | J191: 133.9460447 | K191: 108.1871899 | L191: 82.42833518 | M191: 56.66948043 | N191: 30.91062569 | O191: 5.151770949 | P191: 6.30606678e-14 | Q191: 6.30606678e-14 | R191: 0 | S191: 0 | T191: 0 | U191: 0 | V191: 0 | W191: =SUM(W123,W140,W157,W174) -> 0 | X191: 0 | Y191: 0 | Z191: 0 | AA191: 0 | AB191: 0 | AC191: 0 | AD191: 0 | AE191: 0 | AF191: 0
B192: IT | D192: OK | F192: =Dx_Inputs!I66 -> 21.71750966 | G192: 19.50143725 | H192: =SUM(H124,H141,H158,H175) -> 17.28536484 | I192: 15.06929242 | J192: 11.81870304 | K192: 9.602630623 | L192: 7.301177755 | M192: 5.379815188 | N192: 3.458452621 | O192: 1.537090054 | P192: 0 | Q192: 0 | R192: 0 | S192: 0 | T192: 0 | U192: 0 | V192: 0 | W192: =SUM(W124,W141,W158,W175) -> 0 | X192: 0 | Y192: 0 | Z192: 0 | AA192: 0 | AB192: 0 | AC192: 0 | AD192: 0 | AE192: 0 | AF192: 0
B193: SCADA & Communications | D193: OK | F193: =Dx_Inputs!I67 -> 18.06912664 | G193: 16.29764364 | H193: =SUM(H125,H142,H159,H176) -> 14.52616063 | I193: 12.75467763 | J193: 10.98319462 | K193: 9.21171162 | L193: 7.440228616 | M193: 5.668745612 | N193: 3.897262609 | O193: 2.125779605 | P193: 0.3542966008 | Q193: 0 | R193: 0 | S193: 0 | T193: 0 | U193: 0 | V193: 0 | W193: =SUM(W125,W142,W159,W176) -> 0 | X193: 0 | Y193: 0 | Z193: 0 | AA193: 0 | AB193: 0 | AC193: 0 | AD193: 0 | AE193: 0 | AF193: 0
B194: Other Distribution Non-Network | D194: OK | F194: =Dx_Inputs!I68 -> 72.16402906 | G194: 65.7778318 | H194: =SUM(H126,H143,H160,H177) -> 59.39163454 | I194: 53.00543727 | J194: 46.61924001 | K194: 40.23304275 | L194: 33.84684549 | M194: 27.40537117 | N194: 21.01917391 | O194: 14.63297665 | P194: 5.322368085 | Q194: 0 | R194: 0 | S194: 0 | T194: 0 | U194: 0 | V194: 0 | W194: =SUM(W126,W143,W160,W177) -> 0 | X194: 0 | Y194: 0 | Z194: 0 | AA194: 0 | AB194: 0 | AC194: 0 | AD194: 0 | AE194: 0 | AF194: 0
B195: Distribution Land & Easements | D195: OK | F195: =Dx_Inputs!I69 -> 30.17624154 | G195: 29.91254656 | H195: =SUM(H127,H144,H161,H178) -> 29.91254656 | I195: 29.91254656 | J195: 29.91254656 | K195: 29.91132732 | L195: 28.44143025 | M195: 27.48221915 | N195: 27.44680306 | O195: 23.45595588 | P195: 23.45595588 | Q195: 23.11284505 | R195: 22.33098349 | S195: 21.71235339 | T195: 21.71235339 | U195: 21.59799984 | V195: 21.48113826 | W195: =SUM(W127,W144,W161,W178) -> 21.48113826 | X195: 21.48113826 | Y195: 21.48113826 | Z195: 21.48113826 | AA195: 21.48113826 | AB195: 21.48113826 | AC195: 21.48113826 | AD195: 21.48113826 | AE195: 21.48113826 | AF195: 21.48113826
B196: Equity Raising Costs | D196: OK | F196: =Dx_Inputs!I70 -> 0 | G196: 0 | H196: =SUM(H128,H145,H162,H179) -> 0 | I196: 0 | J196: 0 | K196: 0 | L196: 0 | M196: 0 | N196: 0 | O196: 0 | P196: 0 | Q196: 0 | R196: 0 | S196: 0 | T196: 0 | U196: 0 | V196: 0 | W196: =SUM(W128,W145,W162,W179) -> 0 | X196: 0 | Y196: 0 | Z196: 0 | AA196: 0 | AB196: 0 | AC196: 0 | AD196: 0 | AE196: 0 | AF196: 0
B197: Standalone Power Systems | D197: OK | F197: =Dx_Inputs!I71 -> 0 | G197: 0 | H197: =SUM(H129,H146,H163,H180) -> 0 | I197: 0 | J197: 0 | K197: 0 | L197: 0 | M197: 0 | N197: 0 | O197: 0 | P197: 0 | Q197: 0 | R197: 0 | S197: 0 | T197: 0 | U197: 0 | V197: 0 | W197: 0 | X197: 0 | Y197: 0 | Z197: 0 | AA197: 0 | AB197: 0 | AC197: 0 | AD197: 0 | AE197: 0 | AF197: 0
B198: Storage | D198: OK | F198: =Dx_Inputs!I72 -> 0 | G198: =SUM(G130,G147,G164,G181) -> 0 | H198: 0 | I198: 0 | J198: 0 | K198: 0 | L198: 0 | M198: 0 | N198: 0 | O198: 0 | P198: 0 | Q198: 0 | R198: 0 | S198: 0 | T198: 0 | U198: 0 | V198: 0 | W198: 0 | X198: 0 | Y198: 0 | Z198: 0 | AA198: 0 | AB198: 0 | AC198: 0 | AD198: 0 | AE198: 0 | AF198: 0
B199: Total | F199: =SUM(F186:F198) -> 2246.468037 | G199: =SUM(G186:G198) -> 2103.821951 | H199: 1966.996808 | I199: 1831.886959 | J199: 1696.267125 | K199: 1562.253976 | L199: 1426.165555 | M199: 1293.34027 | N199: 1165.329715 | O199: 1032.89366 | P199: 923.7664544 | Q199: 826.538303 | R199: 730.6034703 | S199: 634.1731395 | T199: 550.2799072 | U199: 498.9378859 | V199: 462.6914816 | W199: 428.1314244 | X199: 407.6967366 | Y199: 387.2620489 | Z199: 366.8273611 | AA199: 346.3926734 | AB199: 325.9579857 | AC199: 305.5232979 | AD199: 285.0886102 | AE199: 264.6539224 | AF199: 244.2192347
B201: Capital expenditure [$M real as at 30 June 2022]
B202: Year ending 30 June | F202: 2006 | G202: 2007 | H202: 2008 | I202: 2009 | J202: 2010 | K202: 2011 | L202: 2012 | M202: 2013 | N202: 2014 | O202: 2015 | P202: 2016 | Q202: 2017 | R202: 2018 | S202: 2019 | T202: 2020 | U202: 2021 | V202: 2022 | W202: 2023 | X202: 2024 | Y202: 2025 | Z202: 2026 | AA202: 2027 | AB202: 2028 | AC202: 2029 | AD202: 2030 | AE202: 2031 | AF202: 2032
B203: Opening balance
B204: Wooden Pole Lines | G204: =F272 -> 0 | H204: =G272 -> 110.618564 | I204: 244.221163 | J204: 429.4926212 | K204: 595.5750058 | L204: 749.0846978 | M204: 991.6897651 | N204: 1328.250899 | O204: 1720.86829 | P204: 2011.77536 | Q204: 2193.815687 | R204: 2250.163712 | S204: 2372.887779 | T204: 2457.945005 | U204: 2566.740944 | V204: 2679.347852 | W204: 2739.714035 | X204: 2819.438888 | Y204: 2896.410798 | Z204: 2958.673311 | AA204: 3020.026315 | AB204: 3078.249968 | AC204: 2976.922995 | AD204: 2875.596023 | AE204: 2774.269051 | AF204: 2672.942079
B205: Underground Cables | G205: =F273 -> 0 | H205: 211.252956 | I205: 411.8281851 | J205: 684.6967505 | K205: 832.7705629 | L205: 961.9155034 | M205: 1060.561352 | N205: 1124.046696 | O205: 1167.132926 | P205: 1208.160227 | Q205: 1245.270819 | R205: 1276.878131 | S205: 1283.140906 | T205: 1290.592145 | U205: 1309.773462 | V205: 1325.220192 | W205: 1337.27386 | X205: 1460.908109 | Y205: 1577.486466 | Z205: 1688.435033 | AA205: 1794.225724 | AB205: 1895.007496 | AC205: 1853.474154 | AD205: 1811.940813 | AE205: 1770.407472 | AF205: 1728.874131
B206: Transformers | G206: =F274 -> 0 | H206: 68.92337912 | I206: 134.5991924 | J206: 228.4640491 | K206: 278.5690218 | L206: 326.1232029 | M206: 368.2784533 | N206: 501.1006743 | O206: 613.0547898 | P206: 734.3610353 | Q206: 835.5139263 | R206: 905.8988609 | S206: 935.6391511 | T206: 975.3439704 | U206: 1008.687448 | V206: 1029.22511 | W206: 1086.190722 | X206: 1062.538532 | Y206: 1038.443317 | Z206: 1013.857889 | AA206: 988.5952783 | AB206: 962.8631231 | AC206: 920.9451228 | AD206: 879.0271225 | AE206: 837.1091222 | AF206: 795.191122
B207: Switchgear | G207: 0 | H207: 53.15220685 | I207: 113.4628287 | J207: 199.2734765 | K207: 253.1355522 | L207: 304.9283603 | M207: 368.8319591 | N207: 437.6763455 | O207: 500.3488173 | P207: 563.3647379 | Q207: 608.431372 | R207: 637.2425059 | S207: 648.3317207 | T207: 663.3067283 | U207: 674.1299173 | V207: 680.2506222 | W207: 708.7717055 | X207: 711.9582104 | Y207: 715.1639666 | Z207: 717.726893 | AA207: 718.1381956 | AB207: 717.6783666 | AC207: 685.8676283 | AD207: 654.0568901 | AE207: 622.2461518 | AF207: 590.4354136
B208: Street lighting | G208: 0 | H208: 20.80915789 | I208: 40.7178275 | J208: 69.61672038 | K208: 83.01081275 | L208: 95.94298256 | M208: 105.3892632 | N208: 105.0441742 | O208: 104.0210986 | P208: 103.9733633 | Q208: 103.7291228 | R208: 101.8782163 | S208: 97.61284479 | T208: 93.50373764 | U208: 88.96195696 | V208: 83.96945616 | W208: 80.53532551 | X208: 86.67305841 | Y208: 92.56034668 | Z208: 97.87488363 | AA208: 101.8993478 | AB208: 105.250587 | AC208: 94.01550636 | AD208: 83.82155655 | AE208: 75.15814408 | AF208: 67.36002697
B209: Meters and Services | G209: 0 | H209: 13.1484071 | I209: 27.56237246 | J209: 43.26411157 | K209: 55.53494079 | L209: 72.50958356 | M209: 89.47344498 | N209: 98.96221051 | O209: 104.3938941 | P209: 109.9830079 | Q209: 125.1423641 | R209: 135.4068201 | S209: 141.4557957 | T209: 156.4337084 | U209: 174.3650531 | V209: 179.5563066 | W209: 185.5257432 | X209: 237.7685734 | Y209: 283.3748953 | Z209: 332.4707905 | AA209: 368.6436907 | AB209: 395.3186557 | AC209: 356.764303 | AD209: 319.1662089 | AE209: 281.6847589 | AF209: 244.75958
B210: IT | G210: 0 | H210: 22.04792233 | I210: 59.62715655 | J210: 79.10789256 | K210: 87.16633703 | L210: 103.2063569 | M210: 124.6438271 | N210: 130.5037822 | O210: 124.0627031 | P210: 120.8470038 | Q210: 105.4522334 | R210: 107.0247367 | S210: 108.1279713 | T210: 109.8222771 | U210: 110.7560596 | V210: 106.2284543 | W210: 109.8373396 | X210: 123.0515247 | Y210: 145.8304821 | Z210: 157.7822838 | AA210: 180.5896462 | AB210: 191.6648957 | AC210: 139.2292901 | AD210: 94.53440597 | AE210: 57.67912699 | AF210: 29.39216547
B211: SCADA & Communications | G211: 0 | H211: 2.841279779 | I211: 5.338238669 | J211: 7.562890828 | K211: 11.01967451 | L211: 13.49265891 | M211: 17.09320126 | N211: 18.92220118 | O211: 19.18839171 | P211: 17.62951527 | Q211: 15.24681139 | R211: 12.97422544 | S211: 19.38684208 | T211: 23.02817734 | U211: 36.90164271 | V211: 52.87106495 | W211: 63.94349829 | X211: 93.65925386 | Y211: 119.6798094 | Z211: 147.579782 | AA211: 179.3605916 | AB211: 208.7631493 | AC211: 180.8388016 | AD211: 152.475264 | AE211: 125.0596275 | AF211: 97.53429896
... 461 more rows

Sheet Dx_Tax_Asset
B1: Validation status | C1: =IF(COUNTIF(M11:AF11,"CHECK")+COUNTIF(D186:D196,"CHECK")+COUNTIF(E317:E627,"CHECK")>0,"CHECK","OK") -> OK
B2: Distribution calculations
B3: Year ending 30 June | F3: 2006 | G3: 2007 | H3: 2008 | I3: 2009 | J3: 2010 | K3: 2011 | L3: 2012 | M3: 2013 | N3: 2014 | O3: 2015 | P3: 2016 | Q3: 2017 | R3: 2018 | S3: 2019 | T3: 2020 | U3: 2021 | V3: 2022 | W3: 2023 | X3: 2024 | Y3: 2025 | Z3: 2026 | AA3: 2027 | AB3: 2028 | AC3: 2029 | AD3: 2030 | AE3: 2031 | AF3: 2032
B4: Total Dx TAB value [$M nominal]
B5: Opening balance | M5: =L10 -> 3127.69238 | N5: 3667.466852 | O5: 4178.603365 | P5: 4617.021714 | Q5: 4915.943423 | R5: 5068.680953 | S5: 5199.336676 | T5: 5332.658346 | U5: 5515.571573 | V5: 5675.932627 | W5: 5900.304019 | X5: 6250.854072 | Y5: 6586.185588 | Z5: 6911.402977 | AA5: 7183.605448 | AB5: 7432.476782 | AC5: 6961.015534 | AD5: 6552.942389 | AE5: 6186.462498 | AF5: 5854.919283
B6: Capital expenditure | M6: =M45 -> 630.1253683 | N6: 642.3267112 | O6: 600.3744449 | P6: 488.6057826 | Q6: 357.433 | R6: 353.7102392 | S6: 369.7018616 | T6: 430.318397 | U6: 424.250904 | V6: 502.885092 | W6: 653.4734019 | X6: 677.1451641 | Y6: 707.2769351 | Z6: 691.1549359 | AA6: 697.4825869 | AB6: 0 | AC6: 0 | AD6: 0 | AE6: 0 | AF6: 0
B7: Disposals | M7: =M62 -> -0.86199603 | N7: -0.285 | O7: -4.789 | P7: -2.757763012 | Q7: -0.6179830525 | R7: -1.443 | S7: -0.587 | T7: -0.596 | U7: -1.612 | V7: -1.677666105 | W7: 0 | X7: 0 | Y7: 0 | Z7: 0 | AA7: 0 | AB7: 0 | AC7: 0 | AD7: 0 | AE7: 0 | AF7: 0
B8: Depreciation | M8: =M79 -> -85.96124891 | N8: -130.4177799 | O8: -157.1670956 | P8: -186.9263104 | Q8: -204.0774872 | R8: -217.5304889 | S8: -229.2469528 | T8: -242.6792384 | U8: -262.2778491 | V8: -276.8360346 | W8: =W79 -> -302.9233483 | X8: -341.8136488 | Y8: -382.0595454 | Z8: -418.9524649 | AA8: -448.6112528 | AB8: -471.4612484 | AC8: -408.0731452 | AD8: -366.4798905 | AE8: -331.5432153 | AF8: -304.6728627
B9: Accelerated depreciation | M9: =M165 -> -3.527651643 | N9: -0.487418768 | O9: 0 | P9: 0 | Q9: 0 | R9: -4.081026632 | S9: -6.546239149 | T9: -4.129932052 | U9: 0 | V9: 0 | W9: 0 | X9: 0 | Y9: 0 | Z9: 0 | AA9: 0 | AB9: 0 | AC9: 0 | AD9: 0 | AE9: 0 | AF9: 0
B10: Closing balance | L10: =L199 -> 3127.69238 | M10: =SUM(M5:M9) -> 3667.466852 | N10: 4178.603365 | O10: 4617.021714 | P10: 4915.943423 | Q10: 5068.680953 | R10: 5199.336676 | S10: 5332.658346 | T10: 5515.571573 | U10: 5675.932627 | V10: 5900.304019 | W10: 6250.854072 | X10: 6586.185588 | Y10: 6911.402977 | Z10: 7183.605448 | AA10: 7432.476782 | AB10: 6961.015534 | AC10: 6552.942389 | AD10: 6186.462498 | AE10: 5854.919283 | AF10: 5550.24642
M11: =IF(ROUND(M113-M10,8)=0,"OK","CHECK") -> OK | N11: OK | O11: OK | P11: OK | Q11: OK | R11: OK | S11: OK | T11: OK | U11: OK | V11: OK | W11: OK | X11: OK | Y11: OK | Z11: OK | AA11: OK | AB11: OK | AC11: OK | AD11: OK | AE11: OK | AF11: OK
B12: Breakdown by asset categories [$M nominal]
B13: Year ending 30 June | F13: 2006 | G13: 2007 | H13: 2008 | I13: 2009 | J13: 2010 | K13: 2011 | L13: 2012 | M13: 2013 | N13: 2014 | O13: 2015 | P13: 2016 | Q13: 2017 | R13: 2018 | S13: 2019 | T13: 2020 | U13: 2021 | V13: 2022 | W13: 2023 | X13: 2024 | Y13: 2025 | Z13: 2026 | AA13: 2027 | AB13: 2028 | AC13: 2029 | AD13: 2030 | AE13: 2031 | AF13: 2032
B14: Opening balance
B15: Wooden Pole Lines | M15: =L100 -> 2747.935154 | N15: 2994.356195 | O15: 3292.8427 | P15: 3498.190705 | Q15: 3606.189309 | R15: 3604.487165 | S15: 3663.794174 | T15: 3688.914459 | U15: 3737.432332 | V15: 3799.264485 | W15: 3811.040184 | X15: =W100 -> 3844.337508 | Y15: 3878.175829 | Z15: 3899.981073 | AA15: 3924.56646 | AB15: 3949.619656 | AC15: 3798.769601 | AD15: 3652.049827 | AE15: 3509.276764 | AF15: 3370.275004
B16: Underground Cables | M16: =L101 -> 110.2319941 | N16: 179.4990142 | O16: 229.7371471 | P16: 278.1400787 | Q16: 322.8160004 | R16: 362.8928375 | S16: 378.4801959 | T16: 395.9773615 | U16: 424.7792878 | V16: 451.2983212 | W16: 474.8773196 | X16: 611.1604161 | Y16: 740.8216568 | Z16: 865.44734 | AA16: 985.6385131 | AB16: 1101.649651 | AC16: 1058.662378 | AD16: 1017.309757 | AE16: 977.5264022 | AF16: 939.2495422
B17: Transformers | M17: 32.22184132 | N17: 153.9053484 | O17: 258.5284966 | P17: 371.5951349 | Q17: 465.791876 | R17: 532.7271589 | S17: 561.6263537 | T17: 600.8334223 | U17: 635.0472517 | V17: 660.8585302 | W17: 725.6106867 | X17: 705.9594157 | Y17: 687.5978057 | Z17: 670.4189937 | AA17: 654.165657 | AB17: 639.0114169 | AC17: 607.1764963 | AD17: 576.8945728 | AE17: 548.0879968 | AF17: 520.6830008
B18: Switchgear | M18: 25.6890398 | N18: 93.46223398 | O18: 154.7566666 | P18: 215.1781421 | Q18: 258.0606484 | R18: 286.0037135 | S18: 297.5159093 | T18: 313.2952996 | U18: 325.808404 | V18: 335.4593697 | W18: 368.7643303 | X18: 374.9862785 | Y18: 382.4158097 | Z18: 390.3606937 | AA18: 397.195495 | AB18: 404.3341923 | AC18: 377.3954079 | AD18: 352.197622 | AE18: 328.6247683 | AF18: 306.5685177
B19: Street lighting | M19: 35.1250608 | N19: 37.92311141 | O19: 39.20352392 | P19: 41.14386387 | Q19: 42.57013161 | R19: 42.31108532 | S19: 40.07513558 | T19: 38.18381383 | U19: 35.99517008 | V19: 33.66451875 | W19: 33.14035033 | X19: 42.21554009 | Y19: 50.53245312 | Z19: 57.90220844 | AA19: 65.56045456 | AB19: 73.30391397 | AC19: 62.95805946 | AD19: 54.01671542 | AE19: 46.13230849 | AF19: 39.28785675
B20: Meters and Services | M20: 3.246493062 | N20: 14.64795901 | O20: 22.44482288 | P20: 32.45883396 | Q20: 53.02987157 | R20: 70.26423491 | S20: 78.58295309 | T20: 96.11785089 | U20: 116.5755801 | V20: 125.9749355 | W20: 137.8180389 | X20: 196.603176 | Y20: 249.9286255 | Z20: 308.7803148 | AA20: 355.8707201 | AB20: 395.021504 | AC20: 363.4135969 | AD20: 334.3243279 | AE20: 307.5522059 | AF20: 282.9118591
B21: IT | M21: 31.47250339 | N21: 48.31992562 | O21: 44.28630381 | P21: 46.00712352 | Q21: 34.98395044 | R21: 44.86143302 | S21: 47.59395815 | T21: 52.46023241 | U21: 57.89550259 | V21: 59.4305013 | W21: 66.64576546 | X21: 79.44379906 | Y21: 91.21270388 | Z21: 98.03691731 | AA21: 112.2249946 | AB21: 117.1351543 | AC21: 55.22268137 | AD21: 24.20780144 | AE21: 8.002773487 | AF21: -1.421085472e-14
B22: SCADA & Communications | M22: 15.86631549 | N22: 17.21336342 | O22: 17.08963369 | P22: 16.97425718 | Q22: 17.92557518 | R22: 19.82169978 | S22: 21.90703374 | T22: 23.70957519 | U22: 34.66656708 | V22: 45.99941506 | W22: 50.3590055 | X22: 77.16190285 | Y22: 99.76530612 | Z22: 124.4441272 | AA22: 153.7057206 | AB22: 180.6379608 | AC22: 143.8774587 | AD22: 114.4265077 | AE22: 89.81595403 | AF22: 69.82372242
B23: Other Distribution Non-Network | M23: 107.6731485 | N23: 107.4330772 | O23: 97.66634887 | P23: 98.57906766 | Q23: 96.98994553 | R23: 89.96486629 | S23: 88.76203608 | T23: 92.37797873 | U23: 101.1318696 | V23: 89.65094639 | W23: 112.4980564 | X23: 130.7504844 | Y23: 153.5139453 | Z23: 185.6404112 | AA23: 175.7300691 | AB23: 168.8136846 | AC23: 133.849495 | AD23: 105.3161683 | AE23: 81.73657774 | AF23: 64.57298863
B24: Distribution Land & Easements | M24: 18.23082961 | N24: 17.4158017 | O24: 17.3848017 | P24: 13.8388017 | Q24: 13.8388017 | R24: 13.52486129 | S24: 20.25420808 | T24: 30.61600808 | U24: 46.23960808 | V24: 51.19541394 | W24: 78.50927659 | X24: 78.50927659 | Y24: 78.50927659 | Z24: 78.50927659 | AA24: 78.50927659 | AB24: 78.50927659 | AC24: 78.50927659 | AD24: 78.50927659 | AE24: 78.50927659 | AF24: 78.50927659
B25: Equity Raising Costs | M25: 0 | N25: 3.290821579 | O25: 4.662919662 | P25: 4.915704917 | Q25: 3.747313622 | R25: 1.821897697 | S25: 0.7447185157 | T25: 0.1723443851 | U25: -6.661338148e-16 | V25: -6.661338148e-16 | W25: -6.661338148e-16 | X25: -6.661338148e-16 | Y25: -6.661338148e-16 | Z25: -6.661338148e-16 | AA25: -6.661338148e-16 | AB25: -6.661338148e-16 | AC25: -6.661338148e-16 | AD25: -6.661338148e-16 | AE25: -6.661338148e-16 | AF25: -6.661338148e-16
B26: Standalone Power Systems | M26: =L111 -> 0 | N26: =M111 -> 0 | O26: =N111 -> 0 | P26: =O111 -> 0 | Q26: =P111 -> 0 | R26: =Q111 -> 0 | S26: =R111 -> 0 | T26: =S111 -> 0 | U26: =T111 -> 0 | V26: =U111 -> 23.1361901 | W26: =V111 -> 41.04100493 | X26: =W111 -> 109.7238662 | Y26: =X111 -> 173.7078214 | Z26: =Y111 -> 231.8755933 | AA26: =Z111 -> 280.4306603 | AB26: =AA111 -> 324.4317737 | AC26: =AB111 -> 281.1742039 | AD26: =AC111 -> 243.68431 | AE26: =AD111 -> 211.1930687 | AF26: =AE111 -> 183.0339929
B27: Storage | M27: 0 | N27: 0 | O27: 0 | P27: 0 | Q27: 0 | R27: 0 | S27: 0 | T27: 0 | U27: 0 | V27: 0 | W27: 0 | X27: 0.002409155934 | Y27: 0.004354082344 | Z27: 0.006027931778 | AA27: 0.007427046208 | AB27: 0.008597936076 | AC27: 0.006878348861 | AD27: 0.005502679088 | AE27: 0.004402143271 | AF27: 0.003521714617
B28: Total | M28: =SUM(M15:M27) -> 3127.69238 | N28: =SUM(N15:N27) -> 3667.466852 | O28: 4178.603365 | P28: 4617.021714 | Q28: 4915.943423 | R28: 5068.680953 | S28: 5199.336676 | T28: 5332.658346 | U28: 5515.571573 | V28: 5675.932627 | W28: 5900.304019 | X28: 6250.854072 | Y28: 6586.185588 | Z28: 6911.402977 | AA28: 7183.605448 | AB28: 7432.476782 | AC28: 6961.015534 | AD28: 6552.942389 | AE28: 6186.462498 | AF28: 5854.919283
B30: Year ending 30 June | F30: 2006 | G30: 2007 | H30: 2008 | I30: 2009 | J30: 2010 | K30: 2011 | L30: 2012 | M30: 2013 | N30: 2014 | O30: 2015 | P30: 2016 | Q30: 2017 | R30: 2018 | S30: 2019 | T30: 2020 | U30: 2021 | V30: 2022 | W30: 2023 | X30: 2024 | Y30: 2025 | Z30: 2026 | AA30: 2027 | AB30: 2028 | AC30: 2029 | AD30: 2030 | AE30: 2031 | AF30: 2032
B31: Capital expenditure
B32: Wooden Pole Lines | M32: =M221 -> 307.6323587 | N32: 372.5195116 | O32: 295.0871513 | P32: 208.1451271 | Q32: 105.0464079 | R32: 172.0399403 | S32: 144.3260851 | T32: 170.6922609 | U32: 185.2324937 | V32: 140.4983011 | W32: 165.1174571 | X32: 169.7125031 | Y32: 161.7575171 | Z32: 168.0809493 | AA32: 172.2156083 | AB32: 0 | AC32: 0 | AD32: 0 | AE32: 0 | AF32: 0
B33: Underground Cables | M33: =M222 -> 69.71205692 | N33: 55.20467582 | O33: 55.43454741 | P33: 53.722517 | Q33: 50.9775351 | R33: 28.17596894 | S33: 30.79410941 | T33: 42.88359576 | U33: 41.83761887 | V33: 40.04318419 | W33: 153.7752813 | X33: 152.6895883 | Y33: 152.9253194 | Z33: 153.5606756 | AA33: 154.2731268 | AB33: 0 | AC33: 0 | AD33: 0 | AE33: 0 | AF33: 0
B34: Transformers | M34: 122.5480783 | N34: 111.6438702 | O34: 125.2541628 | P34: 112.0742557 | Q34: 89.55495697 | R34: 55.33561183 | S34: 68.12592285 | T34: 64.51483661 | U34: 57.17674931 | V34: 97.44693997 | W34: 16.31986912 | X34: 16.66571538 | Y34: 16.96918175 | Z34: 17.07446514 | AA34: 17.39964373 | AB34: 0 | AC34: 0 | AD34: 0 | AE34: 0 | AF34: 0
B35: Switchgear | M35: 68.1170679 | N35: 66.70591912 | O35: 69.94064594 | P35: 56.48263821 | Q35: 44.45023955 | R35: 30.19450443 | S35: 35.58798297 | T35: 33.25811332 | U35: 30.97025514 | V35: 55.32256823 | W35: 30.51480681 | X35: 32.19210672 | Y35: 33.25768187 | Z35: 32.7321785 | AA35: 33.54664825 | AB35: 0 | AC35: 0 | AD35: 0 | AE35: 0 | AF35: 0
B36: Street lighting | M36: 4.893438222 | N36: 4.679023215 | O36: 5.836015557 | P36: 5.932678774 | Q36: 4.77386046 | R36: 3.118974462 | S36: 3.522032772 | T36: 3.329091478 | U36: 3.251821691 | V36: 5.104108028 | W36: 14.99013404 | X36: 15.79843956 | Y36: 16.31676054 | Z36: 16.08233048 | AA36: 16.48485335 | AB36: 0 | AC36: 0 | AD36: 0 | AE36: 0 | AF36: 0
B37: Meters and Services | M37: 11.40865 | N37: 8.83785 | O37: 11.68715 | P37: 23.055 | Q37: 21.373 | R37: 13.84609843 | S37: 23.73777003 | T37: 28.07338782 | U37: 18.66162679 | V37: 21.86731784 | W37: 69.76679433 | X37: 69.01991226 | Y37: 78.82218244 | Z37: 71.77902821 | AA37: 67.61663372 | AB37: 0 | AC37: 0 | AD37: 0 | AE37: 0 | AF37: 0
B38: IT | M38: 18.72 | N38: 13.033 | O38: 20.512 | P38: 12.401 | Q38: 30.948 | R38: 26.45570815 | S38: 29.94525333 | T38: 32.44044889 | U38: 32.417 | V38: 38.58399657 | W38: 47.99249466 | X38: 53.51833241 | Y38: 54.45662787 | Z38: 65.61803574 | AA38: 64.0221879 | AB38: 0 | AC38: 0 | AD38: 0 | AE38: 0 | AF38: 0
B39: SCADA & Communications | M39: 3.34735 | N39: 2.70515 | O39: 2.67785 | P39: 3.702 | Q39: 5.064 | R39: 5.894432593 | S39: 6.290705185 | T39: 16.06766222 | U39: 18.89691501 | V39: 14.45222538 | W39: 37.85508271 | X39: 38.32624711 | Y39: 44.9194143 | Z39: 54.54791806 | AA39: 58.21712711 | AB39: 0 | AC39: 0 | AD39: 0 | AE39: 0 | AF39: 0
B40: Other Distribution Non-Network | M40: 18.26166567 | N40: 2.517 | O40: 10.415 | P40: 11.76074797 | Q40: 5.245 | R40: 11.1894 | S40: 16.4232 | T40: 23.4354 | U40: 7.602139987 | V40: 41.14608634 | W40: 42.9840774 | X40: 50.60608852 | Y40: 66.52089041 | Z40: 32.20493735 | AA40: 32.31223328 | AB40: 0 | AC40: 0 | AD40: 0 | AE40: 0 | AF40: 0
B41: Distribution Land & Easements | M41: 0 | N41: 0 | O41: 0 | P41: 0 | Q41: 0 | R41: 7.4596 | S41: 10.9488 | T41: 15.6236 | U41: 5.068093325 | V41: 27.43072422 | W41: 0 | X41: 0 | Y41: 0 | Z41: 0 | AA41: 0 | AB41: 0 | AC41: 0 | AD41: 0 | AE41: 0 | AF41: 0
B42: Equity Raising Costs | M42: 5.484702631 | N42: 4.480711191 | O42: 3.529921867 | P42: 1.329817786 | Q42: 0 | R42: 0 | S42: 0 | T42: 0 | U42: 0 | V42: 0 | W42: 0 | X42: 0 | Y42: 0 | Z42: 0 | AA42: 0 | AB42: =AB231 -> 0 | AC42: =AC231 -> 0 | AD42: =AD231 -> 0 | AE42: =AE231 -> 0 | AF42: =AF231 -> 0
B43: Standalone Power Systems | M43: =M232 -> 0 | N43: 0 | O43: 0 | P43: 0 | Q43: 0 | R43: 0 | S43: 0 | T43: 0 | U43: 23.1361901 | V43: 20.98964017 | W43: 74.1549953 | X43: 78.61380401 | Y43: 81.32881475 | Z43: 79.47181279 | AA43: 81.39186812 | AB43: 0 | AC43: 0 | AD43: 0 | AE43: 0 | AF43: 0
B44: Storage | M44: =M233 -> 0 | N44: 0 | O44: 0 | P44: 0 | Q44: 0 | R44: 0 | S44: 0 | T44: 0 | U44: 0 | V44: 0 | W44: 0.002409155934 | X44: 0.002426757597 | Y44: 0.002544665902 | Z44: 0.002604700786 | AA44: 0.002656299109 | AB44: 0 | AC44: 0 | AD44: 0 | AE44: 0 | AF44: 0
B45: Total | M45: =SUM(M32:M44) -> 630.1253683 | N45: =SUM(N32:N44) -> 642.3267112 | O45: 600.3744449 | P45: 488.6057826 | Q45: 357.433 | R45: 353.7102392 | S45: 369.7018616 | T45: 430.318397 | U45: 424.250904 | V45: 502.885092 | W45: 653.4734019 | X45: 677.1451641 | Y45: 707.2769351 | Z45: 691.1549359 | AA45: 697.4825869 | AB45: 0 | AC45: 0 | AD45: 0 | AE45: 0 | AF45: 0
B47: Year ending 30 June | F47: 2006 | G47: 2007 | H47: 2008 | I47: 2009 | J47: 2010 | K47: 2011 | L47: 2012 | M47: 2013 | N47: 2014 | O47: 2015 | P47: 2016 | Q47: 2017 | R47: 2018 | S47: 2019 | T47: 2020 | U47: 2021 | V47: 2022 | W47: 2023 | X47: 2024 | Y47: 2025 | Z47: 2026 | AA47: 2027 | AB47: 2028 | AC47: 2029 | AD47: 2030 | AE47: 2031 | AF47: 2032
B48: Disposals/Redundant assets
B49: Wooden Pole Lines | M49: =SUM(M169,M255) -> 0 | N49: -0.254 | O49: -1.243 | P49: -0.13273799 | Q49: 0 | R49: -0.09340915512 | S49: 0 | T49: -0.596 | U49: 0 | V49: 0 | W49: 0 | X49: 0 | Y49: 0 | Z49: 0 | AA49: 0 | AB49: 0 | AC49: 0 | AD49: 0 | AE49: 0 | AF49: 0
B50: Underground Cables | M50: =SUM(M170,M256) -> 0 | N50: 0 | O50: 0 | P50: 0 | Q50: 0 | R50: 0 | S50: 0 | T50: 0 | U50: 0 | V50: 0 | W50: =SUM(W170,W256) -> 0 | X50: 0 | Y50: 0 | Z50: 0 | AA50: 0 | AB50: 0 | AC50: 0 | AD50: 0 | AE50: 0 | AF50: 0
B51: Transformers | M51: =SUM(M171,M257) -> 0 | N51: 0 | O51: 0 | P51: 0 | Q51: 0 | R51: 0 | S51: 0 | T51: 0 | U51: 0 | V51: 0 | W51: =SUM(W171,W257) -> 0 | X51: 0 | Y51: 0 | Z51: 0 | AA51: 0 | AB51: 0 | AC51: 0 | AD51: 0 | AE51: 0 | AF51: 0
B52: Switchgear | M52: =SUM(M172,M258) -> 0 | N52: 0 | O52: 0 | P52: 0 | Q52: 0 | R52: 0 | S52: 0 | T52: 0 | U52: 0 | V52: 0 | W52: =SUM(W172,W258) -> 0 | X52: 0 | Y52: 0 | Z52: 0 | AA52: 0 | AB52: 0 | AC52: 0 | AD52: 0 | AE52: 0 | AF52: 0
